Workbook

Sheet Cover
B6: Official Statistics Release
B7: Policy area: | C7: Local authority and children's homes inspection outcomes
B8: Theme: | C8: Social care
B9: Published on: | C9: 15 December 2016
B10: Coverage: | C10: England
B11: Period covered: | C11: Inspection outcomes for local authority children’s services inspections, as at 30 September 2016, published by 31 October 2016
C12: Inspection outcomes for children's homes, 01 April 2016 to 30 September 2016, published by 31 October 2016
C13: Inspection outcome of most recent inspection for children's homes, as at 30 September 2016, published by 31 October 2016
B14: Status: | C14: Final - inspections of local authority children’s services, as at 30 September 2016
C15: Provisional - inspections of children's homes, 01 April 2016 to 30 September 2016
C16: Final - inspections of children's homes, as at 30 September 2016
C17: Revised - inspections of regulated, and other, children's social care provision, 01 April 2015 to 31 March 2016, published by 31 October 2016
B18: Issued by: | C18: Office for Standards in Education, Children’s Services and Skills (Ofsted) 125 Kingsway London WC2B 6SE
B22: Chief Statistician: | C22: Helen Barugh
B23: Statistician: | C23: Adam King
B24: Public enquiries: | C24: If you have any comments or feedback on this publication, please contact the Social Care Data Team on 03000 130 020 or socialcaredata@ofsted.gov.uk
B25: Press enquiries: | C25: pressenquiries@ofsted.gov.uk
B26: Publication frequency: | C26: Annual
B27: Schedule of publication: | C27: https://www.gov.uk/government/statistics/announcements?utf8=%E2%9C%93&organisations%5B%5D=ofsted
B29: © Crown copyright 2016 You may use and re-use this information (not including logos) free of charge in any format or medium, under the terms of the Open Government Licence. To view this licence, visit: http://www.nationalarchives.gov.uk/doc/open-government-licence/
B30: Or write to the Information Policy Team, The National Archives, Kew, London, TW9 4DU
B31: Or email: psi@nationalarchives.gsi.gov.uk

Sheet Contents
B1: Contents
B3: Worksheet title and link | C3: Description of contents of worksheet
B5: Notes | C5: These are notes about the document and data within it to aid the use and interpretation of the data.
B7: Glossary | C7: This is a list of terms found in the document with further explanations about what they mean.
B9: LA Inspection | C9: This is an interactive table which shows inspection judgements for local authority inspections. It covers the current and two previous inspection frameworks. It has drop down options for; England/region/local authority and inspection type.
B11: Children's Social Care | C11: This is an interactive table which shows inspection judgements for all children's homes inspections. It has numerous drop down options including; England/region/local authority, inspection period, and inspection type.
B13: Sub-Judgements | C13: This is an interactive table which shows inspection sub-judgements for all children's homes inspections. It has numerous drop down options including; England/region/local authority, inspection period, and sector.
B15: LA level at 30 Sep 2016 | C15: This is a list of all the local authorities in England. Where they have received an inspection in the current framework, their inspection judgements are shown.
B17: Provider level at 30 Sep 2016 | C17: This is a list of all active, inspected, children's homes as at 30 September 2016 with the inspection judgements from their latest full inspection.
B19: Provider level in year 2016-17 | C19: This is a list of all children's homes inspected between 01 April 2016 and 30 September 2016 with the inspection judgements.
B21: Revised 2015-16 in year data | C21: This is a revised list of all provisions inspected between 01 April 2015 and 31 March 2016 with the inspection judgements.
B23: Latest OE 31 March Time Series | C23: This is an interactive time series table and chart showing overall effectiveness of all types of children's homes, as at 31 March, each year.
B25: In year CH time series | C25: This is an interactive time series table and chart showing overall effectiveness of all types of children's homes inspected each year from 1 April to 31 March; and broken down by children's homes sub-type.

Sheet Notes
B1: Notes
B3: Data
B4: The inspection outcomes data relates to inspections of:
B5: local authority (LA) services for children who need help and protection, children looked after and care leavers. The inspections of LA children’s services are carried out under the Single Inspection Framework (SIF)
B6: all types of children's homes.
B8: Notes to help use/interpret the data
B9: Monitoring visits are only shown in the interactive tables where an inspection judgement is made at the visit. Where no judgement is made the visits are not included in the tables, however they are included in the underlying provider level data.
B11: Where the term 'Residential special school (registered as a children's home)' is used, this refers to residential special schools that are registered as children's homes as they care for pupils for more than 295 days in a year.
B13: Some children's home interim inspections have an overall effectiveness outcome of 'not judged'. This is because the home had no children present at the time of inspection and so could not receive an inspection judgement.
B15: Ofsted has brought in a more standardised set of sub-judgements for all its social care inspections, in conjunction with changes to inspection frameworks, and these are reported in the tables and underlying data. When reporting on the latest inspection judgements, there are some inspections that took place before these standardised sub-judgements came in, and so their sub-judgements are not included as they are not comparable to the new sub-judgements.
B17: In the as at 30 September 2016 data we have used the latest inspection framework's sub judgement wording rather than the wording at the time of inspection. Where the sub judgements are looking at all provider types as one, we have used a standardised set of sub judgement names to best convey what that sub judgement covers.
B19: Caution should be used when comparing inspection judgements from year to year in the time series charts and tables. Inspection framework changes may have an impact on inspection judgements and so a changing grade profile from one year to the next may not solely indicate a change in the quality of provisions.
B21: All inspection dates in the release are the date of the conclusion of the inspection.
B23: Some children's homes have older latest inspection dates. This does not imply that Ofsted has not inspected those homes since that date, it simply means that date was when the last full inspection took place. Homes are allowed to stay registered with Ofsted and not have any children present for significant periods of time, these homes receive inspections from Ofsted, but not full inspections. These are the homes which have the oldest latest inspection dates. When the homes begin to take children again they will receive full inspections.
B25: Revisions
B26: Any revisions to the inspection data for 1 April to 30 September 2016 will be included with the next full release (Children's Social Care in England, published in July each year). This will include advisory notes about any impact to figures and findings from the first full release of provisional data. Revisions are published in line with Ofsted’s revisions policy for official statistics. For more information about the policy, please visit the Ofsted website or access the policy via the following link:
B27: https://www.gov.uk/government/publications/ofsted-standards-for-official-statistics
B29: Other available data
B30: Previously published data regarding LA inspections, children’s social care inspections and providers and places can be found at the following links on GOV.UK:
B31: https://www.gov.uk/government/collections/childrens-social-care-statistics
B32: and in the National Archives:
B33: http://webarchive.nationalarchives.gov.uk/20141124154759/http:/www.ofsted.gov.uk/resources/statistics
B34: These pages also contain data on adoption, fostering, children looked after placements and serious incident notifications which the reader may find relevant.
B36: Quality Report
B37: An explanation about key uses of these data and further contextual information is provided in the accompanying Quality and Methodology report. The report also provides information about the arrangements for quality assurance, strengths and limitations of the statistics:
B38: www.gov.uk/government/collections/childrens-social-care-statistics

Sheet Glossary
B1: Glossary
B3: Children’s homes
B4: A children’s home is defined in section 1 of the Care Standards Act 2000, and is an establishment that provides care and accommodation wholly or mainly for children. Children’s homes vary in size and nature. They fulfil a range of purposes designed to meet the different needs of those children and young people who are assessed as needing a residential care placement. Some homes, for example, provide short breaks which are needed to help support children and their family. Some residential special schools are registered as children’s homes because boarders are resident for more than 295 days per year.
B6: Residential special schools
B7: Residential special schools are defined in section 59 of the Safeguarding Vulnerable Groups Act 2006. They vary in size and nature. The sector ranges from large non-maintained special schools which make provision for very specific needs and take children as full boarders from all over the country, to smaller more local providers catering for children with a range of different special needs and disabilities who may be resident at the school only during the week. Some residential special schools are registered as children’s homes because boarders are resident for more than 295 days per year. There are also a small number of independent residential special schools which also tend to cater for children with very specialist needs.
B9: Sector
B10: Sector refers to the type of provider that owns the children’s social care provision.
B11: Academy
B12: These are publicly funded independent schools which are run by trusts.
B13: Health Authority
B14: These are NHS Trust-run.
B15: Local Authority
B16: These are public bodies responsible for the children’s social care provision.
B17: Private
B18: These are for-profit organisations mostly with limited company status. These can also be individually owned children’s social care provision and run for profit.
B19: Voluntary
B20: These are mostly not-for-profit organisations, mainly with charitable status. These can also be individually owned children’s social care provision and run on a not-for-profit basis.
B22: Secure children’s homes
B23: Secure children’s homes are defined by section 25 of the Children Act 1989. They accommodate children and young people who are remanded or have been sentenced for committing a criminal offence. They also accommodate children and young people who are placed there by a court because their behaviour is deemed to present a significant and immediate threat to their safety or the safety of others, unless they are placed in a secure environment. Ofsted inspections are conducted in accordance with the Care Standards Act 2000 and judgements in reports are made in relation to the outcomes for children set out in the Children Act 2004. The criteria are the same as those used to inspect non-secure children’s homes.

Sheet LA Inspection
B2: ="Statistical First Release Local Authority Inspections as at "&Inspections_To -> Statistical First Release Local Authority Inspections as at 30 September 2016
B4: Region: | E4: Local Authority:
B5: All | E5: All | G5: =IF(B5="All",TRUE,NOT(ISERROR(MATCH(E5,INDIRECT(SUBSTITUTE(SUBSTITUTE(B5," ","_"),",","")),0)))) -> TRUE
E7: Inspection Type:
E8: Single inspection framework
B10: Judgements | C10: Inspection Outcomes
C11: Outstanding | D11: Good | E11: Requires improvement | F11: Inadequate | G11: Not judged
B14: Overall Effectiveness (OE) | C14: =IF(ISERROR(VLOOKUP($E$8&$B$9&IF($E$5<>"All","All",$B$5)&$E$5,'LA FINAL RAW DATA'!$A:$I,5,0))=TRUE,0,VLOOKUP($E$8&$B$9&IF($E$5<>"All","All",$B$5)&$E$5,'LA FINAL RAW DATA'!$A:$I,5,0)) -> 2 | D14: =IF(ISERROR(VLOOKUP($E$8&$B$9&IF($E$5<>"All","All",$B$5)&$E$5,'LA FINAL RAW DATA'!$A:$I,6,0))=TRUE,0,VLOOKUP($E$8&$B$9&IF($E$5<>"All","All",$B$5)&$E$5,'LA FINAL RAW DATA'!$A:$I,6,0)) -> 28 | E14: =IF(ISERROR(VLOOKUP($E$8&$B$9&IF($E$5<>"All","All",$B$5)&$E$5,'LA FINAL RAW DATA'!$A:$I,7,0))=TRUE,0,VLOOKUP($E$8&$B$9&IF($E$5<>"All","All",$B$5)&$E$5,'LA FINAL RAW DATA'!$A:$I,7,0)) -> 54 | F14: =IF(ISERROR(VLOOKUP($E$8&$B$9&IF($E$5<>"All","All",$B$5)&$E$5,'LA FINAL RAW DATA'!$A:$I,8,0))=TRUE,0,VLOOKUP($E$8&$B$9&IF($E$5<>"All","All",$B$5)&$E$5,'LA FINAL RAW DATA'!$A:$I,8,0)) -> 25 | G14: =IF(ISERROR(VLOOKUP($E$8&$B$9&IF($E$5<>"All","All",$B$5)&$E$5,'LA FINAL RAW DATA'!$A:$I,9,0))=TRUE,0,VLOOKUP($E$8&$B$9&IF($E$5<>"All","All",$B$5)&$E$5,'LA FINAL RAW DATA'!$A:$I,9,0)) -> 0
B16: Children who need help and protection | C16: =IF(ISERROR(VLOOKUP($E$8&$B$9&" ["&$B16&"]"&IF($E$5<>"All","All",ddla)&$E$5,'LA FINAL RAW DATA'!$A:$I,5,0)),"",VLOOKUP($E$8&$B$9&" ["&$B16&"]"&IF($E$5<>"All","All",ddla)&$E$5,'LA FINAL RAW DATA'!$A:$I,5,0)) -> 0 | D16: =IF(ISERROR(VLOOKUP($E$8&$B$9&" ["&$B16&"]"&IF($E$5<>"All","All",ddla)&$E$5,'LA FINAL RAW DATA'!$A:$I,5,0)),"",VLOOKUP($E$8&$B$9&" ["&$B16&"]"&IF($E$5<>"All","All",ddla)&$E$5,'LA FINAL RAW DATA'!$A:$I,6,0)) -> 27 | E16: =IF(ISERROR(VLOOKUP($E$8&$B$9&" ["&$B16&"]"&IF($E$5<>"All","All",ddla)&$E$5,'LA FINAL RAW DATA'!$A:$I,5,0)),"",VLOOKUP($E$8&$B$9&" ["&$B16&"]"&IF($E$5<>"All","All",ddla)&$E$5,'LA FINAL RAW DATA'!$A:$I,7,0)) -> 60 | F16: =IF(ISERROR(VLOOKUP($E$8&$B$9&" ["&$B16&"]"&IF($E$5<>"All","All",ddla)&$E$5,'LA FINAL RAW DATA'!$A:$I,5,0)),"",VLOOKUP($E$8&$B$9&" ["&$B16&"]"&IF($E$5<>"All","All",ddla)&$E$5,'LA FINAL RAW DATA'!$A:$I,8,0)) -> 22 | G16: =IF(ISERROR(VLOOKUP($E$8&$B$9&" ["&$B16&"]"&IF($E$5<>"All","All",ddla)&$E$5,'LA FINAL RAW DATA'!$A:$I,5,0)),"",VLOOKUP($E$8&$B$9&" ["&$B16&"]"&IF($E$5<>"All","All",ddla)&$E$5,'LA FINAL RAW DATA'!$A:$I,9,0)) -> 0
B18: Children looked after and achieving permanence | C18: =IF(ISERROR(VLOOKUP($E$8&$B$9&" ["&$B18&"]"&IF($E$5<>"All","All",ddla)&$E$5,'LA FINAL RAW DATA'!$A:$I,5,0)),"",VLOOKUP($E$8&$B$9&" ["&$B18&"]"&IF($E$5<>"All","All",ddla)&$E$5,'LA FINAL RAW DATA'!$A:$I,5,0)) -> 2 | D18: =IF(ISERROR(VLOOKUP($E$8&$B$9&" ["&$B18&"]"&IF($E$5<>"All","All",ddla)&$E$5,'LA FINAL RAW DATA'!$A:$I,5,0)),"",VLOOKUP($E$8&$B$9&" ["&$B18&"]"&IF($E$5<>"All","All",ddla)&$E$5,'LA FINAL RAW DATA'!$A:$I,6,0)) -> 33 | E18: =IF(ISERROR(VLOOKUP($E$8&$B$9&" ["&$B18&"]"&IF($E$5<>"All","All",ddla)&$E$5,'LA FINAL RAW DATA'!$A:$I,5,0)),"",VLOOKUP($E$8&$B$9&" ["&$B18&"]"&IF($E$5<>"All","All",ddla)&$E$5,'LA FINAL RAW DATA'!$A:$I,7,0)) -> 61 | F18: =IF(ISERROR(VLOOKUP($E$8&$B$9&" ["&$B18&"]"&IF($E$5<>"All","All",ddla)&$E$5,'LA FINAL RAW DATA'!$A:$I,5,0)),"",VLOOKUP($E$8&$B$9&" ["&$B18&"]"&IF($E$5<>"All","All",ddla)&$E$5,'LA FINAL RAW DATA'!$A:$I,8,0)) -> 12 | G18: =IF(ISERROR(VLOOKUP($E$8&$B$9&" ["&$B18&"]"&IF($E$5<>"All","All",ddla)&$E$5,'LA FINAL RAW DATA'!$A:$I,5,0)),"",VLOOKUP($E$8&$B$9&" ["&$B18&"]"&IF($E$5<>"All","All",ddla)&$E$5,'LA FINAL RAW DATA'!$A:$I,9,0)) -> 0
B20: Adoption Performance | C20: =IF(ISERROR(VLOOKUP($E$8&$B$9&" [CLA Sub: "&$B20&"]"&IF($E$5<>"All","All",ddla)&$E$5,'LA FINAL RAW DATA'!$A:$I,5,0)),"",VLOOKUP($E$8&$B$9&" [CLA Sub: "&$B20&"]"&IF($E$5<>"All","All",ddla)&$E$5,'LA FINAL RAW DATA'!$A:$I,5,0)) -> 7 | D20: =IF(ISERROR(VLOOKUP($E$8&$B$9&" [CLA Sub: "&$B20&"]"&IF($E$5<>"All","All",ddla)&$E$5,'LA FINAL RAW DATA'!$A:$I,5,0)),"",VLOOKUP($E$8&$B$9&" [CLA Sub: "&$B20&"]"&IF($E$5<>"All","All",ddla)&$E$5,'LA FINAL RAW DATA'!$A:$I,6,0)) -> 52 | E20: =IF(ISERROR(VLOOKUP($E$8&$B$9&" [CLA Sub: "&$B20&"]"&IF($E$5<>"All","All",ddla)&$E$5,'LA FINAL RAW DATA'!$A:$I,5,0)),"",VLOOKUP($E$8&$B$9&" [CLA Sub: "&$B20&"]"&IF($E$5<>"All","All",ddla)&$E$5,'LA FINAL RAW DATA'!$A:$I,7,0)) -> 40 | F20: =IF(ISERROR(VLOOKUP($E$8&$B$9&" [CLA Sub: "&$B20&"]"&IF($E$5<>"All","All",ddla)&$E$5,'LA FINAL RAW DATA'!$A:$I,5,0)),"",VLOOKUP($E$8&$B$9&" [CLA Sub: "&$B20&"]"&IF($E$5<>"All","All",ddla)&$E$5,'LA FINAL RAW DATA'!$A:$I,8,0)) -> 8 | G20: =IF(ISERROR(VLOOKUP($E$8&$B$9&" [CLA Sub: "&$B20&"]"&IF($E$5<>"All","All",ddla)&$E$5,'LA FINAL RAW DATA'!$A:$I,5,0)),"",VLOOKUP($E$8&$B$9&" [CLA Sub: "&$B20&"]"&IF($E$5<>"All","All",ddla)&$E$5,'LA FINAL RAW DATA'!$A:$I,9,0)) -> 0
B22: Experiences and progress of care leavers | C22: =IF(ISERROR(VLOOKUP($E$8&$B$9&" [CLA Sub: "&$B22&"]"&IF($E$5<>"All","All",ddla)&$E$5,'LA FINAL RAW DATA'!$A:$I,5,0)),"",VLOOKUP($E$8&$B$9&" [CLA Sub: "&$B22&"]"&IF($E$5<>"All","All",ddla)&$E$5,'LA FINAL RAW DATA'!$A:$I,5,0)) -> 5 | D22: =IF(ISERROR(VLOOKUP($E$8&$B$9&" [CLA Sub: "&$B22&"]"&IF($E$5<>"All","All",ddla)&$E$5,'LA FINAL RAW DATA'!$A:$I,5,0)),"",VLOOKUP($E$8&$B$9&" [CLA Sub: "&$B22&"]"&IF($E$5<>"All","All",ddla)&$E$5,'LA FINAL RAW DATA'!$A:$I,6,0)) -> 37 | E22: =IF(ISERROR(VLOOKUP($E$8&$B$9&" [CLA Sub: "&$B22&"]"&IF($E$5<>"All","All",ddla)&$E$5,'LA FINAL RAW DATA'!$A:$I,5,0)),"",VLOOKUP($E$8&$B$9&" [CLA Sub: "&$B22&"]"&IF($E$5<>"All","All",ddla)&$E$5,'LA FINAL RAW DATA'!$A:$I,7,0)) -> 52 | F22: =IF(ISERROR(VLOOKUP($E$8&$B$9&" [CLA Sub: "&$B22&"]"&IF($E$5<>"All","All",ddla)&$E$5,'LA FINAL RAW DATA'!$A:$I,5,0)),"",VLOOKUP($E$8&$B$9&" [CLA Sub: "&$B22&"]"&IF($E$5<>"All","All",ddla)&$E$5,'LA FINAL RAW DATA'!$A:$I,8,0)) -> 14 | G22: =IF(ISERROR(VLOOKUP($E$8&$B$9&" [CLA Sub: "&$B22&"]"&IF($E$5<>"All","All",ddla)&$E$5,'LA FINAL RAW DATA'!$A:$I,5,0)),"",VLOOKUP($E$8&$B$9&" [CLA Sub: "&$B22&"]"&IF($E$5<>"All","All",ddla)&$E$5,'LA FINAL RAW DATA'!$A:$I,9,0)) -> 0
B24: Leadership, management and governance | C24: =IF(ISERROR(VLOOKUP($E$8&$B$9&" ["&$B24&"]"&IF($E$5<>"All","All",ddla)&$E$5,'LA FINAL RAW DATA'!$A:$I,5,0)),"",VLOOKUP($E$8&$B$9&" ["&$B24&"]"&IF($E$5<>"All","All",ddla)&$E$5,'LA FINAL RAW DATA'!$A:$I,5,0)) -> 8 | D24: =IF(ISERROR(VLOOKUP($E$8&$B$9&" ["&$B24&"]"&IF($E$5<>"All","All",ddla)&$E$5,'LA FINAL RAW DATA'!$A:$I,5,0)),"",VLOOKUP($E$8&$B$9&" ["&$B24&"]"&IF($E$5<>"All","All",ddla)&$E$5,'LA FINAL RAW DATA'!$A:$I,6,0)) -> 27 | E24: =IF(ISERROR(VLOOKUP($E$8&$B$9&" ["&$B24&"]"&IF($E$5<>"All","All",ddla)&$E$5,'LA FINAL RAW DATA'!$A:$I,5,0)),"",VLOOKUP($E$8&$B$9&" ["&$B24&"]"&IF($E$5<>"All","All",ddla)&$E$5,'LA FINAL RAW DATA'!$A:$I,7,0)) -> 52 | F24: =IF(ISERROR(VLOOKUP($E$8&$B$9&" ["&$B24&"]"&IF($E$5<>"All","All",ddla)&$E$5,'LA FINAL RAW DATA'!$A:$I,5,0)),"",VLOOKUP($E$8&$B$9&" ["&$B24&"]"&IF($E$5<>"All","All",ddla)&$E$5,'LA FINAL RAW DATA'!$A:$I,8,0)) -> 22 | G24: =IF(ISERROR(VLOOKUP($E$8&$B$9&" ["&$B24&"]"&IF($E$5<>"All","All",ddla)&$E$5,'LA FINAL RAW DATA'!$A:$I,5,0)),"",VLOOKUP($E$8&$B$9&" ["&$B24&"]"&IF($E$5<>"All","All",ddla)&$E$5,'LA FINAL RAW DATA'!$A:$I,9,0)) -> 0
B29: =IF(B5<>"All",B5,IF(E5<>"All",VLOOKUP(E5,'Region Lookups'!C:D,2,0),"All")) -> All
D31: Total number inspected | F31: Outstanding | H31: Good | J31: Requires Improvement | M31: Inadequate
F32: 6 | H32: 7 | J32: 8 | M32: 9
B33: England | D33: =SUM(F33:M33) -> 109 | F33: =IF(ISERROR(VLOOKUP($E$8&$B$9&"ALL"&"ALL",'LA FINAL RAW DATA'!$A:$I,5,0))=TRUE,"",VLOOKUP($E$8&$B$9&"ALL"&"ALL",'LA FINAL RAW DATA'!$A:$I,5,0)) -> 2 | H33: =IF(ISERROR(VLOOKUP($E$8&$B$9&"ALL"&"ALL",'LA FINAL RAW DATA'!$A:$I,6,0))=TRUE,"",VLOOKUP($E$8&$B$9&"ALL"&"ALL",'LA FINAL RAW DATA'!$A:$I,6,0)) -> 28 | J33: =IF(ISERROR(VLOOKUP($E$8&$B$9&"ALL"&"ALL",'LA FINAL RAW DATA'!$A:$I,7,0))=TRUE,"",VLOOKUP($E$8&$B$9&"ALL"&"ALL",'LA FINAL RAW DATA'!$A:$I,7,0)) -> 54 | M33: =IF(ISERROR(VLOOKUP($E$8&$B$9&"ALL"&"ALL",'LA FINAL RAW DATA'!$A:$I,8,0))=TRUE,"",VLOOKUP($E$8&$B$9&"ALL"&"ALL",'LA FINAL RAW DATA'!$A:$I,8,0)) -> 25
B35: =IFERROR(IF(B29="All",NA(),B29),"") ->  | D35: =IF(ISERROR(VLOOKUP($E$8&B35&"All",'LA FINAL RAW DATA'!$A:$I,5,0)),"",SUM(F35:M35)) ->  | F35: =IF(ISERROR(VLOOKUP($E$8&$B$9&$B$35&"ALL",'LA FINAL RAW DATA'!$A:$I,5,0))=TRUE,"",VLOOKUP($E$8&$B$9&$B$35&"ALL",'LA FINAL RAW DATA'!$A:$I,5,0)) ->  | H35: =IF(ISERROR(VLOOKUP($E$8&$B$9&$B$35&"ALL",'LA FINAL RAW DATA'!$A:$I,6,0))=TRUE,"",VLOOKUP($E$8&$B$9&$B$35&"ALL",'LA FINAL RAW DATA'!$A:$I,6,0)) ->  | J35: =IF(ISERROR(VLOOKUP($E$8&$B$9&$B$35&"ALL",'LA FINAL RAW DATA'!$A:$I,7,0))=TRUE,"",VLOOKUP($E$8&$B$9&$B$35&"ALL",'LA FINAL RAW DATA'!$A:$I,7,0)) ->  | M35: =IF(ISERROR(VLOOKUP($E$8&$B$9&$B$35&"ALL",'LA FINAL RAW DATA'!$A:$I,8,0))=TRUE,"",VLOOKUP($E$8&$B$9&$B$35&"ALL",'LA FINAL RAW DATA'!$A:$I,8,0)) -> 
A36: 1 | B36: =IFERROR(VLOOKUP($B$29&A36,'Region Lookups'!A:C,3,0),"") ->  | D36: =IF(ISERROR(VLOOKUP($E$8&"All"&$B36,'LA FINAL RAW DATA'!$A:$I,5,0)),IF(B36="","",0),SUM(F36:N36)) ->  | F36: =IF(ISERROR(VLOOKUP($E$8&$B$9&IF($B36<>"All","All",$B$5)&$B36,'LA FINAL RAW DATA'!$A:$I,5,0))=TRUE,IF(B36="","",0),VLOOKUP($E$8&$B$9&IF($B36<>"All","All",$B$5)&$B36,'LA FINAL RAW DATA'!$A:$I,5,0)) ->  | H36: =IF(ISERROR(VLOOKUP($E$8&$B$9&IF($B36<>"All","All",$B$5)&$B36,'LA FINAL RAW DATA'!$A:$I,6,0))=TRUE,IF(B36="","",0),VLOOKUP($E$8&$B$9&IF($B36<>"All","All",$B$5)&$B36,'LA FINAL RAW DATA'!$A:$I,6,0)) ->  | J36: =IF(ISERROR(VLOOKUP($E$8&$B$9&IF($B36<>"All","All",$B$5)&$B36,'LA FINAL RAW DATA'!$A:$I,7,0))=TRUE,IF(B36="","",0),VLOOKUP($E$8&$B$9&IF($B36<>"All","All",$B$5)&$B36,'LA FINAL RAW DATA'!$A:$I,7,0)) ->  | M36: =IF(ISERROR(VLOOKUP($E$8&$B$9&IF($B36<>"All","All",$B$5)&$B36,'LA FINAL RAW DATA'!$A:$I,8,0))=TRUE,IF(B36="","",0),VLOOKUP($E$8&$B$9&IF($B36<>"All","All",$B$5)&$B36,'LA FINAL RAW DATA'!$A:$I,8,0)) -> 
A37: 2 | B37: =IFERROR(VLOOKUP($B$29&A37,'Region Lookups'!A:C,3,0),"") ->  | D37: =IF(ISERROR(VLOOKUP($E$8&"All"&$B37,'LA FINAL RAW DATA'!$A:$I,5,0)),IF(B37="","",0),SUM(F37:N37)) ->  | F37: =IF(ISERROR(VLOOKUP($E$8&$B$9&IF($B37<>"All","All",$B$5)&$B37,'LA FINAL RAW DATA'!$A:$I,5,0))=TRUE,IF(B37="","",0),VLOOKUP($E$8&$B$9&IF($B37<>"All","All",$B$5)&$B37,'LA FINAL RAW DATA'!$A:$I,5,0)) ->  | H37: =IF(ISERROR(VLOOKUP($E$8&$B$9&IF($B37<>"All","All",$B$5)&$B37,'LA FINAL RAW DATA'!$A:$I,6,0))=TRUE,IF(B37="","",0),VLOOKUP($E$8&$B$9&IF($B37<>"All","All",$B$5)&$B37,'LA FINAL RAW DATA'!$A:$I,6,0)) ->  | J37: =IF(ISERROR(VLOOKUP($E$8&$B$9&IF($B37<>"All","All",$B$5)&$B37,'LA FINAL RAW DATA'!$A:$I,7,0))=TRUE,IF(B37="","",0),VLOOKUP($E$8&$B$9&IF($B37<>"All","All",$B$5)&$B37,'LA FINAL RAW DATA'!$A:$I,7,0)) ->  | M37: =IF(ISERROR(VLOOKUP($E$8&$B$9&IF($B37<>"All","All",$B$5)&$B37,'LA FINAL RAW DATA'!$A:$I,8,0))=TRUE,IF(B37="","",0),VLOOKUP($E$8&$B$9&IF($B37<>"All","All",$B$5)&$B37,'LA FINAL RAW DATA'!$A:$I,8,0)) -> 
A38: 3 | B38: =IFERROR(VLOOKUP($B$29&A38,'Region Lookups'!A:C,3,0),"") ->  | D38: =IF(ISERROR(VLOOKUP($E$8&"All"&$B38,'LA FINAL RAW DATA'!$A:$I,5,0)),IF(B38="","",0),SUM(F38:N38)) ->  | F38: =IF(ISERROR(VLOOKUP($E$8&$B$9&IF($B38<>"All","All",$B$5)&$B38,'LA FINAL RAW DATA'!$A:$I,5,0))=TRUE,IF(B38="","",0),VLOOKUP($E$8&$B$9&IF($B38<>"All","All",$B$5)&$B38,'LA FINAL RAW DATA'!$A:$I,5,0)) ->  | H38: =IF(ISERROR(VLOOKUP($E$8&$B$9&IF($B38<>"All","All",$B$5)&$B38,'LA FINAL RAW DATA'!$A:$I,6,0))=TRUE,IF(B38="","",0),VLOOKUP($E$8&$B$9&IF($B38<>"All","All",$B$5)&$B38,'LA FINAL RAW DATA'!$A:$I,6,0)) ->  | J38: =IF(ISERROR(VLOOKUP($E$8&$B$9&IF($B38<>"All","All",$B$5)&$B38,'LA FINAL RAW DATA'!$A:$I,7,0))=TRUE,IF(B38="","",0),VLOOKUP($E$8&$B$9&IF($B38<>"All","All",$B$5)&$B38,'LA FINAL RAW DATA'!$A:$I,7,0)) ->  | M38: =IF(ISERROR(VLOOKUP($E$8&$B$9&IF($B38<>"All","All",$B$5)&$B38,'LA FINAL RAW DATA'!$A:$I,8,0))=TRUE,IF(B38="","",0),VLOOKUP($E$8&$B$9&IF($B38<>"All","All",$B$5)&$B38,'LA FINAL RAW DATA'!$A:$I,8,0)) -> 
A39: 4 | B39: =IFERROR(VLOOKUP($B$29&A39,'Region Lookups'!A:C,3,0),"") ->  | D39: =IF(ISERROR(VLOOKUP($E$8&"All"&$B39,'LA FINAL RAW DATA'!$A:$I,5,0)),IF(B39="","",0),SUM(F39:N39)) ->  | F39: =IF(ISERROR(VLOOKUP($E$8&$B$9&IF($B39<>"All","All",$B$5)&$B39,'LA FINAL RAW DATA'!$A:$I,5,0))=TRUE,IF(B39="","",0),VLOOKUP($E$8&$B$9&IF($B39<>"All","All",$B$5)&$B39,'LA FINAL RAW DATA'!$A:$I,5,0)) ->  | H39: =IF(ISERROR(VLOOKUP($E$8&$B$9&IF($B39<>"All","All",$B$5)&$B39,'LA FINAL RAW DATA'!$A:$I,6,0))=TRUE,IF(B39="","",0),VLOOKUP($E$8&$B$9&IF($B39<>"All","All",$B$5)&$B39,'LA FINAL RAW DATA'!$A:$I,6,0)) ->  | J39: =IF(ISERROR(VLOOKUP($E$8&$B$9&IF($B39<>"All","All",$B$5)&$B39,'LA FINAL RAW DATA'!$A:$I,7,0))=TRUE,IF(B39="","",0),VLOOKUP($E$8&$B$9&IF($B39<>"All","All",$B$5)&$B39,'LA FINAL RAW DATA'!$A:$I,7,0)) ->  | M39: =IF(ISERROR(VLOOKUP($E$8&$B$9&IF($B39<>"All","All",$B$5)&$B39,'LA FINAL RAW DATA'!$A:$I,8,0))=TRUE,IF(B39="","",0),VLOOKUP($E$8&$B$9&IF($B39<>"All","All",$B$5)&$B39,'LA FINAL RAW DATA'!$A:$I,8,0)) -> 
A40: 5 | B40: =IFERROR(VLOOKUP($B$29&A40,'Region Lookups'!A:C,3,0),"") ->  | D40: =IF(ISERROR(VLOOKUP($E$8&"All"&$B40,'LA FINAL RAW DATA'!$A:$I,5,0)),IF(B40="","",0),SUM(F40:N40)) ->  | F40: =IF(ISERROR(VLOOKUP($E$8&$B$9&IF($B40<>"All","All",$B$5)&$B40,'LA FINAL RAW DATA'!$A:$I,5,0))=TRUE,IF(B40="","",0),VLOOKUP($E$8&$B$9&IF($B40<>"All","All",$B$5)&$B40,'LA FINAL RAW DATA'!$A:$I,5,0)) ->  | H40: =IF(ISERROR(VLOOKUP($E$8&$B$9&IF($B40<>"All","All",$B$5)&$B40,'LA FINAL RAW DATA'!$A:$I,6,0))=TRUE,IF(B40="","",0),VLOOKUP($E$8&$B$9&IF($B40<>"All","All",$B$5)&$B40,'LA FINAL RAW DATA'!$A:$I,6,0)) ->  | J40: =IF(ISERROR(VLOOKUP($E$8&$B$9&IF($B40<>"All","All",$B$5)&$B40,'LA FINAL RAW DATA'!$A:$I,7,0))=TRUE,IF(B40="","",0),VLOOKUP($E$8&$B$9&IF($B40<>"All","All",$B$5)&$B40,'LA FINAL RAW DATA'!$A:$I,7,0)) ->  | M40: =IF(ISERROR(VLOOKUP($E$8&$B$9&IF($B40<>"All","All",$B$5)&$B40,'LA FINAL RAW DATA'!$A:$I,8,0))=TRUE,IF(B40="","",0),VLOOKUP($E$8&$B$9&IF($B40<>"All","All",$B$5)&$B40,'LA FINAL RAW DATA'!$A:$I,8,0)) -> 
A41: 6 | B41: =IFERROR(VLOOKUP($B$29&A41,'Region Lookups'!A:C,3,0),"") ->  | D41: =IF(ISERROR(VLOOKUP($E$8&"All"&$B41,'LA FINAL RAW DATA'!$A:$I,5,0)),IF(B41="","",0),SUM(F41:N41)) ->  | F41: =IF(ISERROR(VLOOKUP($E$8&$B$9&IF($B41<>"All","All",$B$5)&$B41,'LA FINAL RAW DATA'!$A:$I,5,0))=TRUE,IF(B41="","",0),VLOOKUP($E$8&$B$9&IF($B41<>"All","All",$B$5)&$B41,'LA FINAL RAW DATA'!$A:$I,5,0)) ->  | H41: =IF(ISERROR(VLOOKUP($E$8&$B$9&IF($B41<>"All","All",$B$5)&$B41,'LA FINAL RAW DATA'!$A:$I,6,0))=TRUE,IF(B41="","",0),VLOOKUP($E$8&$B$9&IF($B41<>"All","All",$B$5)&$B41,'LA FINAL RAW DATA'!$A:$I,6,0)) ->  | J41: =IF(ISERROR(VLOOKUP($E$8&$B$9&IF($B41<>"All","All",$B$5)&$B41,'LA FINAL RAW DATA'!$A:$I,7,0))=TRUE,IF(B41="","",0),VLOOKUP($E$8&$B$9&IF($B41<>"All","All",$B$5)&$B41,'LA FINAL RAW DATA'!$A:$I,7,0)) ->  | M41: =IF(ISERROR(VLOOKUP($E$8&$B$9&IF($B41<>"All","All",$B$5)&$B41,'LA FINAL RAW DATA'!$A:$I,8,0))=TRUE,IF(B41="","",0),VLOOKUP($E$8&$B$9&IF($B41<>"All","All",$B$5)&$B41,'LA FINAL RAW DATA'!$A:$I,8,0)) -> 
A42: 7 | B42: =IFERROR(VLOOKUP($B$29&A42,'Region Lookups'!A:C,3,0),"") ->  | D42: =IF(ISERROR(VLOOKUP($E$8&"All"&$B42,'LA FINAL RAW DATA'!$A:$I,5,0)),IF(B42="","",0),SUM(F42:N42)) ->  | F42: =IF(ISERROR(VLOOKUP($E$8&$B$9&IF($B42<>"All","All",$B$5)&$B42,'LA FINAL RAW DATA'!$A:$I,5,0))=TRUE,IF(B42="","",0),VLOOKUP($E$8&$B$9&IF($B42<>"All","All",$B$5)&$B42,'LA FINAL RAW DATA'!$A:$I,5,0)) ->  | H42: =IF(ISERROR(VLOOKUP($E$8&$B$9&IF($B42<>"All","All",$B$5)&$B42,'LA FINAL RAW DATA'!$A:$I,6,0))=TRUE,IF(B42="","",0),VLOOKUP($E$8&$B$9&IF($B42<>"All","All",$B$5)&$B42,'LA FINAL RAW DATA'!$A:$I,6,0)) ->  | J42: =IF(ISERROR(VLOOKUP($E$8&$B$9&IF($B42<>"All","All",$B$5)&$B42,'LA FINAL RAW DATA'!$A:$I,7,0))=TRUE,IF(B42="","",0),VLOOKUP($E$8&$B$9&IF($B42<>"All","All",$B$5)&$B42,'LA FINAL RAW DATA'!$A:$I,7,0)) ->  | M42: =IF(ISERROR(VLOOKUP($E$8&$B$9&IF($B42<>"All","All",$B$5)&$B42,'LA FINAL RAW DATA'!$A:$I,8,0))=TRUE,IF(B42="","",0),VLOOKUP($E$8&$B$9&IF($B42<>"All","All",$B$5)&$B42,'LA FINAL RAW DATA'!$A:$I,8,0)) -> 
A43: 8 | B43: =IFERROR(VLOOKUP($B$29&A43,'Region Lookups'!A:C,3,0),"") ->  | D43: =IF(ISERROR(VLOOKUP($E$8&"All"&$B43,'LA FINAL RAW DATA'!$A:$I,5,0)),IF(B43="","",0),SUM(F43:N43)) ->  | F43: =IF(ISERROR(VLOOKUP($E$8&$B$9&IF($B43<>"All","All",$B$5)&$B43,'LA FINAL RAW DATA'!$A:$I,5,0))=TRUE,IF(B43="","",0),VLOOKUP($E$8&$B$9&IF($B43<>"All","All",$B$5)&$B43,'LA FINAL RAW DATA'!$A:$I,5,0)) ->  | H43: =IF(ISERROR(VLOOKUP($E$8&$B$9&IF($B43<>"All","All",$B$5)&$B43,'LA FINAL RAW DATA'!$A:$I,6,0))=TRUE,IF(B43="","",0),VLOOKUP($E$8&$B$9&IF($B43<>"All","All",$B$5)&$B43,'LA FINAL RAW DATA'!$A:$I,6,0)) ->  | J43: =IF(ISERROR(VLOOKUP($E$8&$B$9&IF($B43<>"All","All",$B$5)&$B43,'LA FINAL RAW DATA'!$A:$I,7,0))=TRUE,IF(B43="","",0),VLOOKUP($E$8&$B$9&IF($B43<>"All","All",$B$5)&$B43,'LA FINAL RAW DATA'!$A:$I,7,0)) ->  | M43: =IF(ISERROR(VLOOKUP($E$8&$B$9&IF($B43<>"All","All",$B$5)&$B43,'LA FINAL RAW DATA'!$A:$I,8,0))=TRUE,IF(B43="","",0),VLOOKUP($E$8&$B$9&IF($B43<>"All","All",$B$5)&$B43,'LA FINAL RAW DATA'!$A:$I,8,0)) -> 
A44: 9 | B44: =IFERROR(VLOOKUP($B$29&A44,'Region Lookups'!A:C,3,0),"") ->  | D44: =IF(ISERROR(VLOOKUP($E$8&"All"&$B44,'LA FINAL RAW DATA'!$A:$I,5,0)),IF(B44="","",0),SUM(F44:N44)) ->  | F44: =IF(ISERROR(VLOOKUP($E$8&$B$9&IF($B44<>"All","All",$B$5)&$B44,'LA FINAL RAW DATA'!$A:$I,5,0))=TRUE,IF(B44="","",0),VLOOKUP($E$8&$B$9&IF($B44<>"All","All",$B$5)&$B44,'LA FINAL RAW DATA'!$A:$I,5,0)) ->  | H44: =IF(ISERROR(VLOOKUP($E$8&$B$9&IF($B44<>"All","All",$B$5)&$B44,'LA FINAL RAW DATA'!$A:$I,6,0))=TRUE,IF(B44="","",0),VLOOKUP($E$8&$B$9&IF($B44<>"All","All",$B$5)&$B44,'LA FINAL RAW DATA'!$A:$I,6,0)) ->  | J44: =IF(ISERROR(VLOOKUP($E$8&$B$9&IF($B44<>"All","All",$B$5)&$B44,'LA FINAL RAW DATA'!$A:$I,7,0))=TRUE,IF(B44="","",0),VLOOKUP($E$8&$B$9&IF($B44<>"All","All",$B$5)&$B44,'LA FINAL RAW DATA'!$A:$I,7,0)) ->  | M44: =IF(ISERROR(VLOOKUP($E$8&$B$9&IF($B44<>"All","All",$B$5)&$B44,'LA FINAL RAW DATA'!$A:$I,8,0))=TRUE,IF(B44="","",0),VLOOKUP($E$8&$B$9&IF($B44<>"All","All",$B$5)&$B44,'LA FINAL RAW DATA'!$A:$I,8,0)) -> 
A45: 10 | B45: =IFERROR(VLOOKUP($B$29&A45,'Region Lookups'!A:C,3,0),"") ->  | D45: =IF(ISERROR(VLOOKUP($E$8&"All"&$B45,'LA FINAL RAW DATA'!$A:$I,5,0)),IF(B45="","",0),SUM(F45:N45)) ->  | F45: =IF(ISERROR(VLOOKUP($E$8&$B$9&IF($B45<>"All","All",$B$5)&$B45,'LA FINAL RAW DATA'!$A:$I,5,0))=TRUE,IF(B45="","",0),VLOOKUP($E$8&$B$9&IF($B45<>"All","All",$B$5)&$B45,'LA FINAL RAW DATA'!$A:$I,5,0)) ->  | H45: =IF(ISERROR(VLOOKUP($E$8&$B$9&IF($B45<>"All","All",$B$5)&$B45,'LA FINAL RAW DATA'!$A:$I,6,0))=TRUE,IF(B45="","",0),VLOOKUP($E$8&$B$9&IF($B45<>"All","All",$B$5)&$B45,'LA FINAL RAW DATA'!$A:$I,6,0)) ->  | J45: =IF(ISERROR(VLOOKUP($E$8&$B$9&IF($B45<>"All","All",$B$5)&$B45,'LA FINAL RAW DATA'!$A:$I,7,0))=TRUE,IF(B45="","",0),VLOOKUP($E$8&$B$9&IF($B45<>"All","All",$B$5)&$B45,'LA FINAL RAW DATA'!$A:$I,7,0)) ->  | M45: =IF(ISERROR(VLOOKUP($E$8&$B$9&IF($B45<>"All","All",$B$5)&$B45,'LA FINAL RAW DATA'!$A:$I,8,0))=TRUE,IF(B45="","",0),VLOOKUP($E$8&$B$9&IF($B45<>"All","All",$B$5)&$B45,'LA FINAL RAW DATA'!$A:$I,8,0)) -> 
A46: 11 | B46: =IFERROR(VLOOKUP($B$29&A46,'Region Lookups'!A:C,3,0),"") ->  | D46: =IF(ISERROR(VLOOKUP($E$8&"All"&$B46,'LA FINAL RAW DATA'!$A:$I,5,0)),IF(B46="","",0),SUM(F46:N46)) ->  | F46: =IF(ISERROR(VLOOKUP($E$8&$B$9&IF($B46<>"All","All",$B$5)&$B46,'LA FINAL RAW DATA'!$A:$I,5,0))=TRUE,IF(B46="","",0),VLOOKUP($E$8&$B$9&IF($B46<>"All","All",$B$5)&$B46,'LA FINAL RAW DATA'!$A:$I,5,0)) ->  | H46: =IF(ISERROR(VLOOKUP($E$8&$B$9&IF($B46<>"All","All",$B$5)&$B46,'LA FINAL RAW DATA'!$A:$I,6,0))=TRUE,IF(B46="","",0),VLOOKUP($E$8&$B$9&IF($B46<>"All","All",$B$5)&$B46,'LA FINAL RAW DATA'!$A:$I,6,0)) ->  | J46: =IF(ISERROR(VLOOKUP($E$8&$B$9&IF($B46<>"All","All",$B$5)&$B46,'LA FINAL RAW DATA'!$A:$I,7,0))=TRUE,IF(B46="","",0),VLOOKUP($E$8&$B$9&IF($B46<>"All","All",$B$5)&$B46,'LA FINAL RAW DATA'!$A:$I,7,0)) ->  | M46: =IF(ISERROR(VLOOKUP($E$8&$B$9&IF($B46<>"All","All",$B$5)&$B46,'LA FINAL RAW DATA'!$A:$I,8,0))=TRUE,IF(B46="","",0),VLOOKUP($E$8&$B$9&IF($B46<>"All","All",$B$5)&$B46,'LA FINAL RAW DATA'!$A:$I,8,0)) -> 
A47: 12 | B47: =IFERROR(VLOOKUP($B$29&A47,'Region Lookups'!A:C,3,0),"") ->  | D47: =IF(ISERROR(VLOOKUP($E$8&"All"&$B47,'LA FINAL RAW DATA'!$A:$I,5,0)),IF(B47="","",0),SUM(F47:N47)) ->  | F47: =IF(ISERROR(VLOOKUP($E$8&$B$9&IF($B47<>"All","All",$B$5)&$B47,'LA FINAL RAW DATA'!$A:$I,5,0))=TRUE,IF(B47="","",0),VLOOKUP($E$8&$B$9&IF($B47<>"All","All",$B$5)&$B47,'LA FINAL RAW DATA'!$A:$I,5,0)) ->  | H47: =IF(ISERROR(VLOOKUP($E$8&$B$9&IF($B47<>"All","All",$B$5)&$B47,'LA FINAL RAW DATA'!$A:$I,6,0))=TRUE,IF(B47="","",0),VLOOKUP($E$8&$B$9&IF($B47<>"All","All",$B$5)&$B47,'LA FINAL RAW DATA'!$A:$I,6,0)) ->  | J47: =IF(ISERROR(VLOOKUP($E$8&$B$9&IF($B47<>"All","All",$B$5)&$B47,'LA FINAL RAW DATA'!$A:$I,7,0))=TRUE,IF(B47="","",0),VLOOKUP($E$8&$B$9&IF($B47<>"All","All",$B$5)&$B47,'LA FINAL RAW DATA'!$A:$I,7,0)) ->  | M47: =IF(ISERROR(VLOOKUP($E$8&$B$9&IF($B47<>"All","All",$B$5)&$B47,'LA FINAL RAW DATA'!$A:$I,8,0))=TRUE,IF(B47="","",0),VLOOKUP($E$8&$B$9&IF($B47<>"All","All",$B$5)&$B47,'LA FINAL RAW DATA'!$A:$I,8,0)) -> 
A48: 13 | B48: =IFERROR(VLOOKUP($B$29&A48,'Region Lookups'!A:C,3,0),"") ->  | D48: =IF(ISERROR(VLOOKUP($E$8&"All"&$B48,'LA FINAL RAW DATA'!$A:$I,5,0)),IF(B48="","",0),SUM(F48:N48)) ->  | F48: =IF(ISERROR(VLOOKUP($E$8&$B$9&IF($B48<>"All","All",$B$5)&$B48,'LA FINAL RAW DATA'!$A:$I,5,0))=TRUE,IF(B48="","",0),VLOOKUP($E$8&$B$9&IF($B48<>"All","All",$B$5)&$B48,'LA FINAL RAW DATA'!$A:$I,5,0)) ->  | H48: =IF(ISERROR(VLOOKUP($E$8&$B$9&IF($B48<>"All","All",$B$5)&$B48,'LA FINAL RAW DATA'!$A:$I,6,0))=TRUE,IF(B48="","",0),VLOOKUP($E$8&$B$9&IF($B48<>"All","All",$B$5)&$B48,'LA FINAL RAW DATA'!$A:$I,6,0)) ->  | J48: =IF(ISERROR(VLOOKUP($E$8&$B$9&IF($B48<>"All","All",$B$5)&$B48,'LA FINAL RAW DATA'!$A:$I,7,0))=TRUE,IF(B48="","",0),VLOOKUP($E$8&$B$9&IF($B48<>"All","All",$B$5)&$B48,'LA FINAL RAW DATA'!$A:$I,7,0)) ->  | M48: =IF(ISERROR(VLOOKUP($E$8&$B$9&IF($B48<>"All","All",$B$5)&$B48,'LA FINAL RAW DATA'!$A:$I,8,0))=TRUE,IF(B48="","",0),VLOOKUP($E$8&$B$9&IF($B48<>"All","All",$B$5)&$B48,'LA FINAL RAW DATA'!$A:$I,8,0)) -> 
A49: 14 | B49: =IFERROR(VLOOKUP($B$29&A49,'Region Lookups'!A:C,3,0),"") ->  | D49: =IF(ISERROR(VLOOKUP($E$8&"All"&$B49,'LA FINAL RAW DATA'!$A:$I,5,0)),IF(B49="","",0),SUM(F49:N49)) ->  | F49: =IF(ISERROR(VLOOKUP($E$8&$B$9&IF($B49<>"All","All",$B$5)&$B49,'LA FINAL RAW DATA'!$A:$I,5,0))=TRUE,IF(B49="","",0),VLOOKUP($E$8&$B$9&IF($B49<>"All","All",$B$5)&$B49,'LA FINAL RAW DATA'!$A:$I,5,0)) ->  | H49: =IF(ISERROR(VLOOKUP($E$8&$B$9&IF($B49<>"All","All",$B$5)&$B49,'LA FINAL RAW DATA'!$A:$I,6,0))=TRUE,IF(B49="","",0),VLOOKUP($E$8&$B$9&IF($B49<>"All","All",$B$5)&$B49,'LA FINAL RAW DATA'!$A:$I,6,0)) ->  | J49: =IF(ISERROR(VLOOKUP($E$8&$B$9&IF($B49<>"All","All",$B$5)&$B49,'LA FINAL RAW DATA'!$A:$I,7,0))=TRUE,IF(B49="","",0),VLOOKUP($E$8&$B$9&IF($B49<>"All","All",$B$5)&$B49,'LA FINAL RAW DATA'!$A:$I,7,0)) ->  | M49: =IF(ISERROR(VLOOKUP($E$8&$B$9&IF($B49<>"All","All",$B$5)&$B49,'LA FINAL RAW DATA'!$A:$I,8,0))=TRUE,IF(B49="","",0),VLOOKUP($E$8&$B$9&IF($B49<>"All","All",$B$5)&$B49,'LA FINAL RAW DATA'!$A:$I,8,0)) -> 
A50: 15 | B50: =IFERROR(VLOOKUP($B$29&A50,'Region Lookups'!A:C,3,0),"") ->  | D50: =IF(ISERROR(VLOOKUP($E$8&"All"&$B50,'LA FINAL RAW DATA'!$A:$I,5,0)),IF(B50="","",0),SUM(F50:N50)) ->  | F50: =IF(ISERROR(VLOOKUP($E$8&$B$9&IF($B50<>"All","All",$B$5)&$B50,'LA FINAL RAW DATA'!$A:$I,5,0))=TRUE,IF(B50="","",0),VLOOKUP($E$8&$B$9&IF($B50<>"All","All",$B$5)&$B50,'LA FINAL RAW DATA'!$A:$I,5,0)) ->  | H50: =IF(ISERROR(VLOOKUP($E$8&$B$9&IF($B50<>"All","All",$B$5)&$B50,'LA FINAL RAW DATA'!$A:$I,6,0))=TRUE,IF(B50="","",0),VLOOKUP($E$8&$B$9&IF($B50<>"All","All",$B$5)&$B50,'LA FINAL RAW DATA'!$A:$I,6,0)) ->  | J50: =IF(ISERROR(VLOOKUP($E$8&$B$9&IF($B50<>"All","All",$B$5)&$B50,'LA FINAL RAW DATA'!$A:$I,7,0))=TRUE,IF(B50="","",0),VLOOKUP($E$8&$B$9&IF($B50<>"All","All",$B$5)&$B50,'LA FINAL RAW DATA'!$A:$I,7,0)) ->  | M50: =IF(ISERROR(VLOOKUP($E$8&$B$9&IF($B50<>"All","All",$B$5)&$B50,'LA FINAL RAW DATA'!$A:$I,8,0))=TRUE,IF(B50="","",0),VLOOKUP($E$8&$B$9&IF($B50<>"All","All",$B$5)&$B50,'LA FINAL RAW DATA'!$A:$I,8,0)) -> 
A51: 16 | B51: =IFERROR(VLOOKUP($B$29&A51,'Region Lookups'!A:C,3,0),"") ->  | D51: =IF(ISERROR(VLOOKUP($E$8&"All"&$B51,'LA FINAL RAW DATA'!$A:$I,5,0)),IF(B51="","",0),SUM(F51:N51)) ->  | F51: =IF(ISERROR(VLOOKUP($E$8&$B$9&IF($B51<>"All","All",$B$5)&$B51,'LA FINAL RAW DATA'!$A:$I,5,0))=TRUE,IF(B51="","",0),VLOOKUP($E$8&$B$9&IF($B51<>"All","All",$B$5)&$B51,'LA FINAL RAW DATA'!$A:$I,5,0)) ->  | H51: =IF(ISERROR(VLOOKUP($E$8&$B$9&IF($B51<>"All","All",$B$5)&$B51,'LA FINAL RAW DATA'!$A:$I,6,0))=TRUE,IF(B51="","",0),VLOOKUP($E$8&$B$9&IF($B51<>"All","All",$B$5)&$B51,'LA FINAL RAW DATA'!$A:$I,6,0)) ->  | J51: =IF(ISERROR(VLOOKUP($E$8&$B$9&IF($B51<>"All","All",$B$5)&$B51,'LA FINAL RAW DATA'!$A:$I,7,0))=TRUE,IF(B51="","",0),VLOOKUP($E$8&$B$9&IF($B51<>"All","All",$B$5)&$B51,'LA FINAL RAW DATA'!$A:$I,7,0)) ->  | M51: =IF(ISERROR(VLOOKUP($E$8&$B$9&IF($B51<>"All","All",$B$5)&$B51,'LA FINAL RAW DATA'!$A:$I,8,0))=TRUE,IF(B51="","",0),VLOOKUP($E$8&$B$9&IF($B51<>"All","All",$B$5)&$B51,'LA FINAL RAW DATA'!$A:$I,8,0)) -> 
A52: 17 | B52: =IFERROR(VLOOKUP($B$29&A52,'Region Lookups'!A:C,3,0),"") ->  | D52: =IF(ISERROR(VLOOKUP($E$8&"All"&$B52,'LA FINAL RAW DATA'!$A:$I,5,0)),IF(B52="","",0),SUM(F52:N52)) ->  | F52: =IF(ISERROR(VLOOKUP($E$8&$B$9&IF($B52<>"All","All",$B$5)&$B52,'LA FINAL RAW DATA'!$A:$I,5,0))=TRUE,IF(B52="","",0),VLOOKUP($E$8&$B$9&IF($B52<>"All","All",$B$5)&$B52,'LA FINAL RAW DATA'!$A:$I,5,0)) ->  | H52: =IF(ISERROR(VLOOKUP($E$8&$B$9&IF($B52<>"All","All",$B$5)&$B52,'LA FINAL RAW DATA'!$A:$I,6,0))=TRUE,IF(B52="","",0),VLOOKUP($E$8&$B$9&IF($B52<>"All","All",$B$5)&$B52,'LA FINAL RAW DATA'!$A:$I,6,0)) ->  | J52: =IF(ISERROR(VLOOKUP($E$8&$B$9&IF($B52<>"All","All",$B$5)&$B52,'LA FINAL RAW DATA'!$A:$I,7,0))=TRUE,IF(B52="","",0),VLOOKUP($E$8&$B$9&IF($B52<>"All","All",$B$5)&$B52,'LA FINAL RAW DATA'!$A:$I,7,0)) ->  | M52: =IF(ISERROR(VLOOKUP($E$8&$B$9&IF($B52<>"All","All",$B$5)&$B52,'LA FINAL RAW DATA'!$A:$I,8,0))=TRUE,IF(B52="","",0),VLOOKUP($E$8&$B$9&IF($B52<>"All","All",$B$5)&$B52,'LA FINAL RAW DATA'!$A:$I,8,0)) -> 
A53: 18 | B53: =IFERROR(VLOOKUP($B$29&A53,'Region Lookups'!A:C,3,0),"") ->  | D53: =IF(ISERROR(VLOOKUP($E$8&"All"&$B53,'LA FINAL RAW DATA'!$A:$I,5,0)),IF(B53="","",0),SUM(F53:N53)) ->  | F53: =IF(ISERROR(VLOOKUP($E$8&$B$9&IF($B53<>"All","All",$B$5)&$B53,'LA FINAL RAW DATA'!$A:$I,5,0))=TRUE,IF(B53="","",0),VLOOKUP($E$8&$B$9&IF($B53<>"All","All",$B$5)&$B53,'LA FINAL RAW DATA'!$A:$I,5,0)) ->  | H53: =IF(ISERROR(VLOOKUP($E$8&$B$9&IF($B53<>"All","All",$B$5)&$B53,'LA FINAL RAW DATA'!$A:$I,6,0))=TRUE,IF(B53="","",0),VLOOKUP($E$8&$B$9&IF($B53<>"All","All",$B$5)&$B53,'LA FINAL RAW DATA'!$A:$I,6,0)) ->  | J53: =IF(ISERROR(VLOOKUP($E$8&$B$9&IF($B53<>"All","All",$B$5)&$B53,'LA FINAL RAW DATA'!$A:$I,7,0))=TRUE,IF(B53="","",0),VLOOKUP($E$8&$B$9&IF($B53<>"All","All",$B$5)&$B53,'LA FINAL RAW DATA'!$A:$I,7,0)) ->  | M53: =IF(ISERROR(VLOOKUP($E$8&$B$9&IF($B53<>"All","All",$B$5)&$B53,'LA FINAL RAW DATA'!$A:$I,8,0))=TRUE,IF(B53="","",0),VLOOKUP($E$8&$B$9&IF($B53<>"All","All",$B$5)&$B53,'LA FINAL RAW DATA'!$A:$I,8,0)) -> 
A54: 19 | B54: =IFERROR(VLOOKUP($B$29&A54,'Region Lookups'!A:C,3,0),"") ->  | D54: =IF(ISERROR(VLOOKUP($E$8&"All"&$B54,'LA FINAL RAW DATA'!$A:$I,5,0)),IF(B54="","",0),SUM(F54:N54)) ->  | F54: =IF(ISERROR(VLOOKUP($E$8&$B$9&IF($B54<>"All","All",$B$5)&$B54,'LA FINAL RAW DATA'!$A:$I,5,0))=TRUE,IF(B54="","",0),VLOOKUP($E$8&$B$9&IF($B54<>"All","All",$B$5)&$B54,'LA FINAL RAW DATA'!$A:$I,5,0)) ->  | H54: =IF(ISERROR(VLOOKUP($E$8&$B$9&IF($B54<>"All","All",$B$5)&$B54,'LA FINAL RAW DATA'!$A:$I,6,0))=TRUE,IF(B54="","",0),VLOOKUP($E$8&$B$9&IF($B54<>"All","All",$B$5)&$B54,'LA FINAL RAW DATA'!$A:$I,6,0)) ->  | J54: =IF(ISERROR(VLOOKUP($E$8&$B$9&IF($B54<>"All","All",$B$5)&$B54,'LA FINAL RAW DATA'!$A:$I,7,0))=TRUE,IF(B54="","",0),VLOOKUP($E$8&$B$9&IF($B54<>"All","All",$B$5)&$B54,'LA FINAL RAW DATA'!$A:$I,7,0)) ->  | M54: =IF(ISERROR(VLOOKUP($E$8&$B$9&IF($B54<>"All","All",$B$5)&$B54,'LA FINAL RAW DATA'!$A:$I,8,0))=TRUE,IF(B54="","",0),VLOOKUP($E$8&$B$9&IF($B54<>"All","All",$B$5)&$B54,'LA FINAL RAW DATA'!$A:$I,8,0)) -> 
A55: 20 | B55: =IFERROR(VLOOKUP($B$29&A55,'Region Lookups'!A:C,3,0),"") ->  | D55: =IF(ISERROR(VLOOKUP($E$8&"All"&$B55,'LA FINAL RAW DATA'!$A:$I,5,0)),IF(B55="","",0),SUM(F55:N55)) ->  | F55: =IF(ISERROR(VLOOKUP($E$8&$B$9&IF($B55<>"All","All",$B$5)&$B55,'LA FINAL RAW DATA'!$A:$I,5,0))=TRUE,IF(B55="","",0),VLOOKUP($E$8&$B$9&IF($B55<>"All","All",$B$5)&$B55,'LA FINAL RAW DATA'!$A:$I,5,0)) ->  | H55: =IF(ISERROR(VLOOKUP($E$8&$B$9&IF($B55<>"All","All",$B$5)&$B55,'LA FINAL RAW DATA'!$A:$I,6,0))=TRUE,IF(B55="","",0),VLOOKUP($E$8&$B$9&IF($B55<>"All","All",$B$5)&$B55,'LA FINAL RAW DATA'!$A:$I,6,0)) ->  | J55: =IF(ISERROR(VLOOKUP($E$8&$B$9&IF($B55<>"All","All",$B$5)&$B55,'LA FINAL RAW DATA'!$A:$I,7,0))=TRUE,IF(B55="","",0),VLOOKUP($E$8&$B$9&IF($B55<>"All","All",$B$5)&$B55,'LA FINAL RAW DATA'!$A:$I,7,0)) ->  | M55: =IF(ISERROR(VLOOKUP($E$8&$B$9&IF($B55<>"All","All",$B$5)&$B55,'LA FINAL RAW DATA'!$A:$I,8,0))=TRUE,IF(B55="","",0),VLOOKUP($E$8&$B$9&IF($B55<>"All","All",$B$5)&$B55,'LA FINAL RAW DATA'!$A:$I,8,0)) -> 
A56: 21 | B56: =IFERROR(VLOOKUP($B$29&A56,'Region Lookups'!A:C,3,0),"") ->  | D56: =IF(ISERROR(VLOOKUP($E$8&"All"&$B56,'LA FINAL RAW DATA'!$A:$I,5,0)),IF(B56="","",0),SUM(F56:N56)) ->  | F56: =IF(ISERROR(VLOOKUP($E$8&$B$9&IF($B56<>"All","All",$B$5)&$B56,'LA FINAL RAW DATA'!$A:$I,5,0))=TRUE,IF(B56="","",0),VLOOKUP($E$8&$B$9&IF($B56<>"All","All",$B$5)&$B56,'LA FINAL RAW DATA'!$A:$I,5,0)) ->  | H56: =IF(ISERROR(VLOOKUP($E$8&$B$9&IF($B56<>"All","All",$B$5)&$B56,'LA FINAL RAW DATA'!$A:$I,6,0))=TRUE,IF(B56="","",0),VLOOKUP($E$8&$B$9&IF($B56<>"All","All",$B$5)&$B56,'LA FINAL RAW DATA'!$A:$I,6,0)) ->  | J56: =IF(ISERROR(VLOOKUP($E$8&$B$9&IF($B56<>"All","All",$B$5)&$B56,'LA FINAL RAW DATA'!$A:$I,7,0))=TRUE,IF(B56="","",0),VLOOKUP($E$8&$B$9&IF($B56<>"All","All",$B$5)&$B56,'LA FINAL RAW DATA'!$A:$I,7,0)) ->  | M56: =IF(ISERROR(VLOOKUP($E$8&$B$9&IF($B56<>"All","All",$B$5)&$B56,'LA FINAL RAW DATA'!$A:$I,8,0))=TRUE,IF(B56="","",0),VLOOKUP($E$8&$B$9&IF($B56<>"All","All",$B$5)&$B56,'LA FINAL RAW DATA'!$A:$I,8,0)) -> 
A57: 22 | B57: =IFERROR(VLOOKUP($B$29&A57,'Region Lookups'!A:C,3,0),"") ->  | D57: =IF(ISERROR(VLOOKUP($E$8&"All"&$B57,'LA FINAL RAW DATA'!$A:$I,5,0)),IF(B57="","",0),SUM(F57:N57)) ->  | F57: =IF(ISERROR(VLOOKUP($E$8&$B$9&IF($B57<>"All","All",$B$5)&$B57,'LA FINAL RAW DATA'!$A:$I,5,0))=TRUE,IF(B57="","",0),VLOOKUP($E$8&$B$9&IF($B57<>"All","All",$B$5)&$B57,'LA FINAL RAW DATA'!$A:$I,5,0)) ->  | H57: =IF(ISERROR(VLOOKUP($E$8&$B$9&IF($B57<>"All","All",$B$5)&$B57,'LA FINAL RAW DATA'!$A:$I,6,0))=TRUE,IF(B57="","",0),VLOOKUP($E$8&$B$9&IF($B57<>"All","All",$B$5)&$B57,'LA FINAL RAW DATA'!$A:$I,6,0)) ->  | J57: =IF(ISERROR(VLOOKUP($E$8&$B$9&IF($B57<>"All","All",$B$5)&$B57,'LA FINAL RAW DATA'!$A:$I,7,0))=TRUE,IF(B57="","",0),VLOOKUP($E$8&$B$9&IF($B57<>"All","All",$B$5)&$B57,'LA FINAL RAW DATA'!$A:$I,7,0)) ->  | M57: =IF(ISERROR(VLOOKUP($E$8&$B$9&IF($B57<>"All","All",$B$5)&$B57,'LA FINAL RAW DATA'!$A:$I,8,0))=TRUE,IF(B57="","",0),VLOOKUP($E$8&$B$9&IF($B57<>"All","All",$B$5)&$B57,'LA FINAL RAW DATA'!$A:$I,8,0)) -> 
A58: 23 | B58: =IFERROR(VLOOKUP($B$29&A58,'Region Lookups'!A:C,3,0),"") ->  | D58: =IF(ISERROR(VLOOKUP($E$8&"All"&$B58,'LA FINAL RAW DATA'!$A:$I,5,0)),IF(B58="","",0),SUM(F58:N58)) ->  | F58: =IF(ISERROR(VLOOKUP($E$8&$B$9&IF($B58<>"All","All",$B$5)&$B58,'LA FINAL RAW DATA'!$A:$I,5,0))=TRUE,IF(B58="","",0),VLOOKUP($E$8&$B$9&IF($B58<>"All","All",$B$5)&$B58,'LA FINAL RAW DATA'!$A:$I,5,0)) ->  | H58: =IF(ISERROR(VLOOKUP($E$8&$B$9&IF($B58<>"All","All",$B$5)&$B58,'LA FINAL RAW DATA'!$A:$I,6,0))=TRUE,IF(B58="","",0),VLOOKUP($E$8&$B$9&IF($B58<>"All","All",$B$5)&$B58,'LA FINAL RAW DATA'!$A:$I,6,0)) ->  | J58: =IF(ISERROR(VLOOKUP($E$8&$B$9&IF($B58<>"All","All",$B$5)&$B58,'LA FINAL RAW DATA'!$A:$I,7,0))=TRUE,IF(B58="","",0),VLOOKUP($E$8&$B$9&IF($B58<>"All","All",$B$5)&$B58,'LA FINAL RAW DATA'!$A:$I,7,0)) ->  | M58: =IF(ISERROR(VLOOKUP($E$8&$B$9&IF($B58<>"All","All",$B$5)&$B58,'LA FINAL RAW DATA'!$A:$I,8,0))=TRUE,IF(B58="","",0),VLOOKUP($E$8&$B$9&IF($B58<>"All","All",$B$5)&$B58,'LA FINAL RAW DATA'!$A:$I,8,0)) -> 
A59: 24 | B59: =IFERROR(VLOOKUP($B$29&A59,'Region Lookups'!A:C,3,0),"") ->  | D59: =IF(ISERROR(VLOOKUP($E$8&"All"&$B59,'LA FINAL RAW DATA'!$A:$I,5,0)),IF(B59="","",0),SUM(F59:N59)) ->  | F59: =IF(ISERROR(VLOOKUP($E$8&$B$9&IF($B59<>"All","All",$B$5)&$B59,'LA FINAL RAW DATA'!$A:$I,5,0))=TRUE,IF(B59="","",0),VLOOKUP($E$8&$B$9&IF($B59<>"All","All",$B$5)&$B59,'LA FINAL RAW DATA'!$A:$I,5,0)) ->  | H59: =IF(ISERROR(VLOOKUP($E$8&$B$9&IF($B59<>"All","All",$B$5)&$B59,'LA FINAL RAW DATA'!$A:$I,6,0))=TRUE,IF(B59="","",0),VLOOKUP($E$8&$B$9&IF($B59<>"All","All",$B$5)&$B59,'LA FINAL RAW DATA'!$A:$I,6,0)) ->  | J59: =IF(ISERROR(VLOOKUP($E$8&$B$9&IF($B59<>"All","All",$B$5)&$B59,'LA FINAL RAW DATA'!$A:$I,7,0))=TRUE,IF(B59="","",0),VLOOKUP($E$8&$B$9&IF($B59<>"All","All",$B$5)&$B59,'LA FINAL RAW DATA'!$A:$I,7,0)) ->  | M59: =IF(ISERROR(VLOOKUP($E$8&$B$9&IF($B59<>"All","All",$B$5)&$B59,'LA FINAL RAW DATA'!$A:$I,8,0))=TRUE,IF(B59="","",0),VLOOKUP($E$8&$B$9&IF($B59<>"All","All",$B$5)&$B59,'LA FINAL RAW DATA'!$A:$I,8,0)) -> 
A60: 25 | B60: =IFERROR(VLOOKUP($B$29&A60,'Region Lookups'!A:C,3,0),"") ->  | D60: =IF(ISERROR(VLOOKUP($E$8&"All"&$B60,'LA FINAL RAW DATA'!$A:$I,5,0)),IF(B60="","",0),SUM(F60:N60)) ->  | F60: =IF(ISERROR(VLOOKUP($E$8&$B$9&IF($B60<>"All","All",$B$5)&$B60,'LA FINAL RAW DATA'!$A:$I,5,0))=TRUE,IF(B60="","",0),VLOOKUP($E$8&$B$9&IF($B60<>"All","All",$B$5)&$B60,'LA FINAL RAW DATA'!$A:$I,5,0)) ->  | H60: =IF(ISERROR(VLOOKUP($E$8&$B$9&IF($B60<>"All","All",$B$5)&$B60,'LA FINAL RAW DATA'!$A:$I,6,0))=TRUE,IF(B60="","",0),VLOOKUP($E$8&$B$9&IF($B60<>"All","All",$B$5)&$B60,'LA FINAL RAW DATA'!$A:$I,6,0)) ->  | J60: =IF(ISERROR(VLOOKUP($E$8&$B$9&IF($B60<>"All","All",$B$5)&$B60,'LA FINAL RAW DATA'!$A:$I,7,0))=TRUE,IF(B60="","",0),VLOOKUP($E$8&$B$9&IF($B60<>"All","All",$B$5)&$B60,'LA FINAL RAW DATA'!$A:$I,7,0)) ->  | M60: =IF(ISERROR(VLOOKUP($E$8&$B$9&IF($B60<>"All","All",$B$5)&$B60,'LA FINAL RAW DATA'!$A:$I,8,0))=TRUE,IF(B60="","",0),VLOOKUP($E$8&$B$9&IF($B60<>"All","All",$B$5)&$B60,'LA FINAL RAW DATA'!$A:$I,8,0)) -> 
A61: 26 | B61: =IFERROR(VLOOKUP($B$29&A61,'Region Lookups'!A:C,3,0),"") ->  | D61: =IF(ISERROR(VLOOKUP($E$8&"All"&$B61,'LA FINAL RAW DATA'!$A:$I,5,0)),IF(B61="","",0),SUM(F61:N61)) ->  | F61: =IF(ISERROR(VLOOKUP($E$8&$B$9&IF($B61<>"All","All",$B$5)&$B61,'LA FINAL RAW DATA'!$A:$I,5,0))=TRUE,IF(B61="","",0),VLOOKUP($E$8&$B$9&IF($B61<>"All","All",$B$5)&$B61,'LA FINAL RAW DATA'!$A:$I,5,0)) ->  | H61: =IF(ISERROR(VLOOKUP($E$8&$B$9&IF($B61<>"All","All",$B$5)&$B61,'LA FINAL RAW DATA'!$A:$I,6,0))=TRUE,IF(B61="","",0),VLOOKUP($E$8&$B$9&IF($B61<>"All","All",$B$5)&$B61,'LA FINAL RAW DATA'!$A:$I,6,0)) ->  | J61: =IF(ISERROR(VLOOKUP($E$8&$B$9&IF($B61<>"All","All",$B$5)&$B61,'LA FINAL RAW DATA'!$A:$I,7,0))=TRUE,IF(B61="","",0),VLOOKUP($E$8&$B$9&IF($B61<>"All","All",$B$5)&$B61,'LA FINAL RAW DATA'!$A:$I,7,0)) ->  | M61: =IF(ISERROR(VLOOKUP($E$8&$B$9&IF($B61<>"All","All",$B$5)&$B61,'LA FINAL RAW DATA'!$A:$I,8,0))=TRUE,IF(B61="","",0),VLOOKUP($E$8&$B$9&IF($B61<>"All","All",$B$5)&$B61,'LA FINAL RAW DATA'!$A:$I,8,0)) -> 
A62: 27 | B62: =IFERROR(VLOOKUP($B$29&A62,'Region Lookups'!A:C,3,0),"") ->  | D62: =IF(ISERROR(VLOOKUP($E$8&"All"&$B62,'LA FINAL RAW DATA'!$A:$I,5,0)),IF(B62="","",0),SUM(F62:N62)) ->  | F62: =IF(ISERROR(VLOOKUP($E$8&$B$9&IF($B62<>"All","All",$B$5)&$B62,'LA FINAL RAW DATA'!$A:$I,5,0))=TRUE,IF(B62="","",0),VLOOKUP($E$8&$B$9&IF($B62<>"All","All",$B$5)&$B62,'LA FINAL RAW DATA'!$A:$I,5,0)) ->  | H62: =IF(ISERROR(VLOOKUP($E$8&$B$9&IF($B62<>"All","All",$B$5)&$B62,'LA FINAL RAW DATA'!$A:$I,6,0))=TRUE,IF(B62="","",0),VLOOKUP($E$8&$B$9&IF($B62<>"All","All",$B$5)&$B62,'LA FINAL RAW DATA'!$A:$I,6,0)) ->  | J62: =IF(ISERROR(VLOOKUP($E$8&$B$9&IF($B62<>"All","All",$B$5)&$B62,'LA FINAL RAW DATA'!$A:$I,7,0))=TRUE,IF(B62="","",0),VLOOKUP($E$8&$B$9&IF($B62<>"All","All",$B$5)&$B62,'LA FINAL RAW DATA'!$A:$I,7,0)) ->  | M62: =IF(ISERROR(VLOOKUP($E$8&$B$9&IF($B62<>"All","All",$B$5)&$B62,'LA FINAL RAW DATA'!$A:$I,8,0))=TRUE,IF(B62="","",0),VLOOKUP($E$8&$B$9&IF($B62<>"All","All",$B$5)&$B62,'LA FINAL RAW DATA'!$A:$I,8,0)) -> 
A63: 28 | B63: =IFERROR(VLOOKUP($B$29&A63,'Region Lookups'!A:C,3,0),"") ->  | D63: =IF(ISERROR(VLOOKUP($E$8&"All"&$B63,'LA FINAL RAW DATA'!$A:$I,5,0)),IF(B63="","",0),SUM(F63:N63)) ->  | F63: =IF(ISERROR(VLOOKUP($E$8&$B$9&IF($B63<>"All","All",$B$5)&$B63,'LA FINAL RAW DATA'!$A:$I,5,0))=TRUE,IF(B63="","",0),VLOOKUP($E$8&$B$9&IF($B63<>"All","All",$B$5)&$B63,'LA FINAL RAW DATA'!$A:$I,5,0)) ->  | H63: =IF(ISERROR(VLOOKUP($E$8&$B$9&IF($B63<>"All","All",$B$5)&$B63,'LA FINAL RAW DATA'!$A:$I,6,0))=TRUE,IF(B63="","",0),VLOOKUP($E$8&$B$9&IF($B63<>"All","All",$B$5)&$B63,'LA FINAL RAW DATA'!$A:$I,6,0)) ->  | J63: =IF(ISERROR(VLOOKUP($E$8&$B$9&IF($B63<>"All","All",$B$5)&$B63,'LA FINAL RAW DATA'!$A:$I,7,0))=TRUE,IF(B63="","",0),VLOOKUP($E$8&$B$9&IF($B63<>"All","All",$B$5)&$B63,'LA FINAL RAW DATA'!$A:$I,7,0)) ->  | M63: =IF(ISERROR(VLOOKUP($E$8&$B$9&IF($B63<>"All","All",$B$5)&$B63,'LA FINAL RAW DATA'!$A:$I,8,0))=TRUE,IF(B63="","",0),VLOOKUP($E$8&$B$9&IF($B63<>"All","All",$B$5)&$B63,'LA FINAL RAW DATA'!$A:$I,8,0)) -> 
A64: 29 | B64: =IFERROR(VLOOKUP($B$29&A64,'Region Lookups'!A:C,3,0),"") ->  | D64: =IF(ISERROR(VLOOKUP($E$8&"All"&$B64,'LA FINAL RAW DATA'!$A:$I,5,0)),IF(B64="","",0),SUM(F64:N64)) ->  | F64: =IF(ISERROR(VLOOKUP($E$8&$B$9&IF($B64<>"All","All",$B$5)&$B64,'LA FINAL RAW DATA'!$A:$I,5,0))=TRUE,IF(B64="","",0),VLOOKUP($E$8&$B$9&IF($B64<>"All","All",$B$5)&$B64,'LA FINAL RAW DATA'!$A:$I,5,0)) ->  | H64: =IF(ISERROR(VLOOKUP($E$8&$B$9&IF($B64<>"All","All",$B$5)&$B64,'LA FINAL RAW DATA'!$A:$I,6,0))=TRUE,IF(B64="","",0),VLOOKUP($E$8&$B$9&IF($B64<>"All","All",$B$5)&$B64,'LA FINAL RAW DATA'!$A:$I,6,0)) ->  | J64: =IF(ISERROR(VLOOKUP($E$8&$B$9&IF($B64<>"All","All",$B$5)&$B64,'LA FINAL RAW DATA'!$A:$I,7,0))=TRUE,IF(B64="","",0),VLOOKUP($E$8&$B$9&IF($B64<>"All","All",$B$5)&$B64,'LA FINAL RAW DATA'!$A:$I,7,0)) ->  | M64: =IF(ISERROR(VLOOKUP($E$8&$B$9&IF($B64<>"All","All",$B$5)&$B64,'LA FINAL RAW DATA'!$A:$I,8,0))=TRUE,IF(B64="","",0),VLOOKUP($E$8&$B$9&IF($B64<>"All","All",$B$5)&$B64,'LA FINAL RAW DATA'!$A:$I,8,0)) -> 
A65: 30 | B65: =IFERROR(VLOOKUP($B$29&A65,'Region Lookups'!A:C,3,0),"") ->  | D65: =IF(ISERROR(VLOOKUP($E$8&"All"&$B65,'LA FINAL RAW DATA'!$A:$I,5,0)),IF(B65="","",0),SUM(F65:N65)) ->  | F65: =IF(ISERROR(VLOOKUP($E$8&$B$9&IF($B65<>"All","All",$B$5)&$B65,'LA FINAL RAW DATA'!$A:$I,5,0))=TRUE,IF(B65="","",0),VLOOKUP($E$8&$B$9&IF($B65<>"All","All",$B$5)&$B65,'LA FINAL RAW DATA'!$A:$I,5,0)) ->  | H65: =IF(ISERROR(VLOOKUP($E$8&$B$9&IF($B65<>"All","All",$B$5)&$B65,'LA FINAL RAW DATA'!$A:$I,6,0))=TRUE,IF(B65="","",0),VLOOKUP($E$8&$B$9&IF($B65<>"All","All",$B$5)&$B65,'LA FINAL RAW DATA'!$A:$I,6,0)) ->  | J65: =IF(ISERROR(VLOOKUP($E$8&$B$9&IF($B65<>"All","All",$B$5)&$B65,'LA FINAL RAW DATA'!$A:$I,7,0))=TRUE,IF(B65="","",0),VLOOKUP($E$8&$B$9&IF($B65<>"All","All",$B$5)&$B65,'LA FINAL RAW DATA'!$A:$I,7,0)) ->  | M65: =IF(ISERROR(VLOOKUP($E$8&$B$9&IF($B65<>"All","All",$B$5)&$B65,'LA FINAL RAW DATA'!$A:$I,8,0))=TRUE,IF(B65="","",0),VLOOKUP($E$8&$B$9&IF($B65<>"All","All",$B$5)&$B65,'LA FINAL RAW DATA'!$A:$I,8,0)) -> 
A66: 31 | B66: =IFERROR(VLOOKUP($B$29&A66,'Region Lookups'!A:C,3,0),"") ->  | D66: =IF(ISERROR(VLOOKUP($E$8&"All"&$B66,'LA FINAL RAW DATA'!$A:$I,5,0)),IF(B66="","",0),SUM(F66:N66)) ->  | F66: =IF(ISERROR(VLOOKUP($E$8&$B$9&IF($B66<>"All","All",$B$5)&$B66,'LA FINAL RAW DATA'!$A:$I,5,0))=TRUE,IF(B66="","",0),VLOOKUP($E$8&$B$9&IF($B66<>"All","All",$B$5)&$B66,'LA FINAL RAW DATA'!$A:$I,5,0)) ->  | H66: =IF(ISERROR(VLOOKUP($E$8&$B$9&IF($B66<>"All","All",$B$5)&$B66,'LA FINAL RAW DATA'!$A:$I,6,0))=TRUE,IF(B66="","",0),VLOOKUP($E$8&$B$9&IF($B66<>"All","All",$B$5)&$B66,'LA FINAL RAW DATA'!$A:$I,6,0)) ->  | J66: =IF(ISERROR(VLOOKUP($E$8&$B$9&IF($B66<>"All","All",$B$5)&$B66,'LA FINAL RAW DATA'!$A:$I,7,0))=TRUE,IF(B66="","",0),VLOOKUP($E$8&$B$9&IF($B66<>"All","All",$B$5)&$B66,'LA FINAL RAW DATA'!$A:$I,7,0)) ->  | M66: =IF(ISERROR(VLOOKUP($E$8&$B$9&IF($B66<>"All","All",$B$5)&$B66,'LA FINAL RAW DATA'!$A:$I,8,0))=TRUE,IF(B66="","",0),VLOOKUP($E$8&$B$9&IF($B66<>"All","All",$B$5)&$B66,'LA FINAL RAW DATA'!$A:$I,8,0)) -> 
A67: 32 | B67: =IFERROR(VLOOKUP($B$29&A67,'Region Lookups'!A:C,3,0),"") ->  | D67: =IF(ISERROR(VLOOKUP($E$8&"All"&$B67,'LA FINAL RAW DATA'!$A:$I,5,0)),IF(B67="","",0),SUM(F67:N67)) ->  | F67: =IF(ISERROR(VLOOKUP($E$8&$B$9&IF($B67<>"All","All",$B$5)&$B67,'LA FINAL RAW DATA'!$A:$I,5,0))=TRUE,IF(B67="","",0),VLOOKUP($E$8&$B$9&IF($B67<>"All","All",$B$5)&$B67,'LA FINAL RAW DATA'!$A:$I,5,0)) ->  | H67: =IF(ISERROR(VLOOKUP($E$8&$B$9&IF($B67<>"All","All",$B$5)&$B67,'LA FINAL RAW DATA'!$A:$I,6,0))=TRUE,IF(B67="","",0),VLOOKUP($E$8&$B$9&IF($B67<>"All","All",$B$5)&$B67,'LA FINAL RAW DATA'!$A:$I,6,0)) ->  | J67: =IF(ISERROR(VLOOKUP($E$8&$B$9&IF($B67<>"All","All",$B$5)&$B67,'LA FINAL RAW DATA'!$A:$I,7,0))=TRUE,IF(B67="","",0),VLOOKUP($E$8&$B$9&IF($B67<>"All","All",$B$5)&$B67,'LA FINAL RAW DATA'!$A:$I,7,0)) ->  | M67: =IF(ISERROR(VLOOKUP($E$8&$B$9&IF($B67<>"All","All",$B$5)&$B67,'LA FINAL RAW DATA'!$A:$I,8,0))=TRUE,IF(B67="","",0),VLOOKUP($E$8&$B$9&IF($B67<>"All","All",$B$5)&$B67,'LA FINAL RAW DATA'!$A:$I,8,0)) -> 
A68: 33 | B68: =IFERROR(VLOOKUP($B$29&A68,'Region Lookups'!A:C,3,0),"") ->  | D68: =IF(ISERROR(VLOOKUP($E$8&"All"&$B68,'LA FINAL RAW DATA'!$A:$I,5,0)),IF(B68="","",0),SUM(F68:N68)) ->  | F68: =IF(ISERROR(VLOOKUP($E$8&$B$9&IF($B68<>"All","All",$B$5)&$B68,'LA FINAL RAW DATA'!$A:$I,5,0))=TRUE,IF(B68="","",0),VLOOKUP($E$8&$B$9&IF($B68<>"All","All",$B$5)&$B68,'LA FINAL RAW DATA'!$A:$I,5,0)) ->  | H68: =IF(ISERROR(VLOOKUP($E$8&$B$9&IF($B68<>"All","All",$B$5)&$B68,'LA FINAL RAW DATA'!$A:$I,6,0))=TRUE,IF(B68="","",0),VLOOKUP($E$8&$B$9&IF($B68<>"All","All",$B$5)&$B68,'LA FINAL RAW DATA'!$A:$I,6,0)) ->  | J68: =IF(ISERROR(VLOOKUP($E$8&$B$9&IF($B68<>"All","All",$B$5)&$B68,'LA FINAL RAW DATA'!$A:$I,7,0))=TRUE,IF(B68="","",0),VLOOKUP($E$8&$B$9&IF($B68<>"All","All",$B$5)&$B68,'LA FINAL RAW DATA'!$A:$I,7,0)) ->  | M68: =IF(ISERROR(VLOOKUP($E$8&$B$9&IF($B68<>"All","All",$B$5)&$B68,'LA FINAL RAW DATA'!$A:$I,8,0))=TRUE,IF(B68="","",0),VLOOKUP($E$8&$B$9&IF($B68<>"All","All",$B$5)&$B68,'LA FINAL RAW DATA'!$A:$I,8,0)) -> 
J69: =IF(ISERROR(VLOOKUP($E$8&$B$9&IF($B69<>"All","All",$B$5)&$B69,'LA FINAL RAW DATA'!$A:$I,7,0))=TRUE,"",VLOOKUP($E$8&$B$9&IF($B69<>"All","All",$B$5)&$B69,'LA FINAL RAW DATA'!$A:$I,7,0)) -> 
J70: =IF(ISERROR(VLOOKUP($E$8&$B$9&IF($B70<>"All","All",$B$5)&$B70,'LA FINAL RAW DATA'!$A:$I,7,0))=TRUE,"",VLOOKUP($E$8&$B$9&IF($B70<>"All","All",$B$5)&$B70,'LA FINAL RAW DATA'!$A:$I,7,0)) -> 
J71: =IF(ISERROR(VLOOKUP($E$8&$B$9&IF($B71<>"All","All",$B$5)&$B71,'LA FINAL RAW DATA'!$A:$I,7,0))=TRUE,"",VLOOKUP($E$8&$B$9&IF($B71<>"All","All",$B$5)&$B71,'LA FINAL RAW DATA'!$A:$I,7,0)) -> 
J72: =IF(ISERROR(VLOOKUP($E$8&$B$9&IF($B72<>"All","All",$B$5)&$B72,'LA FINAL RAW DATA'!$A:$I,7,0))=TRUE,"",VLOOKUP($E$8&$B$9&IF($B72<>"All","All",$B$5)&$B72,'LA FINAL RAW DATA'!$A:$I,7,0)) -> 
J73: =IF(ISERROR(VLOOKUP($E$8&$B$9&IF($B73<>"All","All",$B$5)&$B73,'LA FINAL RAW DATA'!$A:$I,7,0))=TRUE,"",VLOOKUP($E$8&$B$9&IF($B73<>"All","All",$B$5)&$B73,'LA FINAL RAW DATA'!$A:$I,7,0)) -> 
J74: =IF(ISERROR(VLOOKUP($E$8&$B$9&IF($B74<>"All","All",$B$5)&$B74,'LA FINAL RAW DATA'!$A:$I,7,0))=TRUE,"",VLOOKUP($E$8&$B$9&IF($B74<>"All","All",$B$5)&$B74,'LA FINAL RAW DATA'!$A:$I,7,0)) -> 
J75: =IF(ISERROR(VLOOKUP($E$8&$B$9&IF($B75<>"All","All",$B$5)&$B75,'LA FINAL RAW DATA'!$A:$I,7,0))=TRUE,"",VLOOKUP($E$8&$B$9&IF($B75<>"All","All",$B$5)&$B75,'LA FINAL RAW DATA'!$A:$I,7,0)) -> 
J76: =IF(ISERROR(VLOOKUP($E$8&$B$9&IF($B76<>"All","All",$B$5)&$B76,'LA FINAL RAW DATA'!$A:$I,7,0))=TRUE,"",VLOOKUP($E$8&$B$9&IF($B76<>"All","All",$B$5)&$B76,'LA FINAL RAW DATA'!$A:$I,7,0)) -> 
J77: =IF(ISERROR(VLOOKUP($E$8&$B$9&IF($B77<>"All","All",$B$5)&$B77,'LA FINAL RAW DATA'!$A:$I,7,0))=TRUE,"",VLOOKUP($E$8&$B$9&IF($B77<>"All","All",$B$5)&$B77,'LA FINAL RAW DATA'!$A:$I,7,0)) -> 
J78: =IF(ISERROR(VLOOKUP($E$8&$B$9&IF($B78<>"All","All",$B$5)&$B78,'LA FINAL RAW DATA'!$A:$I,7,0))=TRUE,"",VLOOKUP($E$8&$B$9&IF($B78<>"All","All",$B$5)&$B78,'LA FINAL RAW DATA'!$A:$I,7,0)) -> 
J79: =IF(ISERROR(VLOOKUP($E$8&$B$9&IF($B79<>"All","All",$B$5)&$B79,'LA FINAL RAW DATA'!$A:$I,7,0))=TRUE,"",VLOOKUP($E$8&$B$9&IF($B79<>"All","All",$B$5)&$B79,'LA FINAL RAW DATA'!$A:$I,7,0)) -> 
J80: =IF(ISERROR(VLOOKUP($E$8&$B$9&IF($B80<>"All","All",$B$5)&$B80,'LA FINAL RAW DATA'!$A:$I,7,0))=TRUE,"",VLOOKUP($E$8&$B$9&IF($B80<>"All","All",$B$5)&$B80,'LA FINAL RAW DATA'!$A:$I,7,0)) -> 
J81: =IF(ISERROR(VLOOKUP($E$8&$B$9&IF($B81<>"All","All",$B$5)&$B81,'LA FINAL RAW DATA'!$A:$I,7,0))=TRUE,"",VLOOKUP($E$8&$B$9&IF($B81<>"All","All",$B$5)&$B81,'LA FINAL RAW DATA'!$A:$I,7,0)) -> 
J82: =IF(ISERROR(VLOOKUP($E$8&$B$9&IF($B82<>"All","All",$B$5)&$B82,'LA FINAL RAW DATA'!$A:$I,7,0))=TRUE,"",VLOOKUP($E$8&$B$9&IF($B82<>"All","All",$B$5)&$B82,'LA FINAL RAW DATA'!$A:$I,7,0)) -> 
J83: =IF(ISERROR(VLOOKUP($E$8&$B$9&IF($B83<>"All","All",$B$5)&$B83,'LA FINAL RAW DATA'!$A:$I,7,0))=TRUE,"",VLOOKUP($E$8&$B$9&IF($B83<>"All","All",$B$5)&$B83,'LA FINAL RAW DATA'!$A:$I,7,0)) -> 
J84: =IF(ISERROR(VLOOKUP($E$8&$B$9&IF($B84<>"All","All",$B$5)&$B84,'LA FINAL RAW DATA'!$A:$I,7,0))=TRUE,"",VLOOKUP($E$8&$B$9&IF($B84<>"All","All",$B$5)&$B84,'LA FINAL RAW DATA'!$A:$I,7,0)) -> 
J85: =IF(ISERROR(VLOOKUP($E$8&$B$9&IF($B85<>"All","All",$B$5)&$B85,'LA FINAL RAW DATA'!$A:$I,7,0))=TRUE,"",VLOOKUP($E$8&$B$9&IF($B85<>"All","All",$B$5)&$B85,'LA FINAL RAW DATA'!$A:$I,7,0)) -> 
J86: =IF(ISERROR(VLOOKUP($E$8&$B$9&IF($B86<>"All","All",$B$5)&$B86,'LA FINAL RAW DATA'!$A:$I,7,0))=TRUE,"",VLOOKUP($E$8&$B$9&IF($B86<>"All","All",$B$5)&$B86,'LA FINAL RAW DATA'!$A:$I,7,0)) -> 
J87: =IF(ISERROR(VLOOKUP($E$8&$B$9&IF($B87<>"All","All",$B$5)&$B87,'LA FINAL RAW DATA'!$A:$I,7,0))=TRUE,"",VLOOKUP($E$8&$B$9&IF($B87<>"All","All",$B$5)&$B87,'LA FINAL RAW DATA'!$A:$I,7,0)) -> 
J88: =IF(ISERROR(VLOOKUP($E$8&$B$9&IF($B88<>"All","All",$B$5)&$B88,'LA FINAL RAW DATA'!$A:$I,7,0))=TRUE,"",VLOOKUP($E$8&$B$9&IF($B88<>"All","All",$B$5)&$B88,'LA FINAL RAW DATA'!$A:$I,7,0)) -> 

Sheet Children's Social Care
B2: Statistical First Release - Children's Social Care Provision (excluding inspections of Local Authorities)
D4: Region: | G4: Local Authority:
D5: All | G5: All | I5: =IF(D5="All",TRUE,NOT(ISERROR(MATCH(G5,INDIRECT(SUBSTITUTE(SUBSTITUTE(D5," ","_"),",","")),0)))) -> TRUE
D7: Date: | G7: Provision Type: | J7: Inspection Type:
D8: as at 30 September 2016 | G8: All children's homes | J8: Full Inspection
C9: =IF(LEFT(D8,5) = "as at","","year") ->  | D9: =VLOOKUP(D8,Periodlookup,2,0) -> 2017 | H9: =IF(LEFT(D8,5)="as at",TRUE,FALSE) -> TRUE
B10: Sector | C10: Total number of inspections | D10: Inspection Outcomes | H10: Number not inspected
D11: =VLOOKUP(J8,InspectionOutcomes,2,0) -> Outstanding | E11: =VLOOKUP(J8,InspectionOutcomes,3,0) -> Good | F11: =VLOOKUP(J8,InspectionOutcomes,4,0) -> Requires Improvement | G11: =VLOOKUP(J8,InspectionOutcomes,5,0) -> Inadequate
A14: =$G$8&$G$5&$D$5&$B$14&$J$8&$D$9 -> All children's homesAllAllAllFull Inspection2017 | B14: All | C14: =SUM(D14,E14,F14,G14) -> 2010 | D14: =IF(ISERROR(VLOOKUP(A14,'Inspection Outcome data'!$A:$L,8,0))=TRUE,0,VLOOKUP(A14,'Inspection Outcome data'!$A:$L,8,0)) -> 354 | E14: =IF(ISERROR(VLOOKUP(A14,'Inspection Outcome data'!$A:$K,9,0))=TRUE,0,VLOOKUP(A14,'Inspection Outcome data'!$A:$K,9,0)) -> 1271 | F14: =IF(ISERROR(VLOOKUP(A14,'Inspection Outcome data'!$A:$K,10,0))=TRUE,0,VLOOKUP(A14,'Inspection Outcome data'!$A:$K,10,0)) -> 330 | G14: =IF(ISERROR(VLOOKUP(A14,'Inspection Outcome data'!$A:$K,11,0))=TRUE,0,VLOOKUP(A14,'Inspection Outcome data'!$A:$K,11,0)) -> 55 | H14: =IF($H$9,Providersat30Sept!B3-C14,0) -> 105
A16: =$G$8&$G$5&$D$5&$B$16&$J$8&$D$9 -> All children's homesAllAllLocal AuthorityFull Inspection2017 | B16: Local Authority | C16: =SUM(D16,E16,F16,G16) -> 442 | D16: =IF(ISERROR(VLOOKUP(A16,'Inspection Outcome data'!$A:$L,8,0))=TRUE,0,VLOOKUP(A16,'Inspection Outcome data'!$A:$L,8,0)) -> 108 | E16: =IF(ISERROR(VLOOKUP(A16,'Inspection Outcome data'!$A:$K,9,0))=TRUE,0,VLOOKUP(A16,'Inspection Outcome data'!$A:$K,9,0)) -> 255 | F16: =IF(ISERROR(VLOOKUP(A16,'Inspection Outcome data'!$A:$K,10,0))=TRUE,0,VLOOKUP(A16,'Inspection Outcome data'!$A:$K,10,0)) -> 70 | G16: =IF(ISERROR(VLOOKUP(A16,'Inspection Outcome data'!$A:$K,11,0))=TRUE,0,VLOOKUP(A16,'Inspection Outcome data'!$A:$K,11,0)) -> 9 | H16: =IF($H$9,Providersat30Sept!B5-C16,0) -> 4
A18: =$G$8&$G$5&$D$5&$B$18&$J$8&$D$9 -> All children's homesAllAllPrivateFull Inspection2017 | B18: Private | C18: =SUM(D18,E18,F18,G18) -> 1397 | D18: =IF(ISERROR(VLOOKUP(A18,'Inspection Outcome data'!$A:$K,8,0))=TRUE,0,VLOOKUP(A18,'Inspection Outcome data'!$A:$K,8,0)) -> 214 | E18: =IF(ISERROR(VLOOKUP(A18,'Inspection Outcome data'!$A:$K,9,0))=TRUE,0,VLOOKUP(A18,'Inspection Outcome data'!$A:$K,9,0)) -> 906 | F18: =IF(ISERROR(VLOOKUP(A18,'Inspection Outcome data'!$A:$K,10,0))=TRUE,0,VLOOKUP(A18,'Inspection Outcome data'!$A:$K,10,0)) -> 234 | G18: =IF(ISERROR(VLOOKUP(A18,'Inspection Outcome data'!$A:$K,11,0))=TRUE,0,VLOOKUP(A18,'Inspection Outcome data'!$A:$K,11,0)) -> 43 | H18: =IF($H$9,Providersat30Sept!B7-C18,0) -> 96
A20: =$G$8&$G$5&$D$5&$B$20&$J$8&$D$9 -> All children's homesAllAllVoluntaryFull Inspection2017 | B20: Voluntary | C20: =SUM(D20,E20,F20,G20) -> 162 | D20: =IF(ISERROR(VLOOKUP(A20,'Inspection Outcome data'!$A:$K,8,0))=TRUE,0,VLOOKUP(A20,'Inspection Outcome data'!$A:$K,8,0)) -> 31 | E20: =IF(ISERROR(VLOOKUP(A20,'Inspection Outcome data'!$A:$K,9,0))=TRUE,0,VLOOKUP(A20,'Inspection Outcome data'!$A:$K,9,0)) -> 103 | F20: =IF(ISERROR(VLOOKUP(A20,'Inspection Outcome data'!$A:$K,10,0))=TRUE,0,VLOOKUP(A20,'Inspection Outcome data'!$A:$K,10,0)) -> 25 | G20: =IF(ISERROR(VLOOKUP(A20,'Inspection Outcome data'!$A:$K,11,0))=TRUE,0,VLOOKUP(A20,'Inspection Outcome data'!$A:$K,11,0)) -> 3 | H20: =IF($H$9,Providersat30Sept!B9-C20,0) -> 5
A22: =$G$8&$G$5&$D$5&$B$22&$J$8&$D$9 -> All children's homesAllAllHealth AuthorityFull Inspection2017 | B22: Health Authority | C22: =SUM(D22,E22,F22,G22) -> 9 | D22: =IF(ISERROR(VLOOKUP(A22,'Inspection Outcome data'!$A:$K,8,0))=TRUE,0,VLOOKUP(A22,'Inspection Outcome data'!$A:$K,8,0)) -> 1 | E22: =IF(ISERROR(VLOOKUP(A22,'Inspection Outcome data'!$A:$K,9,0))=TRUE,0,VLOOKUP(A22,'Inspection Outcome data'!$A:$K,9,0)) -> 7 | F22: =IF(ISERROR(VLOOKUP(A22,'Inspection Outcome data'!$A:$K,10,0))=TRUE,0,VLOOKUP(A22,'Inspection Outcome data'!$A:$K,10,0)) -> 1 | G22: =IF(ISERROR(VLOOKUP(A22,'Inspection Outcome data'!$A:$K,11,0))=TRUE,0,VLOOKUP(A22,'Inspection Outcome data'!$A:$K,11,0)) -> 0 | H22: =IF($H$9,Providersat30Sept!B11-C22,0) -> 0
B27: =IF(D5<>"All",D5,IF(ddla<>"All",VLOOKUP(ddla,'Region Lookups'!C:D,2,0),"All")) -> All
F28: 8 | H28: 9 | J28: 10 | L28: 11
C29: Total number inspected | D29: Outstanding | E29: Good | F29: Requires Improvement | G29: Inadequate
D30: 6 | E30: 7 | F30: 8 | G30: 9
B31: England | C31: =SUM(D31:G31) -> 2010 | D31: =IF(ISERROR(VLOOKUP($G$8&"All"&"All"&"All"&$J$8&$D$9,'Inspection Outcome data'!$A:$K,8,0))=TRUE,0,VLOOKUP($G$8&"All"&"All"&"All"&$J$8&$D$9,'Inspection Outcome data'!$A:$K,8,0)) -> 354 | E31: =IF(ISERROR(VLOOKUP($G$8&"All"&"All"&"All"&$J$8&$D$9,'Inspection Outcome data'!$A:$K,9,0))=TRUE,0,VLOOKUP($G$8&"All"&"All"&"All"&$J$8&$D$9,'Inspection Outcome data'!$A:$K,9,0)) -> 1271 | F31: =IF(ISERROR(VLOOKUP($G$8&"All"&"All"&"All"&$J$8&$D$9,'Inspection Outcome data'!$A:$K,10,0))=TRUE,0,VLOOKUP($G$8&"All"&"All"&"All"&$J$8&$D$9,'Inspection Outcome data'!$A:$K,10,0)) -> 330 | G31: =IF(ISERROR(VLOOKUP($G$8&"All"&"All"&"All"&$J$8&$D$9,'Inspection Outcome data'!$A:$K,11,0))=TRUE,0,VLOOKUP($G$8&"All"&"All"&"All"&$J$8&$D$9,'Inspection Outcome data'!$A:$K,11,0)) -> 55
B33: =IFERROR(IF(B27="All",NA(),B27),"") ->  | C33: =IF(ISERROR(VLOOKUP($G$8&"All"&$B$33&$B$14&$J$8&$D$9,'Inspection Outcome data'!$A:$K,8,0)),IF(B35="","",0),SUM(D33:G33)) ->  | D33: =IFERROR(VLOOKUP($G$8&"All"&$B$33&$B$14&$J$8&$D$9,'Inspection Outcome data'!$A:$K,F$28,0),IF(B33="","",0)) ->  | E33: =IFERROR(VLOOKUP($G$8&"All"&$B$33&$B$14&$J$8&$D$9,'Inspection Outcome data'!$A:$K,H$28,0),IF(C33="","",0)) ->  | F33: =IFERROR(VLOOKUP($G$8&"All"&$B$33&$B$14&$J$8&$D$9,'Inspection Outcome data'!$A:$K,J$28,0),IF(D33="","",0)) ->  | G33: =IFERROR(VLOOKUP($G$8&"All"&$B$33&$B$14&$J$8&$D$9,'Inspection Outcome data'!$A:$K,L$28,0),IF(E33="","",0)) -> 
A34: 1 | B34: =IFERROR(VLOOKUP($B$27&A34,'Region Lookups'!A:C,3,0),"") ->  | C34: =IF(ISERROR(VLOOKUP($G$8&$B34&"All"&$B$14&$J$8&$D$9,'Inspection Outcome data'!$A:$K,8,0)),IF(B34="","",0),SUM(D34:G34)) ->  | D34: =IFERROR(VLOOKUP($G$8&$B34&"All"&$B$14&$J$8&$D$9,'Inspection Outcome data'!$A:$K,8,0),IF(B34="","",0)) ->  | E34: =IFERROR(VLOOKUP($G$8&$B34&"All"&$B$14&$J$8&$D$9,'Inspection Outcome data'!$A:$K,9,0),IF(B34="","",0)) ->  | F34: =IFERROR(VLOOKUP($G$8&$B34&"All"&$B$14&$J$8&$D$9,'Inspection Outcome data'!$A:$K,10,0),IF(B34="","",0)) ->  | G34: =IFERROR(VLOOKUP($G$8&$B34&"All"&$B$14&$J$8&$D$9,'Inspection Outcome data'!$A:$K,11,0),IF(B34="","",0)) -> 
A35: 2 | B35: =IFERROR(VLOOKUP($B$27&A35,'Region Lookups'!A:C,3,0),"") ->  | C35: =IF(ISERROR(VLOOKUP($G$8&$B35&"All"&$B$14&$J$8&$D$9,'Inspection Outcome data'!$A:$K,8,0)),IF(B35="","",0),SUM(D35:G35)) ->  | D35: =IFERROR(VLOOKUP($G$8&$B35&"All"&$B$14&$J$8&$D$9,'Inspection Outcome data'!$A:$K,8,0),IF(B35="","",0)) ->  | E35: =IFERROR(VLOOKUP($G$8&$B35&"All"&$B$14&$J$8&$D$9,'Inspection Outcome data'!$A:$K,9,0),IF(B35="","",0)) ->  | F35: =IFERROR(VLOOKUP($G$8&$B35&"All"&$B$14&$J$8&$D$9,'Inspection Outcome data'!$A:$K,10,0),IF(B35="","",0)) ->  | G35: =IFERROR(VLOOKUP($G$8&$B35&"All"&$B$14&$J$8&$D$9,'Inspection Outcome data'!$A:$K,11,0),IF(B35="","",0)) -> 
A36: 3 | B36: =IFERROR(VLOOKUP($B$27&A36,'Region Lookups'!A:C,3,0),"") ->  | C36: =IF(ISERROR(VLOOKUP($G$8&$B36&"All"&$B$14&$J$8&$D$9,'Inspection Outcome data'!$A:$K,8,0)),IF(B36="","",0),SUM(D36:G36)) ->  | D36: =IFERROR(VLOOKUP($G$8&$B36&"All"&$B$14&$J$8&$D$9,'Inspection Outcome data'!$A:$K,8,0),IF(B36="","",0)) ->  | E36: =IFERROR(VLOOKUP($G$8&$B36&"All"&$B$14&$J$8&$D$9,'Inspection Outcome data'!$A:$K,9,0),IF(B36="","",0)) ->  | F36: =IFERROR(VLOOKUP($G$8&$B36&"All"&$B$14&$J$8&$D$9,'Inspection Outcome data'!$A:$K,10,0),IF(B36="","",0)) ->  | G36: =IFERROR(VLOOKUP($G$8&$B36&"All"&$B$14&$J$8&$D$9,'Inspection Outcome data'!$A:$K,11,0),IF(B36="","",0)) -> 
A37: 4 | B37: =IFERROR(VLOOKUP($B$27&A37,'Region Lookups'!A:C,3,0),"") ->  | C37: =IF(ISERROR(VLOOKUP($G$8&$B37&"All"&$B$14&$J$8&$D$9,'Inspection Outcome data'!$A:$K,8,0)),IF(B37="","",0),SUM(D37:G37)) ->  | D37: =IFERROR(VLOOKUP($G$8&$B37&"All"&$B$14&$J$8&$D$9,'Inspection Outcome data'!$A:$K,8,0),IF(B37="","",0)) ->  | E37: =IFERROR(VLOOKUP($G$8&$B37&"All"&$B$14&$J$8&$D$9,'Inspection Outcome data'!$A:$K,9,0),IF(B37="","",0)) ->  | F37: =IFERROR(VLOOKUP($G$8&$B37&"All"&$B$14&$J$8&$D$9,'Inspection Outcome data'!$A:$K,10,0),IF(B37="","",0)) ->  | G37: =IFERROR(VLOOKUP($G$8&$B37&"All"&$B$14&$J$8&$D$9,'Inspection Outcome data'!$A:$K,11,0),IF(B37="","",0)) -> 
A38: 5 | B38: =IFERROR(VLOOKUP($B$27&A38,'Region Lookups'!A:C,3,0),"") ->  | C38: =IF(ISERROR(VLOOKUP($G$8&$B38&"All"&$B$14&$J$8&$D$9,'Inspection Outcome data'!$A:$K,8,0)),IF(B38="","",0),SUM(D38:G38)) ->  | D38: =IFERROR(VLOOKUP($G$8&$B38&"All"&$B$14&$J$8&$D$9,'Inspection Outcome data'!$A:$K,8,0),IF(B38="","",0)) ->  | E38: =IFERROR(VLOOKUP($G$8&$B38&"All"&$B$14&$J$8&$D$9,'Inspection Outcome data'!$A:$K,9,0),IF(B38="","",0)) ->  | F38: =IFERROR(VLOOKUP($G$8&$B38&"All"&$B$14&$J$8&$D$9,'Inspection Outcome data'!$A:$K,10,0),IF(B38="","",0)) ->  | G38: =IFERROR(VLOOKUP($G$8&$B38&"All"&$B$14&$J$8&$D$9,'Inspection Outcome data'!$A:$K,11,0),IF(B38="","",0)) -> 
A39: 6 | B39: =IFERROR(VLOOKUP($B$27&A39,'Region Lookups'!A:C,3,0),"") ->  | C39: =IF(ISERROR(VLOOKUP($G$8&$B39&"All"&$B$14&$J$8&$D$9,'Inspection Outcome data'!$A:$K,8,0)),IF(B39="","",0),SUM(D39:G39)) ->  | D39: =IFERROR(VLOOKUP($G$8&$B39&"All"&$B$14&$J$8&$D$9,'Inspection Outcome data'!$A:$K,8,0),IF(B39="","",0)) ->  | E39: =IFERROR(VLOOKUP($G$8&$B39&"All"&$B$14&$J$8&$D$9,'Inspection Outcome data'!$A:$K,9,0),IF(B39="","",0)) ->  | F39: =IFERROR(VLOOKUP($G$8&$B39&"All"&$B$14&$J$8&$D$9,'Inspection Outcome data'!$A:$K,10,0),IF(B39="","",0)) ->  | G39: =IFERROR(VLOOKUP($G$8&$B39&"All"&$B$14&$J$8&$D$9,'Inspection Outcome data'!$A:$K,11,0),IF(B39="","",0)) -> 
A40: 7 | B40: =IFERROR(VLOOKUP($B$27&A40,'Region Lookups'!A:C,3,0),"") ->  | C40: =IF(ISERROR(VLOOKUP($G$8&$B40&"All"&$B$14&$J$8&$D$9,'Inspection Outcome data'!$A:$K,8,0)),IF(B40="","",0),SUM(D40:G40)) ->  | D40: =IFERROR(VLOOKUP($G$8&$B40&"All"&$B$14&$J$8&$D$9,'Inspection Outcome data'!$A:$K,8,0),IF(B40="","",0)) ->  | E40: =IFERROR(VLOOKUP($G$8&$B40&"All"&$B$14&$J$8&$D$9,'Inspection Outcome data'!$A:$K,9,0),IF(B40="","",0)) ->  | F40: =IFERROR(VLOOKUP($G$8&$B40&"All"&$B$14&$J$8&$D$9,'Inspection Outcome data'!$A:$K,10,0),IF(B40="","",0)) ->  | G40: =IFERROR(VLOOKUP($G$8&$B40&"All"&$B$14&$J$8&$D$9,'Inspection Outcome data'!$A:$K,11,0),IF(B40="","",0)) -> 
A41: 8 | B41: =IFERROR(VLOOKUP($B$27&A41,'Region Lookups'!A:C,3,0),"") ->  | C41: =IF(ISERROR(VLOOKUP($G$8&$B41&"All"&$B$14&$J$8&$D$9,'Inspection Outcome data'!$A:$K,8,0)),IF(B41="","",0),SUM(D41:G41)) ->  | D41: =IFERROR(VLOOKUP($G$8&$B41&"All"&$B$14&$J$8&$D$9,'Inspection Outcome data'!$A:$K,8,0),IF(B41="","",0)) ->  | E41: =IFERROR(VLOOKUP($G$8&$B41&"All"&$B$14&$J$8&$D$9,'Inspection Outcome data'!$A:$K,9,0),IF(B41="","",0)) ->  | F41: =IFERROR(VLOOKUP($G$8&$B41&"All"&$B$14&$J$8&$D$9,'Inspection Outcome data'!$A:$K,10,0),IF(B41="","",0)) ->  | G41: =IFERROR(VLOOKUP($G$8&$B41&"All"&$B$14&$J$8&$D$9,'Inspection Outcome data'!$A:$K,11,0),IF(B41="","",0)) -> 
A42: 9 | B42: =IFERROR(VLOOKUP($B$27&A42,'Region Lookups'!A:C,3,0),"") ->  | C42: =IF(ISERROR(VLOOKUP($G$8&$B42&"All"&$B$14&$J$8&$D$9,'Inspection Outcome data'!$A:$K,8,0)),IF(B42="","",0),SUM(D42:G42)) ->  | D42: =IFERROR(VLOOKUP($G$8&$B42&"All"&$B$14&$J$8&$D$9,'Inspection Outcome data'!$A:$K,8,0),IF(B42="","",0)) ->  | E42: =IFERROR(VLOOKUP($G$8&$B42&"All"&$B$14&$J$8&$D$9,'Inspection Outcome data'!$A:$K,9,0),IF(B42="","",0)) ->  | F42: =IFERROR(VLOOKUP($G$8&$B42&"All"&$B$14&$J$8&$D$9,'Inspection Outcome data'!$A:$K,10,0),IF(B42="","",0)) ->  | G42: =IFERROR(VLOOKUP($G$8&$B42&"All"&$B$14&$J$8&$D$9,'Inspection Outcome data'!$A:$K,11,0),IF(B42="","",0)) -> 
A43: 10 | B43: =IFERROR(VLOOKUP($B$27&A43,'Region Lookups'!A:C,3,0),"") ->  | C43: =IF(ISERROR(VLOOKUP($G$8&$B43&"All"&$B$14&$J$8&$D$9,'Inspection Outcome data'!$A:$K,8,0)),IF(B43="","",0),SUM(D43:G43)) ->  | D43: =IFERROR(VLOOKUP($G$8&$B43&"All"&$B$14&$J$8&$D$9,'Inspection Outcome data'!$A:$K,8,0),IF(B43="","",0)) ->  | E43: =IFERROR(VLOOKUP($G$8&$B43&"All"&$B$14&$J$8&$D$9,'Inspection Outcome data'!$A:$K,9,0),IF(B43="","",0)) ->  | F43: =IFERROR(VLOOKUP($G$8&$B43&"All"&$B$14&$J$8&$D$9,'Inspection Outcome data'!$A:$K,10,0),IF(B43="","",0)) ->  | G43: =IFERROR(VLOOKUP($G$8&$B43&"All"&$B$14&$J$8&$D$9,'Inspection Outcome data'!$A:$K,11,0),IF(B43="","",0)) -> 
A44: 11 | B44: =IFERROR(VLOOKUP($B$27&A44,'Region Lookups'!A:C,3,0),"") ->  | C44: =IF(ISERROR(VLOOKUP($G$8&$B44&"All"&$B$14&$J$8&$D$9,'Inspection Outcome data'!$A:$K,8,0)),IF(B44="","",0),SUM(D44:G44)) ->  | D44: =IFERROR(VLOOKUP($G$8&$B44&"All"&$B$14&$J$8&$D$9,'Inspection Outcome data'!$A:$K,8,0),IF(B44="","",0)) ->  | E44: =IFERROR(VLOOKUP($G$8&$B44&"All"&$B$14&$J$8&$D$9,'Inspection Outcome data'!$A:$K,9,0),IF(B44="","",0)) ->  | F44: =IFERROR(VLOOKUP($G$8&$B44&"All"&$B$14&$J$8&$D$9,'Inspection Outcome data'!$A:$K,10,0),IF(B44="","",0)) ->  | G44: =IFERROR(VLOOKUP($G$8&$B44&"All"&$B$14&$J$8&$D$9,'Inspection Outcome data'!$A:$K,11,0),IF(B44="","",0)) -> 
A45: 12 | B45: =IFERROR(VLOOKUP($B$27&A45,'Region Lookups'!A:C,3,0),"") ->  | C45: =IF(ISERROR(VLOOKUP($G$8&$B45&"All"&$B$14&$J$8&$D$9,'Inspection Outcome data'!$A:$K,8,0)),IF(B45="","",0),SUM(D45:G45)) ->  | D45: =IFERROR(VLOOKUP($G$8&$B45&"All"&$B$14&$J$8&$D$9,'Inspection Outcome data'!$A:$K,8,0),IF(B45="","",0)) ->  | E45: =IFERROR(VLOOKUP($G$8&$B45&"All"&$B$14&$J$8&$D$9,'Inspection Outcome data'!$A:$K,9,0),IF(B45="","",0)) ->  | F45: =IFERROR(VLOOKUP($G$8&$B45&"All"&$B$14&$J$8&$D$9,'Inspection Outcome data'!$A:$K,10,0),IF(B45="","",0)) ->  | G45: =IFERROR(VLOOKUP($G$8&$B45&"All"&$B$14&$J$8&$D$9,'Inspection Outcome data'!$A:$K,11,0),IF(B45="","",0)) -> 
A46: 13 | B46: =IFERROR(VLOOKUP($B$27&A46,'Region Lookups'!A:C,3,0),"") ->  | C46: =IF(ISERROR(VLOOKUP($G$8&$B46&"All"&$B$14&$J$8&$D$9,'Inspection Outcome data'!$A:$K,8,0)),IF(B46="","",0),SUM(D46:G46)) ->  | D46: =IFERROR(VLOOKUP($G$8&$B46&"All"&$B$14&$J$8&$D$9,'Inspection Outcome data'!$A:$K,8,0),IF(B46="","",0)) ->  | E46: =IFERROR(VLOOKUP($G$8&$B46&"All"&$B$14&$J$8&$D$9,'Inspection Outcome data'!$A:$K,9,0),IF(B46="","",0)) ->  | F46: =IFERROR(VLOOKUP($G$8&$B46&"All"&$B$14&$J$8&$D$9,'Inspection Outcome data'!$A:$K,10,0),IF(B46="","",0)) ->  | G46: =IFERROR(VLOOKUP($G$8&$B46&"All"&$B$14&$J$8&$D$9,'Inspection Outcome data'!$A:$K,11,0),IF(B46="","",0)) -> 
A47: 14 | B47: =IFERROR(VLOOKUP($B$27&A47,'Region Lookups'!A:C,3,0),"") ->  | C47: =IF(ISERROR(VLOOKUP($G$8&$B47&"All"&$B$14&$J$8&$D$9,'Inspection Outcome data'!$A:$K,8,0)),IF(B47="","",0),SUM(D47:G47)) ->  | D47: =IFERROR(VLOOKUP($G$8&$B47&"All"&$B$14&$J$8&$D$9,'Inspection Outcome data'!$A:$K,8,0),IF(B47="","",0)) ->  | E47: =IFERROR(VLOOKUP($G$8&$B47&"All"&$B$14&$J$8&$D$9,'Inspection Outcome data'!$A:$K,9,0),IF(B47="","",0)) ->  | F47: =IFERROR(VLOOKUP($G$8&$B47&"All"&$B$14&$J$8&$D$9,'Inspection Outcome data'!$A:$K,10,0),IF(B47="","",0)) ->  | G47: =IFERROR(VLOOKUP($G$8&$B47&"All"&$B$14&$J$8&$D$9,'Inspection Outcome data'!$A:$K,11,0),IF(B47="","",0)) -> 
A48: 15 | B48: =IFERROR(VLOOKUP($B$27&A48,'Region Lookups'!A:C,3,0),"") ->  | C48: =IF(ISERROR(VLOOKUP($G$8&$B48&"All"&$B$14&$J$8&$D$9,'Inspection Outcome data'!$A:$K,8,0)),IF(B48="","",0),SUM(D48:G48)) ->  | D48: =IFERROR(VLOOKUP($G$8&$B48&"All"&$B$14&$J$8&$D$9,'Inspection Outcome data'!$A:$K,8,0),IF(B48="","",0)) ->  | E48: =IFERROR(VLOOKUP($G$8&$B48&"All"&$B$14&$J$8&$D$9,'Inspection Outcome data'!$A:$K,9,0),IF(B48="","",0)) ->  | F48: =IFERROR(VLOOKUP($G$8&$B48&"All"&$B$14&$J$8&$D$9,'Inspection Outcome data'!$A:$K,10,0),IF(B48="","",0)) ->  | G48: =IFERROR(VLOOKUP($G$8&$B48&"All"&$B$14&$J$8&$D$9,'Inspection Outcome data'!$A:$K,11,0),IF(B48="","",0)) -> 
A49: 16 | B49: =IFERROR(VLOOKUP($B$27&A49,'Region Lookups'!A:C,3,0),"") ->  | C49: =IF(ISERROR(VLOOKUP($G$8&$B49&"All"&$B$14&$J$8&$D$9,'Inspection Outcome data'!$A:$K,8,0)),IF(B49="","",0),SUM(D49:G49)) ->  | D49: =IFERROR(VLOOKUP($G$8&$B49&"All"&$B$14&$J$8&$D$9,'Inspection Outcome data'!$A:$K,8,0),IF(B49="","",0)) ->  | E49: =IFERROR(VLOOKUP($G$8&$B49&"All"&$B$14&$J$8&$D$9,'Inspection Outcome data'!$A:$K,9,0),IF(B49="","",0)) ->  | F49: =IFERROR(VLOOKUP($G$8&$B49&"All"&$B$14&$J$8&$D$9,'Inspection Outcome data'!$A:$K,10,0),IF(B49="","",0)) ->  | G49: =IFERROR(VLOOKUP($G$8&$B49&"All"&$B$14&$J$8&$D$9,'Inspection Outcome data'!$A:$K,11,0),IF(B49="","",0)) -> 
A50: 17 | B50: =IFERROR(VLOOKUP($B$27&A50,'Region Lookups'!A:C,3,0),"") ->  | C50: =IF(ISERROR(VLOOKUP($G$8&$B50&"All"&$B$14&$J$8&$D$9,'Inspection Outcome data'!$A:$K,8,0)),IF(B50="","",0),SUM(D50:G50)) ->  | D50: =IFERROR(VLOOKUP($G$8&$B50&"All"&$B$14&$J$8&$D$9,'Inspection Outcome data'!$A:$K,8,0),IF(B50="","",0)) ->  | E50: =IFERROR(VLOOKUP($G$8&$B50&"All"&$B$14&$J$8&$D$9,'Inspection Outcome data'!$A:$K,9,0),IF(B50="","",0)) ->  | F50: =IFERROR(VLOOKUP($G$8&$B50&"All"&$B$14&$J$8&$D$9,'Inspection Outcome data'!$A:$K,10,0),IF(B50="","",0)) ->  | G50: =IFERROR(VLOOKUP($G$8&$B50&"All"&$B$14&$J$8&$D$9,'Inspection Outcome data'!$A:$K,11,0),IF(B50="","",0)) -> 
A51: 18 | B51: =IFERROR(VLOOKUP($B$27&A51,'Region Lookups'!A:C,3,0),"") ->  | C51: =IF(ISERROR(VLOOKUP($G$8&$B51&"All"&$B$14&$J$8&$D$9,'Inspection Outcome data'!$A:$K,8,0)),IF(B51="","",0),SUM(D51:G51)) ->  | D51: =IFERROR(VLOOKUP($G$8&$B51&"All"&$B$14&$J$8&$D$9,'Inspection Outcome data'!$A:$K,8,0),IF(B51="","",0)) ->  | E51: =IFERROR(VLOOKUP($G$8&$B51&"All"&$B$14&$J$8&$D$9,'Inspection Outcome data'!$A:$K,9,0),IF(B51="","",0)) ->  | F51: =IFERROR(VLOOKUP($G$8&$B51&"All"&$B$14&$J$8&$D$9,'Inspection Outcome data'!$A:$K,10,0),IF(B51="","",0)) ->  | G51: =IFERROR(VLOOKUP($G$8&$B51&"All"&$B$14&$J$8&$D$9,'Inspection Outcome data'!$A:$K,11,0),IF(B51="","",0)) -> 
A52: 19 | B52: =IFERROR(VLOOKUP($B$27&A52,'Region Lookups'!A:C,3,0),"") ->  | C52: =IF(ISERROR(VLOOKUP($G$8&$B52&"All"&$B$14&$J$8&$D$9,'Inspection Outcome data'!$A:$K,8,0)),IF(B52="","",0),SUM(D52:G52)) ->  | D52: =IFERROR(VLOOKUP($G$8&$B52&"All"&$B$14&$J$8&$D$9,'Inspection Outcome data'!$A:$K,8,0),IF(B52="","",0)) ->  | E52: =IFERROR(VLOOKUP($G$8&$B52&"All"&$B$14&$J$8&$D$9,'Inspection Outcome data'!$A:$K,9,0),IF(B52="","",0)) ->  | F52: =IFERROR(VLOOKUP($G$8&$B52&"All"&$B$14&$J$8&$D$9,'Inspection Outcome data'!$A:$K,10,0),IF(B52="","",0)) ->  | G52: =IFERROR(VLOOKUP($G$8&$B52&"All"&$B$14&$J$8&$D$9,'Inspection Outcome data'!$A:$K,11,0),IF(B52="","",0)) -> 
A53: 20 | B53: =IFERROR(VLOOKUP($B$27&A53,'Region Lookups'!A:C,3,0),"") ->  | C53: =IF(ISERROR(VLOOKUP($G$8&$B53&"All"&$B$14&$J$8&$D$9,'Inspection Outcome data'!$A:$K,8,0)),IF(B53="","",0),SUM(D53:G53)) ->  | D53: =IFERROR(VLOOKUP($G$8&$B53&"All"&$B$14&$J$8&$D$9,'Inspection Outcome data'!$A:$K,8,0),IF(B53="","",0)) ->  | E53: =IFERROR(VLOOKUP($G$8&$B53&"All"&$B$14&$J$8&$D$9,'Inspection Outcome data'!$A:$K,9,0),IF(B53="","",0)) ->  | F53: =IFERROR(VLOOKUP($G$8&$B53&"All"&$B$14&$J$8&$D$9,'Inspection Outcome data'!$A:$K,10,0),IF(B53="","",0)) ->  | G53: =IFERROR(VLOOKUP($G$8&$B53&"All"&$B$14&$J$8&$D$9,'Inspection Outcome data'!$A:$K,11,0),IF(B53="","",0)) -> 
A54: 21 | B54: =IFERROR(VLOOKUP($B$27&A54,'Region Lookups'!A:C,3,0),"") ->  | C54: =IF(ISERROR(VLOOKUP($G$8&$B54&"All"&$B$14&$J$8&$D$9,'Inspection Outcome data'!$A:$K,8,0)),IF(B54="","",0),SUM(D54:G54)) ->  | D54: =IFERROR(VLOOKUP($G$8&$B54&"All"&$B$14&$J$8&$D$9,'Inspection Outcome data'!$A:$K,8,0),IF(B54="","",0)) ->  | E54: =IFERROR(VLOOKUP($G$8&$B54&"All"&$B$14&$J$8&$D$9,'Inspection Outcome data'!$A:$K,9,0),IF(B54="","",0)) ->  | F54: =IFERROR(VLOOKUP($G$8&$B54&"All"&$B$14&$J$8&$D$9,'Inspection Outcome data'!$A:$K,10,0),IF(B54="","",0)) ->  | G54: =IFERROR(VLOOKUP($G$8&$B54&"All"&$B$14&$J$8&$D$9,'Inspection Outcome data'!$A:$K,11,0),IF(B54="","",0)) -> 
A55: 22 | B55: =IFERROR(VLOOKUP($B$27&A55,'Region Lookups'!A:C,3,0),"") ->  | C55: =IF(ISERROR(VLOOKUP($G$8&$B55&"All"&$B$14&$J$8&$D$9,'Inspection Outcome data'!$A:$K,8,0)),IF(B55="","",0),SUM(D55:G55)) ->  | D55: =IFERROR(VLOOKUP($G$8&$B55&"All"&$B$14&$J$8&$D$9,'Inspection Outcome data'!$A:$K,8,0),IF(B55="","",0)) ->  | E55: =IFERROR(VLOOKUP($G$8&$B55&"All"&$B$14&$J$8&$D$9,'Inspection Outcome data'!$A:$K,9,0),IF(B55="","",0)) ->  | F55: =IFERROR(VLOOKUP($G$8&$B55&"All"&$B$14&$J$8&$D$9,'Inspection Outcome data'!$A:$K,10,0),IF(B55="","",0)) ->  | G55: =IFERROR(VLOOKUP($G$8&$B55&"All"&$B$14&$J$8&$D$9,'Inspection Outcome data'!$A:$K,11,0),IF(B55="","",0)) -> 
A56: 23 | B56: =IFERROR(VLOOKUP($B$27&A56,'Region Lookups'!A:C,3,0),"") ->  | C56: =IF(ISERROR(VLOOKUP($G$8&$B56&"All"&$B$14&$J$8&$D$9,'Inspection Outcome data'!$A:$K,8,0)),IF(B56="","",0),SUM(D56:G56)) ->  | D56: =IFERROR(VLOOKUP($G$8&$B56&"All"&$B$14&$J$8&$D$9,'Inspection Outcome data'!$A:$K,8,0),IF(B56="","",0)) ->  | E56: =IFERROR(VLOOKUP($G$8&$B56&"All"&$B$14&$J$8&$D$9,'Inspection Outcome data'!$A:$K,9,0),IF(B56="","",0)) ->  | F56: =IFERROR(VLOOKUP($G$8&$B56&"All"&$B$14&$J$8&$D$9,'Inspection Outcome data'!$A:$K,10,0),IF(B56="","",0)) ->  | G56: =IFERROR(VLOOKUP($G$8&$B56&"All"&$B$14&$J$8&$D$9,'Inspection Outcome data'!$A:$K,11,0),IF(B56="","",0)) -> 
A57: 24 | B57: =IFERROR(VLOOKUP($B$27&A57,'Region Lookups'!A:C,3,0),"") ->  | C57: =IF(ISERROR(VLOOKUP($G$8&$B57&"All"&$B$14&$J$8&$D$9,'Inspection Outcome data'!$A:$K,8,0)),IF(B57="","",0),SUM(D57:G57)) ->  | D57: =IFERROR(VLOOKUP($G$8&$B57&"All"&$B$14&$J$8&$D$9,'Inspection Outcome data'!$A:$K,8,0),IF(B57="","",0)) ->  | E57: =IFERROR(VLOOKUP($G$8&$B57&"All"&$B$14&$J$8&$D$9,'Inspection Outcome data'!$A:$K,9,0),IF(B57="","",0)) ->  | F57: =IFERROR(VLOOKUP($G$8&$B57&"All"&$B$14&$J$8&$D$9,'Inspection Outcome data'!$A:$K,10,0),IF(B57="","",0)) ->  | G57: =IFERROR(VLOOKUP($G$8&$B57&"All"&$B$14&$J$8&$D$9,'Inspection Outcome data'!$A:$K,11,0),IF(B57="","",0)) -> 
A58: 25 | B58: =IFERROR(VLOOKUP($B$27&A58,'Region Lookups'!A:C,3,0),"") ->  | C58: =IF(ISERROR(VLOOKUP($G$8&$B58&"All"&$B$14&$J$8&$D$9,'Inspection Outcome data'!$A:$K,8,0)),IF(B58="","",0),SUM(D58:G58)) ->  | D58: =IFERROR(VLOOKUP($G$8&$B58&"All"&$B$14&$J$8&$D$9,'Inspection Outcome data'!$A:$K,8,0),IF(B58="","",0)) ->  | E58: =IFERROR(VLOOKUP($G$8&$B58&"All"&$B$14&$J$8&$D$9,'Inspection Outcome data'!$A:$K,9,0),IF(B58="","",0)) ->  | F58: =IFERROR(VLOOKUP($G$8&$B58&"All"&$B$14&$J$8&$D$9,'Inspection Outcome data'!$A:$K,10,0),IF(B58="","",0)) ->  | G58: =IFERROR(VLOOKUP($G$8&$B58&"All"&$B$14&$J$8&$D$9,'Inspection Outcome data'!$A:$K,11,0),IF(B58="","",0)) -> 
A59: 26 | B59: =IFERROR(VLOOKUP($B$27&A59,'Region Lookups'!A:C,3,0),"") ->  | C59: =IF(ISERROR(VLOOKUP($G$8&$B59&"All"&$B$14&$J$8&$D$9,'Inspection Outcome data'!$A:$K,8,0)),IF(B59="","",0),SUM(D59:G59)) ->  | D59: =IFERROR(VLOOKUP($G$8&$B59&"All"&$B$14&$J$8&$D$9,'Inspection Outcome data'!$A:$K,8,0),IF(B59="","",0)) ->  | E59: =IFERROR(VLOOKUP($G$8&$B59&"All"&$B$14&$J$8&$D$9,'Inspection Outcome data'!$A:$K,9,0),IF(B59="","",0)) ->  | F59: =IFERROR(VLOOKUP($G$8&$B59&"All"&$B$14&$J$8&$D$9,'Inspection Outcome data'!$A:$K,10,0),IF(B59="","",0)) ->  | G59: =IFERROR(VLOOKUP($G$8&$B59&"All"&$B$14&$J$8&$D$9,'Inspection Outcome data'!$A:$K,11,0),IF(B59="","",0)) -> 
A60: 27 | B60: =IFERROR(VLOOKUP($B$27&A60,'Region Lookups'!A:C,3,0),"") ->  | C60: =IF(ISERROR(VLOOKUP($G$8&$B60&"All"&$B$14&$J$8&$D$9,'Inspection Outcome data'!$A:$K,8,0)),IF(B60="","",0),SUM(D60:G60)) ->  | D60: =IFERROR(VLOOKUP($G$8&$B60&"All"&$B$14&$J$8&$D$9,'Inspection Outcome data'!$A:$K,8,0),IF(B60="","",0)) ->  | E60: =IFERROR(VLOOKUP($G$8&$B60&"All"&$B$14&$J$8&$D$9,'Inspection Outcome data'!$A:$K,9,0),IF(B60="","",0)) ->  | F60: =IFERROR(VLOOKUP($G$8&$B60&"All"&$B$14&$J$8&$D$9,'Inspection Outcome data'!$A:$K,10,0),IF(B60="","",0)) ->  | G60: =IFERROR(VLOOKUP($G$8&$B60&"All"&$B$14&$J$8&$D$9,'Inspection Outcome data'!$A:$K,11,0),IF(B60="","",0)) -> 
A61: 28 | B61: =IFERROR(VLOOKUP($B$27&A61,'Region Lookups'!A:C,3,0),"") ->  | C61: =IF(ISERROR(VLOOKUP($G$8&$B61&"All"&$B$14&$J$8&$D$9,'Inspection Outcome data'!$A:$K,8,0)),IF(B61="","",0),SUM(D61:G61)) ->  | D61: =IFERROR(VLOOKUP($G$8&$B61&"All"&$B$14&$J$8&$D$9,'Inspection Outcome data'!$A:$K,8,0),IF(B61="","",0)) ->  | E61: =IFERROR(VLOOKUP($G$8&$B61&"All"&$B$14&$J$8&$D$9,'Inspection Outcome data'!$A:$K,9,0),IF(B61="","",0)) ->  | F61: =IFERROR(VLOOKUP($G$8&$B61&"All"&$B$14&$J$8&$D$9,'Inspection Outcome data'!$A:$K,10,0),IF(B61="","",0)) ->  | G61: =IFERROR(VLOOKUP($G$8&$B61&"All"&$B$14&$J$8&$D$9,'Inspection Outcome data'!$A:$K,11,0),IF(B61="","",0)) -> 
A62: 29 | B62: =IFERROR(VLOOKUP($B$27&A62,'Region Lookups'!A:C,3,0),"") ->  | C62: =IF(ISERROR(VLOOKUP($G$8&$B62&"All"&$B$14&$J$8&$D$9,'Inspection Outcome data'!$A:$K,8,0)),IF(B62="","",0),SUM(D62:G62)) ->  | D62: =IFERROR(VLOOKUP($G$8&$B62&"All"&$B$14&$J$8&$D$9,'Inspection Outcome data'!$A:$K,8,0),IF(B62="","",0)) ->  | E62: =IFERROR(VLOOKUP($G$8&$B62&"All"&$B$14&$J$8&$D$9,'Inspection Outcome data'!$A:$K,9,0),IF(B62="","",0)) ->  | F62: =IFERROR(VLOOKUP($G$8&$B62&"All"&$B$14&$J$8&$D$9,'Inspection Outcome data'!$A:$K,10,0),IF(B62="","",0)) ->  | G62: =IFERROR(VLOOKUP($G$8&$B62&"All"&$B$14&$J$8&$D$9,'Inspection Outcome data'!$A:$K,11,0),IF(B62="","",0)) -> 
A63: 30 | B63: =IFERROR(VLOOKUP($B$27&A63,'Region Lookups'!A:C,3,0),"") ->  | C63: =IF(ISERROR(VLOOKUP($G$8&$B63&"All"&$B$14&$J$8&$D$9,'Inspection Outcome data'!$A:$K,8,0)),IF(B63="","",0),SUM(D63:G63)) ->  | D63: =IFERROR(VLOOKUP($G$8&$B63&"All"&$B$14&$J$8&$D$9,'Inspection Outcome data'!$A:$K,8,0),IF(B63="","",0)) ->  | E63: =IFERROR(VLOOKUP($G$8&$B63&"All"&$B$14&$J$8&$D$9,'Inspection Outcome data'!$A:$K,9,0),IF(B63="","",0)) ->  | F63: =IFERROR(VLOOKUP($G$8&$B63&"All"&$B$14&$J$8&$D$9,'Inspection Outcome data'!$A:$K,10,0),IF(B63="","",0)) ->  | G63: =IFERROR(VLOOKUP($G$8&$B63&"All"&$B$14&$J$8&$D$9,'Inspection Outcome data'!$A:$K,11,0),IF(B63="","",0)) -> 
A64: 31 | B64: =IFERROR(VLOOKUP($B$27&A64,'Region Lookups'!A:C,3,0),"") ->  | C64: =IF(ISERROR(VLOOKUP($G$8&$B64&"All"&$B$14&$J$8&$D$9,'Inspection Outcome data'!$A:$K,8,0)),IF(B64="","",0),SUM(D64:G64)) ->  | D64: =IFERROR(VLOOKUP($G$8&$B64&"All"&$B$14&$J$8&$D$9,'Inspection Outcome data'!$A:$K,8,0),IF(B64="","",0)) ->  | E64: =IFERROR(VLOOKUP($G$8&$B64&"All"&$B$14&$J$8&$D$9,'Inspection Outcome data'!$A:$K,9,0),IF(B64="","",0)) ->  | F64: =IFERROR(VLOOKUP($G$8&$B64&"All"&$B$14&$J$8&$D$9,'Inspection Outcome data'!$A:$K,10,0),IF(B64="","",0)) ->  | G64: =IFERROR(VLOOKUP($G$8&$B64&"All"&$B$14&$J$8&$D$9,'Inspection Outcome data'!$A:$K,11,0),IF(B64="","",0)) -> 
A65: 32 | B65: =IFERROR(VLOOKUP($B$27&A65,'Region Lookups'!A:C,3,0),"") ->  | C65: =IF(ISERROR(VLOOKUP($G$8&$B65&"All"&$B$14&$J$8&$D$9,'Inspection Outcome data'!$A:$K,8,0)),IF(B65="","",0),SUM(D65:G65)) ->  | D65: =IFERROR(VLOOKUP($G$8&$B65&"All"&$B$14&$J$8&$D$9,'Inspection Outcome data'!$A:$K,8,0),IF(B65="","",0)) ->  | E65: =IFERROR(VLOOKUP($G$8&$B65&"All"&$B$14&$J$8&$D$9,'Inspection Outcome data'!$A:$K,9,0),IF(B65="","",0)) ->  | F65: =IFERROR(VLOOKUP($G$8&$B65&"All"&$B$14&$J$8&$D$9,'Inspection Outcome data'!$A:$K,10,0),IF(B65="","",0)) ->  | G65: =IFERROR(VLOOKUP($G$8&$B65&"All"&$B$14&$J$8&$D$9,'Inspection Outcome data'!$A:$K,11,0),IF(B65="","",0)) -> 
A66: 33 | B66: =IFERROR(VLOOKUP($B$27&A66,'Region Lookups'!A:C,3,0),"") ->  | C66: =IF(ISERROR(VLOOKUP($G$8&$B66&"All"&$B$14&$J$8&$D$9,'Inspection Outcome data'!$A:$K,8,0)),IF(B66="","",0),SUM(D66:G66)) ->  | D66: =IFERROR(VLOOKUP($G$8&$B66&"All"&$B$14&$J$8&$D$9,'Inspection Outcome data'!$A:$K,8,0),IF(B66="","",0)) ->  | E66: =IFERROR(VLOOKUP($G$8&$B66&"All"&$B$14&$J$8&$D$9,'Inspection Outcome data'!$A:$K,9,0),IF(B66="","",0)) ->  | F66: =IFERROR(VLOOKUP($G$8&$B66&"All"&$B$14&$J$8&$D$9,'Inspection Outcome data'!$A:$K,10,0),IF(B66="","",0)) ->  | G66: =IFERROR(VLOOKUP($G$8&$B66&"All"&$B$14&$J$8&$D$9,'Inspection Outcome data'!$A:$K,11,0),IF(B66="","",0)) -> 

Sheet Providersat30Sept (hidden)
A1: Number of providers as at 30 September (based on variables selected in 'Children's social care' data summary table)
A3: All | B3: =VLOOKUP($G$3,$A$15:$J$758,10,0) -> 2115 | E3: User selection | G3: ='Children''s Social Care'!G8:H8&screg&ddla -> All children's homesAllAll
A5: Local Authority | B5: =VLOOKUP($G$3,$A$15:$J$758,7,0) -> 446
A7: Private | B7: =VLOOKUP($G$3,$A$15:$J$758,8,0) -> 1493
A9: Voluntary | B9: =VLOOKUP($G$3,$A$15:$J$758,9,0) -> 167
A11: Health Authority | B11: =VLOOKUP($G$3,$A$15:$J$758,6,0) -> 9
A14: 1 | B14: 2 | C14: 3 | D14: 4 | E14: 5 | F14: 6 | G14: 7 | H14: 8 | I14: 9 | J14: 10
A15: Lookup | B15: Provision type | C15: Local authority | D15: Region | E15: Row Labels | F15: Health Authority | G15: Local Authority | H15: Private | I15: Voluntary | J15: Grand Total
A16: =B16&D16&C16 -> Children's homeAllAll | B16: Children's home | C16: All | D16: All | E16: Children's Home | F16: 9 | G16: 430 | H16: 1438 | I16: 143 | J16: 2020
A17: =B17&D17&C17 -> Children's homeEast MidlandsAll | B17: Children's home | C17: All | D17: East Midlands | E17: East Midlands | F17: 3 | G17: 48 | H17: 119 | I17: 6 | J17: 176
A18: Children's homeEast MidlandsDerby | B18: Children's home | C18: Derby | D18: East Midlands | E18: Derby | G18: 8 | H18: 5 | J18: 13
A19: Children's homeEast MidlandsDerbyshire | B19: Children's home | C19: Derbyshire | D19: East Midlands | E19: Derbyshire | G19: 12 | H19: 18 | J19: 30
A20: Children's homeEast MidlandsLeicester | B20: Children's home | C20: Leicester | D20: East Midlands | E20: Leicester | G20: 5 | H20: 3 | J20: 8
A21: Children's homeEast MidlandsLeicestershire | B21: Children's home | C21: Leicestershire | D21: East Midlands | E21: Leicestershire | G21: 1 | H21: 28 | I21: 1 | J21: 30
A22: Children's homeEast MidlandsLincolnshire | B22: Children's home | C22: Lincolnshire | D22: East Midlands | E22: Lincolnshire | G22: 6 | H22: 12 | J22: 18
A23: Children's homeEast MidlandsNorthamptonshire | B23: Children's home | C23: Northamptonshire | D23: East Midlands | E23: Northamptonshire | F23: 3 | G23: 4 | H23: 17 | J23: 24
A24: Children's homeEast MidlandsNottingham | B24: Children's home | C24: Nottingham | D24: East Midlands | E24: Nottingham | G24: 7 | H24: 14 | I24: 3 | J24: 24
A25: Children's homeEast MidlandsNottinghamshire | B25: Children's home | C25: Nottinghamshire | D25: East Midlands | E25: Nottinghamshire | G25: 5 | H25: 20 | I25: 2 | J25: 27
A26: Children's homeEast MidlandsRutland | B26: Children's home | C26: Rutland | D26: East Midlands | E26: Rutland | H26: 2 | J26: 2
A27: Children's homeEast of EnglandAll | B27: Children's home | C27: All | D27: East of England | E27: East of England | G27: 32 | H27: 104 | I27: 28 | J27: 164
A28: Children's homeEast of EnglandBedford | B28: Children's home | C28: Bedford | D28: East of England | E28: Bedford | G28: 2 | H28: 9 | I28: 2 | J28: 13
A29: Children's homeEast of EnglandCambridgeshire | B29: Children's home | C29: Cambridgeshire | D29: East of England | E29: Cambridgeshire | G29: 2 | H29: 12 | I29: 6 | J29: 20
A30: Children's homeEast of EnglandCentral Bedfordshire | B30: Children's home | C30: Central Bedfordshire | D30: East of England | E30: Central Bedfordshire | G30: 2 | H30: 7 | I30: 2 | J30: 11
A31: Children's homeEast of EnglandEssex | B31: Children's home | C31: Essex | D31: East of England | E31: Essex | G31: 3 | H31: 28 | J31: 31
A32: Children's homeEast of EnglandHertfordshire | B32: Children's home | C32: Hertfordshire | D32: East of England | E32: Hertfordshire | G32: 6 | H32: 4 | I32: 4 | J32: 14
A33: Children's homeEast of EnglandLuton | B33: Children's home | C33: Luton | D33: East of England | E33: Luton | G33: 1 | H33: 1 | I33: 1 | J33: 3
A34: Children's homeEast of EnglandNorfolk | B34: Children's home | C34: Norfolk | D34: East of England | E34: Norfolk | G34: 9 | H34: 16 | I34: 11 | J34: 36
A35: Children's homeEast of EnglandPeterborough | B35: Children's home | C35: Peterborough | D35: East of England | E35: Peterborough | G35: 2 | H35: 4 | J35: 6
A36: Children's homeEast of EnglandSouthend on Sea | B36: Children's home | C36: Southend on Sea | D36: East of England | E36: Southend on Sea | H36: 4 | I36: 1 | J36: 5
A37: Children's homeEast of EnglandSuffolk | B37: Children's home | C37: Suffolk | D37: East of England | E37: Suffolk | G37: 5 | H37: 17 | I37: 1 | J37: 23
A38: Children's homeEast of EnglandThurrock | B38: Children's home | C38: Thurrock | D38: East of England | E38: Thurrock | H38: 2 | J38: 2
A39: Children's homeLondonAll | B39: Children's home | C39: All | D39: London | E39: London | F39: 2 | G39: 22 | H39: 86 | I39: 14 | J39: 124
A40: Children's homeLondonBarking and Dagenham | B40: Children's home | C40: Barking and Dagenham | D40: London | E40: Barking and Dagenham | H40: 4 | J40: 4
A41: Children's homeLondonBarnet | B41: Children's home | C41: Barnet | D41: London | E41: Barnet | G41: 2 | I41: 1 | J41: 3
A42: Children's homeLondonBexley | B42: Children's home | C42: Bexley | D42: London | E42: Bexley | H42: 2 | I42: 1 | J42: 3
A43: Children's homeLondonBrent | B43: Children's home | C43: Brent | D43: London | E43: Brent | G43: 1 | H43: 3 | I43: 1 | J43: 5
A44: Children's homeLondonBromley | B44: Children's home | C44: Bromley | D44: London | E44: Bromley | F44: 1 | H44: 3 | J44: 4
A45: Children's homeLondonCamden | B45: Children's home | C45: Camden | D45: London | E45: Camden | H45: 1 | I45: 1 | J45: 2
A46: Children's homeLondonCroydon | B46: Children's home | C46: Croydon | D46: London | E46: Croydon | G46: 1 | H46: 8 | J46: 9
A47: Children's homeLondonEaling | B47: Children's home | C47: Ealing | D47: London | E47: Ealing | G47: 1 | H47: 2 | I47: 3 | J47: 6
A48: Children's homeLondonEnfield | B48: Children's home | C48: Enfield | D48: London | E48: Enfield | H48: 4 | J48: 4
A49: Children's homeLondonGreenwich | B49: Children's home | C49: Greenwich | D49: London | E49: Greenwich | F49: 1 | G49: 1 | H49: 3 | J49: 5
A50: Children's homeLondonHackney | B50: Children's home | C50: Hackney | D50: London | E50: Hackney | H50: 1 | J50: 1
A51: Children's homeLondonHammersmith and Fulham | B51: Children's home | C51: Hammersmith and Fulham | D51: London | E51: Hammersmith and Fulham | G51: 1 | J51: 1
A52: Children's homeLondonHaringey | B52: Children's home | C52: Haringey | D52: London | E52: Haringey | G52: 1 | H52: 5 | J52: 6
A53: Children's homeLondonHarrow | B53: Children's home | C53: Harrow | D53: London | E53: Harrow | G53: 1 | H53: 2 | J53: 3
A54: Children's homeLondonHavering | B54: Children's home | C54: Havering | D54: London | E54: Havering | H54: 4 | J54: 4
A55: Children's homeLondonHillingdon | B55: Children's home | C55: Hillingdon | D55: London | E55: Hillingdon | G55: 3 | H55: 1 | I55: 1 | J55: 5
A56: Children's homeLondonHounslow | B56: Children's home | C56: Hounslow | D56: London | E56: Hounslow | G56: 2 | H56: 3 | J56: 5
A57: Children's homeLondonIslington | B57: Children's home | C57: Islington | D57: London | E57: Islington | I57: 1 | J57: 1
A58: Children's homeLondonKensington and Chelsea | B58: Children's home | C58: Kensington and Chelsea | D58: London | E58: Kensington and Chelsea | G58: 2 | J58: 2
A59: Children's homeLondonKingston upon Thames | B59: Children's home | C59: Kingston upon Thames | D59: London | E59: Kingston upon Thames | H59: 1 | I59: 1 | J59: 2
A60: Children's homeLondonLambeth | B60: Children's home | C60: Lambeth | D60: London | E60: Lambeth | H60: 4 | J60: 4
A61: Children's homeLondonLewisham | B61: Children's home | C61: Lewisham | D61: London | E61: Lewisham | H61: 4 | I61: 1 | J61: 5
A62: Children's homeLondonMerton | B62: Children's home | C62: Merton | D62: London | E62: Merton | G62: 1 | H62: 5 | J62: 6
A63: Children's homeLondonNewham | B63: Children's home | C63: Newham | D63: London | E63: Newham | G63: 1 | H63: 6 | J63: 7
A64: Children's homeLondonRedbridge | B64: Children's home | C64: Redbridge | D64: London | E64: Redbridge | H64: 7 | I64: 3 | J64: 10
A65: Children's homeLondonRichmond upon Thames | B65: Children's home | C65: Richmond upon Thames | D65: London | E65: Richmond upon Thames | H65: 1 | J65: 1
A66: Children's homeLondonSouthwark | B66: Children's home | C66: Southwark | D66: London | E66: Southwark | G66: 1 | J66: 1
A67: Children's homeLondonSutton | B67: Children's home | C67: Sutton | D67: London | E67: Sutton | H67: 1 | J67: 1
A68: Children's homeLondonTower Hamlets | B68: Children's home | C68: Tower Hamlets | D68: London | E68: Tower Hamlets | G68: 1 | H68: 2 | J68: 3
A69: Children's homeLondonWaltham Forest | B69: Children's home | C69: Waltham Forest | D69: London | E69: Waltham Forest | G69: 1 | H69: 9 | J69: 10
A70: Children's homeLondonWandsworth | B70: Children's home | C70: Wandsworth | D70: London | E70: Wandsworth | G70: 1 | J70: 1
A71: Children's homeNorth EastAll | B71: Children's home | C71: All | D71: North East | E71: North East | G71: 46 | H71: 58 | I71: 15 | J71: 119
A72: Children's homeNorth EastDarlington | B72: Children's home | C72: Darlington | D72: North East | E72: Darlington | G72: 4 | H72: 9 | I72: 1 | J72: 14
A73: Children's homeNorth EastDurham | B73: Children's home | C73: Durham | D73: North East | E73: Durham | G73: 9 | H73: 17 | I73: 2 | J73: 28
A74: Children's homeNorth EastGateshead | B74: Children's home | C74: Gateshead | D74: North East | E74: Gateshead | G74: 2 | H74: 3 | J74: 5
A75: Children's homeNorth EastHartlepool | B75: Children's home | C75: Hartlepool | D75: North East | E75: Hartlepool | G75: 2 | H75: 3 | J75: 5
A76: Children's homeNorth EastMiddlesbrough | B76: Children's home | C76: Middlesbrough | D76: North East | E76: Middlesbrough | G76: 4 | H76: 6 | J76: 10
A77: Children's homeNorth EastNewcastle upon Tyne | B77: Children's home | C77: Newcastle upon Tyne | D77: North East | E77: Newcastle upon Tyne | G77: 3 | H77: 6 | I77: 3 | J77: 12
A78: Children's homeNorth EastNorth Tyneside | B78: Children's home | C78: North Tyneside | D78: North East | E78: North Tyneside | G78: 5 | I78: 2 | J78: 7
A79: Children's homeNorth EastNorthumberland | B79: Children's home | C79: Northumberland | D79: North East | E79: Northumberland | G79: 4 | H79: 6 | I79: 1 | J79: 11
A80: Children's homeNorth EastRedcar and Cleveland | B80: Children's home | C80: Redcar and Cleveland | D80: North East | E80: Redcar and Cleveland | H80: 3 | J80: 3
A81: =B81&D81&C81 -> Children's homeNorth EastSouth Tyneside | B81: Children's home | C81: South Tyneside | D81: North East | E81: South Tyneside | G81: 2 | I81: 1 | J81: 3
A82: Children's homeNorth EastStockton-on-Tees | B82: Children's home | C82: Stockton-on-Tees | D82: North East | E82: Stockton-on-Tees | G82: 6 | H82: 4 | J82: 10
A83: Children's homeNorth EastSunderland | B83: Children's home | C83: Sunderland | D83: North East | E83: Sunderland | G83: 5 | H83: 1 | I83: 5 | J83: 11
A84: Children's homeNorth WestAll | B84: Children's home | C84: All | D84: North West | E84: North West | F84: 1 | G84: 83 | H84: 372 | I84: 29 | J84: 485
A85: Children's homeNorth WestBlackburn with Darwen | B85: Children's home | C85: Blackburn with Darwen | D85: North West | E85: Blackburn with Darwen | G85: 4 | H85: 3 | J85: 7
A86: Children's homeNorth WestBlackpool | B86: Children's home | C86: Blackpool | D86: North West | E86: Blackpool | G86: 3 | H86: 13 | J86: 16
A87: Children's homeNorth WestBolton | B87: Children's home | C87: Bolton | D87: North West | E87: Bolton | G87: 6 | H87: 4 | I87: 9 | J87: 19
A88: Children's homeNorth WestBury | B88: Children's home | C88: Bury | D88: North West | E88: Bury | H88: 6 | J88: 6
A89: Children's homeNorth WestCheshire East | B89: Children's home | C89: Cheshire East | D89: North West | E89: Cheshire East | G89: 1 | H89: 9 | I89: 2 | J89: 12
A90: Children's homeNorth WestCheshire West and Chester | B90: Children's home | C90: Cheshire West and Chester | D90: North West | E90: Cheshire West and Chester | G90: 3 | H90: 8 | J90: 11
A91: Children's homeNorth WestCumbria | B91: Children's home | C91: Cumbria | D91: North West | E91: Cumbria | F91: 1 | G91: 5 | H91: 19 | I91: 1 | J91: 26
A92: Children's homeNorth WestHalton | B92: Children's home | C92: Halton | D92: North West | E92: Halton | G92: 2 | H92: 11 | J92: 13
A93: Children's homeNorth WestKnowsley | B93: Children's home | C93: Knowsley | D93: North West | E93: Knowsley | G93: 3 | H93: 10 | I93: 2 | J93: 15
A94: Children's homeNorth WestLancashire | B94: Children's home | C94: Lancashire | D94: North West | E94: Lancashire | G94: 14 | H94: 88 | J94: 102
A95: Children's homeNorth WestLiverpool | B95: Children's home | C95: Liverpool | D95: North West | E95: Liverpool | G95: 1 | H95: 14 | I95: 1 | J95: 16
A96: Children's homeNorth WestManchester | B96: Children's home | C96: Manchester | D96: North West | E96: Manchester | G96: 4 | H96: 16 | J96: 20
A97: Children's homeNorth WestOldham | B97: Children's home | C97: Oldham | D97: North West | E97: Oldham | G97: 3 | H97: 8 | J97: 11
A98: Children's homeNorth WestRochdale | B98: Children's home | C98: Rochdale | D98: North West | E98: Rochdale | G98: 4 | H98: 39 | J98: 43
A99: Children's homeNorth WestSalford | B99: Children's home | C99: Salford | D99: North West | E99: Salford | G99: 7 | H99: 6 | I99: 1 | J99: 14
A100: Children's homeNorth WestSefton | B100: Children's home | C100: Sefton | D100: North West | E100: Sefton | G100: 3 | H100: 21 | I100: 2 | J100: 26
A101: Children's homeNorth WestSt Helens | B101: Children's home | C101: St Helens | D101: North West | E101: St Helens | G101: 2 | H101: 22 | I101: 1 | J101: 25
A102: Children's homeNorth WestStockport | B102: Children's home | C102: Stockport | D102: North West | E102: Stockport | G102: 1 | H102: 19 | I102: 10 | J102: 30
A103: Children's homeNorth WestTameside | B103: Children's home | C103: Tameside | D103: North West | E103: Tameside | G103: 4 | H103: 11 | J103: 15
A104: Children's homeNorth WestTrafford | B104: Children's home | C104: Trafford | D104: North West | E104: Trafford | G104: 2 | H104: 3 | J104: 5
A105: Children's homeNorth WestWarrington | B105: Children's home | C105: Warrington | D105: North West | E105: Warrington | G105: 6 | H105: 14 | J105: 20
A106: Children's homeNorth WestWigan | B106: Children's home | C106: Wigan | D106: North West | E106: Wigan | G106: 4 | H106: 15 | J106: 19
A107: Children's homeNorth WestWirral | B107: Children's home | C107: Wirral | D107: North West | E107: Wirral | G107: 1 | H107: 13 | J107: 14
A108: Children's homeSouth EastAll | B108: Children's home | C108: All | D108: South East | E108: South East | G108: 53 | H108: 182 | I108: 22 | J108: 257
A109: Children's homeSouth EastBracknell Forest | B109: Children's home | C109: Bracknell Forest | D109: South East | E109: Bracknell Forest | G109: 1 | H109: 5 | J109: 6
A110: Children's homeSouth EastBrighton and Hove | B110: Children's home | C110: Brighton and Hove | D110: South East | E110: Brighton and Hove | G110: 2 | H110: 5 | J110: 7
A111: Children's homeSouth EastBuckinghamshire | B111: Children's home | C111: Buckinghamshire | D111: South East | E111: Buckinghamshire | G111: 1 | H111: 5 | I111: 2 | J111: 8
A112: Children's homeSouth EastEast Sussex | B112: Children's home | C112: East Sussex | D112: South East | E112: East Sussex | G112: 5 | H112: 14 | J112: 19
A113: Children's homeSouth EastHampshire | B113: Children's home | C113: Hampshire | D113: South East | E113: Hampshire | G113: 8 | H113: 28 | I113: 2 | J113: 38
A114: Children's homeSouth EastIsle of Wight | B114: Children's home | C114: Isle of Wight | D114: South East | E114: Isle of Wight | G114: 1 | H114: 2 | J114: 3
A115: Children's homeSouth EastKent | B115: Children's home | C115: Kent | D115: South East | E115: Kent | G115: 5 | H115: 58 | I115: 8 | J115: 71
A116: Children's homeSouth EastMedway | B116: Children's home | C116: Medway | D116: South East | E116: Medway | G116: 2 | H116: 1 | J116: 3
A117: Children's homeSouth EastMilton Keynes | B117: Children's home | C117: Milton Keynes | D117: South East | E117: Milton Keynes | G117: 2 | H117: 3 | J117: 5
A118: Children's homeSouth EastOxfordshire | B118: Children's home | C118: Oxfordshire | D118: South East | E118: Oxfordshire | G118: 3 | H118: 7 | I118: 4 | J118: 14
A119: Children's homeSouth EastPortsmouth | B119: Children's home | C119: Portsmouth | D119: South East | E119: Portsmouth | G119: 3 | J119: 3
A120: Children's homeSouth EastReading | B120: Children's home | C120: Reading | D120: South East | E120: Reading | G120: 2 | H120: 2 | J120: 4
A121: Children's homeSouth EastSlough | B121: Children's home | C121: Slough | D121: South East | E121: Slough | H121: 2 | I121: 2 | J121: 4
A122: Children's homeSouth EastSouthampton | B122: Children's home | C122: Southampton | D122: South East | E122: Southampton | H122: 9 | I122: 1 | J122: 10
A123: Children's homeSouth EastSurrey | B123: Children's home | C123: Surrey | D123: South East | E123: Surrey | G123: 10 | H123: 4 | I123: 3 | J123: 17
A124: Children's homeSouth EastWest Berkshire | B124: Children's home | C124: West Berkshire | D124: South East | E124: West Berkshire | G124: 1 | H124: 7 | J124: 8
A125: Children's homeSouth EastWest Sussex | B125: Children's home | C125: West Sussex | D125: South East | E125: West Sussex | G125: 6 | H125: 25 | J125: 31
A126: Children's homeSouth EastWindsor and Maidenhead | B126: Children's home | C126: Windsor and Maidenhead | D126: South East | E126: Windsor and Maidenhead | H126: 2 | J126: 2
A127: Children's homeSouth EastWokingham | B127: Children's home | C127: Wokingham | D127: South East | E127: Wokingham | G127: 1 | H127: 3 | J127: 4
A128: Children's homeSouth WestAll | B128: Children's home | C128: All | D128: South West | E128: South West | F128: 3 | G128: 24 | H128: 134 | I128: 10 | J128: 171
A129: Children's homeSouth WestBath and North East Somerset | B129: Children's home | C129: Bath and North East Somerset | D129: South West | E129: Bath and North East Somerset | H129: 1 | I129: 1 | J129: 2
A130: Children's homeSouth WestBournemouth | B130: Children's home | C130: Bournemouth | D130: South West | E130: Bournemouth | G130: 1 | H130: 3 | J130: 4
A131: Children's homeSouth WestBristol | B131: Children's home | C131: Bristol | D131: South West | E131: Bristol | G131: 7 | H131: 3 | J131: 10
A132: Children's homeSouth WestCornwall | B132: Children's home | C132: Cornwall | D132: South West | E132: Cornwall | F132: 3 | G132: 5 | H132: 4 | I132: 1 | J132: 13
A133: Children's homeSouth WestDevon | B133: Children's home | C133: Devon | D133: South West | E133: Devon | H133: 34 | I133: 2 | J133: 36
A134: Children's homeSouth WestDorset | B134: Children's home | C134: Dorset | D134: South West | E134: Dorset | G134: 3 | H134: 6 | J134: 9
A135: Children's homeSouth WestGloucestershire | B135: Children's home | C135: Gloucestershire | D135: South West | E135: Gloucestershire | G135: 2 | H135: 12 | J135: 14
A136: Children's homeSouth WestNorth Somerset | B136: Children's home | C136: North Somerset | D136: South West | E136: North Somerset | H136: 3 | I136: 1 | J136: 4
A137: Children's homeSouth WestPlymouth | B137: Children's home | C137: Plymouth | D137: South West | E137: Plymouth | G137: 2 | H137: 6 | J137: 8
A138: Children's homeSouth WestPoole | B138: Children's home | C138: Poole | D138: South West | E138: Poole | I138: 1 | J138: 1
A139: Children's homeSouth WestSomerset | B139: Children's home | C139: Somerset | D139: South West | E139: Somerset | G139: 3 | H139: 39 | J139: 42
A140: Children's homeSouth WestSouth Gloucestershire | B140: Children's home | C140: South Gloucestershire | D140: South West | E140: South Gloucestershire | H140: 4 | I140: 2 | J140: 6
A141: Children's homeSouth WestSwindon | B141: Children's home | C141: Swindon | D141: South West | E141: Swindon | H141: 1 | J141: 1
A142: Children's homeSouth WestTorbay | B142: Children's home | C142: Torbay | D142: South West | E142: Torbay | H142: 4 | J142: 4
A143: Children's homeSouth WestWiltshire | B143: Children's home | C143: Wiltshire | D143: South West | E143: Wiltshire | G143: 1 | H143: 14 | I143: 2 | J143: 17
A144: Children's homeWest MidlandsAll | B144: Children's home | C144: All | D144: West Midlands | E144: West Midlands | G144: 51 | H144: 286 | I144: 8 | J144: 345
A145: =B145&D145&C145 -> Children's homeWest MidlandsBirmingham | B145: Children's home | C145: Birmingham | D145: West Midlands | E145: Birmingham | G145: 10 | H145: 39 | I145: 1 | J145: 50
A146: Children's homeWest MidlandsCoventry | B146: Children's home | C146: Coventry | D146: West Midlands | E146: Coventry | G146: 3 | H146: 4 | J146: 7
A147: Children's homeWest MidlandsDudley | B147: Children's home | C147: Dudley | D147: West Midlands | E147: Dudley | G147: 5 | H147: 4 | J147: 9
A148: Children's homeWest MidlandsHerefordshire | B148: Children's home | C148: Herefordshire | D148: West Midlands | E148: Herefordshire | H148: 16 | J148: 16
A149: Children's homeWest MidlandsSandwell | B149: Children's home | C149: Sandwell | D149: West Midlands | E149: Sandwell | H149: 9 | I149: 2 | J149: 11
A150: Children's homeWest MidlandsShropshire | B150: Children's home | C150: Shropshire | D150: West Midlands | E150: Shropshire | G150: 2 | H150: 62 | I150: 2 | J150: 66
A151: Children's homeWest MidlandsStaffordshire | B151: Children's home | C151: Staffordshire | D151: West Midlands | E151: Staffordshire | G151: 5 | H151: 80 | I151: 1 | J151: 86
A152: Children's homeWest MidlandsStoke-on-Trent | B152: Children's home | C152: Stoke-on-Trent | D152: West Midlands | E152: Stoke-on-Trent | G152: 11 | H152: 16 | J152: 27
A153: Children's homeWest MidlandsTelford and Wrekin | B153: Children's home | C153: Telford and Wrekin | D153: West Midlands | E153: Telford and Wrekin | H153: 25 | J153: 25
A154: Children's homeWest MidlandsWalsall | B154: Children's home | C154: Walsall | D154: West Midlands | E154: Walsall | G154: 5 | H154: 6 | J154: 11
A155: Children's homeWest MidlandsWarwickshire | B155: Children's home | C155: Warwickshire | D155: West Midlands | E155: Warwickshire | H155: 5 | I155: 2 | J155: 7
A156: Children's homeWest MidlandsWolverhampton | B156: Children's home | C156: Wolverhampton | D156: West Midlands | E156: Wolverhampton | H156: 7 | J156: 7
A157: Children's homeWest MidlandsWorcestershire | B157: Children's home | C157: Worcestershire | D157: West Midlands | E157: Worcestershire | G157: 10 | H157: 13 | J157: 23
A158: Children's homeYorkshire and The HumberAll | B158: Children's home | C158: All | D158: Yorkshire and The Humber | E158: Yorkshire and The Humber | G158: 71 | H158: 97 | I158: 11 | J158: 179
A159: Children's homeYorkshire and The HumberBarnsley | B159: Children's home | C159: Barnsley | D159: Yorkshire and The Humber | E159: Barnsley | G159: 2 | H159: 14 | I159: 1 | J159: 17
A160: Children's homeYorkshire and The HumberBradford | B160: Children's home | C160: Bradford | D160: Yorkshire and The Humber | E160: Bradford | G160: 11 | H160: 4 | I160: 1 | J160: 16
A161: Children's homeYorkshire and The HumberCalderdale | B161: Children's home | C161: Calderdale | D161: Yorkshire and The Humber | E161: Calderdale | G161: 4 | H161: 11 | J161: 15
A162: Children's homeYorkshire and The HumberDoncaster | B162: Children's home | C162: Doncaster | D162: Yorkshire and The Humber | E162: Doncaster | H162: 4 | I162: 5 | J162: 9
A163: Children's homeYorkshire and The HumberEast Riding of Yorkshire | B163: Children's home | C163: East Riding of Yorkshire | D163: Yorkshire and The Humber | E163: East Riding of Yorkshire | G163: 2 | H163: 6 | J163: 8
A164: Children's homeYorkshire and The HumberKingston upon Hull | B164: Children's home | C164: Kingston upon Hull | D164: Yorkshire and The Humber | E164: Kingston upon Hull | G164: 6 | H164: 3 | J164: 9
A165: Children's homeYorkshire and The HumberKirklees | B165: Children's home | C165: Kirklees | D165: Yorkshire and The Humber | E165: Kirklees | G165: 5 | H165: 12 | I165: 2 | J165: 19
A166: Children's homeYorkshire and The HumberLeeds | B166: Children's home | C166: Leeds | D166: Yorkshire and The Humber | E166: Leeds | G166: 9 | H166: 8 | I166: 1 | J166: 18
A167: Children's homeYorkshire and The HumberNorth East Lincolnshire | B167: Children's home | C167: North East Lincolnshire | D167: Yorkshire and The Humber | E167: North East Lincolnshire | G167: 8 | H167: 1 | J167: 9
A168: Children's homeYorkshire and The HumberNorth Lincolnshire | B168: Children's home | C168: North Lincolnshire | D168: Yorkshire and The Humber | E168: North Lincolnshire | G168: 2 | H168: 2 | J168: 4
A169: Children's homeYorkshire and The HumberNorth Yorkshire | B169: Children's home | C169: North Yorkshire | D169: Yorkshire and The Humber | E169: North Yorkshire | G169: 5 | H169: 15 | I169: 1 | J169: 21
A170: Children's homeYorkshire and The HumberRotherham | B170: Children's home | C170: Rotherham | D170: Yorkshire and The Humber | E170: Rotherham | G170: 3 | H170: 2 | J170: 5
A171: Children's homeYorkshire and The HumberSheffield | B171: Children's home | C171: Sheffield | D171: Yorkshire and The Humber | E171: Sheffield | G171: 8 | H171: 7 | J171: 15
A172: Children's homeYorkshire and The HumberWakefield | B172: Children's home | C172: Wakefield | D172: Yorkshire and The Humber | E172: Wakefield | G172: 5 | H172: 7 | J172: 12
A173: Children's homeYorkshire and The HumberYork | B173: Children's home | C173: York | D173: Yorkshire and The Humber | E173: York | G173: 1 | H173: 1 | J173: 2
A174: Residential special school (registered as a children's home)AllAll | B174: Residential special school (registered as a children's home) | C174: All | D174: All | E174: Residential special school (registered as a children's home) | G174: 3 | H174: 55 | I174: 23 | J174: 81
A175: Residential special school (registered as a children's home)East MidlandsAll | B175: Residential special school (registered as a children's home) | C175: All | D175: East Midlands | E175: East Midlands | H175: 11 | I175: 1 | J175: 12
A176: Residential special school (registered as a children's home)East MidlandsDerbyshire | B176: Residential special school (registered as a children's home) | C176: Derbyshire | D176: East Midlands | E176: Derbyshire | H176: 6 | J176: 6
A177: Residential special school (registered as a children's home)East MidlandsLincolnshire | B177: Residential special school (registered as a children's home) | C177: Lincolnshire | D177: East Midlands | E177: Lincolnshire | H177: 3 | J177: 3
A178: Residential special school (registered as a children's home)East MidlandsNorthamptonshire | B178: Residential special school (registered as a children's home) | C178: Northamptonshire | D178: East Midlands | E178: Northamptonshire | I178: 1 | J178: 1
A179: Residential special school (registered as a children's home)East MidlandsNottinghamshire | B179: Residential special school (registered as a children's home) | C179: Nottinghamshire | D179: East Midlands | E179: Nottinghamshire | H179: 1 | J179: 1
A180: Residential special school (registered as a children's home)East MidlandsRutland | B180: Residential special school (registered as a children's home) | C180: Rutland | D180: East Midlands | E180: Rutland | H180: 1 | J180: 1
A181: Residential special school (registered as a children's home)East of EnglandAll | B181: Residential special school (registered as a children's home) | C181: All | D181: East of England | E181: East of England | H181: 4 | I181: 2 | J181: 6
A182: Residential special school (registered as a children's home)East of EnglandCambridgeshire | B182: Residential special school (registered as a children's home) | C182: Cambridgeshire | D182: East of England | E182: Cambridgeshire | H182: 1 | I182: 1 | J182: 2
A183: Residential special school (registered as a children's home)East of EnglandHertfordshire | B183: Residential special school (registered as a children's home) | C183: Hertfordshire | D183: East of England | E183: Hertfordshire | I183: 1 | J183: 1
A184: Residential special school (registered as a children's home)East of EnglandNorfolk | B184: Residential special school (registered as a children's home) | C184: Norfolk | D184: East of England | E184: Norfolk | H184: 3 | J184: 3
A185: Residential special school (registered as a children's home)North EastAll | B185: Residential special school (registered as a children's home) | C185: All | D185: North East | E185: North East | I185: 1 | J185: 1
A186: Residential special school (registered as a children's home)North EastNewcastle upon Tyne | B186: Residential special school (registered as a children's home) | C186: Newcastle upon Tyne | D186: North East | E186: Newcastle upon Tyne | I186: 1 | J186: 1
A187: Residential special school (registered as a children's home)North WestAll | B187: Residential special school (registered as a children's home) | C187: All | D187: North West | E187: North West | H187: 9 | I187: 3 | J187: 12
A188: Residential special school (registered as a children's home)North WestCheshire East | B188: Residential special school (registered as a children's home) | C188: Cheshire East | D188: North West | E188: Cheshire East | H188: 1 | J188: 1
A189: Residential special school (registered as a children's home)North WestCheshire West and Chester | B189: Residential special school (registered as a children's home) | C189: Cheshire West and Chester | D189: North West | E189: Cheshire West and Chester | H189: 1 | J189: 1
A190: Residential special school (registered as a children's home)North WestCumbria | B190: Residential special school (registered as a children's home) | C190: Cumbria | D190: North West | E190: Cumbria | H190: 5 | J190: 5
A191: Residential special school (registered as a children's home)North WestLancashire | B191: Residential special school (registered as a children's home) | C191: Lancashire | D191: North West | E191: Lancashire | H191: 2 | J191: 2
A192: Residential special school (registered as a children's home)North WestSefton | B192: Residential special school (registered as a children's home) | C192: Sefton | D192: North West | E192: Sefton | I192: 1 | J192: 1
A193: Residential special school (registered as a children's home)North WestSt Helens | B193: Residential special school (registered as a children's home) | C193: St Helens | D193: North West | E193: St Helens | I193: 1 | J193: 1
A194: Residential special school (registered as a children's home)North WestStockport | B194: Residential special school (registered as a children's home) | C194: Stockport | D194: North West | E194: Stockport | I194: 1 | J194: 1
A195: Residential special school (registered as a children's home)South EastAll | B195: Residential special school (registered as a children's home) | C195: All | D195: South East | E195: South East | G195: 2 | H195: 7 | I195: 8 | J195: 17
A196: Residential special school (registered as a children's home)South EastBuckinghamshire | B196: Residential special school (registered as a children's home) | C196: Buckinghamshire | D196: South East | E196: Buckinghamshire | I196: 1 | J196: 1
A197: Residential special school (registered as a children's home)South EastEast Sussex | B197: Residential special school (registered as a children's home) | C197: East Sussex | D197: South East | E197: East Sussex | H197: 1 | I197: 1 | J197: 2
A198: Residential special school (registered as a children's home)South EastHampshire | B198: Residential special school (registered as a children's home) | C198: Hampshire | D198: South East | E198: Hampshire | H198: 2 | I198: 1 | J198: 3
A199: Residential special school (registered as a children's home)South EastKent | B199: Residential special school (registered as a children's home) | C199: Kent | D199: South East | E199: Kent | G199: 1 | H199: 1 | J199: 2
A200: Residential special school (registered as a children's home)South EastMilton Keynes | B200: Residential special school (registered as a children's home) | C200: Milton Keynes | D200: South East | E200: Milton Keynes | G200: 1 | J200: 1
A201: Residential special school (registered as a children's home)South EastOxfordshire | B201: Residential special school (registered as a children's home) | C201: Oxfordshire | D201: South East | E201: Oxfordshire | H201: 1 | I201: 1 | J201: 2
A202: Residential special school (registered as a children's home)South EastSurrey | B202: Residential special school (registered as a children's home) | C202: Surrey | D202: South East | E202: Surrey | H202: 1 | I202: 3 | J202: 4
A203: Residential special school (registered as a children's home)South EastWest Berkshire | B203: Residential special school (registered as a children's home) | C203: West Berkshire | D203: South East | E203: West Berkshire | I203: 1 | J203: 1
A204: Residential special school (registered as a children's home)South EastWest Sussex | B204: Residential special school (registered as a children's home) | C204: West Sussex | D204: South East | E204: West Sussex | H204: 1 | J204: 1
A205: Residential special school (registered as a children's home)South WestAll | B205: Residential special school (registered as a children's home) | C205: All | D205: South West | E205: South West | H205: 7 | I205: 5 | J205: 12
A206: Residential special school (registered as a children's home)South WestDevon | B206: Residential special school (registered as a children's home) | C206: Devon | D206: South West | E206: Devon | H206: 1 | I206: 1 | J206: 2
A207: Residential special school (registered as a children's home)South WestDorset | B207: Residential special school (registered as a children's home) | C207: Dorset | D207: South West | E207: Dorset | H207: 3 | I207: 1 | J207: 4
... 551 more rows

Sheet Sub-Judgements
S1: 1
B2: Statistical First Release - Children's Social Care Provision (Sub-Judgements excluding inspections of Local Authorities) | S2: 2
S3: 3
C4: Region: | F4: Local Authority: | I4: Sector: | S4: 4
C5: All | F5: All | H5: =IF(C5="All",TRUE,NOT(ISERROR(MATCH(F5,INDIRECT(SUBSTITUTE(SUBSTITUTE(C5," ","_"),",","")),0)))) -> TRUE | I5: All | S5: 5
S6: 6
C7: Date: | F7: Provision Type:
C8: as at 30 September 2016 | F8: All children's homes
D9: =VLOOKUP(C8,Periodlookup,2,0) -> 2017 | H9: =IF(LEFT(C8,5)="as at",TRUE,FALSE) -> TRUE | I9: =LEFT(D7,5) -> 
B10: Judgements | C10: Total number of inspections | D10: Inspection Outcomes
D11: Outstanding | E11: Good | F11: Requires Improvement / Adequate | G11: Inadequate
A14: Overall effectiveness | B14: =IF(IF(ISERROR(VLOOKUP($D$9&$F$8&$S1,subjudgement_lookup,4,0))=TRUE,0,VLOOKUP($D$9&$F$8&$S1,subjudgement_lookup,4,0))=0,"",IF(ISERROR(VLOOKUP($D$9&$F$8&$S1,subjudgement_lookup,4,0))=TRUE,0,VLOOKUP($D$9&$F$8&$S1,subjudgement_lookup,4,0))) -> The overall experiences and progress of children and young people living in the home are | C14: =IF($B14 = "","",IF(SUM(D14,E14,F14,G14)=0,0,SUM(D14,E14,F14,G14))) -> 2010 | D14: =IF($B$14="","",IF(ISERROR(VLOOKUP(A15,DataSubJudgements!$A:$K,8,0))=TRUE,0,VLOOKUP(A15,DataSubJudgements!$A:$K,8,0))) -> 354 | E14: =IF($B$14="","",IF(ISERROR(VLOOKUP(A15,DataSubJudgements!$A:$K,9,0))=TRUE,0,VLOOKUP(A15,DataSubJudgements!$A:$K,9,0))) -> 1271 | F14: =IF($B$14="","",IF(ISERROR(VLOOKUP(A15,DataSubJudgements!$A:$K,10,0))=TRUE,0,VLOOKUP(A15,DataSubJudgements!$A:$K,10,0))) -> 330 | G14: =IF($B$14="","",IF(ISERROR(VLOOKUP(A15,DataSubJudgements!$A:$K,11,0))=TRUE,0,VLOOKUP(A15,DataSubJudgements!$A:$K,11,0))) -> 55
A15: =$C$5&$F$5&$I$5&$F$8&$A$14&$D$9 -> AllAllAllAll children's homesOverall effectiveness2017
A17: Outcomes for children and young people | B17: =IF(IF(ISERROR(VLOOKUP($D$9&$F$8&$S2,subjudgement_lookup,4,0))=TRUE,0,VLOOKUP($D$9&$F$8&$S2,subjudgement_lookup,4,0))=0,"",IF(ISERROR(VLOOKUP($D$9&$F$8&$S2,subjudgement_lookup,4,0))=TRUE,0,VLOOKUP($D$9&$F$8&$S2,subjudgement_lookup,4,0))) -> Outcomes for children and young people | C17: =IF($B17 = "","",IF(SUM(D17,E17,F17,G17)=0,0,SUM(D17,E17,F17,G17))) -> 33 | D17: =IF($B$17="","",IF(ISERROR(VLOOKUP(A18,DataSubJudgements!$A:$K,8,0))=TRUE,0,VLOOKUP(A18,DataSubJudgements!$A:$K,8,0))) -> 5 | E17: =IF($B$17="","",IF(ISERROR(VLOOKUP(A18,DataSubJudgements!$A:$K,9,0))=TRUE,0,VLOOKUP(A18,DataSubJudgements!$A:$K,9,0))) -> 20 | F17: =IF($B$17="","",IF(ISERROR(VLOOKUP(A18,DataSubJudgements!$A:$K,10,0))=TRUE,0,VLOOKUP(A18,DataSubJudgements!$A:$K,10,0))) -> 7 | G17: =IF($B$17="","",IF(ISERROR(VLOOKUP(A18,DataSubJudgements!$A:$K,11,0))=TRUE,0,VLOOKUP(A18,DataSubJudgements!$A:$K,11,0))) -> 1
A18: =$C$5&$F$5&$I$5&$F$8&$A$17&$D$9 -> AllAllAllAll children's homesOutcomes for children and young people2017
A20: Quality of care | B20: =IF(IF(ISERROR(VLOOKUP($D$9&$F$8&$S3,subjudgement_lookup,4,0))=TRUE,0,VLOOKUP($D$9&$F$8&$S3,subjudgement_lookup,4,0))=0,"",IF(ISERROR(VLOOKUP($D$9&$F$8&$S3,subjudgement_lookup,4,0))=TRUE,0,VLOOKUP($D$9&$F$8&$S3,subjudgement_lookup,4,0))) -> Quality of care | C20: =IF($B20 = "","",IF(SUM(D20,E20,F20,G20)=0,0,SUM(D20,E20,F20,G20))) -> 19 | D20: =IF($B$20="","",IF(ISERROR(VLOOKUP(A21,DataSubJudgements!$A:$K,8,0))=TRUE,0,VLOOKUP(A21,DataSubJudgements!$A:$K,8,0))) -> 2 | E20: =IF($B$20="","",IF(ISERROR(VLOOKUP(A21,DataSubJudgements!$A:$K,9,0))=TRUE,0,VLOOKUP(A21,DataSubJudgements!$A:$K,9,0))) -> 10 | F20: =IF($B$20="","",IF(ISERROR(VLOOKUP(A21,DataSubJudgements!$A:$K,10,0))=TRUE,0,VLOOKUP(A21,DataSubJudgements!$A:$K,10,0))) -> 7 | G20: =IF($B$20="","",IF(ISERROR(VLOOKUP(A21,DataSubJudgements!$A:$K,11,0))=TRUE,0,VLOOKUP(A21,DataSubJudgements!$A:$K,11,0))) -> 0
A21: =$C$5&$F$5&$I$5&$F$8&$A$20&$D$9 -> AllAllAllAll children's homesQuality of care2017
A23: Safeguarding children and young people | B23: =IF(IF(ISERROR(VLOOKUP($D$9&$F$8&$S4,subjudgement_lookup,4,0))=TRUE,0,VLOOKUP($D$9&$F$8&$S4,subjudgement_lookup,4,0))=0,"",IF(ISERROR(VLOOKUP($D$9&$F$8&$S4,subjudgement_lookup,4,0))=TRUE,0,VLOOKUP($D$9&$F$8&$S4,subjudgement_lookup,4,0))) -> How well children and young people are helped and protected | C23: =IF($B23 = "","",IF(SUM(D23,E23,F23,G23)=0,0,SUM(D23,E23,F23,G23))) -> 2009 | D23: =IF($B$23="","",IF(ISERROR(VLOOKUP(A24,DataSubJudgements!$A:$K,8,0))=TRUE,0,VLOOKUP(A24,DataSubJudgements!$A:$K,8,0))) -> 282 | E23: =IF($B$23="","",IF(ISERROR(VLOOKUP(A24,DataSubJudgements!$A:$K,9,0))=TRUE,0,VLOOKUP(A24,DataSubJudgements!$A:$K,9,0))) -> 1277 | F23: =IF($B$23="","",IF(ISERROR(VLOOKUP(A24,DataSubJudgements!$A:$K,10,0))=TRUE,0,VLOOKUP(A24,DataSubJudgements!$A:$K,10,0))) -> 397 | G23: =IF($B$23="","",IF(ISERROR(VLOOKUP(A24,DataSubJudgements!$A:$K,11,0))=TRUE,0,VLOOKUP(A24,DataSubJudgements!$A:$K,11,0))) -> 53
A24: =$C$5&$F$5&$I$5&$F$8&$A$23&$D$9 -> AllAllAllAll children's homesSafeguarding children and young people2017
A26: Leadership and management | B26: =IF(IF(ISERROR(VLOOKUP($D$9&$F$8&$S5,subjudgement_lookup,4,0))=TRUE,0,VLOOKUP($D$9&$F$8&$S5,subjudgement_lookup,4,0))=0,"",IF(ISERROR(VLOOKUP($D$9&$F$8&$S5,subjudgement_lookup,4,0))=TRUE,0,VLOOKUP($D$9&$F$8&$S5,subjudgement_lookup,4,0))) -> The impact and effectiveness of leaders and managers | C26: =IF($B26 = "","",IF(SUM(D26,E26,F26,G26)=0,0,SUM(D26,E26,F26,G26))) -> 2008 | D26: =IF($B$26="","",IF(ISERROR(VLOOKUP(A27,DataSubJudgements!$A:$K,8,0))=TRUE,0,VLOOKUP(A27,DataSubJudgements!$A:$K,8,0))) -> 331 | E26: =IF($B$26="","",IF(ISERROR(VLOOKUP(A27,DataSubJudgements!$A:$K,9,0))=TRUE,0,VLOOKUP(A27,DataSubJudgements!$A:$K,9,0))) -> 1072 | F26: =IF($B$26="","",IF(ISERROR(VLOOKUP(A27,DataSubJudgements!$A:$K,10,0))=TRUE,0,VLOOKUP(A27,DataSubJudgements!$A:$K,10,0))) -> 499 | G26: =IF($B$26="","",IF(ISERROR(VLOOKUP(A27,DataSubJudgements!$A:$K,11,0))=TRUE,0,VLOOKUP(A27,DataSubJudgements!$A:$K,11,0))) -> 106
A27: =$C$5&$F$5&$I$5&$F$8&$A$26&$D$9 -> AllAllAllAll children's homesLeadership and management2017
A29: Outcomes in education and related learning activities | B29: =IF(IF(ISERROR(VLOOKUP($F$8&$S6,#REF!,4,0))=TRUE,0,VLOOKUP($F$8&$S6,#REF!,4,0))=0,"",IF(ISERROR(VLOOKUP($F$8&$S6,#REF!,4,0))=TRUE,0,VLOOKUP($F$8&$S6,#REF!,4,0))) ->  | C29: =IF(SUM(D29,E29,F29,G29)=0,"",SUM(D29,E29,F29,G29)) ->  | D29: =IF($B$29="","",IF(ISERROR(VLOOKUP($C$5&$F$5&$I$5&$F$8&$A$29&$D$9,DataSubJudgements!$A:$K,8,0))=TRUE,0,VLOOKUP($C$5&$F$5&$I$5&$F$8&$A$29&$D$9,DataSubJudgements!$A:$K,8,0))) ->  | E29: =IF($B$29="","",IF(ISERROR(VLOOKUP($C$5&$F$5&$I$5&$F$8&$A$29&$D$9,DataSubJudgements!$A:$K,9,0))=TRUE,0,VLOOKUP($C$5&$F$5&$I$5&$F$8&$A$29&$D$9,DataSubJudgements!$A:$K,9,0))) ->  | F29: =IF($B$29="","",IF(ISERROR(VLOOKUP($C$5&$F$5&$I$5&$F$8&$A$29&$D$9,DataSubJudgements!$A:$K,10,0))=TRUE,0,VLOOKUP($C$5&$F$5&$I$5&$F$8&$A$29&$D$9,DataSubJudgements!$A:$K,10,0))) ->  | G29: =IF($B$29="","",IF(ISERROR(VLOOKUP($C$5&$F$5&$I$5&$F$8&$A$29&$D$9,DataSubJudgements!$A:$K,11,0))=TRUE,0,VLOOKUP($C$5&$F$5&$I$5&$F$8&$A$29&$D$9,DataSubJudgements!$A:$K,11,0))) -> 
B35: =IF(C5<>"All",C5,IF(F5<>"All",VLOOKUP(F5,'Region Lookups'!C:D,2,0),"All")) -> All
F36: 8 | H36: 9 | J36: 10 | M36: 11
D37: Total number inspected | F37: Outstanding | H37: Good | J37: Requires Improvement/ Adequate | M37: Inadequate
F38: 6 | H38: 7 | J38: 8 | M38: 9
B39: England | D39: =IF(ISERROR(VLOOKUP("All"&"All"&$I$5&$F$8&$A$14&$D$9,DataSubJudgements!$A:$K,8,0)),"",SUM(F39:M39)) -> 2010 | F39: =IFERROR(VLOOKUP("All"&"All"&$I$5&$F$8&$A$14&$D$9,DataSubJudgements!$A:$K,8,0),"") -> 354 | H39: =IFERROR(VLOOKUP("All"&"All"&$I$5&$F$8&$A$14&$D$9,DataSubJudgements!$A:$K,9,0),"") -> 1271 | J39: =IFERROR(VLOOKUP("All"&"All"&$I$5&$F$8&$A$14&$D$9,DataSubJudgements!$A:$K,10,0),"") -> 330 | M39: =IFERROR(VLOOKUP("All"&"All"&$I$5&$F$8&$A$14&$D$9,DataSubJudgements!$A:$K,11,0),"") -> 55
B41: =IFERROR(IF(B35="All",NA(),B35),"") ->  | D41: =IF(ISERROR(VLOOKUP($B41&"All"&$I$5&$F$8&$A$14&$D$9,DataSubJudgements!$A:$K,8,0)),IF(B41="","",0),SUM(F41:M41)) ->  | F41: =IF(ISERROR(VLOOKUP($B41&"All"&$I$5&$F$8&$A$14&$D$9,DataSubJudgements!$A:$K,F$36,0)),IF($B41="","",0),VLOOKUP($B41&"All"&$I$5&$F$8&$A$14&$D$9,DataSubJudgements!$A:$K,F$36,0)) ->  | H41: =IF(ISERROR(VLOOKUP($B41&"All"&$I$5&$F$8&$A$14&$D$9,DataSubJudgements!$A:$K,H$36,0)),IF($B41="","",0),VLOOKUP($B41&"All"&$I$5&$F$8&$A$14&$D$9,DataSubJudgements!$A:$K,H$36,0)) ->  | J41: =IF(ISERROR(VLOOKUP($B41&"All"&$I$5&$F$8&$A$14&$D$9,DataSubJudgements!$A:$K,J$36,0)),IF($B41="","",0),VLOOKUP($B41&"All"&$I$5&$F$8&$A$14&$D$9,DataSubJudgements!$A:$K,J$36,0)) ->  | M41: =IF(ISERROR(VLOOKUP($B41&"All"&$I$5&$F$8&$A$14&$D$9,DataSubJudgements!$A:$K,M$36,0)),IF($B41="","",0),VLOOKUP($B41&"All"&$I$5&$F$8&$A$14&$D$9,DataSubJudgements!$A:$K,M$36,0)) -> 
A42: 1 | B42: =IFERROR(VLOOKUP($B$35&A42,'Region Lookups'!A:C,3,0),"") ->  | D42: =IF(ISERROR(VLOOKUP("All"&$B42&$I$5&$F$8&$A$14&$D$9,DataSubJudgements!$A:$K,8,0)),IF(B42="","",0),SUM(F42:M42)) ->  | F42: =IF(ISERROR(VLOOKUP("All"&$B42&$I$5&$F$8&$A$14&$D$9,DataSubJudgements!$A:$K,F$36,0)),IF($B42="","",0),VLOOKUP("All"&$B42&$I$5&$F$8&$A$14&$D$9,DataSubJudgements!$A:$K,F$36,0)) ->  | H42: =IF(ISERROR(VLOOKUP("All"&$B42&$I$5&$F$8&$A$14&$D$9,DataSubJudgements!$A:$K,H$36,0)),IF($B42="","",0),VLOOKUP("All"&$B42&$I$5&$F$8&$A$14&$D$9,DataSubJudgements!$A:$K,H$36,0)) ->  | J42: =IF(ISERROR(VLOOKUP("All"&$B42&$I$5&$F$8&$A$14&$D$9,DataSubJudgements!$A:$K,J$36,0)),IF($B42="","",0),VLOOKUP("All"&$B42&$I$5&$F$8&$A$14&$D$9,DataSubJudgements!$A:$K,J$36,0)) ->  | M42: =IF(ISERROR(VLOOKUP("All"&$B42&$I$5&$F$8&$A$14&$D$9,DataSubJudgements!$A:$K,M$36,0)),IF($B42="","",0),VLOOKUP("All"&$B42&$I$5&$F$8&$A$14&$D$9,DataSubJudgements!$A:$K,M$36,0)) -> 
A43: 2 | B43: =IFERROR(VLOOKUP($B$35&A43,'Region Lookups'!A:C,3,0),"") ->  | D43: =IF(ISERROR(VLOOKUP("All"&$B43&$I$5&$F$8&$A$14&$D$9,DataSubJudgements!$A:$K,8,0)),IF(B43="","",0),SUM(F43:M43)) ->  | F43: =IF(ISERROR(VLOOKUP("All"&$B43&$I$5&$F$8&$A$14&$D$9,DataSubJudgements!$A:$K,F$36,0)),IF($B43="","",0),VLOOKUP("All"&$B43&$I$5&$F$8&$A$14&$D$9,DataSubJudgements!$A:$K,F$36,0)) ->  | H43: =IF(ISERROR(VLOOKUP("All"&$B43&$I$5&$F$8&$A$14&$D$9,DataSubJudgements!$A:$K,H$36,0)),IF($B43="","",0),VLOOKUP("All"&$B43&$I$5&$F$8&$A$14&$D$9,DataSubJudgements!$A:$K,H$36,0)) ->  | J43: =IF(ISERROR(VLOOKUP("All"&$B43&$I$5&$F$8&$A$14&$D$9,DataSubJudgements!$A:$K,J$36,0)),IF($B43="","",0),VLOOKUP("All"&$B43&$I$5&$F$8&$A$14&$D$9,DataSubJudgements!$A:$K,J$36,0)) ->  | M43: =IF(ISERROR(VLOOKUP("All"&$B43&$I$5&$F$8&$A$14&$D$9,DataSubJudgements!$A:$K,M$36,0)),IF($B43="","",0),VLOOKUP("All"&$B43&$I$5&$F$8&$A$14&$D$9,DataSubJudgements!$A:$K,M$36,0)) -> 
A44: 3 | B44: =IFERROR(VLOOKUP($B$35&A44,'Region Lookups'!A:C,3,0),"") ->  | D44: =IF(ISERROR(VLOOKUP("All"&$B44&$I$5&$F$8&$A$14&$D$9,DataSubJudgements!$A:$K,8,0)),IF(B44="","",0),SUM(F44:M44)) ->  | F44: =IF(ISERROR(VLOOKUP("All"&$B44&$I$5&$F$8&$A$14&$D$9,DataSubJudgements!$A:$K,F$36,0)),IF($B44="","",0),VLOOKUP("All"&$B44&$I$5&$F$8&$A$14&$D$9,DataSubJudgements!$A:$K,F$36,0)) ->  | H44: =IF(ISERROR(VLOOKUP("All"&$B44&$I$5&$F$8&$A$14&$D$9,DataSubJudgements!$A:$K,H$36,0)),IF($B44="","",0),VLOOKUP("All"&$B44&$I$5&$F$8&$A$14&$D$9,DataSubJudgements!$A:$K,H$36,0)) ->  | J44: =IF(ISERROR(VLOOKUP("All"&$B44&$I$5&$F$8&$A$14&$D$9,DataSubJudgements!$A:$K,J$36,0)),IF($B44="","",0),VLOOKUP("All"&$B44&$I$5&$F$8&$A$14&$D$9,DataSubJudgements!$A:$K,J$36,0)) ->  | M44: =IF(ISERROR(VLOOKUP("All"&$B44&$I$5&$F$8&$A$14&$D$9,DataSubJudgements!$A:$K,M$36,0)),IF($B44="","",0),VLOOKUP("All"&$B44&$I$5&$F$8&$A$14&$D$9,DataSubJudgements!$A:$K,M$36,0)) -> 
A45: 4 | B45: =IFERROR(VLOOKUP($B$35&A45,'Region Lookups'!A:C,3,0),"") ->  | D45: =IF(ISERROR(VLOOKUP("All"&$B45&$I$5&$F$8&$A$14&$D$9,DataSubJudgements!$A:$K,8,0)),IF(B45="","",0),SUM(F45:M45)) ->  | F45: =IF(ISERROR(VLOOKUP("All"&$B45&$I$5&$F$8&$A$14&$D$9,DataSubJudgements!$A:$K,F$36,0)),IF($B45="","",0),VLOOKUP("All"&$B45&$I$5&$F$8&$A$14&$D$9,DataSubJudgements!$A:$K,F$36,0)) ->  | H45: =IF(ISERROR(VLOOKUP("All"&$B45&$I$5&$F$8&$A$14&$D$9,DataSubJudgements!$A:$K,H$36,0)),IF($B45="","",0),VLOOKUP("All"&$B45&$I$5&$F$8&$A$14&$D$9,DataSubJudgements!$A:$K,H$36,0)) ->  | J45: =IF(ISERROR(VLOOKUP("All"&$B45&$I$5&$F$8&$A$14&$D$9,DataSubJudgements!$A:$K,J$36,0)),IF($B45="","",0),VLOOKUP("All"&$B45&$I$5&$F$8&$A$14&$D$9,DataSubJudgements!$A:$K,J$36,0)) ->  | M45: =IF(ISERROR(VLOOKUP("All"&$B45&$I$5&$F$8&$A$14&$D$9,DataSubJudgements!$A:$K,M$36,0)),IF($B45="","",0),VLOOKUP("All"&$B45&$I$5&$F$8&$A$14&$D$9,DataSubJudgements!$A:$K,M$36,0)) -> 
A46: 5 | B46: =IFERROR(VLOOKUP($B$35&A46,'Region Lookups'!A:C,3,0),"") ->  | D46: =IF(ISERROR(VLOOKUP("All"&$B46&$I$5&$F$8&$A$14&$D$9,DataSubJudgements!$A:$K,8,0)),IF(B46="","",0),SUM(F46:M46)) ->  | F46: =IF(ISERROR(VLOOKUP("All"&$B46&$I$5&$F$8&$A$14&$D$9,DataSubJudgements!$A:$K,F$36,0)),IF($B46="","",0),VLOOKUP("All"&$B46&$I$5&$F$8&$A$14&$D$9,DataSubJudgements!$A:$K,F$36,0)) ->  | H46: =IF(ISERROR(VLOOKUP("All"&$B46&$I$5&$F$8&$A$14&$D$9,DataSubJudgements!$A:$K,H$36,0)),IF($B46="","",0),VLOOKUP("All"&$B46&$I$5&$F$8&$A$14&$D$9,DataSubJudgements!$A:$K,H$36,0)) ->  | J46: =IF(ISERROR(VLOOKUP("All"&$B46&$I$5&$F$8&$A$14&$D$9,DataSubJudgements!$A:$K,J$36,0)),IF($B46="","",0),VLOOKUP("All"&$B46&$I$5&$F$8&$A$14&$D$9,DataSubJudgements!$A:$K,J$36,0)) ->  | M46: =IF(ISERROR(VLOOKUP("All"&$B46&$I$5&$F$8&$A$14&$D$9,DataSubJudgements!$A:$K,M$36,0)),IF($B46="","",0),VLOOKUP("All"&$B46&$I$5&$F$8&$A$14&$D$9,DataSubJudgements!$A:$K,M$36,0)) -> 
A47: 6 | B47: =IFERROR(VLOOKUP($B$35&A47,'Region Lookups'!A:C,3,0),"") ->  | D47: =IF(ISERROR(VLOOKUP("All"&$B47&$I$5&$F$8&$A$14&$D$9,DataSubJudgements!$A:$K,8,0)),IF(B47="","",0),SUM(F47:M47)) ->  | F47: =IF(ISERROR(VLOOKUP("All"&$B47&$I$5&$F$8&$A$14&$D$9,DataSubJudgements!$A:$K,F$36,0)),IF($B47="","",0),VLOOKUP("All"&$B47&$I$5&$F$8&$A$14&$D$9,DataSubJudgements!$A:$K,F$36,0)) ->  | H47: =IF(ISERROR(VLOOKUP("All"&$B47&$I$5&$F$8&$A$14&$D$9,DataSubJudgements!$A:$K,H$36,0)),IF($B47="","",0),VLOOKUP("All"&$B47&$I$5&$F$8&$A$14&$D$9,DataSubJudgements!$A:$K,H$36,0)) ->  | J47: =IF(ISERROR(VLOOKUP("All"&$B47&$I$5&$F$8&$A$14&$D$9,DataSubJudgements!$A:$K,J$36,0)),IF($B47="","",0),VLOOKUP("All"&$B47&$I$5&$F$8&$A$14&$D$9,DataSubJudgements!$A:$K,J$36,0)) ->  | M47: =IF(ISERROR(VLOOKUP("All"&$B47&$I$5&$F$8&$A$14&$D$9,DataSubJudgements!$A:$K,M$36,0)),IF($B47="","",0),VLOOKUP("All"&$B47&$I$5&$F$8&$A$14&$D$9,DataSubJudgements!$A:$K,M$36,0)) -> 
A48: 7 | B48: =IFERROR(VLOOKUP($B$35&A48,'Region Lookups'!A:C,3,0),"") ->  | D48: =IF(ISERROR(VLOOKUP("All"&$B48&$I$5&$F$8&$A$14&$D$9,DataSubJudgements!$A:$K,8,0)),IF(B48="","",0),SUM(F48:M48)) ->  | F48: =IF(ISERROR(VLOOKUP("All"&$B48&$I$5&$F$8&$A$14&$D$9,DataSubJudgements!$A:$K,F$36,0)),IF($B48="","",0),VLOOKUP("All"&$B48&$I$5&$F$8&$A$14&$D$9,DataSubJudgements!$A:$K,F$36,0)) ->  | H48: =IF(ISERROR(VLOOKUP("All"&$B48&$I$5&$F$8&$A$14&$D$9,DataSubJudgements!$A:$K,H$36,0)),IF($B48="","",0),VLOOKUP("All"&$B48&$I$5&$F$8&$A$14&$D$9,DataSubJudgements!$A:$K,H$36,0)) ->  | J48: =IF(ISERROR(VLOOKUP("All"&$B48&$I$5&$F$8&$A$14&$D$9,DataSubJudgements!$A:$K,J$36,0)),IF($B48="","",0),VLOOKUP("All"&$B48&$I$5&$F$8&$A$14&$D$9,DataSubJudgements!$A:$K,J$36,0)) ->  | M48: =IF(ISERROR(VLOOKUP("All"&$B48&$I$5&$F$8&$A$14&$D$9,DataSubJudgements!$A:$K,M$36,0)),IF($B48="","",0),VLOOKUP("All"&$B48&$I$5&$F$8&$A$14&$D$9,DataSubJudgements!$A:$K,M$36,0)) -> 
A49: 8 | B49: =IFERROR(VLOOKUP($B$35&A49,'Region Lookups'!A:C,3,0),"") ->  | D49: =IF(ISERROR(VLOOKUP("All"&$B49&$I$5&$F$8&$A$14&$D$9,DataSubJudgements!$A:$K,8,0)),IF(B49="","",0),SUM(F49:M49)) ->  | F49: =IF(ISERROR(VLOOKUP("All"&$B49&$I$5&$F$8&$A$14&$D$9,DataSubJudgements!$A:$K,F$36,0)),IF($B49="","",0),VLOOKUP("All"&$B49&$I$5&$F$8&$A$14&$D$9,DataSubJudgements!$A:$K,F$36,0)) ->  | H49: =IF(ISERROR(VLOOKUP("All"&$B49&$I$5&$F$8&$A$14&$D$9,DataSubJudgements!$A:$K,H$36,0)),IF($B49="","",0),VLOOKUP("All"&$B49&$I$5&$F$8&$A$14&$D$9,DataSubJudgements!$A:$K,H$36,0)) ->  | J49: =IF(ISERROR(VLOOKUP("All"&$B49&$I$5&$F$8&$A$14&$D$9,DataSubJudgements!$A:$K,J$36,0)),IF($B49="","",0),VLOOKUP("All"&$B49&$I$5&$F$8&$A$14&$D$9,DataSubJudgements!$A:$K,J$36,0)) ->  | M49: =IF(ISERROR(VLOOKUP("All"&$B49&$I$5&$F$8&$A$14&$D$9,DataSubJudgements!$A:$K,M$36,0)),IF($B49="","",0),VLOOKUP("All"&$B49&$I$5&$F$8&$A$14&$D$9,DataSubJudgements!$A:$K,M$36,0)) -> 
A50: 9 | B50: =IFERROR(VLOOKUP($B$35&A50,'Region Lookups'!A:C,3,0),"") ->  | D50: =IF(ISERROR(VLOOKUP("All"&$B50&$I$5&$F$8&$A$14&$D$9,DataSubJudgements!$A:$K,8,0)),IF(B50="","",0),SUM(F50:M50)) ->  | F50: =IF(ISERROR(VLOOKUP("All"&$B50&$I$5&$F$8&$A$14&$D$9,DataSubJudgements!$A:$K,F$36,0)),IF($B50="","",0),VLOOKUP("All"&$B50&$I$5&$F$8&$A$14&$D$9,DataSubJudgements!$A:$K,F$36,0)) ->  | H50: =IF(ISERROR(VLOOKUP("All"&$B50&$I$5&$F$8&$A$14&$D$9,DataSubJudgements!$A:$K,H$36,0)),IF($B50="","",0),VLOOKUP("All"&$B50&$I$5&$F$8&$A$14&$D$9,DataSubJudgements!$A:$K,H$36,0)) ->  | J50: =IF(ISERROR(VLOOKUP("All"&$B50&$I$5&$F$8&$A$14&$D$9,DataSubJudgements!$A:$K,J$36,0)),IF($B50="","",0),VLOOKUP("All"&$B50&$I$5&$F$8&$A$14&$D$9,DataSubJudgements!$A:$K,J$36,0)) ->  | M50: =IF(ISERROR(VLOOKUP("All"&$B50&$I$5&$F$8&$A$14&$D$9,DataSubJudgements!$A:$K,M$36,0)),IF($B50="","",0),VLOOKUP("All"&$B50&$I$5&$F$8&$A$14&$D$9,DataSubJudgements!$A:$K,M$36,0)) -> 
A51: 10 | B51: =IFERROR(VLOOKUP($B$35&A51,'Region Lookups'!A:C,3,0),"") ->  | D51: =IF(ISERROR(VLOOKUP("All"&$B51&$I$5&$F$8&$A$14&$D$9,DataSubJudgements!$A:$K,8,0)),IF(B51="","",0),SUM(F51:M51)) ->  | F51: =IF(ISERROR(VLOOKUP("All"&$B51&$I$5&$F$8&$A$14&$D$9,DataSubJudgements!$A:$K,F$36,0)),IF($B51="","",0),VLOOKUP("All"&$B51&$I$5&$F$8&$A$14&$D$9,DataSubJudgements!$A:$K,F$36,0)) ->  | H51: =IF(ISERROR(VLOOKUP("All"&$B51&$I$5&$F$8&$A$14&$D$9,DataSubJudgements!$A:$K,H$36,0)),IF($B51="","",0),VLOOKUP("All"&$B51&$I$5&$F$8&$A$14&$D$9,DataSubJudgements!$A:$K,H$36,0)) ->  | J51: =IF(ISERROR(VLOOKUP("All"&$B51&$I$5&$F$8&$A$14&$D$9,DataSubJudgements!$A:$K,J$36,0)),IF($B51="","",0),VLOOKUP("All"&$B51&$I$5&$F$8&$A$14&$D$9,DataSubJudgements!$A:$K,J$36,0)) ->  | M51: =IF(ISERROR(VLOOKUP("All"&$B51&$I$5&$F$8&$A$14&$D$9,DataSubJudgements!$A:$K,M$36,0)),IF($B51="","",0),VLOOKUP("All"&$B51&$I$5&$F$8&$A$14&$D$9,DataSubJudgements!$A:$K,M$36,0)) -> 
A52: 11 | B52: =IFERROR(VLOOKUP($B$35&A52,'Region Lookups'!A:C,3,0),"") ->  | D52: =IF(ISERROR(VLOOKUP("All"&$B52&$I$5&$F$8&$A$14&$D$9,DataSubJudgements!$A:$K,8,0)),IF(B52="","",0),SUM(F52:M52)) ->  | F52: =IF(ISERROR(VLOOKUP("All"&$B52&$I$5&$F$8&$A$14&$D$9,DataSubJudgements!$A:$K,F$36,0)),IF($B52="","",0),VLOOKUP("All"&$B52&$I$5&$F$8&$A$14&$D$9,DataSubJudgements!$A:$K,F$36,0)) ->  | H52: =IF(ISERROR(VLOOKUP("All"&$B52&$I$5&$F$8&$A$14&$D$9,DataSubJudgements!$A:$K,H$36,0)),IF($B52="","",0),VLOOKUP("All"&$B52&$I$5&$F$8&$A$14&$D$9,DataSubJudgements!$A:$K,H$36,0)) ->  | J52: =IF(ISERROR(VLOOKUP("All"&$B52&$I$5&$F$8&$A$14&$D$9,DataSubJudgements!$A:$K,J$36,0)),IF($B52="","",0),VLOOKUP("All"&$B52&$I$5&$F$8&$A$14&$D$9,DataSubJudgements!$A:$K,J$36,0)) ->  | M52: =IF(ISERROR(VLOOKUP("All"&$B52&$I$5&$F$8&$A$14&$D$9,DataSubJudgements!$A:$K,M$36,0)),IF($B52="","",0),VLOOKUP("All"&$B52&$I$5&$F$8&$A$14&$D$9,DataSubJudgements!$A:$K,M$36,0)) -> 
A53: 12 | B53: =IFERROR(VLOOKUP($B$35&A53,'Region Lookups'!A:C,3,0),"") ->  | D53: =IF(ISERROR(VLOOKUP("All"&$B53&$I$5&$F$8&$A$14&$D$9,DataSubJudgements!$A:$K,8,0)),IF(B53="","",0),SUM(F53:M53)) ->  | F53: =IF(ISERROR(VLOOKUP("All"&$B53&$I$5&$F$8&$A$14&$D$9,DataSubJudgements!$A:$K,F$36,0)),IF($B53="","",0),VLOOKUP("All"&$B53&$I$5&$F$8&$A$14&$D$9,DataSubJudgements!$A:$K,F$36,0)) ->  | H53: =IF(ISERROR(VLOOKUP("All"&$B53&$I$5&$F$8&$A$14&$D$9,DataSubJudgements!$A:$K,H$36,0)),IF($B53="","",0),VLOOKUP("All"&$B53&$I$5&$F$8&$A$14&$D$9,DataSubJudgements!$A:$K,H$36,0)) ->  | J53: =IF(ISERROR(VLOOKUP("All"&$B53&$I$5&$F$8&$A$14&$D$9,DataSubJudgements!$A:$K,J$36,0)),IF($B53="","",0),VLOOKUP("All"&$B53&$I$5&$F$8&$A$14&$D$9,DataSubJudgements!$A:$K,J$36,0)) ->  | M53: =IF(ISERROR(VLOOKUP("All"&$B53&$I$5&$F$8&$A$14&$D$9,DataSubJudgements!$A:$K,M$36,0)),IF($B53="","",0),VLOOKUP("All"&$B53&$I$5&$F$8&$A$14&$D$9,DataSubJudgements!$A:$K,M$36,0)) -> 
A54: 13 | B54: =IFERROR(VLOOKUP($B$35&A54,'Region Lookups'!A:C,3,0),"") ->  | D54: =IF(ISERROR(VLOOKUP("All"&$B54&$I$5&$F$8&$A$14&$D$9,DataSubJudgements!$A:$K,8,0)),IF(B54="","",0),SUM(F54:M54)) ->  | F54: =IF(ISERROR(VLOOKUP("All"&$B54&$I$5&$F$8&$A$14&$D$9,DataSubJudgements!$A:$K,F$36,0)),IF($B54="","",0),VLOOKUP("All"&$B54&$I$5&$F$8&$A$14&$D$9,DataSubJudgements!$A:$K,F$36,0)) ->  | H54: =IF(ISERROR(VLOOKUP("All"&$B54&$I$5&$F$8&$A$14&$D$9,DataSubJudgements!$A:$K,H$36,0)),IF($B54="","",0),VLOOKUP("All"&$B54&$I$5&$F$8&$A$14&$D$9,DataSubJudgements!$A:$K,H$36,0)) ->  | J54: =IF(ISERROR(VLOOKUP("All"&$B54&$I$5&$F$8&$A$14&$D$9,DataSubJudgements!$A:$K,J$36,0)),IF($B54="","",0),VLOOKUP("All"&$B54&$I$5&$F$8&$A$14&$D$9,DataSubJudgements!$A:$K,J$36,0)) ->  | M54: =IF(ISERROR(VLOOKUP("All"&$B54&$I$5&$F$8&$A$14&$D$9,DataSubJudgements!$A:$K,M$36,0)),IF($B54="","",0),VLOOKUP("All"&$B54&$I$5&$F$8&$A$14&$D$9,DataSubJudgements!$A:$K,M$36,0)) -> 
A55: 14 | B55: =IFERROR(VLOOKUP($B$35&A55,'Region Lookups'!A:C,3,0),"") ->  | D55: =IF(ISERROR(VLOOKUP("All"&$B55&$I$5&$F$8&$A$14&$D$9,DataSubJudgements!$A:$K,8,0)),IF(B55="","",0),SUM(F55:M55)) ->  | F55: =IF(ISERROR(VLOOKUP("All"&$B55&$I$5&$F$8&$A$14&$D$9,DataSubJudgements!$A:$K,F$36,0)),IF($B55="","",0),VLOOKUP("All"&$B55&$I$5&$F$8&$A$14&$D$9,DataSubJudgements!$A:$K,F$36,0)) ->  | H55: =IF(ISERROR(VLOOKUP("All"&$B55&$I$5&$F$8&$A$14&$D$9,DataSubJudgements!$A:$K,H$36,0)),IF($B55="","",0),VLOOKUP("All"&$B55&$I$5&$F$8&$A$14&$D$9,DataSubJudgements!$A:$K,H$36,0)) ->  | J55: =IF(ISERROR(VLOOKUP("All"&$B55&$I$5&$F$8&$A$14&$D$9,DataSubJudgements!$A:$K,J$36,0)),IF($B55="","",0),VLOOKUP("All"&$B55&$I$5&$F$8&$A$14&$D$9,DataSubJudgements!$A:$K,J$36,0)) ->  | M55: =IF(ISERROR(VLOOKUP("All"&$B55&$I$5&$F$8&$A$14&$D$9,DataSubJudgements!$A:$K,M$36,0)),IF($B55="","",0),VLOOKUP("All"&$B55&$I$5&$F$8&$A$14&$D$9,DataSubJudgements!$A:$K,M$36,0)) -> 
A56: 15 | B56: =IFERROR(VLOOKUP($B$35&A56,'Region Lookups'!A:C,3,0),"") ->  | D56: =IF(ISERROR(VLOOKUP("All"&$B56&$I$5&$F$8&$A$14&$D$9,DataSubJudgements!$A:$K,8,0)),IF(B56="","",0),SUM(F56:M56)) ->  | F56: =IF(ISERROR(VLOOKUP("All"&$B56&$I$5&$F$8&$A$14&$D$9,DataSubJudgements!$A:$K,F$36,0)),IF($B56="","",0),VLOOKUP("All"&$B56&$I$5&$F$8&$A$14&$D$9,DataSubJudgements!$A:$K,F$36,0)) ->  | H56: =IF(ISERROR(VLOOKUP("All"&$B56&$I$5&$F$8&$A$14&$D$9,DataSubJudgements!$A:$K,H$36,0)),IF($B56="","",0),VLOOKUP("All"&$B56&$I$5&$F$8&$A$14&$D$9,DataSubJudgements!$A:$K,H$36,0)) ->  | J56: =IF(ISERROR(VLOOKUP("All"&$B56&$I$5&$F$8&$A$14&$D$9,DataSubJudgements!$A:$K,J$36,0)),IF($B56="","",0),VLOOKUP("All"&$B56&$I$5&$F$8&$A$14&$D$9,DataSubJudgements!$A:$K,J$36,0)) ->  | M56: =IF(ISERROR(VLOOKUP("All"&$B56&$I$5&$F$8&$A$14&$D$9,DataSubJudgements!$A:$K,M$36,0)),IF($B56="","",0),VLOOKUP("All"&$B56&$I$5&$F$8&$A$14&$D$9,DataSubJudgements!$A:$K,M$36,0)) -> 
A57: 16 | B57: =IFERROR(VLOOKUP($B$35&A57,'Region Lookups'!A:C,3,0),"") ->  | D57: =IF(ISERROR(VLOOKUP("All"&$B57&$I$5&$F$8&$A$14&$D$9,DataSubJudgements!$A:$K,8,0)),IF(B57="","",0),SUM(F57:M57)) ->  | F57: =IF(ISERROR(VLOOKUP("All"&$B57&$I$5&$F$8&$A$14&$D$9,DataSubJudgements!$A:$K,F$36,0)),IF($B57="","",0),VLOOKUP("All"&$B57&$I$5&$F$8&$A$14&$D$9,DataSubJudgements!$A:$K,F$36,0)) ->  | H57: =IF(ISERROR(VLOOKUP("All"&$B57&$I$5&$F$8&$A$14&$D$9,DataSubJudgements!$A:$K,H$36,0)),IF($B57="","",0),VLOOKUP("All"&$B57&$I$5&$F$8&$A$14&$D$9,DataSubJudgements!$A:$K,H$36,0)) ->  | J57: =IF(ISERROR(VLOOKUP("All"&$B57&$I$5&$F$8&$A$14&$D$9,DataSubJudgements!$A:$K,J$36,0)),IF($B57="","",0),VLOOKUP("All"&$B57&$I$5&$F$8&$A$14&$D$9,DataSubJudgements!$A:$K,J$36,0)) ->  | M57: =IF(ISERROR(VLOOKUP("All"&$B57&$I$5&$F$8&$A$14&$D$9,DataSubJudgements!$A:$K,M$36,0)),IF($B57="","",0),VLOOKUP("All"&$B57&$I$5&$F$8&$A$14&$D$9,DataSubJudgements!$A:$K,M$36,0)) -> 
A58: 17 | B58: =IFERROR(VLOOKUP($B$35&A58,'Region Lookups'!A:C,3,0),"") ->  | D58: =IF(ISERROR(VLOOKUP("All"&$B58&$I$5&$F$8&$A$14&$D$9,DataSubJudgements!$A:$K,8,0)),IF(B58="","",0),SUM(F58:M58)) ->  | F58: =IF(ISERROR(VLOOKUP("All"&$B58&$I$5&$F$8&$A$14&$D$9,DataSubJudgements!$A:$K,F$36,0)),IF($B58="","",0),VLOOKUP("All"&$B58&$I$5&$F$8&$A$14&$D$9,DataSubJudgements!$A:$K,F$36,0)) ->  | H58: =IF(ISERROR(VLOOKUP("All"&$B58&$I$5&$F$8&$A$14&$D$9,DataSubJudgements!$A:$K,H$36,0)),IF($B58="","",0),VLOOKUP("All"&$B58&$I$5&$F$8&$A$14&$D$9,DataSubJudgements!$A:$K,H$36,0)) ->  | J58: =IF(ISERROR(VLOOKUP("All"&$B58&$I$5&$F$8&$A$14&$D$9,DataSubJudgements!$A:$K,J$36,0)),IF($B58="","",0),VLOOKUP("All"&$B58&$I$5&$F$8&$A$14&$D$9,DataSubJudgements!$A:$K,J$36,0)) ->  | M58: =IF(ISERROR(VLOOKUP("All"&$B58&$I$5&$F$8&$A$14&$D$9,DataSubJudgements!$A:$K,M$36,0)),IF($B58="","",0),VLOOKUP("All"&$B58&$I$5&$F$8&$A$14&$D$9,DataSubJudgements!$A:$K,M$36,0)) -> 
A59: 18 | B59: =IFERROR(VLOOKUP($B$35&A59,'Region Lookups'!A:C,3,0),"") ->  | D59: =IF(ISERROR(VLOOKUP("All"&$B59&$I$5&$F$8&$A$14&$D$9,DataSubJudgements!$A:$K,8,0)),IF(B59="","",0),SUM(F59:M59)) ->  | F59: =IF(ISERROR(VLOOKUP("All"&$B59&$I$5&$F$8&$A$14&$D$9,DataSubJudgements!$A:$K,F$36,0)),IF($B59="","",0),VLOOKUP("All"&$B59&$I$5&$F$8&$A$14&$D$9,DataSubJudgements!$A:$K,F$36,0)) ->  | H59: =IF(ISERROR(VLOOKUP("All"&$B59&$I$5&$F$8&$A$14&$D$9,DataSubJudgements!$A:$K,H$36,0)),IF($B59="","",0),VLOOKUP("All"&$B59&$I$5&$F$8&$A$14&$D$9,DataSubJudgements!$A:$K,H$36,0)) ->  | J59: =IF(ISERROR(VLOOKUP("All"&$B59&$I$5&$F$8&$A$14&$D$9,DataSubJudgements!$A:$K,J$36,0)),IF($B59="","",0),VLOOKUP("All"&$B59&$I$5&$F$8&$A$14&$D$9,DataSubJudgements!$A:$K,J$36,0)) ->  | M59: =IF(ISERROR(VLOOKUP("All"&$B59&$I$5&$F$8&$A$14&$D$9,DataSubJudgements!$A:$K,M$36,0)),IF($B59="","",0),VLOOKUP("All"&$B59&$I$5&$F$8&$A$14&$D$9,DataSubJudgements!$A:$K,M$36,0)) -> 
A60: 19 | B60: =IFERROR(VLOOKUP($B$35&A60,'Region Lookups'!A:C,3,0),"") ->  | D60: =IF(ISERROR(VLOOKUP("All"&$B60&$I$5&$F$8&$A$14&$D$9,DataSubJudgements!$A:$K,8,0)),IF(B60="","",0),SUM(F60:M60)) ->  | F60: =IF(ISERROR(VLOOKUP("All"&$B60&$I$5&$F$8&$A$14&$D$9,DataSubJudgements!$A:$K,F$36,0)),IF($B60="","",0),VLOOKUP("All"&$B60&$I$5&$F$8&$A$14&$D$9,DataSubJudgements!$A:$K,F$36,0)) ->  | H60: =IF(ISERROR(VLOOKUP("All"&$B60&$I$5&$F$8&$A$14&$D$9,DataSubJudgements!$A:$K,H$36,0)),IF($B60="","",0),VLOOKUP("All"&$B60&$I$5&$F$8&$A$14&$D$9,DataSubJudgements!$A:$K,H$36,0)) ->  | J60: =IF(ISERROR(VLOOKUP("All"&$B60&$I$5&$F$8&$A$14&$D$9,DataSubJudgements!$A:$K,J$36,0)),IF($B60="","",0),VLOOKUP("All"&$B60&$I$5&$F$8&$A$14&$D$9,DataSubJudgements!$A:$K,J$36,0)) ->  | M60: =IF(ISERROR(VLOOKUP("All"&$B60&$I$5&$F$8&$A$14&$D$9,DataSubJudgements!$A:$K,M$36,0)),IF($B60="","",0),VLOOKUP("All"&$B60&$I$5&$F$8&$A$14&$D$9,DataSubJudgements!$A:$K,M$36,0)) -> 
A61: 20 | B61: =IFERROR(VLOOKUP($B$35&A61,'Region Lookups'!A:C,3,0),"") ->  | D61: =IF(ISERROR(VLOOKUP("All"&$B61&$I$5&$F$8&$A$14&$D$9,DataSubJudgements!$A:$K,8,0)),IF(B61="","",0),SUM(F61:M61)) ->  | F61: =IF(ISERROR(VLOOKUP("All"&$B61&$I$5&$F$8&$A$14&$D$9,DataSubJudgements!$A:$K,F$36,0)),IF($B61="","",0),VLOOKUP("All"&$B61&$I$5&$F$8&$A$14&$D$9,DataSubJudgements!$A:$K,F$36,0)) ->  | H61: =IF(ISERROR(VLOOKUP("All"&$B61&$I$5&$F$8&$A$14&$D$9,DataSubJudgements!$A:$K,H$36,0)),IF($B61="","",0),VLOOKUP("All"&$B61&$I$5&$F$8&$A$14&$D$9,DataSubJudgements!$A:$K,H$36,0)) ->  | J61: =IF(ISERROR(VLOOKUP("All"&$B61&$I$5&$F$8&$A$14&$D$9,DataSubJudgements!$A:$K,J$36,0)),IF($B61="","",0),VLOOKUP("All"&$B61&$I$5&$F$8&$A$14&$D$9,DataSubJudgements!$A:$K,J$36,0)) ->  | M61: =IF(ISERROR(VLOOKUP("All"&$B61&$I$5&$F$8&$A$14&$D$9,DataSubJudgements!$A:$K,M$36,0)),IF($B61="","",0),VLOOKUP("All"&$B61&$I$5&$F$8&$A$14&$D$9,DataSubJudgements!$A:$K,M$36,0)) -> 
A62: 21 | B62: =IFERROR(VLOOKUP($B$35&A62,'Region Lookups'!A:C,3,0),"") ->  | D62: =IF(ISERROR(VLOOKUP("All"&$B62&$I$5&$F$8&$A$14&$D$9,DataSubJudgements!$A:$K,8,0)),IF(B62="","",0),SUM(F62:M62)) ->  | F62: =IF(ISERROR(VLOOKUP("All"&$B62&$I$5&$F$8&$A$14&$D$9,DataSubJudgements!$A:$K,F$36,0)),IF($B62="","",0),VLOOKUP("All"&$B62&$I$5&$F$8&$A$14&$D$9,DataSubJudgements!$A:$K,F$36,0)) ->  | H62: =IF(ISERROR(VLOOKUP("All"&$B62&$I$5&$F$8&$A$14&$D$9,DataSubJudgements!$A:$K,H$36,0)),IF($B62="","",0),VLOOKUP("All"&$B62&$I$5&$F$8&$A$14&$D$9,DataSubJudgements!$A:$K,H$36,0)) ->  | J62: =IF(ISERROR(VLOOKUP("All"&$B62&$I$5&$F$8&$A$14&$D$9,DataSubJudgements!$A:$K,J$36,0)),IF($B62="","",0),VLOOKUP("All"&$B62&$I$5&$F$8&$A$14&$D$9,DataSubJudgements!$A:$K,J$36,0)) ->  | M62: =IF(ISERROR(VLOOKUP("All"&$B62&$I$5&$F$8&$A$14&$D$9,DataSubJudgements!$A:$K,M$36,0)),IF($B62="","",0),VLOOKUP("All"&$B62&$I$5&$F$8&$A$14&$D$9,DataSubJudgements!$A:$K,M$36,0)) -> 
A63: 22 | B63: =IFERROR(VLOOKUP($B$35&A63,'Region Lookups'!A:C,3,0),"") ->  | D63: =IF(ISERROR(VLOOKUP("All"&$B63&$I$5&$F$8&$A$14&$D$9,DataSubJudgements!$A:$K,8,0)),IF(B63="","",0),SUM(F63:M63)) ->  | F63: =IF(ISERROR(VLOOKUP("All"&$B63&$I$5&$F$8&$A$14&$D$9,DataSubJudgements!$A:$K,F$36,0)),IF($B63="","",0),VLOOKUP("All"&$B63&$I$5&$F$8&$A$14&$D$9,DataSubJudgements!$A:$K,F$36,0)) ->  | H63: =IF(ISERROR(VLOOKUP("All"&$B63&$I$5&$F$8&$A$14&$D$9,DataSubJudgements!$A:$K,H$36,0)),IF($B63="","",0),VLOOKUP("All"&$B63&$I$5&$F$8&$A$14&$D$9,DataSubJudgements!$A:$K,H$36,0)) ->  | J63: =IF(ISERROR(VLOOKUP("All"&$B63&$I$5&$F$8&$A$14&$D$9,DataSubJudgements!$A:$K,J$36,0)),IF($B63="","",0),VLOOKUP("All"&$B63&$I$5&$F$8&$A$14&$D$9,DataSubJudgements!$A:$K,J$36,0)) ->  | M63: =IF(ISERROR(VLOOKUP("All"&$B63&$I$5&$F$8&$A$14&$D$9,DataSubJudgements!$A:$K,M$36,0)),IF($B63="","",0),VLOOKUP("All"&$B63&$I$5&$F$8&$A$14&$D$9,DataSubJudgements!$A:$K,M$36,0)) -> 
A64: 23 | B64: =IFERROR(VLOOKUP($B$35&A64,'Region Lookups'!A:C,3,0),"") ->  | D64: =IF(ISERROR(VLOOKUP("All"&$B64&$I$5&$F$8&$A$14&$D$9,DataSubJudgements!$A:$K,8,0)),IF(B64="","",0),SUM(F64:M64)) ->  | F64: =IF(ISERROR(VLOOKUP("All"&$B64&$I$5&$F$8&$A$14&$D$9,DataSubJudgements!$A:$K,F$36,0)),IF($B64="","",0),VLOOKUP("All"&$B64&$I$5&$F$8&$A$14&$D$9,DataSubJudgements!$A:$K,F$36,0)) ->  | H64: =IF(ISERROR(VLOOKUP("All"&$B64&$I$5&$F$8&$A$14&$D$9,DataSubJudgements!$A:$K,H$36,0)),IF($B64="","",0),VLOOKUP("All"&$B64&$I$5&$F$8&$A$14&$D$9,DataSubJudgements!$A:$K,H$36,0)) ->  | J64: =IF(ISERROR(VLOOKUP("All"&$B64&$I$5&$F$8&$A$14&$D$9,DataSubJudgements!$A:$K,J$36,0)),IF($B64="","",0),VLOOKUP("All"&$B64&$I$5&$F$8&$A$14&$D$9,DataSubJudgements!$A:$K,J$36,0)) ->  | M64: =IF(ISERROR(VLOOKUP("All"&$B64&$I$5&$F$8&$A$14&$D$9,DataSubJudgements!$A:$K,M$36,0)),IF($B64="","",0),VLOOKUP("All"&$B64&$I$5&$F$8&$A$14&$D$9,DataSubJudgements!$A:$K,M$36,0)) -> 
A65: 24 | B65: =IFERROR(VLOOKUP($B$35&A65,'Region Lookups'!A:C,3,0),"") ->  | D65: =IF(ISERROR(VLOOKUP("All"&$B65&$I$5&$F$8&$A$14&$D$9,DataSubJudgements!$A:$K,8,0)),IF(B65="","",0),SUM(F65:M65)) ->  | F65: =IF(ISERROR(VLOOKUP("All"&$B65&$I$5&$F$8&$A$14&$D$9,DataSubJudgements!$A:$K,F$36,0)),IF($B65="","",0),VLOOKUP("All"&$B65&$I$5&$F$8&$A$14&$D$9,DataSubJudgements!$A:$K,F$36,0)) ->  | H65: =IF(ISERROR(VLOOKUP("All"&$B65&$I$5&$F$8&$A$14&$D$9,DataSubJudgements!$A:$K,H$36,0)),IF($B65="","",0),VLOOKUP("All"&$B65&$I$5&$F$8&$A$14&$D$9,DataSubJudgements!$A:$K,H$36,0)) ->  | J65: =IF(ISERROR(VLOOKUP("All"&$B65&$I$5&$F$8&$A$14&$D$9,DataSubJudgements!$A:$K,J$36,0)),IF($B65="","",0),VLOOKUP("All"&$B65&$I$5&$F$8&$A$14&$D$9,DataSubJudgements!$A:$K,J$36,0)) ->  | M65: =IF(ISERROR(VLOOKUP("All"&$B65&$I$5&$F$8&$A$14&$D$9,DataSubJudgements!$A:$K,M$36,0)),IF($B65="","",0),VLOOKUP("All"&$B65&$I$5&$F$8&$A$14&$D$9,DataSubJudgements!$A:$K,M$36,0)) -> 
A66: 25 | B66: =IFERROR(VLOOKUP($B$35&A66,'Region Lookups'!A:C,3,0),"") ->  | D66: =IF(ISERROR(VLOOKUP("All"&$B66&$I$5&$F$8&$A$14&$D$9,DataSubJudgements!$A:$K,8,0)),IF(B66="","",0),SUM(F66:M66)) ->  | F66: =IF(ISERROR(VLOOKUP("All"&$B66&$I$5&$F$8&$A$14&$D$9,DataSubJudgements!$A:$K,F$36,0)),IF($B66="","",0),VLOOKUP("All"&$B66&$I$5&$F$8&$A$14&$D$9,DataSubJudgements!$A:$K,F$36,0)) ->  | H66: =IF(ISERROR(VLOOKUP("All"&$B66&$I$5&$F$8&$A$14&$D$9,DataSubJudgements!$A:$K,H$36,0)),IF($B66="","",0),VLOOKUP("All"&$B66&$I$5&$F$8&$A$14&$D$9,DataSubJudgements!$A:$K,H$36,0)) ->  | J66: =IF(ISERROR(VLOOKUP("All"&$B66&$I$5&$F$8&$A$14&$D$9,DataSubJudgements!$A:$K,J$36,0)),IF($B66="","",0),VLOOKUP("All"&$B66&$I$5&$F$8&$A$14&$D$9,DataSubJudgements!$A:$K,J$36,0)) ->  | M66: =IF(ISERROR(VLOOKUP("All"&$B66&$I$5&$F$8&$A$14&$D$9,DataSubJudgements!$A:$K,M$36,0)),IF($B66="","",0),VLOOKUP("All"&$B66&$I$5&$F$8&$A$14&$D$9,DataSubJudgements!$A:$K,M$36,0)) -> 
A67: 26 | B67: =IFERROR(VLOOKUP($B$35&A67,'Region Lookups'!A:C,3,0),"") ->  | D67: =IF(ISERROR(VLOOKUP("All"&$B67&$I$5&$F$8&$A$14&$D$9,DataSubJudgements!$A:$K,8,0)),IF(B67="","",0),SUM(F67:M67)) ->  | F67: =IF(ISERROR(VLOOKUP("All"&$B67&$I$5&$F$8&$A$14&$D$9,DataSubJudgements!$A:$K,F$36,0)),IF($B67="","",0),VLOOKUP("All"&$B67&$I$5&$F$8&$A$14&$D$9,DataSubJudgements!$A:$K,F$36,0)) ->  | H67: =IF(ISERROR(VLOOKUP("All"&$B67&$I$5&$F$8&$A$14&$D$9,DataSubJudgements!$A:$K,H$36,0)),IF($B67="","",0),VLOOKUP("All"&$B67&$I$5&$F$8&$A$14&$D$9,DataSubJudgements!$A:$K,H$36,0)) ->  | J67: =IF(ISERROR(VLOOKUP("All"&$B67&$I$5&$F$8&$A$14&$D$9,DataSubJudgements!$A:$K,J$36,0)),IF($B67="","",0),VLOOKUP("All"&$B67&$I$5&$F$8&$A$14&$D$9,DataSubJudgements!$A:$K,J$36,0)) ->  | M67: =IF(ISERROR(VLOOKUP("All"&$B67&$I$5&$F$8&$A$14&$D$9,DataSubJudgements!$A:$K,M$36,0)),IF($B67="","",0),VLOOKUP("All"&$B67&$I$5&$F$8&$A$14&$D$9,DataSubJudgements!$A:$K,M$36,0)) -> 
A68: 27 | B68: =IFERROR(VLOOKUP($B$35&A68,'Region Lookups'!A:C,3,0),"") ->  | D68: =IF(ISERROR(VLOOKUP("All"&$B68&$I$5&$F$8&$A$14&$D$9,DataSubJudgements!$A:$K,8,0)),IF(B68="","",0),SUM(F68:M68)) ->  | F68: =IF(ISERROR(VLOOKUP("All"&$B68&$I$5&$F$8&$A$14&$D$9,DataSubJudgements!$A:$K,F$36,0)),IF($B68="","",0),VLOOKUP("All"&$B68&$I$5&$F$8&$A$14&$D$9,DataSubJudgements!$A:$K,F$36,0)) ->  | H68: =IF(ISERROR(VLOOKUP("All"&$B68&$I$5&$F$8&$A$14&$D$9,DataSubJudgements!$A:$K,H$36,0)),IF($B68="","",0),VLOOKUP("All"&$B68&$I$5&$F$8&$A$14&$D$9,DataSubJudgements!$A:$K,H$36,0)) ->  | J68: =IF(ISERROR(VLOOKUP("All"&$B68&$I$5&$F$8&$A$14&$D$9,DataSubJudgements!$A:$K,J$36,0)),IF($B68="","",0),VLOOKUP("All"&$B68&$I$5&$F$8&$A$14&$D$9,DataSubJudgements!$A:$K,J$36,0)) ->  | M68: =IF(ISERROR(VLOOKUP("All"&$B68&$I$5&$F$8&$A$14&$D$9,DataSubJudgements!$A:$K,M$36,0)),IF($B68="","",0),VLOOKUP("All"&$B68&$I$5&$F$8&$A$14&$D$9,DataSubJudgements!$A:$K,M$36,0)) -> 
A69: 28 | B69: =IFERROR(VLOOKUP($B$35&A69,'Region Lookups'!A:C,3,0),"") ->  | D69: =IF(ISERROR(VLOOKUP("All"&$B69&$I$5&$F$8&$A$14&$D$9,DataSubJudgements!$A:$K,8,0)),IF(B69="","",0),SUM(F69:M69)) ->  | F69: =IF(ISERROR(VLOOKUP("All"&$B69&$I$5&$F$8&$A$14&$D$9,DataSubJudgements!$A:$K,F$36,0)),IF($B69="","",0),VLOOKUP("All"&$B69&$I$5&$F$8&$A$14&$D$9,DataSubJudgements!$A:$K,F$36,0)) ->  | H69: =IF(ISERROR(VLOOKUP("All"&$B69&$I$5&$F$8&$A$14&$D$9,DataSubJudgements!$A:$K,H$36,0)),IF($B69="","",0),VLOOKUP("All"&$B69&$I$5&$F$8&$A$14&$D$9,DataSubJudgements!$A:$K,H$36,0)) ->  | J69: =IF(ISERROR(VLOOKUP("All"&$B69&$I$5&$F$8&$A$14&$D$9,DataSubJudgements!$A:$K,J$36,0)),IF($B69="","",0),VLOOKUP("All"&$B69&$I$5&$F$8&$A$14&$D$9,DataSubJudgements!$A:$K,J$36,0)) ->  | M69: =IF(ISERROR(VLOOKUP("All"&$B69&$I$5&$F$8&$A$14&$D$9,DataSubJudgements!$A:$K,M$36,0)),IF($B69="","",0),VLOOKUP("All"&$B69&$I$5&$F$8&$A$14&$D$9,DataSubJudgements!$A:$K,M$36,0)) -> 
A70: 29 | B70: =IFERROR(VLOOKUP($B$35&A70,'Region Lookups'!A:C,3,0),"") ->  | D70: =IF(ISERROR(VLOOKUP("All"&$B70&$I$5&$F$8&$A$14&$D$9,DataSubJudgements!$A:$K,8,0)),IF(B70="","",0),SUM(F70:M70)) ->  | F70: =IF(ISERROR(VLOOKUP("All"&$B70&$I$5&$F$8&$A$14&$D$9,DataSubJudgements!$A:$K,F$36,0)),IF($B70="","",0),VLOOKUP("All"&$B70&$I$5&$F$8&$A$14&$D$9,DataSubJudgements!$A:$K,F$36,0)) ->  | H70: =IF(ISERROR(VLOOKUP("All"&$B70&$I$5&$F$8&$A$14&$D$9,DataSubJudgements!$A:$K,H$36,0)),IF($B70="","",0),VLOOKUP("All"&$B70&$I$5&$F$8&$A$14&$D$9,DataSubJudgements!$A:$K,H$36,0)) ->  | J70: =IF(ISERROR(VLOOKUP("All"&$B70&$I$5&$F$8&$A$14&$D$9,DataSubJudgements!$A:$K,J$36,0)),IF($B70="","",0),VLOOKUP("All"&$B70&$I$5&$F$8&$A$14&$D$9,DataSubJudgements!$A:$K,J$36,0)) ->  | M70: =IF(ISERROR(VLOOKUP("All"&$B70&$I$5&$F$8&$A$14&$D$9,DataSubJudgements!$A:$K,M$36,0)),IF($B70="","",0),VLOOKUP("All"&$B70&$I$5&$F$8&$A$14&$D$9,DataSubJudgements!$A:$K,M$36,0)) -> 
A71: 30 | B71: =IFERROR(VLOOKUP($B$35&A71,'Region Lookups'!A:C,3,0),"") ->  | D71: =IF(ISERROR(VLOOKUP("All"&$B71&$I$5&$F$8&$A$14&$D$9,DataSubJudgements!$A:$K,8,0)),IF(B71="","",0),SUM(F71:M71)) ->  | F71: =IF(ISERROR(VLOOKUP("All"&$B71&$I$5&$F$8&$A$14&$D$9,DataSubJudgements!$A:$K,F$36,0)),IF($B71="","",0),VLOOKUP("All"&$B71&$I$5&$F$8&$A$14&$D$9,DataSubJudgements!$A:$K,F$36,0)) ->  | H71: =IF(ISERROR(VLOOKUP("All"&$B71&$I$5&$F$8&$A$14&$D$9,DataSubJudgements!$A:$K,H$36,0)),IF($B71="","",0),VLOOKUP("All"&$B71&$I$5&$F$8&$A$14&$D$9,DataSubJudgements!$A:$K,H$36,0)) ->  | J71: =IF(ISERROR(VLOOKUP("All"&$B71&$I$5&$F$8&$A$14&$D$9,DataSubJudgements!$A:$K,J$36,0)),IF($B71="","",0),VLOOKUP("All"&$B71&$I$5&$F$8&$A$14&$D$9,DataSubJudgements!$A:$K,J$36,0)) ->  | M71: =IF(ISERROR(VLOOKUP("All"&$B71&$I$5&$F$8&$A$14&$D$9,DataSubJudgements!$A:$K,M$36,0)),IF($B71="","",0),VLOOKUP("All"&$B71&$I$5&$F$8&$A$14&$D$9,DataSubJudgements!$A:$K,M$36,0)) -> 
A72: 31 | B72: =IFERROR(VLOOKUP($B$35&A72,'Region Lookups'!A:C,3,0),"") ->  | D72: =IF(ISERROR(VLOOKUP("All"&$B72&$I$5&$F$8&$A$14&$D$9,DataSubJudgements!$A:$K,8,0)),IF(B72="","",0),SUM(F72:M72)) ->  | F72: =IF(ISERROR(VLOOKUP("All"&$B72&$I$5&$F$8&$A$14&$D$9,DataSubJudgements!$A:$K,F$36,0)),IF($B72="","",0),VLOOKUP("All"&$B72&$I$5&$F$8&$A$14&$D$9,DataSubJudgements!$A:$K,F$36,0)) ->  | H72: =IF(ISERROR(VLOOKUP("All"&$B72&$I$5&$F$8&$A$14&$D$9,DataSubJudgements!$A:$K,H$36,0)),IF($B72="","",0),VLOOKUP("All"&$B72&$I$5&$F$8&$A$14&$D$9,DataSubJudgements!$A:$K,H$36,0)) ->  | J72: =IF(ISERROR(VLOOKUP("All"&$B72&$I$5&$F$8&$A$14&$D$9,DataSubJudgements!$A:$K,J$36,0)),IF($B72="","",0),VLOOKUP("All"&$B72&$I$5&$F$8&$A$14&$D$9,DataSubJudgements!$A:$K,J$36,0)) ->  | M72: =IF(ISERROR(VLOOKUP("All"&$B72&$I$5&$F$8&$A$14&$D$9,DataSubJudgements!$A:$K,M$36,0)),IF($B72="","",0),VLOOKUP("All"&$B72&$I$5&$F$8&$A$14&$D$9,DataSubJudgements!$A:$K,M$36,0)) -> 
A73: 32 | B73: =IFERROR(VLOOKUP($B$35&A73,'Region Lookups'!A:C,3,0),"") ->  | D73: =IF(ISERROR(VLOOKUP("All"&$B73&$I$5&$F$8&$A$14&$D$9,DataSubJudgements!$A:$K,8,0)),IF(B73="","",0),SUM(F73:M73)) ->  | F73: =IF(ISERROR(VLOOKUP("All"&$B73&$I$5&$F$8&$A$14&$D$9,DataSubJudgements!$A:$K,F$36,0)),IF($B73="","",0),VLOOKUP("All"&$B73&$I$5&$F$8&$A$14&$D$9,DataSubJudgements!$A:$K,F$36,0)) ->  | H73: =IF(ISERROR(VLOOKUP("All"&$B73&$I$5&$F$8&$A$14&$D$9,DataSubJudgements!$A:$K,H$36,0)),IF($B73="","",0),VLOOKUP("All"&$B73&$I$5&$F$8&$A$14&$D$9,DataSubJudgements!$A:$K,H$36,0)) ->  | J73: =IF(ISERROR(VLOOKUP("All"&$B73&$I$5&$F$8&$A$14&$D$9,DataSubJudgements!$A:$K,J$36,0)),IF($B73="","",0),VLOOKUP("All"&$B73&$I$5&$F$8&$A$14&$D$9,DataSubJudgements!$A:$K,J$36,0)) ->  | M73: =IF(ISERROR(VLOOKUP("All"&$B73&$I$5&$F$8&$A$14&$D$9,DataSubJudgements!$A:$K,M$36,0)),IF($B73="","",0),VLOOKUP("All"&$B73&$I$5&$F$8&$A$14&$D$9,DataSubJudgements!$A:$K,M$36,0)) -> 
A74: 33 | B74: =IFERROR(VLOOKUP($B$35&A74,'Region Lookups'!A:C,3,0),"") ->  | D74: =IF(ISERROR(VLOOKUP("All"&$B74&$I$5&$F$8&$A$14&$D$9,DataSubJudgements!$A:$K,8,0)),IF(B74="","",0),SUM(F74:M74)) ->  | F74: =IF(ISERROR(VLOOKUP("All"&$B74&$I$5&$F$8&$A$14&$D$9,DataSubJudgements!$A:$K,F$36,0)),IF($B74="","",0),VLOOKUP("All"&$B74&$I$5&$F$8&$A$14&$D$9,DataSubJudgements!$A:$K,F$36,0)) ->  | H74: =IF(ISERROR(VLOOKUP("All"&$B74&$I$5&$F$8&$A$14&$D$9,DataSubJudgements!$A:$K,H$36,0)),IF($B74="","",0),VLOOKUP("All"&$B74&$I$5&$F$8&$A$14&$D$9,DataSubJudgements!$A:$K,H$36,0)) ->  | J74: =IF(ISERROR(VLOOKUP("All"&$B74&$I$5&$F$8&$A$14&$D$9,DataSubJudgements!$A:$K,J$36,0)),IF($B74="","",0),VLOOKUP("All"&$B74&$I$5&$F$8&$A$14&$D$9,DataSubJudgements!$A:$K,J$36,0)) ->  | M74: =IF(ISERROR(VLOOKUP("All"&$B74&$I$5&$F$8&$A$14&$D$9,DataSubJudgements!$A:$K,M$36,0)),IF($B74="","",0),VLOOKUP("All"&$B74&$I$5&$F$8&$A$14&$D$9,DataSubJudgements!$A:$K,M$36,0)) -> 

Sheet LA level at 30 Sep 2016
A1: Local Authority Name | B1: Region | C1: Inspection Date | D1: Overall Judgement (OE) | E1: Children who need help and protection | F1: Children looked after and achieving permanence | G1: CLA Sub: Adoption Performance | H1: CLA Sub: Experiences and progress of care leavers | I1: Leadership, management and governance | J1: LSCB Overall Effectiveness
A2: Barking and Dagenham | B2: London | C2: 2014-05-22 | D2: Requires Improvement | E2: Requires Improvement | F2: Requires Improvement | G2: Requires Improvement | H2: Requires Improvement | I2: Requires Improvement | J2: Requires Improvement
A3: Barnet | B3: London
A4: Barnsley | B4: Yorkshire and The Humber | C4: 2014-06-25 | D4: Requires Improvement | E4: Requires Improvement | F4: Requires Improvement | G4: Requires Improvement | H4: Good | I4: Requires Improvement | J4: Requires Improvement
A5: Bath and North East Somerset | B5: South West
A6: Bedford | B6: East of England
A7: Bexley | B7: London | C7: 2014-04-02 | D7: Requires Improvement | E7: Requires Improvement | F7: Requires Improvement | G7: Requires Improvement | H7: Requires Improvement | I7: Requires Improvement | J7: Inadequate
A8: Birmingham | B8: West Midlands | C8: 2014-04-09 | D8: Inadequate | E8: Inadequate | F8: Inadequate | G8: Inadequate | H8: Inadequate | I8: Inadequate | J8: Inadequate
A9: Blackburn with Darwen | B9: North West
A10: Blackpool | B10: North West | C10: 2014-07-23 | D10: Requires Improvement | E10: Requires Improvement | F10: Requires Improvement | G10: Requires Improvement | H10: Requires Improvement | I10: Requires Improvement | J10: Requires Improvement
A11: Bolton | B11: North West | C11: 2014-02-05 | D11: Requires Improvement | E11: Requires Improvement | F11: Good | G11: Good | H11: Good | I11: Requires Improvement | J11: Requires Improvement
A12: Bournemouth | B12: South West | C12: 2014-05-21 | D12: Requires Improvement | E12: Requires Improvement | F12: Requires Improvement | G12: Good | H12: Requires Improvement | I12: Requires Improvement | J12: Requires Improvement
A13: Bracknell Forest | B13: South East
A14: Bradford | B14: Yorkshire and The Humber | C14: 2014-03-12 | D14: Requires Improvement | E14: Requires Improvement | F14: Good | G14: Good | H14: Good | I14: Good | J14: Good
A15: Brent | B15: London | C15: 2015-10-08 | D15: Requires Improvement | E15: Requires Improvement | F15: Requires Improvement | G15: Good | H15: Requires Improvement | I15: Requires Improvement | J15: Requires Improvement
A16: Brighton and Hove | B16: South East | C16: 2015-05-07 | D16: Requires Improvement | E16: Requires Improvement | F16: Good | G16: Good | H16: Good | I16: Good | J16: Good
A17: Bristol | B17: South West | C17: 2014-10-22 | D17: Requires Improvement | E17: Requires Improvement | F17: Requires Improvement | G17: Good | H17: Inadequate | I17: Requires Improvement | J17: Requires Improvement
A18: Bromley | B18: London | C18: 2016-05-05 | D18: Inadequate | E18: Inadequate | F18: Inadequate | G18: Inadequate | H18: Inadequate | I18: Inadequate | J18: Requires Improvement
A19: Buckinghamshire | B19: South East | C19: 2014-06-25 | D19: Inadequate | E19: Inadequate | F19: Inadequate | G19: Requires Improvement | H19: Requires Improvement | I19: Inadequate | J19: Inadequate
A20: Bury | B20: North West | C20: 2016-03-17 | D20: Requires Improvement | E20: Good | F20: Requires Improvement | G20: Good | H20: Requires Improvement | I20: Good | J20: Good
A21: Calderdale | B21: Yorkshire and The Humber | C21: 2015-02-04 | D21: Requires Improvement | E21: Requires Improvement | F21: Requires Improvement | G21: Inadequate | H21: Requires Improvement | I21: Requires Improvement | J21: Requires Improvement
A22: Cambridgeshire | B22: East of England | C22: 2014-06-25 | D22: Good | E22: Requires Improvement | F22: Good | G22: Good | H22: Good | I22: Good | J22: Good
A23: Camden | B23: London
A24: Central Bedfordshire | B24: East of England
A25: Cheshire East | B25: North West | C25: 2015-07-30 | D25: Requires Improvement | E25: Requires Improvement | F25: Requires Improvement | G25: Good | H25: Requires Improvement | I25: Requires Improvement | J25: Requires Improvement
A26: Cheshire West and Chester | B26: North West | C26: 2015-12-17 | D26: Good | E26: Good | F26: Good | G26: Outstanding | H26: Good | I26: Outstanding | J26: Good
A27: City of London | B27: London | C27: 2016-07-28 | D27: Good | E27: Good | F27: Good | H27: Good | I27: Outstanding | J27: Outstanding
A28: Cornwall | B28: South West | C28: 2016-05-06 | D28: Good | E28: Requires Improvement | F28: Good | G28: Good | H28: Good | I28: Good | J28: Requires Improvement
A29: Coventry | B29: West Midlands | C29: 2014-02-05 | D29: Inadequate | E29: Inadequate | F29: Requires Improvement | G29: Requires Improvement | H29: Requires Improvement | I29: Inadequate | J29: Inadequate
A30: Croydon | B30: London
A31: Cumbria | B31: North West | C31: 2015-03-25 | D31: Inadequate | E31: Requires Improvement | F31: Inadequate | G31: Requires Improvement | H31: Requires Improvement | I31: Inadequate | J31: Requires Improvement
A32: Darlington | B32: North East | C32: 2015-07-16 | D32: Inadequate | E32: Inadequate | F32: Requires Improvement | G32: Good | H32: Good | I32: Inadequate | J32: Requires Improvement
A33: Derby | B33: East Midlands
A34: Derbyshire | B34: East Midlands | C34: 2013-12-11 | D34: Good | E34: Good | F34: Good | G34: Good | H34: Good | I34: Good | J34: Requires Improvement
A35: Devon | B35: South West | C35: 2015-03-18 | D35: Requires Improvement | E35: Requires Improvement | F35: Requires Improvement | G35: Good | H35: Inadequate | I35: Requires Improvement | J35: Inadequate
A36: Doncaster | B36: Yorkshire and The Humber | C36: 2015-10-08 | D36: Inadequate | E36: Inadequate | F36: Requires Improvement | G36: Good | H36: Requires Improvement | I36: Requires Improvement | J36: Requires Improvement
A37: Dorset | B37: South West | C37: 2016-03-17 | D37: Requires Improvement | E37: Requires Improvement | F37: Requires Improvement | G37: Good | H37: Requires Improvement | I37: Requires Improvement | J37: Inadequate
A38: Dudley | B38: West Midlands | C38: 2016-02-08 | D38: Inadequate | E38: Inadequate | F38: Inadequate | G38: Inadequate | H38: Requires Improvement | I38: Inadequate | J38: Inadequate
A39: Durham | B39: North East | C39: 2016-03-18 | D39: Requires Improvement | E39: Requires Improvement | F39: Requires Improvement | G39: Good | H39: Good | I39: Requires Improvement | J39: Good
A40: Ealing | B40: London | C40: 2016-07-07 | D40: Good | E40: Good | F40: Good | G40: Good | H40: Outstanding | I40: Good | J40: Requires Improvement
A41: East Riding of Yorkshire | B41: Yorkshire and The Humber
A42: East Sussex | B42: South East | C42: 2014-02-05 | D42: Good | E42: Good | F42: Good | G42: Outstanding | H42: Requires Improvement | I42: Good | J42: Good
A43: Enfield | B43: London | C43: 2015-02-11 | D43: Good | E43: Requires Improvement | F43: Good | G43: Good | H43: Good | I43: Good | J43: Good
A44: Essex | B44: East of England | C44: 2014-02-05 | D44: Good | E44: Good | F44: Good | G44: Good | H44: Good | I44: Good | J44: Requires Improvement
A45: Gateshead | B45: North East | C45: 2015-11-19 | D45: Good | E45: Good | F45: Good | G45: Good | H45: Requires Improvement | I45: Good | J45: Requires Improvement
A46: Gloucestershire | B46: South West
A47: Greenwich | B47: London | C47: 2016-06-16 | D47: Good | E47: Good | F47: Good | G47: Good | H47: Good | I47: Good | J47: Good
A48: Hackney | B48: London | C48: 2016-07-28 | D48: Good | E48: Good | F48: Good | G48: Good | H48: Outstanding | I48: Good | J48: Outstanding
A49: Halton | B49: North West | C49: 2014-12-10 | D49: Requires Improvement | E49: Requires Improvement | F49: Good | G49: Good | H49: Good | I49: Requires Improvement | J49: Requires Improvement
A50: Hammersmith and Fulham | B50: London | C50: 2016-02-04 | D50: Good | E50: Good | F50: Good | G50: Outstanding | H50: Good | I50: Outstanding | J50: Good
A51: Hampshire | B51: South East | C51: 2014-03-12 | D51: Good | E51: Good | F51: Good | G51: Outstanding | H51: Good | I51: Outstanding | J51: Good
A52: Haringey | B52: London | C52: 2014-06-11 | D52: Requires Improvement | E52: Requires Improvement | F52: Requires Improvement | G52: Requires Improvement | H52: Requires Improvement | I52: Requires Improvement | J52: Requires Improvement
A53: Harrow | B53: London
A54: Hartlepool | B54: North East | C54: 2013-12-11 | D54: Good | E54: Good | F54: Good | G54: Good | H54: Good | I54: Good | J54: Requires Improvement
A55: Havering | B55: London
A56: Herefordshire | B56: West Midlands | C56: 2014-05-21 | D56: Requires Improvement | E56: Requires Improvement | F56: Requires Improvement | G56: Good | H56: Requires Improvement | I56: Requires Improvement | J56: Requires Improvement
A57: Hertfordshire | B57: East of England | C57: 2015-10-08 | D57: Good | E57: Requires Improvement | F57: Good | G57: Good | H57: Good | I57: Good | J57: Good
A58: Hillingdon | B58: London | C58: 2013-12-05 | D58: Requires Improvement | E58: Requires Improvement | F58: Requires Improvement | G58: Good | H58: Requires Improvement | I58: Requires Improvement | J58: Requires Improvement
A59: Hounslow | B59: London | C59: 2014-02-05 | D59: Requires Improvement | E59: Requires Improvement | F59: Requires Improvement | G59: Requires Improvement | H59: Requires Improvement | I59: Requires Improvement | J59: Requires Improvement
A60: Isle of Wight | B60: South East | C60: 2014-10-08 | D60: Requires Improvement | E60: Requires Improvement | F60: Requires Improvement | G60: Requires Improvement | H60: Requires Improvement | I60: Requires Improvement | J60: Requires Improvement
A61: Isles of Scilly | B61: South West | C61: 2016-04-28 | D61: Good | E61: Good | I61: Good | J61: Requires Improvement
A62: Islington | B62: London
A63: Kensington and Chelsea | B63: London | C63: 2016-02-04 | D63: Outstanding | E63: Good | F63: Outstanding | G63: Outstanding | H63: Outstanding | I63: Outstanding | J63: Good
A64: Kent | B64: South East
A65: Kingston upon Hull | B65: Yorkshire and The Humber | C65: 2014-12-10 | D65: Requires Improvement | E65: Requires Improvement | F65: Requires Improvement | G65: Requires Improvement | H65: Requires Improvement | I65: Requires Improvement | J65: Requires Improvement
A66: Kingston upon Thames | B66: London | C66: 2015-06-18 | D66: Good | E66: Good | F66: Good | G66: Good | H66: Good | I66: Good | J66: Good
A67: Kirklees | B67: Yorkshire and The Humber
A68: Knowsley | B68: North West | C68: 2014-05-21 | D68: Inadequate | E68: Inadequate | F68: Requires Improvement | G68: Inadequate | H68: Requires Improvement | I68: Inadequate | J68: Inadequate
A69: Lambeth | B69: London | C69: 2015-03-18 | D69: Inadequate | E69: Requires Improvement | F69: Inadequate | G69: Inadequate | H69: Requires Improvement | I69: Inadequate | J69: Inadequate
A70: Lancashire | B70: North West | C70: 2015-10-08 | D70: Inadequate | E70: Inadequate | F70: Requires Improvement | G70: Requires Improvement | H70: Inadequate | I70: Inadequate | J70: Good
A71: Leeds | B71: Yorkshire and The Humber | C71: 2015-02-11 | D71: Good | E71: Good | F71: Good | G71: Good | H71: Good | I71: Outstanding | J71: Good
A72: Leicester | B72: East Midlands | C72: 2015-02-04 | D72: Inadequate | E72: Inadequate | F72: Requires Improvement | G72: Good | H72: Requires Improvement | I72: Inadequate | J72: Inadequate
A73: Leicestershire | B73: East Midlands
A74: Lewisham | B74: London | C74: 2015-11-20 | D74: Requires Improvement | E74: Requires Improvement | F74: Good | G74: Good | H74: Good | I74: Requires Improvement | J74: Requires Improvement
A75: Lincolnshire | B75: East Midlands | C75: 2014-11-12 | D75: Good | E75: Good | F75: Good | G75: Outstanding | H75: Good | I75: Good | J75: Good
A76: Liverpool | B76: North West | C76: 2014-06-11 | D76: Requires Improvement | E76: Requires Improvement | F76: Requires Improvement | G76: Requires Improvement | H76: Requires Improvement | I76: Requires Improvement | J76: Requires Improvement
A77: Luton | B77: East of England | C77: 2016-02-04 | D77: Requires Improvement | E77: Requires Improvement | F77: Requires Improvement | G77: Requires Improvement | H77: Good | I77: Requires Improvement | J77: Requires Improvement
A78: Manchester | B78: North West | C78: 2014-07-16 | D78: Inadequate | E78: Inadequate | F78: Requires Improvement | G78: Inadequate | H78: Requires Improvement | I78: Inadequate | J78: Inadequate
A79: Medway | B79: South East | C79: 2015-10-08 | D79: Requires Improvement | E79: Requires Improvement | F79: Requires Improvement | G79: Requires Improvement | H79: Good | I79: Requires Improvement | J79: Requires Improvement
A80: Merton | B80: London
A81: Middlesbrough | B81: North East | C81: 2015-12-17 | D81: Requires Improvement | E81: Requires Improvement | F81: Requires Improvement | G81: Good | H81: Good | I81: Requires Improvement | J81: Requires Improvement
A82: Milton Keynes | B82: South East
A83: Newcastle upon Tyne | B83: North East
A84: Newham | B84: London | C84: 2014-06-25 | D84: Requires Improvement | E84: Requires Improvement | F84: Requires Improvement | G84: Good | H84: Good | I84: Requires Improvement | J84: Good
A85: Norfolk | B85: East of England | C85: 2015-07-30 | D85: Inadequate | E85: Requires Improvement | F85: Inadequate | G85: Requires Improvement | H85: Inadequate | I85: Requires Improvement | J85: Requires Improvement
A86: North East Lincolnshire | B86: Yorkshire and The Humber
A87: North Lincolnshire | B87: Yorkshire and The Humber
A88: North Somerset | B88: South West
A89: North Tyneside | B89: North East
A90: North Yorkshire | B90: Yorkshire and The Humber | C90: 2014-05-21 | D90: Good | E90: Good | F90: Good | G90: Good | H90: Good | I90: Good | J90: Good
A91: Northamptonshire | B91: East Midlands | C91: 2016-03-10 | D91: Requires Improvement | E91: Requires Improvement | F91: Requires Improvement | G91: Requires Improvement | H91: Requires Improvement | I91: Requires Improvement | J91: Requires Improvement
A92: Northumberland | B92: North East | C92: 2016-02-18 | D92: Requires Improvement | E92: Requires Improvement | F92: Requires Improvement | G92: Good | H92: Requires Improvement | I92: Requires Improvement | J92: Good
A93: Nottingham | B93: East Midlands | C93: 2014-04-02 | D93: Requires Improvement | E93: Requires Improvement | F93: Requires Improvement | G93: Requires Improvement | H93: Requires Improvement | I93: Requires Improvement | J93: Requires Improvement
A94: Nottinghamshire | B94: East Midlands | C94: 2015-06-04 | D94: Good | E94: Good | F94: Good | G94: Good | H94: Requires Improvement | I94: Good | J94: Good
A95: Oldham | B95: North West | C95: 2015-06-18 | D95: Requires Improvement | E95: Requires Improvement | F95: Requires Improvement | G95: Good | H95: Requires Improvement | I95: Requires Improvement | J95: Requires Improvement
A96: Oxfordshire | B96: South East | C96: 2014-05-21 | D96: Good | E96: Good | F96: Good | G96: Good | H96: Good | I96: Good | J96: Good
A97: Peterborough | B97: East of England | C97: 2015-05-08 | D97: Requires Improvement | E97: Requires Improvement | F97: Requires Improvement | G97: Good | H97: Requires Improvement | I97: Requires Improvement | J97: Good
A98: Plymouth | B98: South West | C98: 2014-11-12 | D98: Requires Improvement | E98: Requires Improvement | F98: Requires Improvement | G98: Requires Improvement | H98: Requires Improvement | I98: Requires Improvement | J98: Requires Improvement
A99: Poole | B99: South West
A100: Portsmouth | B100: South East | C100: 2014-07-06 | D100: Requires Improvement | E100: Requires Improvement | F100: Good | G100: Good | H100: Requires Improvement | I100: Good | J100: Good
A101: Reading | B101: South East | C101: 2016-06-16 | D101: Inadequate | E101: Inadequate | F101: Inadequate | G101: Requires Improvement | H101: Requires Improvement | I101: Inadequate | J101: Requires Improvement
A102: Redbridge | B102: London
A103: Redcar and Cleveland | B103: North East
A104: Richmond Upon Thames | B104: London
A105: Rochdale | B105: North West | C105: 2014-10-22 | D105: Requires Improvement | E105: Requires Improvement | F105: Requires Improvement | G105: Requires Improvement | H105: Inadequate | I105: Requires Improvement | J105: Requires Improvement
A106: Rotherham | B106: Yorkshire and The Humber | C106: 2014-10-08 | D106: Inadequate | E106: Inadequate | F106: Inadequate | G106: Requires Improvement | H106: Inadequate | I106: Inadequate | J106: Inadequate
A107: Rutland | B107: East Midlands
A108: Salford | B108: North West | C108: 2015-05-08 | D108: Good | E108: Good | F108: Good | G108: Requires Improvement | H108: Good | I108: Good | J108: Good
A109: Sandwell | B109: West Midlands | C109: 2015-02-19 | D109: Inadequate | E109: Inadequate | F109: Requires Improvement | G109: Requires Improvement | H109: Requires Improvement | I109: Inadequate | J109: Inadequate
A110: Sefton | B110: North West | C110: 2016-05-05 | D110: Requires Improvement | E110: Requires Improvement | F110: Requires Improvement | G110: Requires Improvement | H110: Requires Improvement | I110: Requires Improvement | J110: Inadequate
A111: Sheffield | B111: Yorkshire and The Humber | C111: 2014-01-20 | D111: Requires Improvement | E111: Good | F111: Requires Improvement | G111: Requires Improvement | H111: Good | I111: Good | J111: Good
A112: Shropshire | B112: West Midlands
A113: Slough | B113: South East | C113: 2015-12-17 | D113: Inadequate | E113: Inadequate | F113: Inadequate | G113: Requires Improvement | H113: Inadequate | I113: Inadequate | J113: Inadequate
A114: Solihull | B114: West Midlands | C114: 2016-05-19 | D114: Requires Improvement | E114: Requires Improvement | F114: Requires Improvement | G114: Good | H114: Requires Improvement | I114: Requires Improvement | J114: Good
A115: Somerset | B115: South West | C115: 2015-02-11 | D115: Inadequate | E115: Inadequate | F115: Inadequate | G115: Requires Improvement | H115: Inadequate | I115: Inadequate | J115: Inadequate
A116: South Gloucestershire | B116: South West
A117: South Tyneside | B117: North East
A118: Southampton | B118: South East | C118: 2014-07-30 | D118: Requires Improvement | E118: Requires Improvement | F118: Requires Improvement | G118: Requires Improvement | H118: Inadequate | I118: Requires Improvement | J118: Requires Improvement
A119: Southend on Sea | B119: East of England | C119: 2016-05-19 | D119: Requires Improvement | E119: Requires Improvement | F119: Requires Improvement | G119: Good | H119: Good | I119: Requires Improvement | J119: Requires Improvement
A120: Southwark | B120: London
A121: St Helens | B121: North West | C121: 2014-11-25 | D121: Requires Improvement | E121: Requires Improvement | F121: Requires Improvement | G121: Requires Improvement | H121: Requires Improvement | I121: Requires Improvement | J121: Requires Improvement
A122: Staffordshire | B122: West Midlands | C122: 2014-02-05 | D122: Good | E122: Good | F122: Good | G122: Good | H122: Good | I122: Good | J122: Good
A123: Stockport | B123: North West
A124: Stockton-on-Tees | B124: North East | C124: 2016-06-16 | D124: Good | E124: Good | F124: Requires Improvement | G124: Requires Improvement | H124: Outstanding | I124: Good | J124: Requires Improvement
A125: Stoke-on-Trent | B125: West Midlands | C125: 2015-06-25 | D125: Requires Improvement | E125: Requires Improvement | F125: Requires Improvement | G125: Good | H125: Requires Improvement | I125: Requires Improvement | J125: Requires Improvement
A126: Suffolk | B126: East of England | C126: 2015-12-17 | D126: Good | E126: Requires Improvement | F126: Good | G126: Good | H126: Requires Improvement | I126: Good | J126: Good
A127: Sunderland | B127: North East | C127: 2015-06-04 | D127: Inadequate | E127: Inadequate | F127: Inadequate | G127: Inadequate | H127: Inadequate | I127: Inadequate | J127: Inadequate
A128: Surrey | B128: South East | C128: 2014-11-12 | D128: Inadequate | E128: Inadequate | F128: Requires Improvement | G128: Good | H128: Requires Improvement | I128: Inadequate | J128: Requires Improvement
A129: Sutton | B129: London
A130: Swindon | B130: South West | C130: 2014-04-02 | D130: Requires Improvement | E130: Requires Improvement | F130: Requires Improvement | G130: Good | H130: Requires Improvement | I130: Requires Improvement | J130: Good
A131: Tameside | B131: North West
A132: Telford and Wrekin | B132: West Midlands | C132: 2016-07-07 | D132: Requires Improvement | E132: Requires Improvement | F132: Requires Improvement | G132: Good | H132: Good | I132: Requires Improvement | J132: Good
A133: Thurrock | B133: East of England | C133: 2016-03-17 | D133: Requires Improvement | E133: Requires Improvement | F133: Requires Improvement | G133: Requires Improvement | H133: Requires Improvement | I133: Requires Improvement | J133: Good
A134: Torbay | B134: South West | C134: 2015-11-05 | D134: Inadequate | E134: Inadequate | F134: Requires Improvement | G134: Requires Improvement | H134: Requires Improvement | I134: Inadequate | J134: Inadequate
A135: Tower Hamlets | B135: London
A136: Trafford | B136: North West | C136: 2015-02-18 | D136: Good | E136: Good | F136: Good | G136: Good | H136: Outstanding | I136: Outstanding | J136: Good
A137: Wakefield | B137: Yorkshire and The Humber | C137: 2016-07-28 | D137: Requires Improvement | E137: Requires Improvement | F137: Requires Improvement | G137: Good | H137: Good | I137: Requires Improvement | J137: Good
A138: Walsall | B138: West Midlands
A139: Waltham Forest | B139: London | C139: 2014-11-26 | D139: Requires Improvement | E139: Requires Improvement | F139: Requires Improvement | G139: Requires Improvement | H139: Requires Improvement | I139: Requires Improvement | J139: Requires Improvement
A140: Wandsworth | B140: London | C140: 2015-12-17 | D140: Inadequate | E140: Inadequate | F140: Requires Improvement | G140: Requires Improvement | H140: Inadequate | I140: Inadequate | J140: Requires Improvement
A141: Warrington | B141: North West | C141: 2015-03-20 | D141: Requires Improvement | E141: Requires Improvement | F141: Good | G141: Good | H141: Good | I141: Requires Improvement | J141: Requires Improvement
A142: Warwickshire | B142: West Midlands
A143: West Berkshire | B143: South East | C143: 2015-03-25 | D143: Inadequate | E143: Inadequate | F143: Requires Improvement | G143: Requires Improvement | H143: Requires Improvement | I143: Requires Improvement | J143: Requires Improvement
A144: West Sussex | B144: South East | C144: 2015-11-19 | D144: Requires Improvement | E144: Requires Improvement | F144: Requires Improvement | G144: Requires Improvement | H144: Requires Improvement | I144: Requires Improvement | J144: Requires Improvement
A145: Westminster | B145: London | C145: 2016-02-04 | D145: Outstanding | E145: Good | F145: Outstanding | G145: Outstanding | H145: Good | I145: Outstanding | J145: Good
A146: Wigan | B146: North West
A147: Wiltshire | B147: South West | C147: 2015-07-16 | D147: Requires Improvement | E147: Requires Improvement | F147: Requires Improvement | G147: Requires Improvement | H147: Requires Improvement | I147: Requires Improvement | J147: Requires Improvement
A148: Windsor and Maidenhead | B148: South East | C148: 2015-03-25 | D148: Requires Improvement | E148: Requires Improvement | F148: Requires Improvement | G148: Requires Improvement | H148: Requires Improvement | I148: Requires Improvement | J148: Requires Improvement
A149: Wirral | B149: North West | C149: 2016-07-28 | D149: Inadequate | E149: Inadequate | F149: Requires Improvement | G149: Requires Improvement | H149: Inadequate | I149: Inadequate | J149: Inadequate
A150: Wokingham | B150: South East | C150: 2015-11-05 | D150: Requires Improvement | E150: Requires Improvement | F150: Requires Improvement | G150: Good | H150: Requires Improvement | I150: Requires Improvement | J150: Requires Improvement
A151: Wolverhampton | B151: West Midlands
A152: Worcestershire | B152: West Midlands
A153: York | B153: Yorkshire and The Humber

Sheet Provider level at 30 Sep 2016
A1: Provider information | N1: Latest Full Inspection
A2: Web link | B2: URN | C2: Provision type | D2: Registration status | E2: Name | F2: Address 1 | G2: Address 2 | H2: Town | I2: County | J2: Postcode | K2: Government Office Region | L2: Local authority | M2: Sector | N2: Event type | O2: Inspection date | P2: Event number | Q2: Overall effectiveness | R2: Outcomes for children and young people | S2: Quality of care | T2: Safeguarding children and young people | U2: Leadership and management
A3: =HYPERLINK("http://reports.ofsted.gov.uk/inspection-reports/find-inspection-report/provider/CARE/1027164","Ofsted Social Care Provider Webpage") -> Ofsted Social Care Provider Webpage | B3: 1027164 | C3: Children's Home | D3: Active | E3: REDACTED | F3: REDACTED | G3: REDACTED | H3: REDACTED | I3: REDACTED | J3: REDACTED | K3: North West | L3: Cheshire West and Chester | M3: Private | N3: Full inspection | O3: 2016-02-11 | P3: 10008350 | Q3: Outstanding | T3: Outstanding | U3: Outstanding
A4: =HYPERLINK("http://reports.ofsted.gov.uk/inspection-reports/find-inspection-report/provider/CARE/1155780","Ofsted Social Care Provider Webpage") -> Ofsted Social Care Provider Webpage | B4: 1155780 | C4: Children's home | D4: Active | E4: REDACTED | F4: REDACTED | G4: REDACTED | H4: REDACTED | I4: REDACTED | J4: REDACTED | K4: West Midlands | L4: Shropshire | M4: Private | N4: Full inspection | O4: 2016-08-02 | P4: 10019003 | Q4: Good | T4: Good | U4: Good
A5: =HYPERLINK("http://reports.ofsted.gov.uk/inspection-reports/find-inspection-report/provider/CARE/1164379","Ofsted Social Care Provider Webpage") -> Ofsted Social Care Provider Webpage | B5: 1164379 | C5: Children's home | D5: Active | E5: REDACTED | F5: REDACTED | G5: REDACTED | H5: REDACTED | I5: REDACTED | J5: REDACTED | K5: West Midlands | L5: Sandwell | M5: Private | N5: Full inspection | O5: 2016-05-12 | P5: 10015176 | Q5: Good | T5: Good | U5: Good
A6: =HYPERLINK("http://reports.ofsted.gov.uk/inspection-reports/find-inspection-report/provider/CARE/1183479","Ofsted Social Care Provider Webpage") -> Ofsted Social Care Provider Webpage | B6: 1183479 | C6: Children's home | D6: Active | E6: REDACTED | F6: REDACTED | G6: REDACTED | H6: REDACTED | I6: REDACTED | J6: REDACTED | K6: South East | L6: Slough | M6: Voluntary | N6: Full inspection | O6: 2016-08-10 | P6: 10015184 | Q6: Good | T6: Good | U6: Requires improvement
A7: =HYPERLINK("http://reports.ofsted.gov.uk/inspection-reports/find-inspection-report/provider/CARE/1205501","Ofsted Social Care Provider Webpage") -> Ofsted Social Care Provider Webpage | B7: 1205501 | C7: Children's home | D7: Active | E7: REDACTED | F7: REDACTED | G7: REDACTED | H7: REDACTED | I7: REDACTED | J7: REDACTED | K7: East Midlands | L7: Nottinghamshire | M7: Private | N7: Full inspection | O7: 2016-09-09 | P7: 10018272 | Q7: Inadequate | T7: Inadequate | U7: Inadequate
A8: =HYPERLINK("http://reports.ofsted.gov.uk/inspection-reports/find-inspection-report/provider/CARE/1220887","Ofsted Social Care Provider Webpage") -> Ofsted Social Care Provider Webpage | B8: 1220887 | C8: Children's home | D8: Active | E8: REDACTED | F8: REDACTED | G8: REDACTED | H8: REDACTED | I8: REDACTED | J8: REDACTED | K8: West Midlands | L8: Staffordshire | M8: Private | N8: Full inspection | O8: 2016-06-09 | P8: 10015200 | Q8: Good | T8: Good | U8: Good
A9: =HYPERLINK("http://reports.ofsted.gov.uk/inspection-reports/find-inspection-report/provider/CARE/1223501","Ofsted Social Care Provider Webpage") -> Ofsted Social Care Provider Webpage | B9: 1223501 | C9: Children's home | D9: Active | E9: REDACTED | F9: REDACTED | G9: REDACTED | H9: REDACTED | I9: REDACTED | J9: REDACTED | K9: North West | L9: Lancashire | M9: Private | N9: Full inspection | O9: 2016-07-20 | P9: 10018261 | Q9: Outstanding | T9: Outstanding | U9: Outstanding
A10: =HYPERLINK("http://reports.ofsted.gov.uk/inspection-reports/find-inspection-report/provider/CARE/1224251","Ofsted Social Care Provider Webpage") -> Ofsted Social Care Provider Webpage | B10: 1224251 | C10: Children's home | D10: Active | E10: REDACTED | F10: REDACTED | G10: REDACTED | H10: REDACTED | I10: REDACTED | J10: REDACTED | K10: North West | L10: Wigan | M10: Private | N10: Full inspection | O10: 2016-09-01 | P10: 10018934 | Q10: Good | T10: Good | U10: Good
A11: =HYPERLINK("http://reports.ofsted.gov.uk/inspection-reports/find-inspection-report/provider/CARE/1226495","Ofsted Social Care Provider Webpage") -> Ofsted Social Care Provider Webpage | B11: 1226495 | C11: Children's home | D11: Active | E11: REDACTED | F11: REDACTED | G11: REDACTED | H11: REDACTED | I11: REDACTED | J11: REDACTED | K11: South East | L11: West Sussex | M11: Private | N11: Full inspection | O11: 2016-09-07 | P11: 10018377 | Q11: Good | T11: Outstanding | U11: Outstanding
A12: =HYPERLINK("http://reports.ofsted.gov.uk/inspection-reports/find-inspection-report/provider/CARE/SC005066","Ofsted Social Care Provider Webpage") -> Ofsted Social Care Provider Webpage | B12: SC005066 | C12: Children's home | D12: Active | E12: REDACTED | F12: REDACTED | G12: REDACTED | H12: REDACTED | I12: REDACTED | J12: REDACTED | K12: West Midlands | L12: Staffordshire | M12: Private | N12: Full inspection | O12: 2015-07-29 | P12: 2457187 | Q12: Good | T12: Requires improvement | U12: Good
A13: =HYPERLINK("http://reports.ofsted.gov.uk/inspection-reports/find-inspection-report/provider/CARE/SC005067","Ofsted Social Care Provider Webpage") -> Ofsted Social Care Provider Webpage | B13: SC005067 | C13: Children's home | D13: Active | E13: REDACTED | F13: REDACTED | G13: REDACTED | H13: REDACTED | I13: REDACTED | J13: REDACTED | K13: West Midlands | L13: Staffordshire | M13: Private | N13: Full inspection | O13: 2016-05-18 | P13: 10013169 | Q13: Good | T13: Good | U13: Good
A14: =HYPERLINK("http://reports.ofsted.gov.uk/inspection-reports/find-inspection-report/provider/CARE/SC007284","Ofsted Social Care Provider Webpage") -> Ofsted Social Care Provider Webpage | B14: SC007284 | C14: Children's home | D14: Active | E14: REDACTED | F14: REDACTED | G14: REDACTED | H14: REDACTED | I14: REDACTED | J14: REDACTED | K14: London | L14: Waltham Forest | M14: Private | N14: Full inspection | O14: 2015-12-09 | P14: 2458781 | Q14: Outstanding | T14: Good | U14: Outstanding
A15: =HYPERLINK("http://reports.ofsted.gov.uk/inspection-reports/find-inspection-report/provider/CARE/SC007293","Ofsted Social Care Provider Webpage") -> Ofsted Social Care Provider Webpage | B15: SC007293 | C15: Children's home | D15: Active | E15: REDACTED | F15: REDACTED | G15: REDACTED | H15: REDACTED | I15: REDACTED | J15: REDACTED | K15: London | L15: Waltham Forest | M15: Private | N15: Full inspection | O15: 2016-08-03 | P15: 10013185 | Q15: Requires improvement | T15: Requires improvement | U15: Inadequate
A16: =HYPERLINK("http://reports.ofsted.gov.uk/inspection-reports/find-inspection-report/provider/CARE/SC008271","Ofsted Social Care Provider Webpage") -> Ofsted Social Care Provider Webpage | B16: SC008271 | C16: Children's home | D16: Active | E16: REDACTED | F16: REDACTED | G16: REDACTED | H16: REDACTED | I16: REDACTED | J16: REDACTED | K16: West Midlands | L16: Stoke-on-Trent | M16: Private | N16: Full inspection | O16: 2016-06-10 | P16: 10013193 | Q16: Good | T16: Good | U16: Good
A17: =HYPERLINK("http://reports.ofsted.gov.uk/inspection-reports/find-inspection-report/provider/CARE/SC008435","Ofsted Social Care Provider Webpage") -> Ofsted Social Care Provider Webpage | B17: SC008435 | C17: Children's home | D17: Active | E17: REDACTED | F17: REDACTED | G17: REDACTED | H17: REDACTED | I17: REDACTED | J17: REDACTED | K17: North West | L17: Bury | M17: Private | N17: Full inspection | O17: 2016-09-14 | P17: 10013197 | Q17: Good | T17: Good | U17: Good
A18: =HYPERLINK("http://reports.ofsted.gov.uk/inspection-reports/find-inspection-report/provider/CARE/SC010700","Ofsted Social Care Provider Webpage") -> Ofsted Social Care Provider Webpage | B18: SC010700 | C18: Children's home | D18: Active | E18: REDACTED | F18: REDACTED | G18: REDACTED | H18: REDACTED | I18: REDACTED | J18: REDACTED | K18: London | L18: Enfield | M18: Private | N18: Full inspection | O18: 2015-12-01 | P18: 2458341 | Q18: Requires improvement | T18: Requires improvement | U18: Requires improvement
A19: =HYPERLINK("http://reports.ofsted.gov.uk/inspection-reports/find-inspection-report/provider/CARE/SC011976","Ofsted Social Care Provider Webpage") -> Ofsted Social Care Provider Webpage | B19: SC011976 | C19: Children's home | D19: Active | E19: REDACTED | F19: REDACTED | G19: REDACTED | H19: REDACTED | I19: REDACTED | J19: REDACTED | K19: South East | L19: Hampshire | M19: Voluntary | N19: Full inspection | O19: 2015-08-04 | P19: 2458602 | Q19: Good | T19: Requires improvement | U19: Good
A20: =HYPERLINK("http://reports.ofsted.gov.uk/inspection-reports/find-inspection-report/provider/CARE/SC012021","Ofsted Social Care Provider Webpage") -> Ofsted Social Care Provider Webpage | B20: SC012021 | C20: Residential special school (registered as a children's home) | D20: Active | E20: REDACTED | F20: REDACTED | G20: REDACTED | H20: REDACTED | I20: REDACTED | J20: REDACTED | K20: South East | L20: Hampshire | M20: Voluntary | N20: Full inspection | O20: 2016-09-19 | P20: 10013224 | Q20: Good | T20: Good | U20: Good
A21: =HYPERLINK("http://reports.ofsted.gov.uk/inspection-reports/find-inspection-report/provider/CARE/SC014235","Ofsted Social Care Provider Webpage") -> Ofsted Social Care Provider Webpage | B21: SC014235 | C21: Children's home | D21: Active | E21: REDACTED | F21: REDACTED | G21: REDACTED | H21: REDACTED | I21: REDACTED | J21: REDACTED | K21: South East | L21: Brighton and Hove | M21: Private | N21: Full inspection | O21: 2016-07-21 | P21: 10013235 | Q21: Inadequate | T21: Inadequate | U21: Inadequate
A22: =HYPERLINK("http://reports.ofsted.gov.uk/inspection-reports/find-inspection-report/provider/CARE/SC016600","Ofsted Social Care Provider Webpage") -> Ofsted Social Care Provider Webpage | B22: SC016600 | C22: Children's home | D22: Active | E22: REDACTED | F22: REDACTED | G22: REDACTED | H22: REDACTED | I22: REDACTED | J22: REDACTED | K22: South West | L22: Gloucestershire | M22: Private | N22: Full inspection | O22: 2015-11-25 | P22: 2458744 | Q22: Good | T22: Good | U22: Good
A23: =HYPERLINK("http://reports.ofsted.gov.uk/inspection-reports/find-inspection-report/provider/CARE/SC016696","Ofsted Social Care Provider Webpage") -> Ofsted Social Care Provider Webpage | B23: SC016696 | C23: Children's home | D23: Active | E23: REDACTED | F23: REDACTED | G23: REDACTED | H23: REDACTED | I23: REDACTED | J23: REDACTED | K23: South West | L23: Gloucestershire | M23: Private | N23: Full inspection | O23: 2015-09-30 | P23: 10007949 | Q23: Requires improvement | T23: Requires improvement | U23: Requires improvement
A24: =HYPERLINK("http://reports.ofsted.gov.uk/inspection-reports/find-inspection-report/provider/CARE/SC016697","Ofsted Social Care Provider Webpage") -> Ofsted Social Care Provider Webpage | B24: SC016697 | C24: Children's home | D24: Active | E24: REDACTED | F24: REDACTED | G24: REDACTED | H24: REDACTED | I24: REDACTED | J24: REDACTED | K24: South West | L24: Gloucestershire | M24: Private | N24: Full inspection | O24: 2016-01-13 | P24: 2458658 | Q24: Outstanding | T24: Outstanding | U24: Outstanding
A25: =HYPERLINK("http://reports.ofsted.gov.uk/inspection-reports/find-inspection-report/provider/CARE/SC018238","Ofsted Social Care Provider Webpage") -> Ofsted Social Care Provider Webpage | B25: SC018238 | C25: Children's home | D25: Active | E25: REDACTED | F25: REDACTED | G25: REDACTED | H25: REDACTED | I25: REDACTED | J25: REDACTED | K25: Yorkshire and The Humber | L25: Barnsley | M25: Private | N25: Full inspection | O25: 2013-09-11 | P25: 927322 | Q25: Good | R25: Good | S25: Good | T25: Good | U25: Good
A26: =HYPERLINK("http://reports.ofsted.gov.uk/inspection-reports/find-inspection-report/provider/CARE/SC020545","Ofsted Social Care Provider Webpage") -> Ofsted Social Care Provider Webpage | B26: SC020545 | C26: Children's home | D26: Active | E26: REDACTED | F26: REDACTED | G26: REDACTED | H26: REDACTED | I26: REDACTED | J26: REDACTED | K26: West Midlands | L26: Telford and Wrekin | M26: Private | N26: Full inspection | O26: 2016-05-11 | P26: 10013255 | Q26: Good | T26: Good | U26: Good
A27: =HYPERLINK("http://reports.ofsted.gov.uk/inspection-reports/find-inspection-report/provider/CARE/SC020611","Ofsted Social Care Provider Webpage") -> Ofsted Social Care Provider Webpage | B27: SC020611 | C27: Children's home | D27: Active | E27: REDACTED | F27: REDACTED | G27: REDACTED | H27: REDACTED | I27: REDACTED | J27: REDACTED | K27: West Midlands | L27: Shropshire | M27: Private | N27: Full inspection | O27: 2016-07-08 | P27: 10013266 | Q27: Inadequate | T27: Inadequate | U27: Inadequate
A28: =HYPERLINK("http://reports.ofsted.gov.uk/inspection-reports/find-inspection-report/provider/CARE/SC020675","Ofsted Social Care Provider Webpage") -> Ofsted Social Care Provider Webpage | B28: SC020675 | C28: Children's home | D28: Active | E28: REDACTED | F28: REDACTED | G28: REDACTED | H28: REDACTED | I28: REDACTED | J28: REDACTED | K28: West Midlands | L28: Shropshire | M28: Voluntary | N28: Full inspection | O28: 2015-12-02 | P28: 2456811 | Q28: Good | T28: Good | U28: Requires improvement
A29: =HYPERLINK("http://reports.ofsted.gov.uk/inspection-reports/find-inspection-report/provider/CARE/SC022448","Ofsted Social Care Provider Webpage") -> Ofsted Social Care Provider Webpage | B29: SC022448 | C29: Secure children's home | D29: Active | E29: REDACTED | F29: REDACTED | G29: REDACTED | H29: REDACTED | I29: REDACTED | J29: REDACTED | K29: North West | L29: St Helens | M29: Voluntary | N29: Full inspection | O29: 2016-05-11 | P29: 10010293 | Q29: Requires improvement | R29: Good | T29: Requires improvement | U29: Requires improvement
A30: =HYPERLINK("http://reports.ofsted.gov.uk/inspection-reports/find-inspection-report/provider/CARE/SC022464","Ofsted Social Care Provider Webpage") -> Ofsted Social Care Provider Webpage | B30: SC022464 | C30: Children's home | D30: Active | E30: REDACTED | F30: REDACTED | G30: REDACTED | H30: REDACTED | I30: REDACTED | J30: REDACTED | K30: North West | L30: St Helens | M30: Private | N30: Full inspection | O30: 2016-01-22 | P30: 2457745 | Q30: Outstanding | T30: Outstanding | U30: Requires improvement
A31: =HYPERLINK("http://reports.ofsted.gov.uk/inspection-reports/find-inspection-report/provider/CARE/SC022775","Ofsted Social Care Provider Webpage") -> Ofsted Social Care Provider Webpage | B31: SC022775 | C31: Children's home | D31: Active | E31: REDACTED | F31: REDACTED | G31: REDACTED | H31: REDACTED | I31: REDACTED | J31: REDACTED | K31: London | L31: Lambeth | M31: Private | N31: Full inspection | O31: 2016-07-06 | P31: 10015369 | Q31: Inadequate | T31: Inadequate | U31: Inadequate
A32: =HYPERLINK("http://reports.ofsted.gov.uk/inspection-reports/find-inspection-report/provider/CARE/SC023645","Ofsted Social Care Provider Webpage") -> Ofsted Social Care Provider Webpage | B32: SC023645 | C32: Children's home | D32: Active | E32: REDACTED | F32: REDACTED | G32: REDACTED | H32: REDACTED | I32: REDACTED | J32: REDACTED | K32: South East | L32: Kent | M32: Private | N32: Full inspection | O32: 2015-12-02 | P32: 2458437 | Q32: Good | T32: Good | U32: Good
A33: =HYPERLINK("http://reports.ofsted.gov.uk/inspection-reports/find-inspection-report/provider/CARE/SC025720","Ofsted Social Care Provider Webpage") -> Ofsted Social Care Provider Webpage | B33: SC025720 | C33: Children's home | D33: Active | E33: REDACTED | F33: REDACTED | G33: REDACTED | H33: REDACTED | I33: REDACTED | J33: REDACTED | K33: East of England | L33: Norfolk | M33: Voluntary | N33: Full inspection | O33: 2016-07-28 | P33: 10013317 | Q33: Good | T33: Good | U33: Good
A34: =HYPERLINK("http://reports.ofsted.gov.uk/inspection-reports/find-inspection-report/provider/CARE/SC025744","Ofsted Social Care Provider Webpage") -> Ofsted Social Care Provider Webpage | B34: SC025744 | C34: Children's home | D34: Active | E34: REDACTED | F34: REDACTED | G34: REDACTED | H34: REDACTED | I34: REDACTED | J34: REDACTED | K34: North West | L34: Stockport | M34: Voluntary | N34: Full inspection | O34: 2016-06-22 | P34: 10013321 | Q34: Good | T34: Good | U34: Good
A35: =HYPERLINK("http://reports.ofsted.gov.uk/inspection-reports/find-inspection-report/provider/CARE/SC025940","Ofsted Social Care Provider Webpage") -> Ofsted Social Care Provider Webpage | B35: SC025940 | C35: Children's home | D35: Active | E35: REDACTED | F35: REDACTED | G35: REDACTED | H35: REDACTED | I35: REDACTED | J35: REDACTED | K35: London | L35: Redbridge | M35: Voluntary | N35: Full inspection | O35: 2016-06-08 | P35: 10013329 | Q35: Good | T35: Good | U35: Good
A36: =HYPERLINK("http://reports.ofsted.gov.uk/inspection-reports/find-inspection-report/provider/CARE/SC029504","Ofsted Social Care Provider Webpage") -> Ofsted Social Care Provider Webpage | B36: SC029504 | C36: Children's home | D36: Active | E36: REDACTED | F36: REDACTED | G36: REDACTED | H36: REDACTED | I36: REDACTED | J36: REDACTED | K36: East Midlands | L36: Nottingham | M36: Private | N36: Full inspection | O36: 2016-08-10 | P36: 10013347 | Q36: Good | T36: Outstanding | U36: Good
A37: =HYPERLINK("http://reports.ofsted.gov.uk/inspection-reports/find-inspection-report/provider/CARE/SC029865","Ofsted Social Care Provider Webpage") -> Ofsted Social Care Provider Webpage | B37: SC029865 | C37: Children's home | D37: Active | E37: REDACTED | F37: REDACTED | G37: REDACTED | H37: REDACTED | I37: REDACTED | J37: REDACTED | K37: South East | L37: West Sussex | M37: Private | N37: Full inspection | O37: 2016-08-26 | P37: 10013349 | Q37: Good | T37: Good | U37: Inadequate
A38: =HYPERLINK("http://reports.ofsted.gov.uk/inspection-reports/find-inspection-report/provider/CARE/SC031504","Ofsted Social Care Provider Webpage") -> Ofsted Social Care Provider Webpage | B38: SC031504 | C38: Children's home | D38: Active | E38: REDACTED | F38: REDACTED | G38: REDACTED | H38: REDACTED | I38: REDACTED | J38: REDACTED | K38: South West | L38: Bristol | M38: Local Authority | N38: Full inspection | O38: 2016-08-31 | P38: 10013362 | Q38: Good | T38: Good | U38: Good
A39: =HYPERLINK("http://reports.ofsted.gov.uk/inspection-reports/find-inspection-report/provider/CARE/SC032250","Ofsted Social Care Provider Webpage") -> Ofsted Social Care Provider Webpage | B39: SC032250 | C39: Children's home | D39: Active | E39: REDACTED | F39: REDACTED | G39: REDACTED | H39: REDACTED | I39: REDACTED | J39: REDACTED | K39: South West | L39: Dorset | M39: Local Authority | N39: Full inspection | O39: 2015-07-23 | P39: 2458717 | Q39: Good | T39: Good | U39: Good
A40: =HYPERLINK("http://reports.ofsted.gov.uk/inspection-reports/find-inspection-report/provider/CARE/SC032315","Ofsted Social Care Provider Webpage") -> Ofsted Social Care Provider Webpage | B40: SC032315 | C40: Children's home | D40: Active | E40: REDACTED | F40: REDACTED | G40: REDACTED | H40: REDACTED | I40: REDACTED | J40: REDACTED | K40: South East | L40: Brighton and Hove | M40: Local Authority | N40: Full inspection | O40: 2015-05-19 | P40: 2458398 | Q40: Outstanding | T40: Outstanding | U40: Outstanding
A41: =HYPERLINK("http://reports.ofsted.gov.uk/inspection-reports/find-inspection-report/provider/CARE/SC032723","Ofsted Social Care Provider Webpage") -> Ofsted Social Care Provider Webpage | B41: SC032723 | C41: Children's home | D41: Active | E41: REDACTED | F41: REDACTED | G41: REDACTED | H41: REDACTED | I41: REDACTED | J41: REDACTED | K41: North East | L41: Sunderland | M41: Local Authority | N41: Full inspection | O41: 2015-08-19 | P41: 2457763 | Q41: Good | T41: Good | U41: Requires improvement
A42: =HYPERLINK("http://reports.ofsted.gov.uk/inspection-reports/find-inspection-report/provider/CARE/SC033152","Ofsted Social Care Provider Webpage") -> Ofsted Social Care Provider Webpage | B42: SC033152 | C42: Children's home | D42: Active | E42: REDACTED | F42: REDACTED | G42: REDACTED | H42: REDACTED | I42: REDACTED | J42: REDACTED | K42: Yorkshire and The Humber | L42: North Lincolnshire | M42: Local Authority | N42: Full inspection | O42: 2016-01-27 | P42: 2457578 | Q42: Outstanding | T42: Good | U42: Good
A43: =HYPERLINK("http://reports.ofsted.gov.uk/inspection-reports/find-inspection-report/provider/CARE/SC033411","Ofsted Social Care Provider Webpage") -> Ofsted Social Care Provider Webpage | B43: SC033411 | C43: Children's home | D43: Active | E43: REDACTED | F43: REDACTED | G43: REDACTED | H43: REDACTED | I43: REDACTED | J43: REDACTED | K43: North West | L43: Blackpool | M43: Local Authority | N43: Full inspection | O43: 2016-04-28 | P43: 10013408 | Q43: Good | T43: Good | U43: Requires improvement
A44: =HYPERLINK("http://reports.ofsted.gov.uk/inspection-reports/find-inspection-report/provider/CARE/SC033457","Ofsted Social Care Provider Webpage") -> Ofsted Social Care Provider Webpage | B44: SC033457 | C44: Secure children's home | D44: Active | E44: REDACTED | F44: REDACTED | G44: REDACTED | H44: REDACTED | I44: REDACTED | J44: REDACTED | K44: Yorkshire and The Humber | L44: Leeds | M44: Local Authority | N44: Full inspection | O44: 2016-04-27 | P44: 10010291 | Q44: Outstanding | R44: Good | T44: Good | U44: Good
A45: =HYPERLINK("http://reports.ofsted.gov.uk/inspection-reports/find-inspection-report/provider/CARE/SC033672","Ofsted Social Care Provider Webpage") -> Ofsted Social Care Provider Webpage | B45: SC033672 | C45: Children's home | D45: Resigned | E45: REDACTED | F45: REDACTED | G45: REDACTED | H45: REDACTED | I45: REDACTED | J45: REDACTED | K45: West Midlands | L45: Birmingham | M45: Local Authority | N45: Full inspection | O45: 2015-12-17 | P45: 2457086 | Q45: Good | T45: Good | U45: Good
A46: =HYPERLINK("http://reports.ofsted.gov.uk/inspection-reports/find-inspection-report/provider/CARE/SC033723","Ofsted Social Care Provider Webpage") -> Ofsted Social Care Provider Webpage | B46: SC033723 | C46: Children's home | D46: Active | E46: REDACTED | F46: REDACTED | G46: REDACTED | H46: REDACTED | I46: REDACTED | J46: REDACTED | K46: Yorkshire and The Humber | L46: Leeds | M46: Local Authority | N46: Full inspection | O46: 2015-07-10 | P46: 2457714 | Q46: Good | T46: Outstanding | U46: Good
A47: =HYPERLINK("http://reports.ofsted.gov.uk/inspection-reports/find-inspection-report/provider/CARE/SC033896","Ofsted Social Care Provider Webpage") -> Ofsted Social Care Provider Webpage | B47: SC033896 | C47: Children's home | D47: Active | E47: REDACTED | F47: REDACTED | G47: REDACTED | H47: REDACTED | I47: REDACTED | J47: REDACTED | K47: South East | L47: Oxfordshire | M47: Local Authority | N47: Full inspection | O47: 2016-09-22 | P47: 10013435 | Q47: Good | T47: Good | U47: Good
A48: =HYPERLINK("http://reports.ofsted.gov.uk/inspection-reports/find-inspection-report/provider/CARE/SC034168","Ofsted Social Care Provider Webpage") -> Ofsted Social Care Provider Webpage | B48: SC034168 | C48: Children's home | D48: Active | E48: REDACTED | F48: REDACTED | G48: REDACTED | H48: REDACTED | I48: REDACTED | J48: REDACTED | K48: North West | L48: Cumbria | M48: Local Authority | N48: Full inspection | O48: 2015-12-02 | P48: 2458193 | Q48: Good | T48: Good | U48: Good
A49: =HYPERLINK("http://reports.ofsted.gov.uk/inspection-reports/find-inspection-report/provider/CARE/SC034189","Ofsted Social Care Provider Webpage") -> Ofsted Social Care Provider Webpage | B49: SC034189 | C49: Children's home | D49: Active | E49: REDACTED | F49: REDACTED | G49: REDACTED | H49: REDACTED | I49: REDACTED | J49: REDACTED | K49: Yorkshire and The Humber | L49: North Yorkshire | M49: Local Authority | N49: Full inspection | O49: 2015-08-06 | P49: 2458047 | Q49: Requires improvement | T49: Requires improvement | U49: Requires improvement
A50: =HYPERLINK("http://reports.ofsted.gov.uk/inspection-reports/find-inspection-report/provider/CARE/SC034415","Ofsted Social Care Provider Webpage") -> Ofsted Social Care Provider Webpage | B50: SC034415 | C50: Children's home | D50: Active | E50: REDACTED | F50: REDACTED | G50: REDACTED | H50: REDACTED | I50: REDACTED | J50: REDACTED | K50: Yorkshire and The Humber | L50: Kirklees | M50: Voluntary | N50: Full inspection | O50: 2015-11-05 | P50: 2458070 | Q50: Good | T50: Good | U50: Good
A51: =HYPERLINK("http://reports.ofsted.gov.uk/inspection-reports/find-inspection-report/provider/CARE/SC034775","Ofsted Social Care Provider Webpage") -> Ofsted Social Care Provider Webpage | B51: SC034775 | C51: Children's home | D51: Active | E51: REDACTED | F51: REDACTED | G51: REDACTED | H51: REDACTED | I51: REDACTED | J51: REDACTED | K51: East of England | L51: Cambridgeshire | M51: Local Authority | N51: Full inspection | O51: 2015-07-07 | P51: 2457008 | Q51: Requires improvement | T51: Requires improvement | U51: Requires improvement
A52: =HYPERLINK("http://reports.ofsted.gov.uk/inspection-reports/find-inspection-report/provider/CARE/SC034922","Ofsted Social Care Provider Webpage") -> Ofsted Social Care Provider Webpage | B52: SC034922 | C52: Children's home | D52: Active | E52: REDACTED | F52: REDACTED | G52: REDACTED | H52: REDACTED | I52: REDACTED | J52: REDACTED | K52: North West | L52: Rochdale | M52: Local Authority | N52: Full inspection | O52: 2016-09-21 | P52: 10013476 | Q52: Good | T52: Good | U52: Good
A53: =HYPERLINK("http://reports.ofsted.gov.uk/inspection-reports/find-inspection-report/provider/CARE/SC034969","Ofsted Social Care Provider Webpage") -> Ofsted Social Care Provider Webpage | B53: SC034969 | C53: Children's home | D53: Active | E53: REDACTED | F53: REDACTED | G53: REDACTED | H53: REDACTED | I53: REDACTED | J53: REDACTED | K53: East Midlands | L53: Nottingham | M53: Local Authority | N53: Full inspection | O53: 2015-10-22 | P53: 2457179 | Q53: Good | T53: Good | U53: Outstanding
A54: =HYPERLINK("http://reports.ofsted.gov.uk/inspection-reports/find-inspection-report/provider/CARE/SC035235","Ofsted Social Care Provider Webpage") -> Ofsted Social Care Provider Webpage | B54: SC035235 | C54: Children's home | D54: Active | E54: REDACTED | F54: REDACTED | G54: REDACTED | H54: REDACTED | I54: REDACTED | J54: REDACTED | K54: North East | L54: Durham | M54: Local Authority | N54: Full inspection | O54: 2015-12-16 | P54: 2458066 | Q54: Good | T54: Good | U54: Good
A55: =HYPERLINK("http://reports.ofsted.gov.uk/inspection-reports/find-inspection-report/provider/CARE/SC035241","Ofsted Social Care Provider Webpage") -> Ofsted Social Care Provider Webpage | B55: SC035241 | C55: Residential special school (registered as a children's home) | D55: Active | E55: REDACTED | F55: REDACTED | G55: REDACTED | H55: REDACTED | I55: REDACTED | J55: REDACTED | K55: Yorkshire and The Humber | L55: Doncaster | M55: Voluntary | N55: Full inspection | O55: 2016-06-22 | P55: 10013492 | Q55: Outstanding | T55: Outstanding | U55: Outstanding
A56: =HYPERLINK("http://reports.ofsted.gov.uk/inspection-reports/find-inspection-report/provider/CARE/SC035352","Ofsted Social Care Provider Webpage") -> Ofsted Social Care Provider Webpage | B56: SC035352 | C56: Children's home | D56: Active | E56: REDACTED | F56: REDACTED | G56: REDACTED | H56: REDACTED | I56: REDACTED | J56: REDACTED | K56: East Midlands | L56: Northamptonshire | M56: Local Authority | N56: Full inspection | O56: 2016-08-24 | P56: 10013495 | Q56: Good | T56: Good | U56: Good
A57: =HYPERLINK("http://reports.ofsted.gov.uk/inspection-reports/find-inspection-report/provider/CARE/SC035380","Ofsted Social Care Provider Webpage") -> Ofsted Social Care Provider Webpage | B57: SC035380 | C57: Children's home | D57: Active | E57: REDACTED | F57: REDACTED | G57: REDACTED | H57: REDACTED | I57: REDACTED | J57: REDACTED | K57: North East | L57: Stockton-on-Tees | M57: Local Authority | N57: Full inspection | O57: 2015-10-01 | P57: 2457474 | Q57: Outstanding | T57: Outstanding | U57: Outstanding
A58: =HYPERLINK("http://reports.ofsted.gov.uk/inspection-reports/find-inspection-report/provider/CARE/SC035648","Ofsted Social Care Provider Webpage") -> Ofsted Social Care Provider Webpage | B58: SC035648 | C58: Secure children's home | D58: Active | E58: REDACTED | F58: REDACTED | G58: REDACTED | H58: REDACTED | I58: REDACTED | J58: REDACTED | K58: North East | L58: Durham | M58: Local Authority | N58: Full inspection | O58: 2016-09-28 | P58: 10010303 | Q58: Good | R58: Good | T58: Good | U58: Good
A59: =HYPERLINK("http://reports.ofsted.gov.uk/inspection-reports/find-inspection-report/provider/CARE/SC035690","Ofsted Social Care Provider Webpage") -> Ofsted Social Care Provider Webpage | B59: SC035690 | C59: Children's home | D59: Active | E59: REDACTED | F59: REDACTED | G59: REDACTED | H59: REDACTED | I59: REDACTED | J59: REDACTED | K59: West Midlands | L59: Staffordshire | M59: Private | N59: Full inspection | O59: 2016-05-25 | P59: 10013514 | Q59: Good | T59: Good | U59: Good
A60: =HYPERLINK("http://reports.ofsted.gov.uk/inspection-reports/find-inspection-report/provider/CARE/SC035816","Ofsted Social Care Provider Webpage") -> Ofsted Social Care Provider Webpage | B60: SC035816 | C60: Children's home | D60: Active | E60: REDACTED | F60: REDACTED | G60: REDACTED | H60: REDACTED | I60: REDACTED | J60: REDACTED | K60: Yorkshire and The Humber | L60: Sheffield | M60: Private | N60: Full inspection | O60: 2015-10-07 | P60: 2457878 | Q60: Good | T60: Good | U60: Good
A61: =HYPERLINK("http://reports.ofsted.gov.uk/inspection-reports/find-inspection-report/provider/CARE/SC036243","Ofsted Social Care Provider Webpage") -> Ofsted Social Care Provider Webpage | B61: SC036243 | C61: Children's home | D61: Active | E61: REDACTED | F61: REDACTED | G61: REDACTED | H61: REDACTED | I61: REDACTED | J61: REDACTED | K61: East Midlands | L61: Derby | M61: Local Authority | N61: Full inspection | O61: 2015-05-13 | P61: 2456894 | Q61: Good | T61: Good | U61: Good
A62: =HYPERLINK("http://reports.ofsted.gov.uk/inspection-reports/find-inspection-report/provider/CARE/SC036528","Ofsted Social Care Provider Webpage") -> Ofsted Social Care Provider Webpage | B62: SC036528 | C62: Residential special school (registered as a children's home) | D62: Active | E62: REDACTED | F62: REDACTED | G62: REDACTED | H62: REDACTED | I62: REDACTED | J62: REDACTED | K62: South West | L62: Devon | M62: Private | N62: Full inspection | O62: 2016-06-28 | P62: 10013541 | Q62: Requires improvement | T62: Requires improvement | U62: Requires improvement
A63: =HYPERLINK("http://reports.ofsted.gov.uk/inspection-reports/find-inspection-report/provider/CARE/SC036726","Ofsted Social Care Provider Webpage") -> Ofsted Social Care Provider Webpage | B63: SC036726 | C63: Children's home | D63: Active | E63: REDACTED | F63: REDACTED | G63: REDACTED | H63: REDACTED | I63: REDACTED | J63: REDACTED | K63: East Midlands | L63: Nottinghamshire | M63: Local Authority | N63: Full inspection | O63: 2016-09-02 | P63: 10013544 | Q63: Outstanding | T63: Outstanding | U63: Outstanding
A64: =HYPERLINK("http://reports.ofsted.gov.uk/inspection-reports/find-inspection-report/provider/CARE/SC037181","Ofsted Social Care Provider Webpage") -> Ofsted Social Care Provider Webpage | B64: SC037181 | C64: Children's home | D64: Active | E64: REDACTED | F64: REDACTED | G64: REDACTED | H64: REDACTED | I64: REDACTED | J64: REDACTED | K64: North West | L64: Sefton | M64: Private | N64: Full inspection | O64: 2015-11-19 | P64: 2457708 | Q64: Good | T64: Good | U64: Good
A65: =HYPERLINK("http://reports.ofsted.gov.uk/inspection-reports/find-inspection-report/provider/CARE/SC037302","Ofsted Social Care Provider Webpage") -> Ofsted Social Care Provider Webpage | B65: SC037302 | C65: Children's home | D65: Active | E65: REDACTED | F65: REDACTED | G65: REDACTED | H65: REDACTED | I65: REDACTED | J65: REDACTED | K65: North West | L65: Warrington | M65: Local Authority | N65: Full inspection | O65: 2015-07-29 | P65: 2457879 | Q65: Outstanding | T65: Outstanding | U65: Outstanding
A66: =HYPERLINK("http://reports.ofsted.gov.uk/inspection-reports/find-inspection-report/provider/CARE/SC037423","Ofsted Social Care Provider Webpage") -> Ofsted Social Care Provider Webpage | B66: SC037423 | C66: Secure children's home | D66: Active | E66: REDACTED | F66: REDACTED | G66: REDACTED | H66: REDACTED | I66: REDACTED | J66: REDACTED | K66: South East | L66: Surrey | M66: Local Authority | N66: Full inspection | O66: 2016-06-29 | P66: 10010305 | Q66: Inadequate | R66: Requires improvement | T66: Inadequate | U66: Inadequate
A67: =HYPERLINK("http://reports.ofsted.gov.uk/inspection-reports/find-inspection-report/provider/CARE/SC037471","Ofsted Social Care Provider Webpage") -> Ofsted Social Care Provider Webpage | B67: SC037471 | C67: Children's home | D67: Active | E67: REDACTED | F67: REDACTED | G67: REDACTED | H67: REDACTED | I67: REDACTED | J67: REDACTED | K67: West Midlands | L67: Worcestershire | M67: Local Authority | N67: Full inspection | O67: 2016-08-03 | P67: 10013572 | Q67: Outstanding | T67: Outstanding | U67: Outstanding
A68: =HYPERLINK("http://reports.ofsted.gov.uk/inspection-reports/find-inspection-report/provider/CARE/SC037481","Ofsted Social Care Provider Webpage") -> Ofsted Social Care Provider Webpage | B68: SC037481 | C68: Children's home | D68: Active | E68: REDACTED | F68: REDACTED | G68: REDACTED | H68: REDACTED | I68: REDACTED | J68: REDACTED | K68: South East | L68: Reading | M68: Local Authority | N68: Full inspection | O68: 2016-06-03 | P68: 10013573 | Q68: Outstanding | T68: Good | U68: Outstanding
A69: =HYPERLINK("http://reports.ofsted.gov.uk/inspection-reports/find-inspection-report/provider/CARE/SC037596","Ofsted Social Care Provider Webpage") -> Ofsted Social Care Provider Webpage | B69: SC037596 | C69: Children's home | D69: Active | E69: REDACTED | F69: REDACTED | G69: REDACTED | H69: REDACTED | I69: REDACTED | J69: REDACTED | K69: South West | L69: Wiltshire | M69: Private | N69: Full inspection | O69: 2016-05-26 | P69: 10013577 | Q69: Good | T69: Good | U69: Good
A70: =HYPERLINK("http://reports.ofsted.gov.uk/inspection-reports/find-inspection-report/provider/CARE/SC038522","Ofsted Social Care Provider Webpage") -> Ofsted Social Care Provider Webpage | B70: SC038522 | C70: Children's home | D70: Active | E70: REDACTED | F70: REDACTED | G70: REDACTED | H70: REDACTED | I70: REDACTED | J70: REDACTED | K70: South East | L70: West Sussex | M70: Private | N70: Full inspection | O70: 2015-12-16 | P70: 2458667 | Q70: Good | T70: Good | U70: Good
A71: =HYPERLINK("http://reports.ofsted.gov.uk/inspection-reports/find-inspection-report/provider/CARE/SC038761","Ofsted Social Care Provider Webpage") -> Ofsted Social Care Provider Webpage | B71: SC038761 | C71: Children's home | D71: Active | E71: REDACTED | F71: REDACTED | G71: REDACTED | H71: REDACTED | I71: REDACTED | J71: REDACTED | K71: East of England | L71: Suffolk | M71: Local Authority | N71: Full inspection | O71: 2016-07-06 | P71: 10013603 | Q71: Good | T71: Good | U71: Good
A72: =HYPERLINK("http://reports.ofsted.gov.uk/inspection-reports/find-inspection-report/provider/CARE/SC038780","Ofsted Social Care Provider Webpage") -> Ofsted Social Care Provider Webpage | B72: SC038780 | C72: Children's home | D72: Active | E72: REDACTED | F72: REDACTED | G72: REDACTED | H72: REDACTED | I72: REDACTED | J72: REDACTED | K72: East Midlands | L72: Derby | M72: Private | N72: Full inspection | O72: 2016-08-18 | P72: 10013604 | Q72: Good | T72: Good | U72: Good
A73: =HYPERLINK("http://reports.ofsted.gov.uk/inspection-reports/find-inspection-report/provider/CARE/SC038804","Ofsted Social Care Provider Webpage") -> Ofsted Social Care Provider Webpage | B73: SC038804 | C73: Children's home | D73: Active | E73: REDACTED | F73: REDACTED | G73: REDACTED | H73: REDACTED | I73: REDACTED | J73: REDACTED | K73: West Midlands | L73: Dudley | M73: Local Authority | N73: Full inspection | O73: 2016-04-22 | P73: 10013606 | Q73: Good | T73: Good | U73: Good
A74: =HYPERLINK("http://reports.ofsted.gov.uk/inspection-reports/find-inspection-report/provider/CARE/SC039248","Ofsted Social Care Provider Webpage") -> Ofsted Social Care Provider Webpage | B74: SC039248 | C74: Children's home | D74: Active | E74: REDACTED | F74: REDACTED | G74: REDACTED | H74: REDACTED | I74: REDACTED | J74: REDACTED | K74: North West | L74: Lancashire | M74: Local Authority | N74: Full inspection | O74: 2015-08-13 | P74: 2457897 | Q74: Good | T74: Good | U74: Good
A75: =HYPERLINK("http://reports.ofsted.gov.uk/inspection-reports/find-inspection-report/provider/CARE/SC040266","Ofsted Social Care Provider Webpage") -> Ofsted Social Care Provider Webpage | B75: SC040266 | C75: Children's home | D75: Active | E75: REDACTED | F75: REDACTED | G75: REDACTED | H75: REDACTED | I75: REDACTED | J75: REDACTED | K75: North West | L75: Wigan | M75: Local Authority | N75: Full inspection | O75: 2015-11-19 | P75: 2457558 | Q75: Requires improvement | T75: Requires improvement | U75: Requires improvement
A76: =HYPERLINK("http://reports.ofsted.gov.uk/inspection-reports/find-inspection-report/provider/CARE/SC040509","Ofsted Social Care Provider Webpage") -> Ofsted Social Care Provider Webpage | B76: SC040509 | C76: Children's home | D76: Active | E76: REDACTED | F76: REDACTED | G76: REDACTED | H76: REDACTED | I76: REDACTED | J76: REDACTED | K76: North West | L76: Salford | M76: Local Authority | N76: Full inspection | O76: 2015-11-04 | P76: 2457946 | Q76: Outstanding | T76: Outstanding | U76: Outstanding
A77: =HYPERLINK("http://reports.ofsted.gov.uk/inspection-reports/find-inspection-report/provider/CARE/SC040642","Ofsted Social Care Provider Webpage") -> Ofsted Social Care Provider Webpage | B77: SC040642 | C77: Children's home | D77: Active | E77: REDACTED | F77: REDACTED | G77: REDACTED | H77: REDACTED | I77: REDACTED | J77: REDACTED | K77: South East | L77: Surrey | M77: Local Authority | N77: Full inspection | O77: 2016-07-28 | P77: 10013648 | Q77: Good | T77: Good | U77: Good
A78: =HYPERLINK("http://reports.ofsted.gov.uk/inspection-reports/find-inspection-report/provider/CARE/SC040785","Ofsted Social Care Provider Webpage") -> Ofsted Social Care Provider Webpage | B78: SC040785 | C78: Children's home | D78: Active | E78: REDACTED | F78: REDACTED | G78: REDACTED | H78: REDACTED | I78: REDACTED | J78: REDACTED | K78: North West | L78: Sefton | M78: Private | N78: Full inspection | O78: 2015-12-16 | P78: 2457923 | Q78: Requires improvement | T78: Requires improvement | U78: Requires improvement
A79: =HYPERLINK("http://reports.ofsted.gov.uk/inspection-reports/find-inspection-report/provider/CARE/SC040982","Ofsted Social Care Provider Webpage") -> Ofsted Social Care Provider Webpage | B79: SC040982 | C79: Children's home | D79: Active | E79: REDACTED | F79: REDACTED | G79: REDACTED | H79: REDACTED | I79: REDACTED | J79: REDACTED | K79: North West | L79: Wigan | M79: Local Authority | N79: Full inspection | O79: 2015-10-28 | P79: 2457600 | Q79: Outstanding | T79: Outstanding | U79: Outstanding
A80: =HYPERLINK("http://reports.ofsted.gov.uk/inspection-reports/find-inspection-report/provider/CARE/SC041114","Ofsted Social Care Provider Webpage") -> Ofsted Social Care Provider Webpage | B80: SC041114 | C80: Children's home | D80: Active | E80: REDACTED | F80: REDACTED | G80: REDACTED | H80: REDACTED | I80: REDACTED | J80: REDACTED | K80: West Midlands | L80: Walsall | M80: Private | N80: Full inspection | O80: 2015-11-03 | P80: 2457222 | Q80: Good | T80: Good | U80: Requires improvement
A81: =HYPERLINK("http://reports.ofsted.gov.uk/inspection-reports/find-inspection-report/provider/CARE/SC042967","Ofsted Social Care Provider Webpage") -> Ofsted Social Care Provider Webpage | B81: SC042967 | C81: Children's home | D81: Active | E81: REDACTED | F81: REDACTED | G81: REDACTED | H81: REDACTED | I81: REDACTED | J81: REDACTED | K81: East Midlands | L81: Lincolnshire | M81: Local Authority | N81: Full inspection | O81: 2016-09-27 | P81: 10013666 | Q81: Good | T81: Good | U81: Good
A82: =HYPERLINK("http://reports.ofsted.gov.uk/inspection-reports/find-inspection-report/provider/CARE/SC043197","Ofsted Social Care Provider Webpage") -> Ofsted Social Care Provider Webpage | B82: SC043197 | C82: Children's home | D82: Active | E82: REDACTED | F82: REDACTED | G82: REDACTED | H82: REDACTED | I82: REDACTED | J82: REDACTED | K82: South East | L82: Isle of Wight | M82: Private | N82: Full inspection | O82: 2016-08-24 | P82: 10013669 | Q82: Good | T82: Good | U82: Good
A83: =HYPERLINK("http://reports.ofsted.gov.uk/inspection-reports/find-inspection-report/provider/CARE/SC043245","Ofsted Social Care Provider Webpage") -> Ofsted Social Care Provider Webpage | B83: SC043245 | C83: Children's home | D83: Active | E83: REDACTED | F83: REDACTED | G83: REDACTED | H83: REDACTED | I83: REDACTED | J83: REDACTED | K83: South West | L83: Wiltshire | M83: Private | N83: Full inspection | O83: 2016-08-11 | P83: 10013670 | Q83: Good | T83: Good | U83: Requires improvement
A84: =HYPERLINK("http://reports.ofsted.gov.uk/inspection-reports/find-inspection-report/provider/CARE/SC044224","Ofsted Social Care Provider Webpage") -> Ofsted Social Care Provider Webpage | B84: SC044224 | C84: Children's home | D84: Active | E84: REDACTED | F84: REDACTED | G84: REDACTED | H84: REDACTED | I84: REDACTED | J84: REDACTED | K84: North West | L84: Lancashire | M84: Private | N84: Full inspection | O84: 2015-10-07 | P84: 2458169 | Q84: Requires improvement | T84: Good | U84: Requires improvement
A85: =HYPERLINK("http://reports.ofsted.gov.uk/inspection-reports/find-inspection-report/provider/CARE/SC044276","Ofsted Social Care Provider Webpage") -> Ofsted Social Care Provider Webpage | B85: SC044276 | C85: Children's home | D85: Active | E85: REDACTED | F85: REDACTED | G85: REDACTED | H85: REDACTED | I85: REDACTED | J85: REDACTED | K85: North West | L85: Liverpool | M85: Private | N85: Full inspection | O85: 2016-01-26 | P85: 2457830 | Q85: Outstanding | T85: Outstanding | U85: Outstanding
A86: =HYPERLINK("http://reports.ofsted.gov.uk/inspection-reports/find-inspection-report/provider/CARE/SC044485","Ofsted Social Care Provider Webpage") -> Ofsted Social Care Provider Webpage | B86: SC044485 | C86: Children's home | D86: Active | E86: REDACTED | F86: REDACTED | G86: REDACTED | H86: REDACTED | I86: REDACTED | J86: REDACTED | K86: North East | L86: Newcastle upon Tyne | M86: Local Authority | N86: Full inspection | O86: 2015-11-19 | P86: 2457481 | Q86: Outstanding | T86: Outstanding | U86: Outstanding
A87: =HYPERLINK("http://reports.ofsted.gov.uk/inspection-reports/find-inspection-report/provider/CARE/SC046276","Ofsted Social Care Provider Webpage") -> Ofsted Social Care Provider Webpage | B87: SC046276 | C87: Secure children's home | D87: Active | E87: REDACTED | F87: REDACTED | G87: REDACTED | H87: REDACTED | I87: REDACTED | J87: REDACTED | K87: South West | L87: Devon | M87: Local Authority | N87: Full inspection | O87: 2016-09-29 | P87: 10010301 | Q87: Good | R87: Good | T87: Good | U87: Requires improvement
A88: =HYPERLINK("http://reports.ofsted.gov.uk/inspection-reports/find-inspection-report/provider/CARE/SC051856","Ofsted Social Care Provider Webpage") -> Ofsted Social Care Provider Webpage | B88: SC051856 | C88: Children's home | D88: Active | E88: REDACTED | F88: REDACTED | G88: REDACTED | H88: REDACTED | I88: REDACTED | J88: REDACTED | K88: North West | L88: Wigan | M88: Local Authority | N88: Full inspection | O88: 2015-11-04 | P88: 2457550 | Q88: Outstanding | T88: Outstanding | U88: Good
A89: =HYPERLINK("http://reports.ofsted.gov.uk/inspection-reports/find-inspection-report/provider/CARE/SC052599","Ofsted Social Care Provider Webpage") -> Ofsted Social Care Provider Webpage | B89: SC052599 | C89: Children's home | D89: Active | E89: REDACTED | F89: REDACTED | G89: REDACTED | H89: REDACTED | I89: REDACTED | J89: REDACTED | K89: South East | L89: Milton Keynes | M89: Local Authority | N89: Full inspection | O89: 2016-06-23 | P89: 10013713 | Q89: Good | T89: Good | U89: Good
A90: =HYPERLINK("http://reports.ofsted.gov.uk/inspection-reports/find-inspection-report/provider/CARE/SC052744","Ofsted Social Care Provider Webpage") -> Ofsted Social Care Provider Webpage | B90: SC052744 | C90: Children's home | D90: Active | E90: REDACTED | F90: REDACTED | G90: REDACTED | H90: REDACTED | I90: REDACTED | J90: REDACTED | K90: North West | L90: Knowsley | M90: Private | N90: Full inspection | O90: 2015-07-22 | P90: 2457815 | Q90: Requires improvement | T90: Requires improvement | U90: Requires improvement
A91: =HYPERLINK("http://reports.ofsted.gov.uk/inspection-reports/find-inspection-report/provider/CARE/SC054030","Ofsted Social Care Provider Webpage") -> Ofsted Social Care Provider Webpage | B91: SC054030 | C91: Children's home | D91: Active | E91: REDACTED | F91: REDACTED | G91: REDACTED | H91: REDACTED | I91: REDACTED | J91: REDACTED | K91: South West | L91: Bath and North East Somerset | M91: Voluntary | N91: Full inspection | O91: 2016-06-09 | P91: 10013718 | Q91: Requires improvement | T91: Good | U91: Requires improvement
A92: =HYPERLINK("http://reports.ofsted.gov.uk/inspection-reports/find-inspection-report/provider/CARE/SC059717","Ofsted Social Care Provider Webpage") -> Ofsted Social Care Provider Webpage | B92: SC059717 | C92: Children's home | D92: Active | E92: REDACTED | F92: REDACTED | G92: REDACTED | H92: REDACTED | I92: REDACTED | J92: REDACTED | K92: South West | L92: Wiltshire | M92: Private | N92: Full inspection | O92: 2016-09-30 | P92: 10013744 | Q92: Outstanding | T92: Outstanding | U92: Good
A93: =HYPERLINK("http://reports.ofsted.gov.uk/inspection-reports/find-inspection-report/provider/CARE/1155776","Ofsted Social Care Provider Webpage") -> Ofsted Social Care Provider Webpage | B93: 1155776 | C93: Children's home | D93: Active | E93: REDACTED | F93: REDACTED | G93: REDACTED | H93: REDACTED | I93: REDACTED | J93: REDACTED | K93: North West | L93: Lancashire | M93: Private | N93: Full inspection | O93: 2016-03-23 | P93: 10017313 | Q93: Requires improvement | T93: Requires improvement | U93: Requires improvement
A94: =HYPERLINK("http://reports.ofsted.gov.uk/inspection-reports/find-inspection-report/provider/CARE/1159682","Ofsted Social Care Provider Webpage") -> Ofsted Social Care Provider Webpage | B94: 1159682 | C94: Children's home | D94: Active | E94: REDACTED | F94: REDACTED | G94: REDACTED | H94: REDACTED | I94: REDACTED | J94: REDACTED | K94: London | L94: Islington | M94: Voluntary | N94: Full inspection | O94: 2016-08-31 | P94: 10022073 | Q94: Good | T94: Requires improvement | U94: Good
A95: =HYPERLINK("http://reports.ofsted.gov.uk/inspection-reports/find-inspection-report/provider/CARE/1183070","Ofsted Social Care Provider Webpage") -> Ofsted Social Care Provider Webpage | B95: 1183070 | C95: Children's home | D95: Active | E95: REDACTED | F95: REDACTED | G95: REDACTED | H95: REDACTED | I95: REDACTED | J95: REDACTED | K95: East Midlands | L95: Derby | M95: Private | N95: Full inspection | O95: 2016-04-27 | P95: 10015180 | Q95: Requires improvement | T95: Requires improvement | U95: Requires improvement
A96: =HYPERLINK("http://reports.ofsted.gov.uk/inspection-reports/find-inspection-report/provider/CARE/1183618","Ofsted Social Care Provider Webpage") -> Ofsted Social Care Provider Webpage | B96: 1183618 | C96: Children's home | D96: Active | E96: REDACTED | F96: REDACTED | G96: REDACTED | H96: REDACTED | I96: REDACTED | J96: REDACTED | K96: South West | L96: Cornwall | M96: Voluntary | N96: Full inspection | O96: 2016-04-13 | P96: 10015186 | Q96: Good | T96: Requires improvement | U96: Requires improvement
A97: =HYPERLINK("http://reports.ofsted.gov.uk/inspection-reports/find-inspection-report/provider/CARE/1183621","Ofsted Social Care Provider Webpage") -> Ofsted Social Care Provider Webpage | B97: 1183621 | C97: Children's home | D97: Active | E97: REDACTED | F97: REDACTED | G97: REDACTED | H97: REDACTED | I97: REDACTED | J97: REDACTED | K97: East of England | L97: Essex | M97: Private | N97: Full inspection | O97: 2016-08-11 | P97: 10018275 | Q97: Requires improvement | T97: Requires improvement | U97: Requires improvement
A98: =HYPERLINK("http://reports.ofsted.gov.uk/inspection-reports/find-inspection-report/provider/CARE/1185488","Ofsted Social Care Provider Webpage") -> Ofsted Social Care Provider Webpage | B98: 1185488 | C98: Children's home | D98: Active | E98: REDACTED | F98: REDACTED | G98: REDACTED | H98: REDACTED | I98: REDACTED | J98: REDACTED | K98: South East | L98: Reading | M98: Private | N98: Full inspection | O98: 2016-04-27 | P98: 10015191 | Q98: Good | T98: Good | U98: Good
A99: =HYPERLINK("http://reports.ofsted.gov.uk/inspection-reports/find-inspection-report/provider/CARE/1213828","Ofsted Social Care Provider Webpage") -> Ofsted Social Care Provider Webpage | B99: 1213828 | C99: Children's home | D99: Active | E99: REDACTED | F99: REDACTED | G99: REDACTED | H99: REDACTED | I99: REDACTED | J99: REDACTED | K99: North West | L99: St Helens | M99: Private | N99: Full inspection | O99: 2016-05-06 | P99: 10018227 | Q99: Good | T99: Good | U99: Good
A100: =HYPERLINK("http://reports.ofsted.gov.uk/inspection-reports/find-inspection-report/provider/CARE/1228919","Ofsted Social Care Provider Webpage") -> Ofsted Social Care Provider Webpage | B100: 1228919 | C100: Children's home | D100: Active | E100: REDACTED | F100: REDACTED | G100: REDACTED | H100: REDACTED | I100: REDACTED | J100: REDACTED | K100: South East | L100: East Sussex | M100: Private | N100: Full inspection | O100: 2016-09-01 | P100: 10020434 | Q100: Good | T100: Good | U100: Good
A101: =HYPERLINK("http://reports.ofsted.gov.uk/inspection-reports/find-inspection-report/provider/CARE/1231066","Ofsted Social Care Provider Webpage") -> Ofsted Social Care Provider Webpage | B101: 1231066 | C101: Children's home | D101: Active | E101: REDACTED | F101: REDACTED | G101: REDACTED | H101: REDACTED | I101: REDACTED | J101: REDACTED | K101: South West | L101: Devon | M101: Private | N101: Full inspection | O101: 2016-04-14 | P101: 10018287 | Q101: Requires improvement | T101: Good | U101: Requires improvement
A102: =HYPERLINK("http://reports.ofsted.gov.uk/inspection-reports/find-inspection-report/provider/CARE/1233003","Ofsted Social Care Provider Webpage") -> Ofsted Social Care Provider Webpage | B102: 1233003 | C102: Children's home | D102: Active | E102: REDACTED | F102: REDACTED | G102: REDACTED | H102: REDACTED | I102: REDACTED | J102: REDACTED | K102: South West | L102: Dorset | M102: Private | N102: Full inspection | O102: 2016-08-25 | P102: 10018814 | Q102: Good | T102: Requires improvement | U102: Good
A103: =HYPERLINK("http://reports.ofsted.gov.uk/inspection-reports/find-inspection-report/provider/CARE/SC001531","Ofsted Social Care Provider Webpage") -> Ofsted Social Care Provider Webpage | B103: SC001531 | C103: Children's home | D103: Active | E103: REDACTED | F103: REDACTED | G103: REDACTED | H103: REDACTED | I103: REDACTED | J103: REDACTED | K103: Yorkshire and The Humber | L103: Leeds | M103: Voluntary | N103: Full inspection | O103: 2015-07-21 | P103: 2457938 | Q103: Outstanding | T103: Good | U103: Good
A104: =HYPERLINK("http://reports.ofsted.gov.uk/inspection-reports/find-inspection-report/provider/CARE/SC006011","Ofsted Social Care Provider Webpage") -> Ofsted Social Care Provider Webpage | B104: SC006011 | C104: Children's home | D104: Active | E104: REDACTED | F104: REDACTED | G104: REDACTED | H104: REDACTED | I104: REDACTED | J104: REDACTED | K104: North West | L104: Lancashire | M104: Private | N104: Full inspection | O104: 2016-04-27 | P104: 10013176 | Q104: Good | T104: Good | U104: Requires improvement
A105: =HYPERLINK("http://reports.ofsted.gov.uk/inspection-reports/find-inspection-report/provider/CARE/SC006294","Ofsted Social Care Provider Webpage") -> Ofsted Social Care Provider Webpage | B105: SC006294 | C105: Children's home | D105: Active | E105: REDACTED | F105: REDACTED | G105: REDACTED | H105: REDACTED | I105: REDACTED | J105: REDACTED | K105: Yorkshire and The Humber | L105: Wakefield | M105: Private | N105: Full inspection | O105: 2016-01-27 | P105: 2458132 | Q105: Outstanding | T105: Outstanding | U105: Outstanding
A106: =HYPERLINK("http://reports.ofsted.gov.uk/inspection-reports/find-inspection-report/provider/CARE/SC007286","Ofsted Social Care Provider Webpage") -> Ofsted Social Care Provider Webpage | B106: SC007286 | C106: Children's home | D106: Active | E106: REDACTED | F106: REDACTED | G106: REDACTED | H106: REDACTED | I106: REDACTED | J106: REDACTED | K106: London | L106: Waltham Forest | M106: Private | N106: Full inspection | O106: 2012-04-25 | P106: 793533 | Q106: Adequate | R106: Adequate | S106: Adequate | T106: Adequate | U106: Adequate
A107: =HYPERLINK("http://reports.ofsted.gov.uk/inspection-reports/find-inspection-report/provider/CARE/SC008608","Ofsted Social Care Provider Webpage") -> Ofsted Social Care Provider Webpage | B107: SC008608 | C107: Children's home | D107: Active | E107: REDACTED | F107: REDACTED | G107: REDACTED | H107: REDACTED | I107: REDACTED | J107: REDACTED | K107: North West | L107: Stockport | M107: Private | N107: Full inspection | O107: 2015-10-23 | P107: 2457908 | Q107: Good | T107: Good | U107: Good
A108: =HYPERLINK("http://reports.ofsted.gov.uk/inspection-reports/find-inspection-report/provider/CARE/SC009653","Ofsted Social Care Provider Webpage") -> Ofsted Social Care Provider Webpage | B108: SC009653 | C108: Children's home | D108: Active | E108: REDACTED | F108: REDACTED | G108: REDACTED | H108: REDACTED | I108: REDACTED | J108: REDACTED | K108: North West | L108: Lancashire | M108: Private | N108: Full inspection | O108: 2015-08-26 | P108: 2457744 | Q108: Good | T108: Good | U108: Good
A109: =HYPERLINK("http://reports.ofsted.gov.uk/inspection-reports/find-inspection-report/provider/CARE/SC012939","Ofsted Social Care Provider Webpage") -> Ofsted Social Care Provider Webpage | B109: SC012939 | C109: Residential special school (registered as a children's home) | D109: Active | E109: REDACTED | F109: REDACTED | G109: REDACTED | H109: REDACTED | I109: REDACTED | J109: REDACTED | K109: East Midlands | L109: Northamptonshire | M109: Voluntary | N109: Full inspection | O109: 2016-07-07 | P109: 10013225 | Q109: Good | T109: Requires improvement | U109: Good
A110: =HYPERLINK("http://reports.ofsted.gov.uk/inspection-reports/find-inspection-report/provider/CARE/SC013144","Ofsted Social Care Provider Webpage") -> Ofsted Social Care Provider Webpage | B110: SC013144 | C110: Children's home | D110: Active | E110: REDACTED | F110: REDACTED | G110: REDACTED | H110: REDACTED | I110: REDACTED | J110: REDACTED | K110: South East | L110: Oxfordshire | M110: Voluntary | N110: Full inspection | O110: 2016-09-15 | P110: 10013227 | Q110: Good | T110: Good | U110: Good
A111: =HYPERLINK("http://reports.ofsted.gov.uk/inspection-reports/find-inspection-report/provider/CARE/SC015266","Ofsted Social Care Provider Webpage") -> Ofsted Social Care Provider Webpage | B111: SC015266 | C111: Children's home | D111: Active | E111: REDACTED | F111: REDACTED | G111: REDACTED | H111: REDACTED | I111: REDACTED | J111: REDACTED | K111: East of England | L111: Cambridgeshire | M111: Voluntary | N111: Full inspection | O111: 2015-09-30 | P111: 2456688 | Q111: Good | T111: Requires improvement | U111: Good
A112: =HYPERLINK("http://reports.ofsted.gov.uk/inspection-reports/find-inspection-report/provider/CARE/SC016124","Ofsted Social Care Provider Webpage") -> Ofsted Social Care Provider Webpage | B112: SC016124 | C112: Children's home | D112: Active | E112: REDACTED | F112: REDACTED | G112: REDACTED | H112: REDACTED | I112: REDACTED | J112: REDACTED | K112: South West | L112: Somerset | M112: Private | N112: Full inspection | O112: 2016-07-12 | P112: 10021328 | Q112: Requires improvement | T112: Requires improvement | U112: Requires improvement
A113: =HYPERLINK("http://reports.ofsted.gov.uk/inspection-reports/find-inspection-report/provider/CARE/SC020133","Ofsted Social Care Provider Webpage") -> Ofsted Social Care Provider Webpage | B113: SC020133 | C113: Children's home | D113: Active | E113: REDACTED | F113: REDACTED | G113: REDACTED | H113: REDACTED | I113: REDACTED | J113: REDACTED | K113: East Midlands | L113: Derbyshire | M113: Private | N113: Full inspection | O113: 2015-08-19 | P113: 2457185 | Q113: Outstanding | T113: Outstanding | U113: Outstanding
A114: =HYPERLINK("http://reports.ofsted.gov.uk/inspection-reports/find-inspection-report/provider/CARE/SC020558","Ofsted Social Care Provider Webpage") -> Ofsted Social Care Provider Webpage | B114: SC020558 | C114: Residential special school (registered as a children's home) | D114: Active | E114: REDACTED | F114: REDACTED | G114: REDACTED | H114: REDACTED | I114: REDACTED | J114: REDACTED | K114: West Midlands | L114: Telford and Wrekin | M114: Private | N114: Full inspection | O114: 2015-12-03 | P114: 2457249 | Q114: Outstanding | T114: Outstanding | U114: Good
A115: =HYPERLINK("http://reports.ofsted.gov.uk/inspection-reports/find-inspection-report/provider/CARE/SC020576","Ofsted Social Care Provider Webpage") -> Ofsted Social Care Provider Webpage | B115: SC020576 | C115: Children's home | D115: Active | E115: REDACTED | F115: REDACTED | G115: REDACTED | H115: REDACTED | I115: REDACTED | J115: REDACTED | K115: West Midlands | L115: Telford and Wrekin | M115: Private | N115: Full inspection | O115: 2015-09-25 | P115: 2457186 | Q115: Good | T115: Good | U115: Good
A116: =HYPERLINK("http://reports.ofsted.gov.uk/inspection-reports/find-inspection-report/provider/CARE/SC020602","Ofsted Social Care Provider Webpage") -> Ofsted Social Care Provider Webpage | B116: SC020602 | C116: Children's home | D116: Active | E116: REDACTED | F116: REDACTED | G116: REDACTED | H116: REDACTED | I116: REDACTED | J116: REDACTED | K116: West Midlands | L116: Shropshire | M116: Private | N116: Full inspection | O116: 2016-06-22 | P116: 10013261 | Q116: Good | T116: Good | U116: Requires improvement
A117: =HYPERLINK("http://reports.ofsted.gov.uk/inspection-reports/find-inspection-report/provider/CARE/SC021684","Ofsted Social Care Provider Webpage") -> Ofsted Social Care Provider Webpage | B117: SC021684 | C117: Children's home | D117: Active | E117: REDACTED | F117: REDACTED | G117: REDACTED | H117: REDACTED | I117: REDACTED | J117: REDACTED | K117: North West | L117: Manchester | M117: Private | N117: Full inspection | O117: 2015-05-20 | P117: 2457639 | Q117: Good | T117: Good | U117: Good
A118: =HYPERLINK("http://reports.ofsted.gov.uk/inspection-reports/find-inspection-report/provider/CARE/SC022437","Ofsted Social Care Provider Webpage") -> Ofsted Social Care Provider Webpage | B118: SC022437 | C118: Children's home | D118: Active | E118: REDACTED | F118: REDACTED | G118: REDACTED | H118: REDACTED | I118: REDACTED | J118: REDACTED | K118: North West | L118: St Helens | M118: Private | N118: Full inspection | O118: 2015-10-29 | P118: 2457675 | Q118: Good | T118: Good | U118: Requires improvement
A119: =HYPERLINK("http://reports.ofsted.gov.uk/inspection-reports/find-inspection-report/provider/CARE/SC023637","Ofsted Social Care Provider Webpage") -> Ofsted Social Care Provider Webpage | B119: SC023637 | C119: Children's home | D119: Active | E119: REDACTED | F119: REDACTED | G119: REDACTED | H119: REDACTED | I119: REDACTED | J119: REDACTED | K119: South East | L119: Kent | M119: Private | N119: Full inspection | O119: 2016-09-15 | P119: 10013288 | Q119: Good | T119: Good | U119: Good
A120: =HYPERLINK("http://reports.ofsted.gov.uk/inspection-reports/find-inspection-report/provider/CARE/SC023644","Ofsted Social Care Provider Webpage") -> Ofsted Social Care Provider Webpage | B120: SC023644 | C120: Children's home | D120: Active | E120: REDACTED | F120: REDACTED | G120: REDACTED | H120: REDACTED | I120: REDACTED | J120: REDACTED | K120: South East | L120: Kent | M120: Private | N120: Full inspection | O120: 2011-02-25 | P120: 702881 | Q120: Satisfactory | T120: Not judged | U120: Not judged
A121: =HYPERLINK("http://reports.ofsted.gov.uk/inspection-reports/find-inspection-report/provider/CARE/SC024089","Ofsted Social Care Provider Webpage") -> Ofsted Social Care Provider Webpage | B121: SC024089 | C121: Children's home | D121: Active | E121: REDACTED | F121: REDACTED | G121: REDACTED | H121: REDACTED | I121: REDACTED | J121: REDACTED | K121: South East | L121: Kent | M121: Private | N121: Full inspection | O121: 2015-11-19 | P121: 2458765 | Q121: Outstanding | T121: Outstanding | U121: Outstanding
A122: =HYPERLINK("http://reports.ofsted.gov.uk/inspection-reports/find-inspection-report/provider/CARE/SC025700","Ofsted Social Care Provider Webpage") -> Ofsted Social Care Provider Webpage | B122: SC025700 | C122: Children's home | D122: Active | E122: REDACTED | F122: REDACTED | G122: REDACTED | H122: REDACTED | I122: REDACTED | J122: REDACTED | K122: East of England | L122: Norfolk | M122: Voluntary | N122: Full inspection | O122: 2016-09-29 | P122: 10013311 | Q122: Outstanding | T122: Outstanding | U122: Outstanding
A123: =HYPERLINK("http://reports.ofsted.gov.uk/inspection-reports/find-inspection-report/provider/CARE/SC025740","Ofsted Social Care Provider Webpage") -> Ofsted Social Care Provider Webpage | B123: SC025740 | C123: Children's home | D123: Active | E123: REDACTED | F123: REDACTED | G123: REDACTED | H123: REDACTED | I123: REDACTED | J123: REDACTED | K123: North West | L123: Stockport | M123: Voluntary | N123: Full inspection | O123: 2016-07-13 | P123: 10013320 | Q123: Good | T123: Good | U123: Requires improvement
A124: =HYPERLINK("http://reports.ofsted.gov.uk/inspection-reports/find-inspection-report/provider/CARE/SC025812","Ofsted Social Care Provider Webpage") -> Ofsted Social Care Provider Webpage | B124: SC025812 | C124: Children's home | D124: Active | E124: REDACTED | F124: REDACTED | G124: REDACTED | H124: REDACTED | I124: REDACTED | J124: REDACTED | K124: London | L124: Croydon | M124: Private | N124: Full inspection | O124: 2015-11-18 | P124: 2458770 | Q124: Good | T124: Good | U124: Requires improvement
A125: =HYPERLINK("http://reports.ofsted.gov.uk/inspection-reports/find-inspection-report/provider/CARE/SC028905","Ofsted Social Care Provider Webpage") -> Ofsted Social Care Provider Webpage | B125: SC028905 | C125: Children's home | D125: Active | E125: REDACTED | F125: REDACTED | G125: REDACTED | H125: REDACTED | I125: REDACTED | J125: REDACTED | K125: West Midlands | L125: Staffordshire | M125: Local Authority | N125: Full inspection | O125: 2016-07-27 | P125: 10013345 | Q125: Good | T125: Good | U125: Good
A126: =HYPERLINK("http://reports.ofsted.gov.uk/inspection-reports/find-inspection-report/provider/CARE/SC030439","Ofsted Social Care Provider Webpage") -> Ofsted Social Care Provider Webpage | B126: SC030439 | C126: Children's home | D126: Active | E126: REDACTED | F126: REDACTED | G126: REDACTED | H126: REDACTED | I126: REDACTED | J126: REDACTED | K126: South West | L126: Somerset | M126: Local Authority | N126: Full inspection | O126: 2015-11-18 | P126: 2458685 | Q126: Good | T126: Good | U126: Requires improvement
A127: =HYPERLINK("http://reports.ofsted.gov.uk/inspection-reports/find-inspection-report/provider/CARE/SC030713","Ofsted Social Care Provider Webpage") -> Ofsted Social Care Provider Webpage | B127: SC030713 | C127: Children's home | D127: Active | E127: REDACTED | F127: REDACTED | G127: REDACTED | H127: REDACTED | I127: REDACTED | J127: REDACTED | K127: South East | L127: Wokingham | M127: Local Authority | N127: Full inspection | O127: 2015-11-20 | P127: 2458405 | Q127: Outstanding | T127: Outstanding | U127: Outstanding
A128: =HYPERLINK("http://reports.ofsted.gov.uk/inspection-reports/find-inspection-report/provider/CARE/SC031479","Ofsted Social Care Provider Webpage") -> Ofsted Social Care Provider Webpage | B128: SC031479 | C128: Children's home | D128: Active | E128: REDACTED | F128: REDACTED | G128: REDACTED | H128: REDACTED | I128: REDACTED | J128: REDACTED | K128: London | L128: Southwark | M128: Local Authority | N128: Full inspection | O128: 2015-09-18 | P128: 2458793 | Q128: Good | T128: Good | U128: Good
A129: =HYPERLINK("http://reports.ofsted.gov.uk/inspection-reports/find-inspection-report/provider/CARE/SC031490","Ofsted Social Care Provider Webpage") -> Ofsted Social Care Provider Webpage | B129: SC031490 | C129: Secure children's home | D129: Active | E129: REDACTED | F129: REDACTED | G129: REDACTED | H129: REDACTED | I129: REDACTED | J129: REDACTED | K129: South East | L129: East Sussex | M129: Local Authority | N129: Full inspection | O129: 2016-07-14 | P129: 10010312 | Q129: Requires improvement | R129: Good | T129: Requires improvement | U129: Requires improvement
A130: =HYPERLINK("http://reports.ofsted.gov.uk/inspection-reports/find-inspection-report/provider/CARE/SC032163","Ofsted Social Care Provider Webpage") -> Ofsted Social Care Provider Webpage | B130: SC032163 | C130: Children's home | D130: Active | E130: REDACTED | F130: REDACTED | G130: REDACTED | H130: REDACTED | I130: REDACTED | J130: REDACTED | K130: South West | L130: Dorset | M130: Local Authority | N130: Full inspection | O130: 2015-05-13 | P130: 2458871 | Q130: Outstanding | T130: Outstanding | U130: Outstanding
A131: =HYPERLINK("http://reports.ofsted.gov.uk/inspection-reports/find-inspection-report/provider/CARE/SC032253","Ofsted Social Care Provider Webpage") -> Ofsted Social Care Provider Webpage | B131: SC032253 | C131: Children's home | D131: Active | E131: REDACTED | F131: REDACTED | G131: REDACTED | H131: REDACTED | I131: REDACTED | J131: REDACTED | K131: London | L131: Ealing | M131: Local Authority | N131: Full inspection | O131: 2015-11-05 | P131: 2458451 | Q131: Good | T131: Good | U131: Good
A132: =HYPERLINK("http://reports.ofsted.gov.uk/inspection-reports/find-inspection-report/provider/CARE/SC032701","Ofsted Social Care Provider Webpage") -> Ofsted Social Care Provider Webpage | B132: SC032701 | C132: Children's home | D132: Active | E132: REDACTED | F132: REDACTED | G132: REDACTED | H132: REDACTED | I132: REDACTED | J132: REDACTED | K132: North East | L132: South Tyneside | M132: Local Authority | N132: Full inspection | O132: 2015-12-02 | P132: 2458158 | Q132: Good | T132: Requires improvement | U132: Good
A133: =HYPERLINK("http://reports.ofsted.gov.uk/inspection-reports/find-inspection-report/provider/CARE/SC032772","Ofsted Social Care Provider Webpage") -> Ofsted Social Care Provider Webpage | B133: SC032772 | C133: Children's home | D133: Active | E133: REDACTED | F133: REDACTED | G133: REDACTED | H133: REDACTED | I133: REDACTED | J133: REDACTED | K133: North West | L133: Tameside | M133: Local Authority | N133: Full inspection | O133: 2015-07-21 | P133: 2457740 | Q133: Requires improvement | T133: Requires improvement | U133: Inadequate
A134: =HYPERLINK("http://reports.ofsted.gov.uk/inspection-reports/find-inspection-report/provider/CARE/SC033120","Ofsted Social Care Provider Webpage") -> Ofsted Social Care Provider Webpage | B134: SC033120 | C134: Children's home | D134: Active | E134: REDACTED | F134: REDACTED | G134: REDACTED | H134: REDACTED | I134: REDACTED | J134: REDACTED | K134: East of England | L134: Luton | M134: Local Authority | N134: Full inspection | O134: 2016-07-20 | P134: 10013395 | Q134: Good | T134: Good | U134: Good
A135: =HYPERLINK("http://reports.ofsted.gov.uk/inspection-reports/find-inspection-report/provider/CARE/SC033326","Ofsted Social Care Provider Webpage") -> Ofsted Social Care Provider Webpage | B135: SC033326 | C135: Children's home | D135: Active | E135: REDACTED | F135: REDACTED | G135: REDACTED | H135: REDACTED | I135: REDACTED | J135: REDACTED | K135: Yorkshire and The Humber | L135: Kirklees | M135: Local Authority | N135: Full inspection | O135: 2015-06-25 | P135: 2457819 | Q135: Good | T135: Good | U135: Good
A136: =HYPERLINK("http://reports.ofsted.gov.uk/inspection-reports/find-inspection-report/provider/CARE/SC033645","Ofsted Social Care Provider Webpage") -> Ofsted Social Care Provider Webpage | B136: SC033645 | C136: Children's home | D136: Active | E136: REDACTED | F136: REDACTED | G136: REDACTED | H136: REDACTED | I136: REDACTED | J136: REDACTED | K136: North East | L136: Newcastle upon Tyne | M136: Local Authority | N136: Full inspection | O136: 2015-06-04 | P136: 2458091 | Q136: Good | T136: Good | U136: Good
A137: =HYPERLINK("http://reports.ofsted.gov.uk/inspection-reports/find-inspection-report/provider/CARE/SC033664","Ofsted Social Care Provider Webpage") -> Ofsted Social Care Provider Webpage | B137: SC033664 | C137: Children's home | D137: Resigned | E137: REDACTED | F137: REDACTED | G137: REDACTED | H137: REDACTED | I137: REDACTED | J137: REDACTED | K137: West Midlands | L137: Birmingham | M137: Local Authority | N137: Full inspection | O137: 2016-06-09 | P137: 10013425 | Q137: Requires improvement | T137: Requires improvement | U137: Requires improvement
A138: =HYPERLINK("http://reports.ofsted.gov.uk/inspection-reports/find-inspection-report/provider/CARE/SC034184","Ofsted Social Care Provider Webpage") -> Ofsted Social Care Provider Webpage | B138: SC034184 | C138: Children's home | D138: Active | E138: REDACTED | F138: REDACTED | G138: REDACTED | H138: REDACTED | I138: REDACTED | J138: REDACTED | K138: South West | L138: Bristol | M138: Local Authority | N138: Full inspection | O138: 2016-06-29 | P138: 10013446 | Q138: Requires improvement | T138: Good | U138: Good
A139: =HYPERLINK("http://reports.ofsted.gov.uk/inspection-reports/find-inspection-report/provider/CARE/SC034241","Ofsted Social Care Provider Webpage") -> Ofsted Social Care Provider Webpage | B139: SC034241 | C139: Residential special school (registered as a children's home) | D139: Active | E139: REDACTED | F139: REDACTED | G139: REDACTED | H139: REDACTED | I139: REDACTED | J139: REDACTED | K139: East Midlands | L139: Lincolnshire | M139: Private | N139: Full inspection | O139: 2015-09-17 | P139: 2457054 | Q139: Outstanding | T139: Outstanding | U139: Outstanding
A140: =HYPERLINK("http://reports.ofsted.gov.uk/inspection-reports/find-inspection-report/provider/CARE/SC034741","Ofsted Social Care Provider Webpage") -> Ofsted Social Care Provider Webpage | B140: SC034741 | C140: Children's home | D140: Active | E140: REDACTED | F140: REDACTED | G140: REDACTED | H140: REDACTED | I140: REDACTED | J140: REDACTED | K140: North East | L140: Durham | M140: Local Authority | N140: Full inspection | O140: 2016-06-01 | P140: 10013467 | Q140: Good | T140: Good | U140: Good
A141: =HYPERLINK("http://reports.ofsted.gov.uk/inspection-reports/find-inspection-report/provider/CARE/SC034849","Ofsted Social Care Provider Webpage") -> Ofsted Social Care Provider Webpage | B141: SC034849 | C141: Children's home | D141: Active | E141: REDACTED | F141: REDACTED | G141: REDACTED | H141: REDACTED | I141: REDACTED | J141: REDACTED | K141: North West | L141: Cheshire West and Chester | M141: Local Authority | N141: Full inspection | O141: 2016-08-12 | P141: 10013473 | Q141: Requires improvement | T141: Requires improvement | U141: Requires improvement
A142: =HYPERLINK("http://reports.ofsted.gov.uk/inspection-reports/find-inspection-report/provider/CARE/SC034851","Ofsted Social Care Provider Webpage") -> Ofsted Social Care Provider Webpage | B142: SC034851 | C142: Children's home | D142: Active | E142: REDACTED | F142: REDACTED | G142: REDACTED | H142: REDACTED | I142: REDACTED | J142: REDACTED | K142: North West | L142: Rochdale | M142: Local Authority | N142: Full inspection | O142: 2016-08-03 | P142: 10013474 | Q142: Good | T142: Good | U142: Good
A143: =HYPERLINK("http://reports.ofsted.gov.uk/inspection-reports/find-inspection-report/provider/CARE/SC034953","Ofsted Social Care Provider Webpage") -> Ofsted Social Care Provider Webpage | B143: SC034953 | C143: Children's home | D143: Active | E143: REDACTED | F143: REDACTED | G143: REDACTED | H143: REDACTED | I143: REDACTED | J143: REDACTED | K143: Yorkshire and The Humber | L143: Calderdale | M143: Local Authority | N143: Full inspection | O143: 2016-06-08 | P143: 10013480 | Q143: Good | T143: Good | U143: Outstanding
A144: =HYPERLINK("http://reports.ofsted.gov.uk/inspection-reports/find-inspection-report/provider/CARE/SC035247","Ofsted Social Care Provider Webpage") -> Ofsted Social Care Provider Webpage | B144: SC035247 | C144: Children's home | D144: Active | E144: REDACTED | F144: REDACTED | G144: REDACTED | H144: REDACTED | I144: REDACTED | J144: REDACTED | K144: North East | L144: Durham | M144: Local Authority | N144: Full inspection | O144: 2016-05-18 | P144: 10013493 | Q144: Good | T144: Outstanding | U144: Good
A145: =HYPERLINK("http://reports.ofsted.gov.uk/inspection-reports/find-inspection-report/provider/CARE/SC035364","Ofsted Social Care Provider Webpage") -> Ofsted Social Care Provider Webpage | B145: SC035364 | C145: Children's home | D145: Active | E145: REDACTED | F145: REDACTED | G145: REDACTED | H145: REDACTED | I145: REDACTED | J145: REDACTED | K145: East Midlands | L145: Northamptonshire | M145: Local Authority | N145: Full inspection | O145: 2016-09-15 | P145: 10013496 | Q145: Good | T145: Good | U145: Outstanding
A146: =HYPERLINK("http://reports.ofsted.gov.uk/inspection-reports/find-inspection-report/provider/CARE/SC035499","Ofsted Social Care Provider Webpage") -> Ofsted Social Care Provider Webpage | B146: SC035499 | C146: Children's home | D146: Active | E146: REDACTED | F146: REDACTED | G146: REDACTED | H146: REDACTED | I146: REDACTED | J146: REDACTED | K146: Yorkshire and The Humber | L146: East Riding of Yorkshire | M146: Local Authority | N146: Full inspection | O146: 2016-06-14 | P146: 10013506 | Q146: Good | T146: Good | U146: Good
A147: =HYPERLINK("http://reports.ofsted.gov.uk/inspection-reports/find-inspection-report/provider/CARE/SC036275","Ofsted Social Care Provider Webpage") -> Ofsted Social Care Provider Webpage | B147: SC036275 | C147: Children's home | D147: Active | E147: REDACTED | F147: REDACTED | G147: REDACTED | H147: REDACTED | I147: REDACTED | J147: REDACTED | K147: East Midlands | L147: Derby | M147: Local Authority | N147: Full inspection | O147: 2016-06-15 | P147: 10013534 | Q147: Good | T147: Good | U147: Good
A148: =HYPERLINK("http://reports.ofsted.gov.uk/inspection-reports/find-inspection-report/provider/CARE/SC036383","Ofsted Social Care Provider Webpage") -> Ofsted Social Care Provider Webpage | B148: SC036383 | C148: Children's home | D148: Active | E148: REDACTED | F148: REDACTED | G148: REDACTED | H148: REDACTED | I148: REDACTED | J148: REDACTED | K148: South East | L148: Oxfordshire | M148: Local Authority | N148: Full inspection | O148: 2016-04-15 | P148: 10013538 | Q148: Requires improvement | T148: Requires improvement | U148: Requires improvement
A149: =HYPERLINK("http://reports.ofsted.gov.uk/inspection-reports/find-inspection-report/provider/CARE/SC037281","Ofsted Social Care Provider Webpage") -> Ofsted Social Care Provider Webpage | B149: SC037281 | C149: Children's home | D149: Active | E149: REDACTED | F149: REDACTED | G149: REDACTED | H149: REDACTED | I149: REDACTED | J149: REDACTED | K149: East of England | L149: Suffolk | M149: Local Authority | N149: Full inspection | O149: 2016-09-15 | P149: 10013557 | Q149: Requires improvement | T149: Requires improvement | U149: Requires improvement
A150: =HYPERLINK("http://reports.ofsted.gov.uk/inspection-reports/find-inspection-report/provider/CARE/SC037910","Ofsted Social Care Provider Webpage") -> Ofsted Social Care Provider Webpage | B150: SC037910 | C150: Children's home | D150: Active | E150: REDACTED | F150: REDACTED | G150: REDACTED | H150: REDACTED | I150: REDACTED | J150: REDACTED | K150: South East | L150: Hampshire | M150: Local Authority | N150: Full inspection | O150: 2015-09-02 | P150: 2458812 | Q150: Good | T150: Good | U150: Good
A151: =HYPERLINK("http://reports.ofsted.gov.uk/inspection-reports/find-inspection-report/provider/CARE/SC038276","Ofsted Social Care Provider Webpage") -> Ofsted Social Care Provider Webpage | B151: SC038276 | C151: Residential special school (registered as a children's home) | D151: Active | E151: REDACTED | F151: REDACTED | G151: REDACTED | H151: REDACTED | I151: REDACTED | J151: REDACTED | K151: North West | L151: Cumbria | M151: Private | N151: Full inspection | O151: 2015-10-14 | P151: 2457601 | Q151: Good | T151: Good | U151: Good
A152: =HYPERLINK("http://reports.ofsted.gov.uk/inspection-reports/find-inspection-report/provider/CARE/SC038435","Ofsted Social Care Provider Webpage") -> Ofsted Social Care Provider Webpage | B152: SC038435 | C152: Residential special school (registered as a children's home) | D152: Active | E152: REDACTED | F152: REDACTED | G152: REDACTED | H152: REDACTED | I152: REDACTED | J152: REDACTED | K152: West Midlands | L152: Worcestershire | M152: Voluntary | N152: Full inspection | O152: 2016-05-12 | P152: 10013595 | Q152: Requires improvement | T152: Requires improvement | U152: Requires improvement
A153: =HYPERLINK("http://reports.ofsted.gov.uk/inspection-reports/find-inspection-report/provider/CARE/SC038500","Ofsted Social Care Provider Webpage") -> Ofsted Social Care Provider Webpage | B153: SC038500 | C153: Children's home | D153: Active | E153: REDACTED | F153: REDACTED | G153: REDACTED | H153: REDACTED | I153: REDACTED | J153: REDACTED | K153: West Midlands | L153: Dudley | M153: Local Authority | N153: Full inspection | O153: 2015-11-26 | P153: 2456753 | Q153: Outstanding | T153: Outstanding | U153: Good
A154: =HYPERLINK("http://reports.ofsted.gov.uk/inspection-reports/find-inspection-report/provider/CARE/SC039025","Ofsted Social Care Provider Webpage") -> Ofsted Social Care Provider Webpage | B154: SC039025 | C154: Children's home | D154: Active | E154: REDACTED | F154: REDACTED | G154: REDACTED | H154: REDACTED | I154: REDACTED | J154: REDACTED | K154: East Midlands | L154: Leicester | M154: Local Authority | N154: Full inspection | O154: 2015-09-10 | P154: 2456899 | Q154: Good | T154: Good | U154: Good
A155: =HYPERLINK("http://reports.ofsted.gov.uk/inspection-reports/find-inspection-report/provider/CARE/SC040511","Ofsted Social Care Provider Webpage") -> Ofsted Social Care Provider Webpage | B155: SC040511 | C155: Children's home | D155: Active | E155: REDACTED | F155: REDACTED | G155: REDACTED | H155: REDACTED | I155: REDACTED | J155: REDACTED | K155: North West | L155: Salford | M155: Local Authority | N155: Full inspection | O155: 2015-12-17 | P155: 2457985 | Q155: Good | T155: Requires improvement | U155: Good
A156: =HYPERLINK("http://reports.ofsted.gov.uk/inspection-reports/find-inspection-report/provider/CARE/SC040723","Ofsted Social Care Provider Webpage") -> Ofsted Social Care Provider Webpage | B156: SC040723 | C156: Children's home | D156: Active | E156: REDACTED | F156: REDACTED | G156: REDACTED | H156: REDACTED | I156: REDACTED | J156: REDACTED | K156: North West | L156: Bolton | M156: Local Authority | N156: Full inspection | O156: 2016-06-13 | P156: 10013650 | Q156: Good | T156: Good | U156: Good
A157: =HYPERLINK("http://reports.ofsted.gov.uk/inspection-reports/find-inspection-report/provider/CARE/SC043814","Ofsted Social Care Provider Webpage") -> Ofsted Social Care Provider Webpage | B157: SC043814 | C157: Children's home | D157: Active | E157: REDACTED | F157: REDACTED | G157: REDACTED | H157: REDACTED | I157: REDACTED | J157: REDACTED | K157: West Midlands | L157: Telford and Wrekin | M157: Private | N157: Full inspection | O157: 2016-08-24 | P157: 10013676 | Q157: Good | T157: Good | U157: Good
A158: =HYPERLINK("http://reports.ofsted.gov.uk/inspection-reports/find-inspection-report/provider/CARE/SC044963","Ofsted Social Care Provider Webpage") -> Ofsted Social Care Provider Webpage | B158: SC044963 | C158: Children's home | D158: Active | E158: REDACTED | F158: REDACTED | G158: REDACTED | H158: REDACTED | I158: REDACTED | J158: REDACTED | K158: East of England | L158: Essex | M158: Local Authority | N158: Full inspection | O158: 2016-06-09 | P158: 10013690 | Q158: Good | T158: Good | U158: Good
A159: =HYPERLINK("http://reports.ofsted.gov.uk/inspection-reports/find-inspection-report/provider/CARE/SC047483","Ofsted Social Care Provider Webpage") -> Ofsted Social Care Provider Webpage | B159: SC047483 | C159: Children's home | D159: Active | E159: REDACTED | F159: REDACTED | G159: REDACTED | H159: REDACTED | I159: REDACTED | J159: REDACTED | K159: West Midlands | L159: Staffordshire | M159: Private | N159: Full inspection | O159: 2016-07-14 | P159: 10013696 | Q159: Good | T159: Requires improvement | U159: Requires improvement
A160: =HYPERLINK("http://reports.ofsted.gov.uk/inspection-reports/find-inspection-report/provider/CARE/SC049714","Ofsted Social Care Provider Webpage") -> Ofsted Social Care Provider Webpage | B160: SC049714 | C160: Children's home | D160: Active | E160: REDACTED | F160: REDACTED | G160: REDACTED | H160: REDACTED | I160: REDACTED | J160: REDACTED | K160: West Midlands | L160: Birmingham | M160: Private | N160: Full inspection | O160: 2015-07-28 | P160: 2457077 | Q160: Good | T160: Good | U160: Requires improvement
A161: =HYPERLINK("http://reports.ofsted.gov.uk/inspection-reports/find-inspection-report/provider/CARE/SC053145","Ofsted Social Care Provider Webpage") -> Ofsted Social Care Provider Webpage | B161: SC053145 | C161: Children's home | D161: Active | E161: REDACTED | F161: REDACTED | G161: REDACTED | H161: REDACTED | I161: REDACTED | J161: REDACTED | K161: North West | L161: Lancashire | M161: Private | N161: Full inspection | O161: 2015-09-10 | P161: 2458188 | Q161: Good | T161: Outstanding | U161: Good
A162: =HYPERLINK("http://reports.ofsted.gov.uk/inspection-reports/find-inspection-report/provider/CARE/SC055780","Ofsted Social Care Provider Webpage") -> Ofsted Social Care Provider Webpage | B162: SC055780 | C162: Residential special school (registered as a children's home) | D162: Active | E162: REDACTED | F162: REDACTED | G162: REDACTED | H162: REDACTED | I162: REDACTED | J162: REDACTED | K162: North West | L162: Sefton | M162: Voluntary | N162: Full inspection | O162: 2015-12-10 | P162: 2457791 | Q162: Outstanding | T162: Outstanding | U162: Outstanding
A163: =HYPERLINK("http://reports.ofsted.gov.uk/inspection-reports/find-inspection-report/provider/CARE/SC059437","Ofsted Social Care Provider Webpage") -> Ofsted Social Care Provider Webpage | B163: SC059437 | C163: Children's home | D163: Active | E163: REDACTED | F163: REDACTED | G163: REDACTED | H163: REDACTED | I163: REDACTED | J163: REDACTED | K163: South West | L163: Somerset | M163: Private | N163: Full inspection | O163: 2016-06-10 | P163: 10013740 | Q163: Good | T163: Good | U163: Requires improvement
A164: =HYPERLINK("http://reports.ofsted.gov.uk/inspection-reports/find-inspection-report/provider/CARE/SC059853","Ofsted Social Care Provider Webpage") -> Ofsted Social Care Provider Webpage | B164: SC059853 | C164: Children's home | D164: Active | E164: REDACTED | F164: REDACTED | G164: REDACTED | H164: REDACTED | I164: REDACTED | J164: REDACTED | K164: North West | L164: Bolton | M164: Local Authority | N164: Full inspection | O164: 2015-10-29 | P164: 2457568 | Q164: Outstanding | T164: Outstanding | U164: Outstanding
A165: =HYPERLINK("http://reports.ofsted.gov.uk/inspection-reports/find-inspection-report/provider/CARE/SC059998","Ofsted Social Care Provider Webpage") -> Ofsted Social Care Provider Webpage | B165: SC059998 | C165: Children's home | D165: Active | E165: REDACTED | F165: REDACTED | G165: REDACTED | H165: REDACTED | I165: REDACTED | J165: REDACTED | K165: East Midlands | L165: Derby | M165: Private | N165: Full inspection | O165: 2016-08-24 | P165: 10013752 | Q165: Requires improvement | T165: Requires improvement | U165: Requires improvement
A166: =HYPERLINK("http://reports.ofsted.gov.uk/inspection-reports/find-inspection-report/provider/CARE/SC060118","Ofsted Social Care Provider Webpage") -> Ofsted Social Care Provider Webpage | B166: SC060118 | C166: Children's home | D166: Active | E166: REDACTED | F166: REDACTED | G166: REDACTED | H166: REDACTED | I166: REDACTED | J166: REDACTED | K166: South West | L166: Wiltshire | M166: Private | N166: Full inspection | O166: 2016-08-18 | P166: 10013754 | Q166: Good | T166: Good | U166: Good
A167: =HYPERLINK("http://reports.ofsted.gov.uk/inspection-reports/find-inspection-report/provider/CARE/SC060590","Ofsted Social Care Provider Webpage") -> Ofsted Social Care Provider Webpage | B167: SC060590 | C167: Children's home | D167: Active | E167: REDACTED | F167: REDACTED | G167: REDACTED | H167: REDACTED | I167: REDACTED | J167: REDACTED | K167: North West | L167: Cheshire East | M167: Private | N167: Full inspection | O167: 2015-07-30 | P167: 2458147 | Q167: Good | T167: Good | U167: Good
A168: =HYPERLINK("http://reports.ofsted.gov.uk/inspection-reports/find-inspection-report/provider/CARE/SC062263","Ofsted Social Care Provider Webpage") -> Ofsted Social Care Provider Webpage | B168: SC062263 | C168: Children's home | D168: Active | E168: REDACTED | F168: REDACTED | G168: REDACTED | H168: REDACTED | I168: REDACTED | J168: REDACTED | K168: North West | L168: Rochdale | M168: Private | N168: Full inspection | O168: 2016-09-08 | P168: 10013792 | Q168: Good | T168: Good | U168: Good
A169: =HYPERLINK("http://reports.ofsted.gov.uk/inspection-reports/find-inspection-report/provider/CARE/SC062573","Ofsted Social Care Provider Webpage") -> Ofsted Social Care Provider Webpage | B169: SC062573 | C169: Children's home | D169: Active | E169: REDACTED | F169: REDACTED | G169: REDACTED | H169: REDACTED | I169: REDACTED | J169: REDACTED | K169: Yorkshire and The Humber | L169: Wakefield | M169: Local Authority | N169: Full inspection | O169: 2015-10-16 | P169: 2458019 | Q169: Good | T169: Good | U169: Requires improvement
A170: =HYPERLINK("http://reports.ofsted.gov.uk/inspection-reports/find-inspection-report/provider/CARE/SC062931","Ofsted Social Care Provider Webpage") -> Ofsted Social Care Provider Webpage | B170: SC062931 | C170: Children's home | D170: Active | E170: REDACTED | F170: REDACTED | G170: REDACTED | H170: REDACTED | I170: REDACTED | J170: REDACTED | K170: South East | L170: Kent | M170: Private | N170: Full inspection | O170: 2015-10-09 | P170: 2458359 | Q170: Outstanding | T170: Good | U170: Outstanding
A171: =HYPERLINK("http://reports.ofsted.gov.uk/inspection-reports/find-inspection-report/provider/CARE/SC063080","Ofsted Social Care Provider Webpage") -> Ofsted Social Care Provider Webpage | B171: SC063080 | C171: Children's home | D171: Active | E171: REDACTED | F171: REDACTED | G171: REDACTED | H171: REDACTED | I171: REDACTED | J171: REDACTED | K171: London | L171: Croydon | M171: Private | N171: Full inspection | O171: 2016-09-14 | P171: 10013812 | Q171: Good | T171: Good | U171: Good
A172: =HYPERLINK("http://reports.ofsted.gov.uk/inspection-reports/find-inspection-report/provider/CARE/SC063110","Ofsted Social Care Provider Webpage") -> Ofsted Social Care Provider Webpage | B172: SC063110 | C172: Children's home | D172: Active | E172: REDACTED | F172: REDACTED | G172: REDACTED | H172: REDACTED | I172: REDACTED | J172: REDACTED | K172: East of England | L172: Suffolk | M172: Local Authority | N172: Full inspection | O172: 2016-04-22 | P172: 10013814 | Q172: Requires improvement | T172: Requires improvement | U172: Requires improvement
A173: =HYPERLINK("http://reports.ofsted.gov.uk/inspection-reports/find-inspection-report/provider/CARE/SC063116","Ofsted Social Care Provider Webpage") -> Ofsted Social Care Provider Webpage | B173: SC063116 | C173: Children's home | D173: Active | E173: REDACTED | F173: REDACTED | G173: REDACTED | H173: REDACTED | I173: REDACTED | J173: REDACTED | K173: South East | L173: Kent | M173: Private | N173: Full inspection | O173: 2016-05-19 | P173: 10013815 | Q173: Outstanding | T173: Outstanding | U173: Outstanding
A174: =HYPERLINK("http://reports.ofsted.gov.uk/inspection-reports/find-inspection-report/provider/CARE/SC063284","Ofsted Social Care Provider Webpage") -> Ofsted Social Care Provider Webpage | B174: SC063284 | C174: Children's home | D174: Active | E174: REDACTED | F174: REDACTED | G174: REDACTED | H174: REDACTED | I174: REDACTED | J174: REDACTED | K174: North West | L174: St Helens | M174: Private | N174: Full inspection | O174: 2015-12-01 | P174: 2457707 | Q174: Outstanding | T174: Outstanding | U174: Outstanding
A175: =HYPERLINK("http://reports.ofsted.gov.uk/inspection-reports/find-inspection-report/provider/CARE/SC063689","Ofsted Social Care Provider Webpage") -> Ofsted Social Care Provider Webpage | B175: SC063689 | C175: Children's home | D175: Active | E175: REDACTED | F175: REDACTED | G175: REDACTED | H175: REDACTED | I175: REDACTED | J175: REDACTED | K175: South East | L175: Kent | M175: Private | N175: Full inspection | O175: 2015-12-03 | P175: 2458432 | Q175: Good | T175: Good | U175: Good
A176: =HYPERLINK("http://reports.ofsted.gov.uk/inspection-reports/find-inspection-report/provider/CARE/SC063813","Ofsted Social Care Provider Webpage") -> Ofsted Social Care Provider Webpage | B176: SC063813 | C176: Children's home | D176: Active | E176: REDACTED | F176: REDACTED | G176: REDACTED | H176: REDACTED | I176: REDACTED | J176: REDACTED | K176: West Midlands | L176: Staffordshire | M176: Private | N176: Full inspection | O176: 2016-05-26 | P176: 10013833 | Q176: Good | T176: Good | U176: Good
A177: =HYPERLINK("http://reports.ofsted.gov.uk/inspection-reports/find-inspection-report/provider/CARE/SC064472","Ofsted Social Care Provider Webpage") -> Ofsted Social Care Provider Webpage | B177: SC064472 | C177: Children's home | D177: Active | E177: REDACTED | F177: REDACTED | G177: REDACTED | H177: REDACTED | I177: REDACTED | J177: REDACTED | K177: South West | L177: Devon | M177: Private | N177: Full inspection | O177: 2015-12-15 | P177: 2458679 | Q177: Good | T177: Good | U177: Good
A178: =HYPERLINK("http://reports.ofsted.gov.uk/inspection-reports/find-inspection-report/provider/CARE/SC066747","Ofsted Social Care Provider Webpage") -> Ofsted Social Care Provider Webpage | B178: SC066747 | C178: Children's home | D178: Active | E178: REDACTED | F178: REDACTED | G178: REDACTED | H178: REDACTED | I178: REDACTED | J178: REDACTED | K178: Yorkshire and The Humber | L178: Sheffield | M178: Local Authority | N178: Full inspection | O178: 2016-04-06 | P178: 10013922 | Q178: Requires improvement | T178: Good | U178: Requires improvement
A179: =HYPERLINK("http://reports.ofsted.gov.uk/inspection-reports/find-inspection-report/provider/CARE/SC066881","Ofsted Social Care Provider Webpage") -> Ofsted Social Care Provider Webpage | B179: SC066881 | C179: Children's home | D179: Active | E179: REDACTED | F179: REDACTED | G179: REDACTED | H179: REDACTED | I179: REDACTED | J179: REDACTED | K179: West Midlands | L179: Telford and Wrekin | M179: Private | N179: Full inspection | O179: 2016-09-21 | P179: 10013925 | Q179: Outstanding | T179: Outstanding | U179: Outstanding
A180: =HYPERLINK("http://reports.ofsted.gov.uk/inspection-reports/find-inspection-report/provider/CARE/SC066912","Ofsted Social Care Provider Webpage") -> Ofsted Social Care Provider Webpage | B180: SC066912 | C180: Children's home | D180: Active | E180: REDACTED | F180: REDACTED | G180: REDACTED | H180: REDACTED | I180: REDACTED | J180: REDACTED | K180: West Midlands | L180: Staffordshire | M180: Private | N180: Full inspection | O180: 2016-05-25 | P180: 10013927 | Q180: Requires improvement | T180: Requires improvement | U180: Requires improvement
A181: =HYPERLINK("http://reports.ofsted.gov.uk/inspection-reports/find-inspection-report/provider/CARE/SC059801","Ofsted Social Care Provider Webpage") -> Ofsted Social Care Provider Webpage | B181: SC059801 | C181: Children's home | D181: Active | E181: REDACTED | F181: REDACTED | G181: REDACTED | H181: REDACTED | I181: REDACTED | J181: REDACTED | K181: West Midlands | L181: Worcestershire | M181: Local Authority | N181: Full inspection | O181: 2015-12-04 | P181: 2456782 | Q181: Good | T181: Good | U181: Good
A182: =HYPERLINK("http://reports.ofsted.gov.uk/inspection-reports/find-inspection-report/provider/CARE/SC059945","Ofsted Social Care Provider Webpage") -> Ofsted Social Care Provider Webpage | B182: SC059945 | C182: Children's home | D182: Active | E182: REDACTED | F182: REDACTED | G182: REDACTED | H182: REDACTED | I182: REDACTED | J182: REDACTED | K182: North West | L182: Lancashire | M182: Private | N182: Full inspection | O182: 2016-07-27 | P182: 10013751 | Q182: Outstanding | T182: Outstanding | U182: Outstanding
A183: =HYPERLINK("http://reports.ofsted.gov.uk/inspection-reports/find-inspection-report/provider/CARE/SC061158","Ofsted Social Care Provider Webpage") -> Ofsted Social Care Provider Webpage | B183: SC061158 | C183: Children's home | D183: Active | E183: REDACTED | F183: REDACTED | G183: REDACTED | H183: REDACTED | I183: REDACTED | J183: REDACTED | K183: North West | L183: Cumbria | M183: Private | N183: Full inspection | O183: 2015-12-23 | P183: 2457510 | Q183: Good | T183: Good | U183: Good
A184: =HYPERLINK("http://reports.ofsted.gov.uk/inspection-reports/find-inspection-report/provider/CARE/SC061438","Ofsted Social Care Provider Webpage") -> Ofsted Social Care Provider Webpage | B184: SC061438 | C184: Children's home | D184: Active | E184: REDACTED | F184: REDACTED | G184: REDACTED | H184: REDACTED | I184: REDACTED | J184: REDACTED | K184: North West | L184: St Helens | M184: Private | N184: Full inspection | O184: 2016-05-25 | P184: 10013773 | Q184: Good | T184: Good | U184: Good
A185: =HYPERLINK("http://reports.ofsted.gov.uk/inspection-reports/find-inspection-report/provider/CARE/SC062079","Ofsted Social Care Provider Webpage") -> Ofsted Social Care Provider Webpage | B185: SC062079 | C185: Residential special school (registered as a children's home) | D185: Active | E185: REDACTED | F185: REDACTED | G185: REDACTED | H185: REDACTED | I185: REDACTED | J185: REDACTED | K185: South East | L185: Surrey | M185: Voluntary | N185: Full inspection | O185: 2016-09-21 | P185: 10013787 | Q185: Requires improvement | T185: Requires improvement | U185: Inadequate
A186: =HYPERLINK("http://reports.ofsted.gov.uk/inspection-reports/find-inspection-report/provider/CARE/SC062317","Ofsted Social Care Provider Webpage") -> Ofsted Social Care Provider Webpage | B186: SC062317 | C186: Children's home | D186: Active | E186: REDACTED | F186: REDACTED | G186: REDACTED | H186: REDACTED | I186: REDACTED | J186: REDACTED | K186: South East | L186: Buckinghamshire | M186: Private | N186: Full inspection | O186: 2016-05-19 | P186: 10013796 | Q186: Requires improvement | T186: Requires improvement | U186: Requires improvement
A187: =HYPERLINK("http://reports.ofsted.gov.uk/inspection-reports/find-inspection-report/provider/CARE/SC062651","Ofsted Social Care Provider Webpage") -> Ofsted Social Care Provider Webpage | B187: SC062651 | C187: Children's home | D187: Active | E187: REDACTED | F187: REDACTED | G187: REDACTED | H187: REDACTED | I187: REDACTED | J187: REDACTED | K187: East of England | L187: Suffolk | M187: Private | N187: Full inspection | O187: 2016-06-01 | P187: 10013804 | Q187: Good | T187: Good | U187: Good
A188: =HYPERLINK("http://reports.ofsted.gov.uk/inspection-reports/find-inspection-report/provider/CARE/SC063054","Ofsted Social Care Provider Webpage") -> Ofsted Social Care Provider Webpage | B188: SC063054 | C188: Children's home | D188: Active | E188: REDACTED | F188: REDACTED | G188: REDACTED | H188: REDACTED | I188: REDACTED | J188: REDACTED | K188: North West | L188: Rochdale | M188: Private | N188: Full inspection | O188: 2016-07-06 | P188: 10013810 | Q188: Good | T188: Good | U188: Requires improvement
A189: =HYPERLINK("http://reports.ofsted.gov.uk/inspection-reports/find-inspection-report/provider/CARE/SC063380","Ofsted Social Care Provider Webpage") -> Ofsted Social Care Provider Webpage | B189: SC063380 | C189: Children's home | D189: Active | E189: REDACTED | F189: REDACTED | G189: REDACTED | H189: REDACTED | I189: REDACTED | J189: REDACTED | K189: West Midlands | L189: Telford and Wrekin | M189: Private | N189: Full inspection | O189: 2016-06-24 | P189: 10013823 | Q189: Good | T189: Good | U189: Good
A190: =HYPERLINK("http://reports.ofsted.gov.uk/inspection-reports/find-inspection-report/provider/CARE/SC063550","Ofsted Social Care Provider Webpage") -> Ofsted Social Care Provider Webpage | B190: SC063550 | C190: Children's home | D190: Active | E190: REDACTED | F190: REDACTED | G190: REDACTED | H190: REDACTED | I190: REDACTED | J190: REDACTED | K190: North West | L190: St Helens | M190: Local Authority | N190: Full inspection | O190: 2016-01-13 | P190: 2457570 | Q190: Good | T190: Good | U190: Good
A191: =HYPERLINK("http://reports.ofsted.gov.uk/inspection-reports/find-inspection-report/provider/CARE/SC063673","Ofsted Social Care Provider Webpage") -> Ofsted Social Care Provider Webpage | B191: SC063673 | C191: Children's home | D191: Active | E191: REDACTED | F191: REDACTED | G191: REDACTED | H191: REDACTED | I191: REDACTED | J191: REDACTED | K191: North West | L191: Sefton | M191: Private | N191: Full inspection | O191: 2016-05-06 | P191: 10013827 | Q191: Requires improvement | T191: Requires improvement | U191: Requires improvement
A192: =HYPERLINK("http://reports.ofsted.gov.uk/inspection-reports/find-inspection-report/provider/CARE/SC064500","Ofsted Social Care Provider Webpage") -> Ofsted Social Care Provider Webpage | B192: SC064500 | C192: Children's home | D192: Active | E192: REDACTED | F192: REDACTED | G192: REDACTED | H192: REDACTED | I192: REDACTED | J192: REDACTED | K192: North West | L192: Lancashire | M192: Private | N192: Full inspection | O192: 2016-01-21 | P192: 2457832 | Q192: Good | T192: Good | U192: Good
A193: =HYPERLINK("http://reports.ofsted.gov.uk/inspection-reports/find-inspection-report/provider/CARE/SC064549","Ofsted Social Care Provider Webpage") -> Ofsted Social Care Provider Webpage | B193: SC064549 | C193: Children's home | D193: Resigned | E193: REDACTED | F193: REDACTED | G193: REDACTED | H193: REDACTED | I193: REDACTED | J193: REDACTED | K193: East of England | L193: Luton | M193: Voluntary | N193: Full inspection | O193: 2014-10-16 | P193: 974492 | Q193: Adequate | R193: Adequate | S193: Adequate | T193: Adequate | U193: Adequate
A194: =HYPERLINK("http://reports.ofsted.gov.uk/inspection-reports/find-inspection-report/provider/CARE/SC064573","Ofsted Social Care Provider Webpage") -> Ofsted Social Care Provider Webpage | B194: SC064573 | C194: Children's home | D194: Active | E194: REDACTED | F194: REDACTED | G194: REDACTED | H194: REDACTED | I194: REDACTED | J194: REDACTED | K194: North West | L194: St Helens | M194: Private | N194: Full inspection | O194: 2016-09-15 | P194: 10013858 | Q194: Requires improvement | T194: Good | U194: Requires improvement
A195: =HYPERLINK("http://reports.ofsted.gov.uk/inspection-reports/find-inspection-report/provider/CARE/SC064836","Ofsted Social Care Provider Webpage") -> Ofsted Social Care Provider Webpage | B195: SC064836 | C195: Children's home | D195: Active | E195: REDACTED | F195: REDACTED | G195: REDACTED | H195: REDACTED | I195: REDACTED | J195: REDACTED | K195: North West | L195: Rochdale | M195: Private | N195: Full inspection | O195: 2016-06-16 | P195: 10013864 | Q195: Good | T195: Good | U195: Requires improvement
A196: =HYPERLINK("http://reports.ofsted.gov.uk/inspection-reports/find-inspection-report/provider/CARE/SC064858","Ofsted Social Care Provider Webpage") -> Ofsted Social Care Provider Webpage | B196: SC064858 | C196: Children's home | D196: Active | E196: REDACTED | F196: REDACTED | G196: REDACTED | H196: REDACTED | I196: REDACTED | J196: REDACTED | K196: North West | L196: Salford | M196: Local Authority | N196: Full inspection | O196: 2016-05-10 | P196: 10013865 | Q196: Good | T196: Good | U196: Good
A197: =HYPERLINK("http://reports.ofsted.gov.uk/inspection-reports/find-inspection-report/provider/CARE/SC064934","Ofsted Social Care Provider Webpage") -> Ofsted Social Care Provider Webpage | B197: SC064934 | C197: Children's home | D197: Active | E197: REDACTED | F197: REDACTED | G197: REDACTED | H197: REDACTED | I197: REDACTED | J197: REDACTED | K197: Yorkshire and The Humber | L197: Barnsley | M197: Private | N197: Full inspection | O197: 2016-08-26 | P197: 10013867 | Q197: Good | T197: Good | U197: Good
A198: =HYPERLINK("http://reports.ofsted.gov.uk/inspection-reports/find-inspection-report/provider/CARE/SC065067","Ofsted Social Care Provider Webpage") -> Ofsted Social Care Provider Webpage | B198: SC065067 | C198: Children's home | D198: Active | E198: REDACTED | F198: REDACTED | G198: REDACTED | H198: REDACTED | I198: REDACTED | J198: REDACTED | K198: North West | L198: Salford | M198: Local Authority | N198: Full inspection | O198: 2016-07-12 | P198: 10013870 | Q198: Outstanding | T198: Outstanding | U198: Outstanding
A199: =HYPERLINK("http://reports.ofsted.gov.uk/inspection-reports/find-inspection-report/provider/CARE/SC065679","Ofsted Social Care Provider Webpage") -> Ofsted Social Care Provider Webpage | B199: SC065679 | C199: Children's home | D199: Active | E199: REDACTED | F199: REDACTED | G199: REDACTED | H199: REDACTED | I199: REDACTED | J199: REDACTED | K199: West Midlands | L199: Staffordshire | M199: Local Authority | N199: Full inspection | O199: 2015-08-06 | P199: 2457282 | Q199: Good | T199: Good | U199: Requires improvement
A200: =HYPERLINK("http://reports.ofsted.gov.uk/inspection-reports/find-inspection-report/provider/CARE/SC066129","Ofsted Social Care Provider Webpage") -> Ofsted Social Care Provider Webpage | B200: SC066129 | C200: Children's home | D200: Active | E200: REDACTED | F200: REDACTED | G200: REDACTED | H200: REDACTED | I200: REDACTED | J200: REDACTED | K200: South East | L200: Kent | M200: Private | N200: Full inspection | O200: 2015-08-25 | P200: 2458465 | Q200: Good | T200: Good | U200: Good
... 1812 more rows

Sheet Provider level in year 2016-17
A1: Provider information | N1: Inspection information
A2: Web link | B2: URN | C2: Provision type | D2: Registration Status | E2: Name | F2: Address 1 | G2: Address 2 | H2: Town | I2: County | J2: Postcode | K2: Government Office Region | L2: Local authority | M2: Sector | N2: Event type | O2: Inspection date | P2: Event number | Q2: Overall effectiveness | R2: Outcomes for children and young people | S2: Quality of care | T2: Safeguarding children and young people | U2: Leadership and management
A3: =HYPERLINK("http://reports.ofsted.gov.uk/inspection-reports/find-inspection-report/provider/CARE/SC068179","Ofsted Social Care Provider Webpage") -> Ofsted Social Care Provider Webpage | B3: SC068179 | C3: Children's home | D3: Active | E3: REDACTED | F3: REDACTED | G3: REDACTED | H3: REDACTED | I3: REDACTED | J3: REDACTED | K3: South East | L3: East Sussex | M3: Local Authority | N3: Full inspection | O3: 2016-08-25 | P3: 10013949 | Q3: Good | T3: Good | U3: Good
A4: =HYPERLINK("http://reports.ofsted.gov.uk/inspection-reports/find-inspection-report/provider/CARE/SC068205","Ofsted Social Care Provider Webpage") -> Ofsted Social Care Provider Webpage | B4: SC068205 | C4: Children's home | D4: Active | E4: REDACTED | F4: REDACTED | G4: REDACTED | H4: REDACTED | I4: REDACTED | J4: REDACTED | K4: South West | L4: Devon | M4: Private | N4: Full inspection | O4: 2016-09-08 | P4: 10013951 | Q4: Good | T4: Good | U4: Requires improvement
A5: =HYPERLINK("http://reports.ofsted.gov.uk/inspection-reports/find-inspection-report/provider/CARE/SC068223","Ofsted Social Care Provider Webpage") -> Ofsted Social Care Provider Webpage | B5: SC068223 | C5: Children's home | D5: Active | E5: REDACTED | F5: REDACTED | G5: REDACTED | H5: REDACTED | I5: REDACTED | J5: REDACTED | K5: North West | L5: Wigan | M5: Private | N5: Interim inspection | O5: 2016-07-07 | P5: 10016044 | Q5: Sustained effectiveness
A6: =HYPERLINK("http://reports.ofsted.gov.uk/inspection-reports/find-inspection-report/provider/CARE/SC068392","Ofsted Social Care Provider Webpage") -> Ofsted Social Care Provider Webpage | B6: SC068392 | C6: Children's home | D6: Active | E6: REDACTED | F6: REDACTED | G6: REDACTED | H6: REDACTED | I6: REDACTED | J6: REDACTED | K6: London | L6: Ealing | M6: Private | N6: Full inspection | O6: 2016-06-28 | P6: 10013958 | Q6: Requires improvement | T6: Requires improvement | U6: Inadequate
A7: =HYPERLINK("http://reports.ofsted.gov.uk/inspection-reports/find-inspection-report/provider/CARE/SC068410","Ofsted Social Care Provider Webpage") -> Ofsted Social Care Provider Webpage | B7: SC068410 | C7: Residential special school (registered as a children's home) | D7: Active | E7: REDACTED | F7: REDACTED | G7: REDACTED | H7: REDACTED | I7: REDACTED | J7: REDACTED | K7: West Midlands | L7: Warwickshire | M7: Private | N7: Full inspection | O7: 2016-07-14 | P7: 10013959 | Q7: Outstanding | T7: Outstanding | U7: Outstanding
A8: =HYPERLINK("http://reports.ofsted.gov.uk/inspection-reports/find-inspection-report/provider/CARE/SC068511","Ofsted Social Care Provider Webpage") -> Ofsted Social Care Provider Webpage | B8: SC068511 | C8: Children's home | D8: Active | E8: REDACTED | F8: REDACTED | G8: REDACTED | H8: REDACTED | I8: REDACTED | J8: REDACTED | K8: South East | L8: Kent | M8: Local Authority | N8: Interim inspection | O8: 2016-09-15 | P8: 10016051 | Q8: Improved effectiveness
A9: =HYPERLINK("http://reports.ofsted.gov.uk/inspection-reports/find-inspection-report/provider/CARE/SC068559","Ofsted Social Care Provider Webpage") -> Ofsted Social Care Provider Webpage | B9: SC068559 | C9: Children's home | D9: Active | E9: REDACTED | F9: REDACTED | G9: REDACTED | H9: REDACTED | I9: REDACTED | J9: REDACTED | K9: South East | L9: East Sussex | M9: Private | N9: Full inspection | O9: 2016-08-25 | P9: 10013961 | Q9: Outstanding | T9: Outstanding | U9: Outstanding
A10: =HYPERLINK("http://reports.ofsted.gov.uk/inspection-reports/find-inspection-report/provider/CARE/SC068770","Ofsted Social Care Provider Webpage") -> Ofsted Social Care Provider Webpage | B10: SC068770 | C10: Children's home | D10: Active | E10: REDACTED | F10: REDACTED | G10: REDACTED | H10: REDACTED | I10: REDACTED | J10: REDACTED | K10: East of England | L10: Suffolk | M10: Private | N10: Full inspection | O10: 2016-09-08 | P10: 10013965 | Q10: Good | T10: Good | U10: Good
A11: =HYPERLINK("http://reports.ofsted.gov.uk/inspection-reports/find-inspection-report/provider/CARE/SC068827","Ofsted Social Care Provider Webpage") -> Ofsted Social Care Provider Webpage | B11: SC068827 | C11: Children's home | D11: Active | E11: REDACTED | F11: REDACTED | G11: REDACTED | H11: REDACTED | I11: REDACTED | J11: REDACTED | K11: South East | L11: Surrey | M11: Local Authority | N11: Full inspection | O11: 2016-06-02 | P11: 10013968 | Q11: Requires improvement | T11: Requires improvement | U11: Good
A12: =HYPERLINK("http://reports.ofsted.gov.uk/inspection-reports/find-inspection-report/provider/CARE/SC068955","Ofsted Social Care Provider Webpage") -> Ofsted Social Care Provider Webpage | B12: SC068955 | C12: Children's home | D12: Active | E12: REDACTED | F12: REDACTED | G12: REDACTED | H12: REDACTED | I12: REDACTED | J12: REDACTED | K12: East of England | L12: Norfolk | M12: Local Authority | N12: Full inspection | O12: 2016-08-11 | P12: 10013970 | Q12: Good | T12: Good | U12: Good
A13: =HYPERLINK("http://reports.ofsted.gov.uk/inspection-reports/find-inspection-report/provider/CARE/SC068991","Ofsted Social Care Provider Webpage") -> Ofsted Social Care Provider Webpage | B13: SC068991 | C13: Children's home | D13: Active | E13: REDACTED | F13: REDACTED | G13: REDACTED | H13: REDACTED | I13: REDACTED | J13: REDACTED | K13: East of England | L13: Cambridgeshire | M13: Private | N13: Full inspection | O13: 2016-05-25 | P13: 10013971 | Q13: Good | T13: Good | U13: Good
A14: =HYPERLINK("http://reports.ofsted.gov.uk/inspection-reports/find-inspection-report/provider/CARE/SC069128","Ofsted Social Care Provider Webpage") -> Ofsted Social Care Provider Webpage | B14: SC069128 | C14: Children's home | D14: Active | E14: REDACTED | F14: REDACTED | G14: REDACTED | H14: REDACTED | I14: REDACTED | J14: REDACTED | K14: South East | L14: Oxfordshire | M14: Voluntary | N14: Interim inspection | O14: 2016-05-31 | P14: 10016063 | Q14: Sustained effectiveness
A15: =HYPERLINK("http://reports.ofsted.gov.uk/inspection-reports/find-inspection-report/provider/CARE/SC069176","Ofsted Social Care Provider Webpage") -> Ofsted Social Care Provider Webpage | B15: SC069176 | C15: Children's home | D15: Active | E15: REDACTED | F15: REDACTED | G15: REDACTED | H15: REDACTED | I15: REDACTED | J15: REDACTED | K15: North West | L15: Tameside | M15: Private | N15: Full inspection | O15: 2016-05-05 | P15: 10013973 | Q15: Good | T15: Good | U15: Good
A16: =HYPERLINK("http://reports.ofsted.gov.uk/inspection-reports/find-inspection-report/provider/CARE/SC069178","Ofsted Social Care Provider Webpage") -> Ofsted Social Care Provider Webpage | B16: SC069178 | C16: Children's home | D16: Active | E16: REDACTED | F16: REDACTED | G16: REDACTED | H16: REDACTED | I16: REDACTED | J16: REDACTED | K16: East of England | L16: Suffolk | M16: Private | N16: Full inspection | O16: 2016-09-15 | P16: 10013974 | Q16: Good | T16: Good | U16: Good
A17: =HYPERLINK("http://reports.ofsted.gov.uk/inspection-reports/find-inspection-report/provider/CARE/SC448615","Ofsted Social Care Provider Webpage") -> Ofsted Social Care Provider Webpage | B17: SC448615 | C17: Children's home | D17: Active | E17: REDACTED | F17: REDACTED | G17: REDACTED | H17: REDACTED | I17: REDACTED | J17: REDACTED | K17: South West | L17: Plymouth | M17: Local Authority | N17: Monitoring inspection | O17: 2016-04-06 | P17: 10018101
A18: =HYPERLINK("http://reports.ofsted.gov.uk/inspection-reports/find-inspection-report/provider/CARE/SC448693","Ofsted Social Care Provider Webpage") -> Ofsted Social Care Provider Webpage | B18: SC448693 | C18: Children's home | D18: Active | E18: REDACTED | F18: REDACTED | G18: REDACTED | H18: REDACTED | I18: REDACTED | J18: REDACTED | K18: London | L18: Brent | M18: Private | N18: Full inspection | O18: 2016-08-26 | P18: 10014585 | Q18: Good | T18: Good | U18: Requires improvement
A19: =HYPERLINK("http://reports.ofsted.gov.uk/inspection-reports/find-inspection-report/provider/CARE/SC448997","Ofsted Social Care Provider Webpage") -> Ofsted Social Care Provider Webpage | B19: SC448997 | C19: Children's home | D19: Active | E19: REDACTED | F19: REDACTED | G19: REDACTED | H19: REDACTED | I19: REDACTED | J19: REDACTED | K19: South East | L19: Kent | M19: Private | N19: Full inspection | O19: 2016-08-17 | P19: 10014586 | Q19: Good | T19: Good | U19: Good
A20: =HYPERLINK("http://reports.ofsted.gov.uk/inspection-reports/find-inspection-report/provider/CARE/SC449096","Ofsted Social Care Provider Webpage") -> Ofsted Social Care Provider Webpage | B20: SC449096 | C20: Children's home | D20: Active | E20: REDACTED | F20: REDACTED | G20: REDACTED | H20: REDACTED | I20: REDACTED | J20: REDACTED | K20: North East | L20: Durham | M20: Local Authority | N20: Full inspection | O20: 2016-07-13 | P20: 10014587 | Q20: Good | T20: Requires improvement | U20: Good
A21: =HYPERLINK("http://reports.ofsted.gov.uk/inspection-reports/find-inspection-report/provider/CARE/SC449155","Ofsted Social Care Provider Webpage") -> Ofsted Social Care Provider Webpage | B21: SC449155 | C21: Children's home | D21: Active | E21: REDACTED | F21: REDACTED | G21: REDACTED | H21: REDACTED | I21: REDACTED | J21: REDACTED | K21: South East | L21: West Sussex | M21: Private | N21: Full inspection | O21: 2016-07-19 | P21: 10014589 | Q21: Good | T21: Good | U21: Good
A22: =HYPERLINK("http://reports.ofsted.gov.uk/inspection-reports/find-inspection-report/provider/CARE/SC449245","Ofsted Social Care Provider Webpage") -> Ofsted Social Care Provider Webpage | B22: SC449245 | C22: Children's home | D22: Active | E22: REDACTED | F22: REDACTED | G22: REDACTED | H22: REDACTED | I22: REDACTED | J22: REDACTED | K22: West Midlands | L22: Shropshire | M22: Private | N22: Full inspection | O22: 2016-09-13 | P22: 10014590 | Q22: Good | T22: Requires improvement | U22: Good
A23: =HYPERLINK("http://reports.ofsted.gov.uk/inspection-reports/find-inspection-report/provider/CARE/SC449307","Ofsted Social Care Provider Webpage") -> Ofsted Social Care Provider Webpage | B23: SC449307 | C23: Children's home | D23: Active | E23: REDACTED | F23: REDACTED | G23: REDACTED | H23: REDACTED | I23: REDACTED | J23: REDACTED | K23: South East | L23: Hampshire | M23: Private | N23: Full inspection | O23: 2016-07-27 | P23: 10014591 | Q23: Good | T23: Good | U23: Good
A24: =HYPERLINK("http://reports.ofsted.gov.uk/inspection-reports/find-inspection-report/provider/CARE/SC066821","Ofsted Social Care Provider Webpage") -> Ofsted Social Care Provider Webpage | B24: SC066821 | C24: Residential special school (registered as a children's home) | D24: Active | E24: REDACTED | F24: REDACTED | G24: REDACTED | H24: REDACTED | I24: REDACTED | J24: REDACTED | K24: North West | L24: Cumbria | M24: Private | N24: Full inspection | O24: 2016-05-19 | P24: 10013924 | Q24: Outstanding | T24: Outstanding | U24: Outstanding
A25: =HYPERLINK("http://reports.ofsted.gov.uk/inspection-reports/find-inspection-report/provider/CARE/SC066881","Ofsted Social Care Provider Webpage") -> Ofsted Social Care Provider Webpage | B25: SC066881 | C25: Children's home | D25: Active | E25: REDACTED | F25: REDACTED | G25: REDACTED | H25: REDACTED | I25: REDACTED | J25: REDACTED | K25: West Midlands | L25: Telford and Wrekin | M25: Private | N25: Full inspection | O25: 2016-09-21 | P25: 10013925 | Q25: Outstanding | T25: Outstanding | U25: Outstanding
A26: =HYPERLINK("http://reports.ofsted.gov.uk/inspection-reports/find-inspection-report/provider/CARE/SC066897","Ofsted Social Care Provider Webpage") -> Ofsted Social Care Provider Webpage | B26: SC066897 | C26: Residential special school (registered as a children's home) | D26: Active | E26: REDACTED | F26: REDACTED | G26: REDACTED | H26: REDACTED | I26: REDACTED | J26: REDACTED | K26: South East | L26: Hampshire | M26: Private | N26: Full inspection | O26: 2016-09-14 | P26: 10013926 | Q26: Good | T26: Good | U26: Good
A27: =HYPERLINK("http://reports.ofsted.gov.uk/inspection-reports/find-inspection-report/provider/CARE/SC066912","Ofsted Social Care Provider Webpage") -> Ofsted Social Care Provider Webpage | B27: SC066912 | C27: Children's home | D27: Active | E27: REDACTED | F27: REDACTED | G27: REDACTED | H27: REDACTED | I27: REDACTED | J27: REDACTED | K27: West Midlands | L27: Staffordshire | M27: Private | N27: Full inspection | O27: 2016-05-25 | P27: 10013927 | Q27: Requires improvement | T27: Requires improvement | U27: Requires improvement
A28: =HYPERLINK("http://reports.ofsted.gov.uk/inspection-reports/find-inspection-report/provider/CARE/SC066916","Ofsted Social Care Provider Webpage") -> Ofsted Social Care Provider Webpage | B28: SC066916 | C28: Children's home | D28: Active | E28: REDACTED | F28: REDACTED | G28: REDACTED | H28: REDACTED | I28: REDACTED | J28: REDACTED | K28: North West | L28: Liverpool | M28: Private | N28: Full inspection | O28: 2016-07-13 | P28: 10013928 | Q28: Good | T28: Good | U28: Good
